Workbook

Sheet CV Rotina <2A - procedência
E1: AO NASCER | I1: MENOR DE 1 ANO | U1: 1 ANO | AB1: MENOR DE 1 ANO
A2: Regional | B2: Município | C2: ¹População < 1 ano e 1 ano anual | D2: ²População < 1 ano e 1 ano proporcional | E2: Doses Aplicadas HB < 30 dias | F2: Cobertura Vacinal HB até 30 dias | G2: Doses Aplicadas BCG | H2: Cobertura Vacinal BCG | I2: Doses Aplicadas Pentavalente | J2: Cobertura Vacinal Pentavalente | K2: Doses Aplicadas Poliomielite | L2: Cobertura Vacinal Poliomielite | M2: Doses Aplicadas Pneumo 10 | N2: Cobertura Vacinal Pneumo 10 | O2: Doses Aplicadas Rotavírus | P2: Cobertura Vacinal Rotavírus | Q2: Doses Aplicadas Meningo C | R2: Cobertura Vacinal Meningo C | S2: Doses Aplicadas Febre Amarela | T2: Cobertura Vacinal Febre Amarela | U2: Doses Aplicadas Hepatite A | V2: Cobertura Vacinal Hepatite A | W2: Doses Aplicadas de Tríplice Viral | X2: Cobertura Vacinal Tríplice Viral | Y2: Doses Aplicadas Varicela | Z2: Cobertura Varicela | AB2: Doses Aplicadas COVID-19 | AC2: Cobertura Vacinal COVID-19 | AE2: VACINAS QUE ATINGIRAM A META DE CV | AF2: HOMOGENEIDADE ENTRE AS 10 VACINAS | AG2: VACINAS DO PQA-VS QUE ATINGIRAM A META DE CV | AH2: HOMOGENEIDADE ENTRE AS VACINAS DO PQA-VS
A3: Metropolitana | B3: Afonso Cláudio | C3: 355 | D3: 86 | E3: 79 | F3: =E3/D3 -> 0.9186046512 | G3: 84 | H3: =G3/D3 -> 0.976744186 | I3: 85 | J3: =I3/D3 -> 0.988372093 | K3: 82 | L3: =K3/D3 -> 0.9534883721 | M3: 75 | N3: =M3/D3 -> 0.8720930233 | O3: 79 | P3: =O3/D3 -> 0.9186046512 | Q3: 82 | R3: =Q3/D3 -> 0.9534883721 | S3: 86 | T3: =S3/D3 -> 1 | U3: 94 | V3: =U3/D3 -> 1.093023256 | W3: 92 | X3: =W3/D3 -> 1.069767442 | Y3: 121 | Z3: =Y3/D3 -> 1.406976744 | AB3: 0 | AC3: =AB3/D3 -> 0 | AE3: =cálculos1!O3 -> 9 | AF3: =AE3*0.1 -> 0.9 | AG3: =cálculos1!P3 -> 3 | AH3: =AG3*0.25 -> 0.75 | AJ3: LEGENDA / HOMOGENEIDADE PQA-VS
A4: Norte | B4: Água Doce do Norte | C4: 181 | D4: 51 | E4: 10 | F4: =E4/D4 -> 0.1960784314 | G4: 13 | H4: 0.2549019608 | I4: 36 | J4: 0.7058823529 | K4: 35 | L4: 0.6862745098 | M4: 33 | N4: 0.6470588235 | O4: 30 | P4: 0.5882352941 | Q4: 38 | R4: 0.7450980392 | S4: 43 | T4: 0.8431372549 | U4: 33 | V4: 0.6470588235 | W4: 44 | X4: 0.862745098 | Y4: 17 | Z4: 0.3333333333 | AB4: 1 | AC4: =AB4/D4 -> 0.01960784314 | AE4: =cálculos1!O4 -> 0 | AF4: =AE4*0.1 -> 0 | AG4: =cálculos1!P4 -> 0 | AH4: =AG4*0.25 -> 0 | AJ4: PERCENTUAL | AK4: Nº DE MUNICÍPIOS
A5: Central | B5: Águia Branca | C5: 146 | D5: 43 | E5: 15 | F5: 0.3488372093 | G5: 18 | H5: 0.4186046512 | I5: 37 | J5: 0.8604651163 | K5: 38 | L5: 0.8837209302 | M5: 23 | N5: 0.5348837209 | O5: 22 | P5: 0.511627907 | Q5: 35 | R5: 0.8139534884 | S5: 44 | T5: 1.023255814 | U5: 35 | V5: 0.8139534884 | W5: 40 | X5: 0.9302325581 | Y5: 38 | Z5: 0.8837209302 | AB5: 0 | AC5: 0 | AE5: =cálculos1!O5 -> 1 | AF5: 0.1 | AG5: =cálculos1!P5 -> 0 | AH5: 0 | AJ5: 0 | AK5: =COUNTIF($AH$3:$AH$80,"=0") -> 17
A6: Sul | B6: Alegre | C6: 264 | D6: 59 | E6: 22 | F6: 0.3728813559 | G6: 24 | H6: 0.406779661 | I6: 72 | J6: 1.220338983 | K6: 62 | L6: 1.050847458 | M6: 45 | N6: 0.7627118644 | O6: 57 | P6: 0.9661016949 | Q6: 73 | R6: 1.237288136 | S6: 69 | T6: 1.169491525 | U6: 81 | V6: 1.372881356 | W6: 84 | X6: 1.423728814 | Y6: 94 | Z6: 1.593220339 | AB6: 1 | AC6: 0.01694915254 | AE6: =cálculos1!O6 -> 8 | AF6: 0.8 | AG6: =cálculos1!P6 -> 3 | AH6: 0.75 | AJ6: 0.25 | AK6: =COUNTIF($AH$3:$AH$80,"=0,25") -> 16
A7: Sul | B7: Alfredo Chaves | C7: 112 | D7: 27 | E7: 4 | F7: 0.1481481481 | G7: 12 | H7: 0.4444444444 | I7: 26 | J7: 0.962962963 | K7: 24 | L7: 0.8888888889 | M7: 13 | N7: 0.4814814815 | O7: 17 | P7: 0.6296296296 | Q7: 24 | R7: 0.8888888889 | S7: 30 | T7: 1.111111111 | U7: 44 | V7: 1.62962963 | W7: 34 | X7: 1.259259259 | Y7: 32 | Z7: 1.185185185 | AB7: 0 | AC7: 0 | AE7: =cálculos1!O7 -> 5 | AF7: 0.5 | AG7: =cálculos1!P7 -> 2 | AH7: 0.5 | AJ7: 0.5 | AK7: =COUNTIF($AH$3:$AH$80,"=0,5") -> 11
A8: Central | B8: Alto Rio Novo | C8: 89 | D8: 19 | E8: 6 | F8: 0.3157894737 | G8: 8 | H8: 0.4210526316 | I8: 25 | J8: 1.315789474 | K8: 25 | L8: 1.315789474 | M8: 24 | N8: 1.263157895 | O8: 24 | P8: 1.263157895 | Q8: 27 | R8: 1.421052632 | S8: 28 | T8: 1.473684211 | U8: 22 | V8: 1.157894737 | W8: 21 | X8: 1.105263158 | Y8: 26 | Z8: 1.368421053 | AB8: 0 | AC8: 0 | AE8: =cálculos1!O8 -> 9 | AF8: 0.9 | AG8: =cálculos1!P8 -> 4 | AH8: 1 | AJ8: 0.75 | AK8: =COUNTIF($AH$3:$AH$80,"=0,75") -> 15
A9: Sul | B9: Anchieta | C9: 315 | D9: 73 | E9: 5 | F9: 0.06849315068 | G9: 38 | H9: 0.5205479452 | I9: 94 | J9: 1.287671233 | K9: 91 | L9: 1.246575342 | M9: 101 | N9: 1.383561644 | O9: 104 | P9: 1.424657534 | Q9: 82 | R9: 1.123287671 | S9: 87 | T9: 1.191780822 | U9: 102 | V9: 1.397260274 | W9: 83 | X9: 1.136986301 | Y9: 90 | Z9: 1.232876712 | AB9: 10 | AC9: 0.1369863014 | AE9: =cálculos1!O9 -> 9 | AF9: 0.9 | AG9: =cálculos1!P9 -> 4 | AH9: 1 | AJ9: 1 | AK9: =COUNTIF($AH$3:$AH$80,"=1,0") -> 19
A10: Sul | B10: Apiacá | C10: 72 | D10: 19 | E10: 1 | F10: 0.05263157895 | G10: 19 | H10: 1 | I10: 13 | J10: 0.6842105263 | K10: 12 | L10: 0.6315789474 | M10: 20 | N10: 1.052631579 | O10: 20 | P10: 1.052631579 | Q10: 16 | R10: 0.8421052632 | S10: 21 | T10: 1.105263158 | U10: 14 | V10: 0.7368421053 | W10: 15 | X10: 0.7894736842 | Y10: 16 | Z10: 0.8421052632 | AB10: 0 | AC10: 0 | AE10: =cálculos1!O10 -> 4 | AF10: 0.4 | AG10: =cálculos1!P10 -> 1 | AH10: 0.25
A11: Metropolitana | B11: Aracruz | C11: 1384 | D11: 385 | E11: 311 | F11: 0.8077922078 | G11: 314 | H11: 0.8155844156 | I11: 325 | J11: 0.8441558442 | K11: 318 | L11: 0.825974026 | M11: 281 | N11: 0.7298701299 | O11: 320 | P11: 0.8311688312 | Q11: 306 | R11: 0.7948051948 | S11: 293 | T11: 0.761038961 | U11: 374 | V11: 0.9714285714 | W11: 367 | X11: 0.9532467532 | Y11: 336 | Z11: 0.8727272727 | AB11: 28 | AC11: 0.07272727273 | AE11: =cálculos1!O11 -> 2 | AF11: 0.2 | AG11: =cálculos1!P11 -> 1 | AH11: 0.25
A12: Sul | B12: Atilio Vivacqua | C12: 125 | D12: 20 | E12: 1 | F12: 0.05 | G12: 3 | H12: 0.15 | I12: 45 | J12: 2.25 | K12: 44 | L12: 2.2 | M12: 40 | N12: 2 | O12: 39 | P12: 1.95 | Q12: 45 | R12: 2.25 | S12: 33 | T12: 1.65 | U12: 35 | V12: 1.75 | W12: 33 | X12: 1.65 | Y12: 23 | Z12: 1.15 | AB12: 3 | AC12: 0.15 | AE12: =cálculos1!O12 -> 9 | AF12: 0.9 | AG12: =cálculos1!P12 -> 4 | AH12: 1 | AJ12: LEGENDA / HOMOGENEIDADE 10 VACINAS
A13: Central | B13: Baixo Guandu | C13: 350 | D13: 105 | E13: 26 | F13: 0.2476190476 | G13: 41 | H13: 0.3904761905 | I13: 75 | J13: 0.7142857143 | K13: 75 | L13: 0.7142857143 | M13: 64 | N13: 0.6095238095 | O13: 65 | P13: 0.619047619 | Q13: 72 | R13: 0.6857142857 | S13: 93 | T13: 0.8857142857 | U13: 98 | V13: 0.9333333333 | W13: 85 | X13: 0.8095238095 | Y13: 82 | Z13: 0.780952381 | AB13: 0 | AC13: 0 | AE13: =cálculos1!O13 -> 0 | AF13: 0 | AG13: =cálculos1!P13 -> 0 | AH13: 0 | AJ13: PERCENTUAL | AK13: Nº DE MUNICÍPIOS
A14: Norte | B14: Barra de São Francisco | C14: 591 | D14: 149 | E14: 103 | F14: 0.6912751678 | G14: 100 | H14: 0.6711409396 | I14: 146 | J14: 0.9798657718 | K14: 146 | L14: 0.9798657718 | M14: 106 | N14: 0.711409396 | O14: 107 | P14: 0.7181208054 | Q14: 120 | R14: 0.8053691275 | S14: 124 | T14: 0.8322147651 | U14: 116 | V14: 0.7785234899 | W14: 125 | X14: 0.8389261745 | Y14: 143 | Z14: 0.9597315436 | AB14: 0 | AC14: 0 | AE14: =cálculos1!O14 -> 3 | AF14: 0.3 | AG14: =cálculos1!P14 -> 2 | AH14: 0.5 | AJ14: 0 | AK14: =COUNTIF($AF$3:$AF$80,"=0") -> 7
A15: Norte | B15: Boa Esperança | C15: 205 | D15: 57 | E15: 4 | F15: 0.0701754386 | G15: 23 | H15: 0.4035087719 | I15: 48 | J15: 0.8421052632 | K15: 47 | L15: 0.8245614035 | M15: 47 | N15: 0.8245614035 | O15: 52 | P15: 0.9122807018 | Q15: 48 | R15: 0.8421052632 | S15: 50 | T15: 0.8771929825 | U15: 55 | V15: 0.9649122807 | W15: 42 | X15: 0.7368421053 | Y15: 52 | Z15: 0.9122807018 | AB15: 0 | AC15: 0 | AE15: =cálculos1!O15 -> 2 | AF15: 0.2 | AG15: =cálculos1!P15 -> 0 | AH15: 0 | AJ15: 0.1 | AK15: =COUNTIFS($AF$3:$AF$80,">=0,10",$AF$3:$AF$80,"<0,20") -> 9
A16: Sul | B16: Bom Jesus do Norte | C16: 73 | D16: 16 | E16: 5 | F16: 0.3125 | G16: 22 | H16: 1.375 | I16: 29 | J16: 1.8125 | K16: 29 | L16: 1.8125 | M16: 19 | N16: 1.1875 | O16: 19 | P16: 1.1875 | Q16: 18 | R16: 1.125 | S16: 32 | T16: 2 | U16: 29 | V16: 1.8125 | W16: 23 | X16: 1.4375 | Y16: 15 | Z16: 0.9375 | AB16: 0 | AC16: 0 | AE16: =cálculos1!O16 -> 9 | AF16: 0.9 | AG16: =cálculos1!P16 -> 4 | AH16: 1 | AJ16: 0.2 | AK16: =COUNTIFS($AF$3:$AF$80,">=0,20",$AF$3:$AF$80,"<0,30") -> 7
A17: Metropolitana | B17: Brejetuba | C17: 202 | D17: 50 | E17: 3 | F17: 0.06 | G17: 34 | H17: 0.68 | I17: 36 | J17: 0.72 | K17: 38 | L17: 0.76 | M17: 49 | N17: 0.98 | O17: 54 | P17: 1.08 | Q17: 45 | R17: 0.9 | S17: 31 | T17: 0.62 | U17: 45 | V17: 0.9 | W17: 54 | X17: 1.08 | Y17: 42 | Z17: 0.84 | AB17: 0 | AC17: 0 | AE17: =cálculos1!O17 -> 3 | AF17: 0.3 | AG17: =cálculos1!P17 -> 2 | AH17: 0.5 | AJ17: 0.3 | AK17: =COUNTIFS($AF$3:$AF$80,">=0,30",$AF$3:$AF$80,"<0,40") -> 8
A18: Sul | B18: Cachoeiro de Itapemirim | C18: 1946 | D18: 457 | E18: 1307 | F18: 2.859956236 | G18: 1318 | H18: 2.884026258 | I18: 569 | J18: 1.245076586 | K18: 559 | L18: 1.223194748 | M18: 492 | N18: 1.076586433 | O18: 555 | P18: 1.214442013 | Q18: 565 | R18: 1.236323851 | S18: 476 | T18: 1.041575492 | U18: 599 | V18: 1.310722101 | W18: 589 | X18: 1.288840263 | Y18: 558 | Z18: 1.221006565 | AB18: 14 | AC18: 0.0306345733 | AE18: =cálculos1!O18 -> 10 | AF18: 1 | AG18: =cálculos1!P18 -> 4 | AH18: 1 | AJ18: 0.4 | AK18: =COUNTIFS($AF$3:$AF$80,">=0,40",$AF$3:$AF$80,"<0,50") -> 6
A19: Metropolitana | B19: Cariacica | C19: 4767 | D19: 1221 | E19: 649 | F19: 0.5315315315 | G19: 716 | H19: 0.5864045864 | I19: 1103 | J19: 0.9033579034 | K19: 1068 | L19: 0.8746928747 | M19: 925 | N19: 0.7575757576 | O19: 1042 | P19: 0.8533988534 | Q19: 1059 | R19: 0.8673218673 | S19: 919 | T19: 0.7526617527 | U19: 1123 | V19: 0.9197379197 | W19: 1138 | X19: 0.932022932 | Y19: 826 | Z19: 0.6764946765 | AB19: 73 | AC19: 0.05978705979 | AE19: =cálculos1!O19 -> 0 | AF19: 0 | AG19: =cálculos1!P19 -> 0 | AH19: 0 | AJ19: 0.5 | AK19: =COUNTIFS($AF$3:$AF$80,">=0,50",$AF$3:$AF$80,"<0,60") -> 6
A20: Sul | B20: Castelo | C20: 370 | D20: 96 | E20: 62 | F20: 0.6458333333 | G20: 65 | H20: 0.6770833333 | I20: 98 | J20: 1.020833333 | K20: 95 | L20: 0.9895833333 | M20: 78 | N20: 0.8125 | O20: 89 | P20: 0.9270833333 | Q20: 99 | R20: 1.03125 | S20: 99 | T20: 1.03125 | U20: 110 | V20: 1.145833333 | W20: 108 | X20: 1.125 | Y20: 58 | Z20: 0.6041666667 | AB20: 3 | AC20: 0.03125 | AE20: =cálculos1!O20 -> 7 | AF20: 0.7 | AG20: =cálculos1!P20 -> 3 | AH20: 0.75 | AJ20: 0.6 | AK20: =COUNTIFS($AF$3:$AF$80,">=0,60",$AF$3:$AF$80,"<0,70") -> 8
A21: Central | B21: Colatina | C21: 1490 | D21: 382 | E21: 886 | F21: 2.319371728 | G21: 859 | H21: 2.248691099 | I21: 384 | J21: 1.005235602 | K21: 384 | L21: 1.005235602 | M21: 276 | N21: 0.722513089 | O21: 328 | P21: 0.8586387435 | Q21: 391 | R21: 1.023560209 | S21: 306 | T21: 0.8010471204 | U21: 332 | V21: 0.8691099476 | W21: 360 | X21: 0.942408377 | Y21: 285 | Z21: 0.7460732984 | AB21: 8 | AC21: 0.02094240838 | AE21: =cálculos1!O21 -> 4 | AF21: 0.4 | AG21: =cálculos1!P21 -> 2 | AH21: 0.5 | AJ21: 0.7 | AK21: =COUNTIFS($AF$3:$AF$80,">=0,70",$AF$3:$AF$80,"<0,80") -> 5
A22: Norte | B22: Conceição da Barra | C22: 364 | D22: 107 | E22: 2 | F22: 0.01869158879 | G22: 5 | H22: 0.04672897196 | I22: 86 | J22: 0.8037383178 | K22: 88 | L22: 0.8224299065 | M22: 75 | N22: 0.7009345794 | O22: 80 | P22: 0.7476635514 | Q22: 82 | R22: 0.7663551402 | S22: 98 | T22: 0.9158878505 | U22: 95 | V22: 0.8878504673 | W22: 106 | X22: 0.9906542056 | Y22: 77 | Z22: 0.7196261682 | AB22: 2 | AC22: 0.01869158879 | AE22: =cálculos1!O22 -> 1 | AF22: 0.1 | AG22: =cálculos1!P22 -> 1 | AH22: 0.25 | AJ22: 0.8 | AK22: =COUNTIFS($AF$3:$AF$80,">=0,80",$AF$3:$AF$80,"<0,90") -> 8
A23: Metropolitana | B23: Conceição do Castelo | C23: 162 | D23: 37 | E23: 0 | F23: 0 | G23: 0 | H23: 0 | I23: 39 | J23: 1.054054054 | K23: 38 | L23: 1.027027027 | M23: 38 | N23: 1.027027027 | O23: 42 | P23: 1.135135135 | Q23: 29 | R23: 0.7837837838 | S23: 36 | T23: 0.972972973 | U23: 31 | V23: 0.8378378378 | W23: 35 | X23: 0.9459459459 | Y23: 38 | Z23: 1.027027027 | AB23: 0 | AC23: 0 | AE23: =cálculos1!O23 -> 6 | AF23: 0.6 | AG23: =cálculos1!P23 -> 3 | AH23: 0.75 | AJ23: 0.9 | AK23: =COUNTIFS($AF$3:$AF$80,">=0,90",$AF$3:$AF$80,"<1,0") -> 13
A24: Sul | B24: Divino de São Lourenço | C24: 51 | D24: 13 | E24: 6 | F24: 0.4615384615 | G24: 7 | H24: 0.5384615385 | I24: 8 | J24: 0.6153846154 | K24: 8 | L24: 0.6153846154 | M24: 8 | N24: 0.6153846154 | O24: 9 | P24: 0.6923076923 | Q24: 10 | R24: 0.7692307692 | S24: 28 | T24: 2.153846154 | U24: 16 | V24: 1.230769231 | W24: 23 | X24: 1.769230769 | Y24: 17 | Z24: 1.307692308 | AB24: 0 | AC24: 0 | AE24: =cálculos1!O24 -> 4 | AF24: 0.4 | AG24: =cálculos1!P24 -> 1 | AH24: 0.25 | AJ24: 1 | AK24: =COUNTIF($AF$3:$AF$80,">=1,0") -> 1
A25: Metropolitana | B25: Domingos Martins | C25: 421 | D25: 100 | E25: 11 | F25: 0.11 | G25: 20 | H25: 0.2 | I25: 108 | J25: 1.08 | K25: 105 | L25: 1.05 | M25: 94 | N25: 0.94 | O25: 104 | P25: 1.04 | Q25: 96 | R25: 0.96 | S25: 103 | T25: 1.03 | U25: 102 | V25: 1.02 | W25: 91 | X25: 0.91 | Y25: 123 | Z25: 1.23 | AB25: 10 | AC25: 0.1 | AE25: =cálculos1!O25 -> 7 | AF25: 0.7 | AG25: =cálculos1!P25 -> 2 | AH25: 0.5
A26: Sul | B26: Dores do Rio Preto | C26: 94 | D26: 22 | E26: 12 | F26: 0.5454545455 | G26: 21 | H26: 0.9545454545 | I26: 31 | J26: 1.409090909 | K26: 31 | L26: 1.409090909 | M26: 20 | N26: 0.9090909091 | O26: 29 | P26: 1.318181818 | Q26: 19 | R26: 0.8636363636 | S26: 22 | T26: 1 | U26: 27 | V26: 1.227272727 | W26: 25 | X26: 1.136363636 | Y26: 17 | Z26: 0.7727272727 | AB26: 0 | AC26: 0 | AE26: =cálculos1!O26 -> 7 | AF26: 0.7 | AG26: =cálculos1!P26 -> 3 | AH26: 0.75
A27: Norte | B27: Ecoporanga | C27: 256 | D27: 71 | E27: 23 | F27: 0.323943662 | G27: 17 | H27: 0.2394366197 | I27: 57 | J27: 0.8028169014 | K27: 55 | L27: 0.7746478873 | M27: 56 | N27: 0.7887323944 | O27: 60 | P27: 0.8450704225 | Q27: 51 | R27: 0.7183098592 | S27: 67 | T27: 0.9436619718 | U27: 54 | V27: 0.7605633803 | W27: 63 | X27: 0.8873239437 | Y27: 38 | Z27: 0.5352112676 | AB27: 1 | AC27: 0.01408450704 | AE27: =cálculos1!O27 -> 0 | AF27: 0 | AG27: =cálculos1!P27 -> 0 | AH27: 0
A28: Metropolitana | B28: Fundão | C28: 222 | D28: 62 | E28: 8 | F28: 0.1290322581 | G28: 16 | H28: 0.2580645161 | I28: 52 | J28: 0.8387096774 | K28: 52 | L28: 0.8387096774 | M28: 51 | N28: 0.8225806452 | O28: 56 | P28: 0.9032258065 | Q28: 57 | R28: 0.9193548387 | S28: 38 | T28: 0.6129032258 | U28: 55 | V28: 0.8870967742 | W28: 61 | X28: 0.9838709677 | Y28: 49 | Z28: 0.7903225806 | AB28: 1 | AC28: 0.01612903226 | AE28: =cálculos1!O28 -> 2 | AF28: 0.2 | AG28: =cálculos1!P28 -> 1 | AH28: 0.25
A29: Central | B29: Governador Lindenberg | C29: 116 | D29: 31 | E29: 10 | F29: 0.3225806452 | G29: 8 | H29: 0.2580645161 | I29: 22 | J29: 0.7096774194 | K29: 23 | L29: 0.7419354839 | M29: 19 | N29: 0.6129032258 | O29: 24 | P29: 0.7741935484 | Q29: 20 | R29: 0.6451612903 | S29: 22 | T29: 0.7096774194 | U29: 23 | V29: 0.7419354839 | W29: 27 | X29: 0.8709677419 | Y29: 16 | Z29: 0.5161290323 | AB29: 0 | AC29: 0 | AE29: =cálculos1!O29 -> 0 | AF29: 0 | AG29: =cálculos1!P29 -> 0 | AH29: 0
A30: Sul | B30: Guaçuí | C30: 358 | D30: 86 | E30: 86 | F30: 1 | G30: 83 | H30: 0.9651162791 | I30: 77 | J30: 0.8953488372 | K30: 75 | L30: 0.8720930233 | M30: 89 | N30: 1.034883721 | O30: 86 | P30: 1 | Q30: 77 | R30: 0.8953488372 | S30: 76 | T30: 0.8837209302 | U30: 76 | V30: 0.8837209302 | W30: 91 | X30: 1.058139535 | Y30: 81 | Z30: 0.9418604651 | AB30: 8 | AC30: 0.09302325581 | AE30: =cálculos1!O30 -> 4 | AF30: 0.4 | AG30: =cálculos1!P30 -> 2 | AH30: 0.5
A31: Metropolitana | B31: Guarapari | C31: 1706 | D31: 422 | E31: 339 | F31: 0.8033175355 | G31: 385 | H31: 0.9123222749 | I31: 362 | J31: 0.8578199052 | K31: 359 | L31: 0.8507109005 | M31: 382 | N31: 0.9052132701 | O31: 395 | P31: 0.9360189573 | Q31: 373 | R31: 0.8838862559 | S31: 280 | T31: 0.663507109 | U31: 391 | V31: 0.9265402844 | W31: 338 | X31: 0.8009478673 | Y31: 340 | Z31: 0.8056872038 | AB31: 25 | AC31: 0.05924170616 | AE31: =cálculos1!O31 -> 2 | AF31: 0.2 | AG31: =cálculos1!P31 -> 0 | AH31: 0
A32: Metropolitana | B32: Ibatiba | C32: 379 | D32: 87 | E32: 60 | F32: 0.6896551724 | G32: 80 | H32: 0.9195402299 | I32: 102 | J32: 1.172413793 | K32: 103 | L32: 1.183908046 | M32: 85 | N32: 0.9770114943 | O32: 96 | P32: 1.103448276 | Q32: 105 | R32: 1.206896552 | S32: 82 | T32: 0.9425287356 | U32: 109 | V32: 1.252873563 | W32: 94 | X32: 1.08045977 | Y32: 72 | Z32: 0.8275862069 | AB32: 12 | AC32: 0.1379310345 | AE32: =cálculos1!O32 -> 8 | AF32: 0.8 | AG32: =cálculos1!P32 -> 4 | AH32: 1
A33: Metropolitana | B33: Ibiraçu | C33: 149 | D33: 38 | E33: 7 | F33: 0.1842105263 | G33: 9 | H33: 0.2368421053 | I33: 32 | J33: 0.8421052632 | K33: 31 | L33: 0.8157894737 | M33: 35 | N33: 0.9210526316 | O33: 36 | P33: 0.9473684211 | Q33: 38 | R33: 1 | S33: 36 | T33: 0.9473684211 | U33: 29 | V33: 0.7631578947 | W33: 40 | X33: 1.052631579 | Y33: 20 | Z33: 0.5263157895 | AB33: 0 | AC33: 0 | AE33: =cálculos1!O33 -> 3 | AF33: 0.3 | AG33: =cálculos1!P33 -> 1 | AH33: 0.25
A34: Sul | B34: Ibitirama | C34: 133 | D34: 30 | E34: 17 | F34: 0.5666666667 | G34: 25 | H34: 0.8333333333 | I34: 42 | J34: 1.4 | K34: 40 | L34: 1.333333333 | M34: 49 | N34: 1.633333333 | O34: 51 | P34: 1.7 | Q34: 43 | R34: 1.433333333 | S34: 32 | T34: 1.066666667 | U34: 37 | V34: 1.233333333 | W34: 40 | X34: 1.333333333 | Y34: 26 | Z34: 0.8666666667 | AB34: 2 | AC34: 0.06666666667 | AE34: =cálculos1!O34 -> 8 | AF34: 0.8 | AG34: =cálculos1!P34 -> 4 | AH34: 1
A35: Sul | B35: Iconha | C35: 106 | D35: 25 | E35: 5 | F35: 0.2 | G35: 15 | H35: =G35/D35 -> 0.6 | I35: 26 | J35: =I35/D35 -> 1.04 | K35: 26 | L35: =K35/D35 -> 1.04 | M35: 26 | N35: =M35/D35 -> 1.04 | O35: 29 | P35: =O35/D35 -> 1.16 | Q35: 31 | R35: =Q35/D35 -> 1.24 | S35: 22 | T35: =S35/D35 -> 0.88 | U35: 27 | V35: =U35/D35 -> 1.08 | W35: 27 | X35: =W35/D35 -> 1.08 | Y35: 43 | Z35: =Y35/D35 -> 1.72 | AB35: 0 | AC35: 0 | AE35: =cálculos1!O35 -> 8 | AF35: 0.8 | AG35: =cálculos1!P35 -> 4 | AH35: 1
A36: Sul | B36: Irupi | C36: 170 | D36: 47 | E36: 19 | F36: 0.4042553191 | G36: 27 | H36: 0.5744680851 | I36: 52 | J36: 1.106382979 | K36: 53 | L36: 1.127659574 | M36: 33 | N36: 0.7021276596 | O36: 39 | P36: 0.829787234 | Q36: 48 | R36: 1.021276596 | S36: 51 | T36: 1.085106383 | U36: 50 | V36: 1.063829787 | W36: 50 | X36: 1.063829787 | Y36: 38 | Z36: 0.8085106383 | AB36: 6 | AC36: 0.1276595745 | AE36: =cálculos1!O36 -> 6 | AF36: 0.6 | AG36: =cálculos1!P36 -> 3 | AH36: 0.75
A37: Metropolitana | B37: Itaguaçu | C37: 137 | D37: 41 | E37: 6 | F37: 0.1463414634 | G37: 9 | H37: 0.2195121951 | I37: 35 | J37: 0.8536585366 | K37: 35 | L37: 0.8536585366 | M37: 28 | N37: 0.6829268293 | O37: 34 | P37: 0.8292682927 | Q37: 32 | R37: 0.7804878049 | S37: 46 | T37: 1.12195122 | U37: 25 | V37: 0.6097560976 | W37: 34 | X37: 0.8292682927 | Y37: 22 | Z37: 0.5365853659 | AB37: 5 | AC37: 0.1219512195 | AE37: =cálculos1!O37 -> 1 | AF37: 0.1 | AG37: =cálculos1!P37 -> 0 | AH37: 0
A38: Sul | B38: Itapemirim | C38: 459 | D38: 97 | E38: 167 | F38: 1.721649485 | G38: 48 | H38: 0.4948453608 | I38: 90 | J38: 0.9278350515 | K38: 78 | L38: 0.8041237113 | M38: 108 | N38: 1.113402062 | O38: 95 | P38: 0.9793814433 | Q38: 109 | R38: 1.12371134 | S38: 83 | T38: 0.8556701031 | U38: 123 | V38: 1.268041237 | W38: 101 | X38: 1.041237113 | Y38: 87 | Z38: 0.8969072165 | AB38: 1 | AC38: 0.01030927835 | AE38: =cálculos1!O38 -> 5 | AF38: 0.5 | AG38: =cálculos1!P38 -> 2 | AH38: 0.5
A39: Metropolitana | B39: Itarana | C39: 129 | D39: 34 | E39: 1 | F39: 0.02941176471 | G39: 2 | H39: 0.05882352941 | I39: 30 | J39: 0.8823529412 | K39: 29 | L39: 0.8529411765 | M39: 16 | N39: 0.4705882353 | O39: 20 | P39: 0.5882352941 | Q39: 26 | R39: 0.7647058824 | S39: 33 | T39: 0.9705882353 | U39: 28 | V39: 0.8235294118 | W39: 33 | X39: 0.9705882353 | Y39: 30 | Z39: 0.8823529412 | AB39: 1 | AC39: 0.02941176471 | AE39: =cálculos1!O39 -> 2 | AF39: 0.2 | AG39: =cálculos1!P39 -> 1 | AH39: 0.25
A40: Sul | B40: Iúna | C40: 418 | D40: 111 | E40: 64 | F40: 0.5765765766 | G40: 72 | H40: 0.6486486486 | I40: 104 | J40: 0.9369369369 | K40: 97 | L40: 0.8738738739 | M40: 82 | N40: 0.7387387387 | O40: 90 | P40: 0.8108108108 | Q40: 101 | R40: 0.9099099099 | S40: 109 | T40: 0.981981982 | U40: 128 | V40: 1.153153153 | W40: 106 | X40: 0.954954955 | Y40: 107 | Z40: 0.963963964 | AB40: 0 | AC40: 0 | AE40: =cálculos1!O40 -> 4 | AF40: 0.4 | AG40: =cálculos1!P40 -> 1 | AH40: 0.25
A41: Norte | B41: Jaguaré | C41: 474 | D41: 129 | E41: 95 | F41: 0.7364341085 | G41: 91 | H41: 0.7054263566 | I41: 114 | J41: 0.8837209302 | K41: 108 | L41: 0.8372093023 | M41: 95 | N41: 0.7364341085 | O41: 96 | P41: 0.7441860465 | Q41: 114 | R41: 0.8837209302 | S41: 98 | T41: 0.7596899225 | U41: 124 | V41: 0.9612403101 | W41: 95 | X41: 0.7364341085 | Y41: 78 | Z41: 0.6046511628 | AB41: 0 | AC41: 0 | AE41: =cálculos1!O41 -> 1 | AF41: 0.1 | AG41: =cálculos1!P41 -> 0 | AH41: 0
A42: Sul | B42: Jerônimo Monteiro | C42: 119 | D42: 26 | E42: 1 | F42: 0.03846153846 | G42: 3 | H42: 0.1153846154 | I42: 30 | J42: 1.153846154 | K42: 31 | L42: 1.192307692 | M42: 28 | N42: 1.076923077 | O42: 32 | P42: 1.230769231 | Q42: 28 | R42: 1.076923077 | S42: 26 | T42: 1 | U42: 36 | V42: 1.384615385 | W42: 37 | X42: 1.423076923 | Y42: 30 | Z42: 1.153846154 | AB42: 3 | AC42: 0.1153846154 | AE42: =cálculos1!O42 -> 9 | AF42: 0.9 | AG42: =cálculos1!P42 -> 4 | AH42: 1
A43: Metropolitana | B43: João Neiva | C43: 153 | D43: 32 | E43: 9 | F43: 0.28125 | G43: 5 | H43: 0.15625 | I43: 39 | J43: 1.21875 | K43: 35 | L43: 1.09375 | M43: 34 | N43: 1.0625 | O43: 40 | P43: 1.25 | Q43: 38 | R43: 1.1875 | S43: 42 | T43: 1.3125 | U43: 34 | V43: 1.0625 | W43: 31 | X43: 0.96875 | Y43: 37 | Z43: 1.15625 | AB43: 1 | AC43: 0.03125 | AE43: =cálculos1!O43 -> 9 | AF43: 0.9 | AG43: =cálculos1!P43 -> 4 | AH43: 1
A44: Metropolitana | B44: Laranja da Terra | C44: 101 | D44: 25 | E44: 1 | F44: 0.04 | G44: 6 | H44: 0.24 | I44: 23 | J44: 0.92 | K44: 24 | L44: 0.96 | M44: 36 | N44: 1.44 | O44: 36 | P44: 1.44 | Q44: 34 | R44: 1.36 | S44: 25 | T44: 1 | U44: 26 | V44: 1.04 | W44: 27 | X44: 1.08 | Y44: 33 | Z44: 1.32 | AB44: 2 | AC44: 0.08 | AE44: =cálculos1!O44 -> 8 | AF44: 0.8 | AG44: =cálculos1!P44 -> 3 | AH44: 0.75
A45: Central | B45: Linhares | C45: 2663 | D45: 696 | E45: 656 | F45: 0.9425287356 | G45: 666 | H45: 0.9568965517 | I45: 575 | J45: 0.8261494253 | K45: 559 | L45: 0.8031609195 | M45: 515 | N45: 0.7399425287 | O45: 579 | P45: 0.8318965517 | Q45: 610 | R45: 0.8764367816 | S45: 519 | T45: 0.7456896552 | U45: 528 | V45: 0.7586206897 | W45: 541 | X45: 0.7772988506 | Y45: 403 | Z45: 0.5790229885 | AB45: 1 | AC45: 0.001436781609 | AE45: =cálculos1!O45 -> 1 | AF45: 0.1 | AG45: =cálculos1!P45 -> 0 | AH45: 0
A46: Central | B46: Mantenópolis | C46: 138 | D46: 38 | E46: 8 | F46: 0.2105263158 | G46: 9 | H46: 0.2368421053 | I46: 39 | J46: 1.026315789 | K46: 37 | L46: 0.9736842105 | M46: 22 | N46: 0.5789473684 | O46: 27 | P46: 0.7105263158 | Q46: 40 | R46: 1.052631579 | S46: 50 | T46: 1.315789474 | U46: 27 | V46: 0.7105263158 | W46: 35 | X46: 0.9210526316 | Y46: 44 | Z46: 1.157894737 | AB46: 0 | AC46: 0 | AE46: =cálculos1!O46 -> 5 | AF46: 0.5 | AG46: =cálculos1!P46 -> 2 | AH46: 0.5
A47: Sul | B47: Marataízes | C47: 500 | D47: 120 | E47: 10 | F47: 0.08333333333 | G47: 64 | H47: 0.5333333333 | I47: 125 | J47: 1.041666667 | K47: 113 | L47: 0.9416666667 | M47: 153 | N47: 1.275 | O47: 157 | P47: 1.308333333 | Q47: 145 | R47: 1.208333333 | S47: 103 | T47: 0.8583333333 | U47: 127 | V47: 1.058333333 | W47: 149 | X47: 1.241666667 | Y47: 94 | Z47: 0.7833333333 | AB47: 1 | AC47: 0.008333333333 | AE47: =cálculos1!O47 -> 6 | AF47: 0.6 | AG47: =cálculos1!P47 -> 3 | AH47: 0.75
A48: Metropolitana | B48: Marechal Floriano | C48: 204 | D48: 64 | E48: 8 | F48: 0.125 | G48: 6 | H48: 0.09375 | I48: 45 | J48: 0.703125 | K48: 44 | L48: 0.6875 | M48: 41 | N48: 0.640625 | O48: 40 | P48: 0.625 | Q48: 40 | R48: 0.625 | S48: 54 | T48: 0.84375 | U48: 62 | V48: 0.96875 | W48: 50 | X48: 0.78125 | Y48: 65 | Z48: 1.015625 | AB48: 6 | AC48: 0.09375 | AE48: =cálculos1!O48 -> 2 | AF48: 0.2 | AG48: =cálculos1!P48 -> 0 | AH48: 0
A49: Central | B49: Marilândia | C49: 146 | D49: 37 | E49: 12 | F49: 0.3243243243 | G49: 16 | H49: 0.4324324324 | I49: 32 | J49: 0.8648648649 | K49: 32 | L49: 0.8648648649 | M49: 32 | N49: 0.8648648649 | O49: 37 | P49: 1 | Q49: 33 | R49: 0.8918918919 | S49: 42 | T49: 1.135135135 | U49: 33 | V49: 0.8918918919 | W49: 36 | X49: 0.972972973 | Y49: 34 | Z49: 0.9189189189 | AB49: 0 | AC49: 0 | AE49: =cálculos1!O49 -> 3 | AF49: 0.3 | AG49: =cálculos1!P49 -> 1 | AH49: 0.25
A50: Sul | B50: Mimoso do Sul | C50: 219 | D50: 46 | E50: 11 | F50: 0.2391304348 | G50: 14 | H50: 0.3043478261 | I50: 58 | J50: 1.260869565 | K50: 49 | L50: 1.065217391 | M50: 50 | N50: 1.086956522 | O50: 60 | P50: 1.304347826 | Q50: 54 | R50: 1.173913043 | S50: 57 | T50: 1.239130435 | U50: 44 | V50: 0.9565217391 | W50: 41 | X50: 0.8913043478 | Y50: 53 | Z50: 1.152173913 | AB50: 2 | AC50: 0.04347826087 | AE50: =cálculos1!O50 -> 8 | AF50: 0.8 | AG50: =cálculos1!P50 -> 3 | AH50: 0.75
A51: Norte | B51: Montanha | C51: 230 | D51: 63 | E51: 19 | F51: 0.3015873016 | G51: 19 | H51: 0.3015873016 | I51: 69 | J51: 1.095238095 | K51: 68 | L51: 1.079365079 | M51: 58 | N51: 0.9206349206 | O51: 72 | P51: 1.142857143 | Q51: 67 | R51: 1.063492063 | S51: 56 | T51: 0.8888888889 | U51: 56 | V51: 0.8888888889 | W51: 61 | X51: 0.9682539683 | Y51: 68 | Z51: 1.079365079 | AB51: 2 | AC51: 0.03174603175 | AE51: =cálculos1!O51 -> 6 | AF51: 0.6 | AG51: =cálculos1!P51 -> 3 | AH51: 0.75
A52: Norte | B52: Mucurici | C52: 70 | D52: 16 | E52: 2 | F52: 0.125 | G52: 2 | H52: 0.125 | I52: 13 | J52: 0.8125 | K52: 14 | L52: 0.875 | M52: 18 | N52: 1.125 | O52: 17 | P52: 1.0625 | Q52: 17 | R52: 1.0625 | S52: 22 | T52: 1.375 | U52: 25 | V52: 1.5625 | W52: 16 | X52: 1 | Y52: 25 | Z52: 1.5625 | AB52: 1 | AC52: 0.0625 | AE52: =cálculos1!O52 -> 7 | AF52: 0.7 | AG52: =cálculos1!P52 -> 2 | AH52: 0.5
A53: Sul | B53: Muniz Freire | C53: 201 | D53: 46 | E53: 24 | F53: 0.5217391304 | G53: 32 | H53: 0.6956521739 | I53: 57 | J53: 1.239130435 | K53: 54 | L53: 1.173913043 | M53: 55 | N53: 1.195652174 | O53: 56 | P53: 1.217391304 | Q53: 53 | R53: 1.152173913 | S53: 68 | T53: 1.47826087 | U53: 61 | V53: 1.326086957 | W53: 69 | X53: 1.5 | Y53: 65 | Z53: 1.413043478 | AB53: 1 | AC53: 0.02173913043 | AE53: =cálculos1!O53 -> 9 | AF53: 0.9 | AG53: =cálculos1!P53 -> 4 | AH53: 1
A54: Sul | B54: Muqui | C54: 119 | D54: 23 | E54: 6 | F54: 0.2608695652 | G54: 6 | H54: 0.2608695652 | I54: 37 | J54: 1.608695652 | K54: 37 | L54: 1.608695652 | M54: 33 | N54: 1.434782609 | O54: 34 | P54: 1.47826087 | Q54: 31 | R54: 1.347826087 | S54: 50 | T54: 2.173913043 | U54: 38 | V54: 1.652173913 | W54: 33 | X54: 1.434782609 | Y54: 36 | Z54: 1.565217391 | AB54: 5 | AC54: 0.2173913043 | AE54: =cálculos1!O54 -> 9 | AF54: 0.9 | AG54: =cálculos1!P54 -> 4 | AH54: 1
A55: Norte | B55: Nova Venécia | C55: 657 | D55: 163 | E55: 130 | F55: 0.7975460123 | G55: 115 | H55: 0.7055214724 | I55: 155 | J55: 0.9509202454 | K55: 142 | L55: 0.8711656442 | M55: 141 | N55: 0.8650306748 | O55: 167 | P55: 1.024539877 | Q55: 156 | R55: 0.9570552147 | S55: 147 | T55: 0.9018404908 | U55: 119 | V55: 0.7300613497 | W55: 153 | X55: 0.9386503067 | Y55: 126 | Z55: 0.773006135 | AB55: 2 | AC55: 0.01226993865 | AE55: =cálculos1!O55 -> 3 | AF55: 0.3 | AG55: =cálculos1!P55 -> 1 | AH55: 0.25
A56: Central | B56: Pancas | C56: 206 | D56: 58 | E56: 24 | F56: 0.4137931034 | G56: 29 | H56: 0.5 | I56: 49 | J56: 0.8448275862 | K56: 48 | L56: 0.8275862069 | M56: 45 | N56: 0.775862069 | O56: 43 | P56: 0.7413793103 | Q56: 51 | R56: 0.8793103448 | S56: 52 | T56: 0.8965517241 | U56: 52 | V56: 0.8965517241 | W56: 57 | X56: 0.9827586207 | Y56: 57 | Z56: 0.9827586207 | AB56: 1 | AC56: 0.01724137931 | AE56: =cálculos1!O56 -> 2 | AF56: 0.2 | AG56: =cálculos1!P56 -> 1 | AH56: 0.25
A57: Norte | B57: Pedro Canário | C57: 331 | D57: 93 | E57: 3 | F57: 0.03225806452 | G57: 9 | H57: 0.09677419355 | I57: 82 | J57: 0.8817204301 | K57: 76 | L57: 0.8172043011 | M57: 66 | N57: 0.7096774194 | O57: 59 | P57: 0.6344086022 | Q57: 61 | R57: 0.6559139785 | S57: 64 | T57: 0.688172043 | U57: 79 | V57: 0.8494623656 | W57: 94 | X57: 1.010752688 | Y57: 61 | Z57: 0.6559139785 | AB57: 3 | AC57: 0.03225806452 | AE57: =cálculos1!O57 -> 1 | AF57: 0.1 | AG57: =cálculos1!P57 -> 1 | AH57: 0.25
A58: Norte | B58: Pinheiros | C58: 314 | D58: 74 | E58: 1 | F58: 0.01351351351 | G58: 3 | H58: 0.04054054054 | I58: 69 | J58: 0.9324324324 | K58: 69 | L58: 0.9324324324 | M58: 73 | N58: 0.9864864865 | O58: 76 | P58: 1.027027027 | Q58: 72 | R58: 0.972972973 | S58: 64 | T58: 0.8648648649 | U58: 75 | V58: 1.013513514 | W58: 77 | X58: 1.040540541 | Y58: 58 | Z58: 0.7837837838 | AB58: 1 | AC58: 0.01351351351 | AE58: =cálculos1!O58 -> 5 | AF58: 0.5 | AG58: =cálculos1!P58 -> 2 | AH58: 0.5
A59: Sul | B59: Piúma | C59: 275 | D59: 62 | E59: 4 | F59: 0.06451612903 | G59: 36 | H59: 0.5806451613 | I59: 77 | J59: 1.241935484 | K59: 72 | L59: 1.161290323 | M59: 65 | N59: 1.048387097 | O59: 70 | P59: 1.129032258 | Q59: 74 | R59: 1.193548387 | S59: 56 | T59: 0.9032258065 | U59: 83 | V59: 1.338709677 | W59: 76 | X59: 1.225806452 | Y59: 51 | Z59: 0.8225806452 | AB59: 1 | AC59: 0.01612903226 | AE59: =cálculos1!O59 -> 7 | AF59: 0.7 | AG59: =cálculos1!P59 -> 4 | AH59: 1
A60: Norte | B60: Ponto Belo | C60: 82 | D60: 14 | E60: 2 | F60: 0.1428571429 | G60: 1 | H60: 0.07142857143 | I60: 27 | J60: 1.928571429 | K60: 26 | L60: 1.857142857 | M60: 24 | N60: 1.714285714 | O60: 26 | P60: 1.857142857 | Q60: 25 | R60: 1.785714286 | S60: 26 | T60: 1.857142857 | U60: 22 | V60: 1.571428571 | W60: 20 | X60: 1.428571429 | Y60: 20 | Z60: 1.428571429 | AB60: 0 | AC60: 0 | AE60: =cálculos1!O60 -> 9 | AF60: 0.9 | AG60: =cálculos1!P60 -> 4 | AH60: 1
A61: Sul | B61: Presidente Kennedy | C61: 171 | D61: 45 | E61: 3 | F61: 0.06666666667 | G61: 6 | H61: 0.1333333333 | I61: 52 | J61: 1.155555556 | K61: 50 | L61: 1.111111111 | M61: 45 | N61: 1 | O61: 47 | P61: 1.044444444 | Q61: 51 | R61: 1.133333333 | S61: 59 | T61: 1.311111111 | U61: 43 | V61: 0.9555555556 | W61: 61 | X61: 1.355555556 | Y61: 42 | Z61: 0.9333333333 | AB61: 3 | AC61: 0.06666666667 | AE61: =cálculos1!O61 -> 8 | AF61: 0.8 | AG61: =cálculos1!P61 -> 4 | AH61: 1
A62: Central | B62: Rio Bananal | C62: 301 | D62: 70 | E62: 12 | F62: 0.1714285714 | G62: 12 | H62: 0.1714285714 | I62: 65 | J62: 0.9285714286 | K62: 65 | L62: 0.9285714286 | M62: 61 | N62: 0.8714285714 | O62: 65 | P62: 0.9285714286 | Q62: 63 | R62: 0.9 | S62: 78 | T62: 1.114285714 | U62: 68 | V62: 0.9714285714 | W62: 80 | X62: 1.142857143 | Y62: 54 | Z62: 0.7714285714 | AB62: 4 | AC62: 0.05714285714 | AE62: =cálculos1!O62 -> 4 | AF62: 0.4 | AG62: =cálculos1!P62 -> 1 | AH62: 0.25
A63: Sul | B63: Rio Novo do Sul | C63: 87 | D63: 16 | E63: 0 | F63: 0 | G63: 10 | H63: 0.625 | I63: 32 | J63: 2 | K63: 32 | L63: 2 | M63: 21 | N63: 1.3125 | O63: 22 | P63: 1.375 | Q63: 23 | R63: 1.4375 | S63: 23 | T63: 1.4375 | U63: 28 | V63: 1.75 | W63: 27 | X63: 1.6875 | Y63: 27 | Z63: 1.6875 | AB63: 0 | AC63: 0 | AE63: =cálculos1!O63 -> 9 | AF63: 0.9 | AG63: =cálculos1!P63 -> 4 | AH63: 1
A64: Metropolitana | B64: Santa Leopoldina | C64: 81 | D64: 17 | E64: 2 | F64: 0.1176470588 | G64: 4 | H64: 0.2352941176 | I64: 15 | J64: 0.8823529412 | K64: 13 | L64: 0.7647058824 | M64: 19 | N64: 1.117647059 | O64: 20 | P64: 1.176470588 | Q64: 17 | R64: 1 | S64: 24 | T64: 1.411764706 | U64: 24 | V64: 1.411764706 | W64: 12 | X64: 0.7058823529 | Y64: 4 | Z64: 0.2352941176 | AB64: 0 | AC64: 0 | AE64: =cálculos1!O64 -> 5 | AF64: 0.5 | AG64: =cálculos1!P64 -> 1 | AH64: 0.25
A65: Metropolitana | B65: Santa Maria de Jetibá | C65: 664 | D65: 167 | E65: 114 | F65: 0.6826347305 | G65: 121 | H65: 0.7245508982 | I65: 141 | J65: 0.8443113772 | K65: 144 | L65: 0.8622754491 | M65: 157 | N65: 0.9401197605 | O65: 167 | P65: 1 | Q65: 148 | R65: 0.8862275449 | S65: 130 | T65: 0.7784431138 | U65: 160 | V65: 0.9580838323 | W65: 160 | X65: 0.9580838323 | Y65: 123 | Z65: 0.7365269461 | AB65: 0 | AC65: 0 | AE65: =cálculos1!O65 -> 3 | AF65: 0.3 | AG65: =cálculos1!P65 -> 1 | AH65: 0.25
A66: Metropolitana | B66: Santa Teresa | C66: 299 | D66: 80 | E66: 188 | F66: 2.35 | G66: 186 | H66: 2.325 | I66: 63 | J66: 0.7875 | K66: 63 | L66: 0.7875 | M66: 57 | N66: 0.7125 | O66: 65 | P66: 0.8125 | Q66: 74 | R66: 0.925 | S66: 64 | T66: 0.8 | U66: 61 | V66: 0.7625 | W66: 57 | X66: 0.7125 | Y66: 56 | Z66: 0.7 | AB66: 0 | AC66: 0 | AE66: =cálculos1!O66 -> 1 | AF66: 0.1 | AG66: =cálculos1!P66 -> 0 | AH66: 0
A67: Central | B67: São Domingos do Norte | C67: 112 | D67: 25 | E67: 8 | F67: 0.32 | G67: 11 | H67: =G67/D67 -> 0.44 | I67: 26 | J67: =I67/D67 -> 1.04 | K67: 27 | L67: =K67/D67 -> 1.08 | M67: 20 | N67: =M67/D67 -> 0.8 | O67: 21 | P67: =O67/D67 -> 0.84 | Q67: 20 | R67: =Q67/D67 -> 0.8 | S67: 26 | T67: =S67/D67 -> 1.04 | U67: 37 | V67: =U67/D67 -> 1.48 | W67: 28 | X67: =W67/D67 -> 1.12 | Y67: 30 | Z67: =Y67/D67 -> 1.2 | AB67: 0 | AC67: 0 | AE67: =cálculos1!O67 -> 6 | AF67: 0.6 | AG67: =cálculos1!P67 -> 3 | AH67: 0.75
A68: Central | B68: São Gabriel da Palha | C68: 415 | D68: 110 | E68: 27 | F68: =E68/D68 -> 0.2454545455 | G68: 37 | H68: 0.3363636364 | I68: 114 | J68: 1.036363636 | K68: 114 | L68: 1.036363636 | M68: 83 | N68: 0.7545454545 | O68: 94 | P68: 0.8545454545 | Q68: 111 | R68: 1.009090909 | S68: 104 | T68: 0.9454545455 | U68: 103 | V68: 0.9363636364 | W68: 96 | X68: 0.8727272727 | Y68: 77 | Z68: 0.7 | AB68: 2 | AC68: =AB68/D68 -> 0.01818181818 | AE68: =cálculos1!O68 -> 3 | AF68: =AE68*0.1 -> 0.3 | AG68: =cálculos1!P68 -> 2 | AH68: =AG68*0.25 -> 0.5
A69: Sul | B69: São José do Calçado | C69: 94 | D69: 24 | E69: 12 | F69: 0.5 | G69: 15 | H69: 0.625 | I69: 30 | J69: 1.25 | K69: 30 | L69: 1.25 | M69: 18 | N69: 0.75 | O69: 17 | P69: 0.7083333333 | Q69: 21 | R69: 0.875 | S69: 16 | T69: 0.6666666667 | U69: 31 | V69: 1.291666667 | W69: 23 | X69: 0.9583333333 | Y69: 32 | Z69: 1.333333333 | AB69: 1 | AC69: 0.04166666667 | AE69: =cálculos1!O69 -> 5 | AF69: 0.5 | AG69: =cálculos1!P69 -> 3 | AH69: 0.75
A70: Norte | B70: São Mateus | C70: 1814 | D70: 462 | E70: 720 | F70: 1.558441558 | G70: 725 | H70: 1.569264069 | I70: 416 | J70: 0.9004329004 | K70: 413 | L70: 0.8939393939 | M70: 354 | N70: 0.7662337662 | O70: 383 | P70: 0.829004329 | Q70: 402 | R70: 0.8701298701 | S70: 357 | T70: 0.7727272727 | U70: 405 | V70: 0.8766233766 | W70: 418 | X70: 0.9047619048 | Y70: 331 | Z70: 0.7164502165 | AB70: 29 | AC70: 0.06277056277 | AE70: =cálculos1!O70 -> 1 | AF70: 0.1 | AG70: =cálculos1!P70 -> 0 | AH70: 0
A71: Central | B71: São Roque do Canaã | C71: 129 | D71: 46 | E71: 12 | F71: 0.2608695652 | G71: 10 | H71: 0.2173913043 | I71: 32 | J71: 0.6956521739 | K71: 29 | L71: 0.6304347826 | M71: 25 | N71: 0.5434782609 | O71: 31 | P71: 0.6739130435 | Q71: 28 | R71: 0.6086956522 | S71: 26 | T71: 0.5652173913 | U71: 14 | V71: 0.3043478261 | W71: 40 | X71: 0.8695652174 | Y71: 23 | Z71: 0.5 | AB71: 1 | AC71: 0.02173913043 | AE71: =cálculos1!O71 -> 0 | AF71: 0 | AG71: =cálculos1!P71 -> 0 | AH71: 0
A72: Metropolitana | B72: Serra | C72: 7312 | D72: 1898 | E72: 2163 | F72: 1.139620653 | G72: 2110 | H72: 1.111696523 | I72: 1626 | J72: 0.856691254 | K72: 1582 | L72: 0.8335089568 | M72: 1519 | N72: 0.8003161222 | O72: 1613 | P72: 0.8498419389 | Q72: 1595 | R72: 0.8403582719 | S72: 1378 | T72: 0.7260273973 | U72: 1646 | V72: 0.8672286617 | W72: 1592 | X72: 0.8387776607 | Y72: 1480 | Z72: 0.779768177 | AB72: 42 | AC72: 0.02212855638 | AE72: =cálculos1!O72 -> 1 | AF72: 0.1 | AG72: =cálculos1!P72 -> 0 | AH72: 0
A73: Central | B73: Sooretama | C73: 429 | D73: 98 | E73: 6 | F73: 0.0612244898 | G73: 8 | H73: 0.08163265306 | I73: 98 | J73: 1 | K73: 93 | L73: 0.9489795918 | M73: 95 | N73: 0.9693877551 | O73: 105 | P73: 1.071428571 | Q73: 111 | R73: 1.132653061 | S73: 99 | T73: 1.010204082 | U73: 92 | V73: 0.9387755102 | W73: 94 | X73: 0.9591836735 | Y73: 90 | Z73: 0.9183673469 | AB73: 0 | AC73: 0 | AE73: =cálculos1!O73 -> 6 | AF73: 0.6 | AG73: =cálculos1!P73 -> 3 | AH73: 0.75
A74: Sul | B74: Vargem Alta | C74: 212 | D74: 50 | E74: 7 | F74: 0.14 | G74: 11 | H74: 0.22 | I74: 65 | J74: 1.3 | K74: 61 | L74: 1.22 | M74: 65 | N74: 1.3 | O74: 63 | P74: 1.26 | Q74: 66 | R74: 1.32 | S74: 58 | T74: 1.16 | U74: 58 | V74: 1.16 | W74: 57 | X74: 1.14 | Y74: 73 | Z74: 1.46 | AB74: 2 | AC74: 0.04 | AE74: =cálculos1!O74 -> 9 | AF74: 0.9 | AG74: =cálculos1!P74 -> 4 | AH74: 1
A75: Metropolitana | B75: Venda Nova do Imigrante | C75: 337 | D75: 81 | E75: 178 | F75: 2.197530864 | G75: 119 | H75: 1.469135802 | I75: 81 | J75: 1 | K75: 81 | L75: 1 | M75: 90 | N75: 1.111111111 | O75: 103 | P75: 1.271604938 | Q75: 91 | R75: 1.12345679 | S75: 86 | T75: 1.061728395 | U75: 115 | V75: 1.419753086 | W75: 104 | X75: 1.283950617 | Y75: 75 | Z75: 0.9259259259 | AB75: 5 | AC75: 0.06172839506 | AE75: =cálculos1!O75 -> 9 | AF75: 0.9 | AG75: =cálculos1!P75 -> 4 | AH75: 1
A76: Metropolitana | B76: Viana | C76: 891 | D76: 219 | E76: 53 | F76: 0.2420091324 | G76: 48 | H76: 0.2191780822 | I76: 220 | J76: 1.00456621 | K76: 209 | L76: 0.9543378995 | M76: 224 | N76: 1.02283105 | O76: 216 | P76: 0.9863013699 | Q76: 221 | R76: 1.00913242 | S76: 151 | T76: 0.6894977169 | U76: 193 | V76: 0.8812785388 | W76: 224 | X76: 1.02283105 | Y76: 108 | Z76: 0.4931506849 | AB76: 9 | AC76: 0.04109589041 | AE76: =cálculos1!O76 -> 6 | AF76: 0.6 | AG76: =cálculos1!P76 -> 4 | AH76: 1
A77: Norte | B77: Vila Pavão | C77: 110 | D77: 29 | E77: 6 | F77: 0.2068965517 | G77: 16 | H77: 0.5517241379 | I77: 39 | J77: 1.344827586 | K77: 38 | L77: 1.310344828 | M77: 29 | N77: 1 | O77: 31 | P77: 1.068965517 | Q77: 40 | R77: 1.379310345 | S77: 32 | T77: 1.103448276 | U77: 19 | V77: 0.6551724138 | W77: 26 | X77: 0.8965517241 | Y77: 24 | Z77: 0.8275862069 | AB77: 4 | AC77: 0.1379310345 | AE77: =cálculos1!O77 -> 6 | AF77: 0.6 | AG77: =cálculos1!P77 -> 3 | AH77: 0.75
A78: Central | B78: Vila Valério | C78: 232 | D78: 62 | E78: 14 | F78: 0.2258064516 | G78: 16 | H78: 0.2580645161 | I78: 49 | J78: 0.7903225806 | K78: 50 | L78: 0.8064516129 | M78: 50 | N78: 0.8064516129 | O78: 44 | P78: 0.7096774194 | Q78: 50 | R78: 0.8064516129 | S78: 61 | T78: 0.9838709677 | U78: 63 | V78: 1.016129032 | W78: 64 | X78: 1.032258065 | Y78: 38 | Z78: 0.6129032258 | AB78: 0 | AC78: 0 | AE78: =cálculos1!O78 -> 3 | AF78: 0.3 | AG78: =cálculos1!P78 -> 1 | AH78: 0.25
A79: Metropolitana | B79: Vila Velha | C79: 5446 | D79: 1417 | E79: 1110 | F79: 0.7833450953 | G79: 1076 | H79: 0.759350741 | I79: 1167 | J79: 0.8235709245 | K79: 1161 | L79: 0.8193366267 | M79: 999 | N79: 0.7050105857 | O79: 1172 | P79: 0.827099506 | Q79: 1181 | R79: 0.8334509527 | S79: 930 | T79: 0.6563161609 | U79: 1205 | V79: 0.850388144 | W79: 1168 | X79: 0.8242766408 | Y79: 1160 | Z79: 0.8186309104 | AB79: 43 | AC79: 0.03034580099 | AE79: =cálculos1!O79 -> 0 | AF79: 0 | AG79: =cálculos1!P79 -> 0 | AH79: 0
A80: Metropolitana | B80: Vitória | C80: 3452 | D80: 876 | E80: 1435 | F80: 1.638127854 | G80: 1675 | H80: 1.912100457 | I80: 1038 | J80: 1.184931507 | K80: 1029 | L80: 1.174657534 | M80: 736 | N80: 0.8401826484 | O80: 920 | P80: 1.050228311 | Q80: 1013 | R80: 1.156392694 | S80: 579 | T80: 0.6609589041 | U80: 970 | V80: 1.107305936 | W80: 1077 | X80: 1.229452055 | Y80: 1004 | Z80: 1.146118721 | AB80: 34 | AC80: 0.03881278539 | AE80: =cálculos1!O80 -> 8 | AF80: 0.8 | AG80: =cálculos1!P80 -> 3 | AH80: 0.75
B82: Total Norte | C82: =SUMIF($A$3:$A$80,"Norte",C$3:C$80) -> 5679 | D82: =SUMIF($A$3:$A$80,"Norte",D$3:D$80) -> 1478 | E82: =SUMIF($A$3:$A$80,"Norte",E$3:E$80) -> 1120 | F82: =E82/D82 -> 0.7577807848 | G82: =SUMIF($A$3:$A$80,"Norte",G$3:G$80) -> 1139 | H82: =G82/D82 -> 0.7706359946 | I82: =SUMIF($A$3:$A$80,"Norte",I$3:I$80) -> 1357 | J82: =I82/D82 -> 0.9181326116 | K82: =SUMIF($A$3:$A$80,"Norte",K$3:K$80) -> 1325 | L82: =K82/D82 -> 0.8964817321 | M82: =SUMIF($A$3:$A$80,"Norte",M$3:M$80) -> 1175 | N82: =M82/D82 -> 0.7949932341 | O82: =SUMIF($A$3:$A$80,"Norte",O$3:O$80) -> 1256 | P82: =O82/D82 -> 0.849797023 | Q82: =SUMIF($A$3:$A$80,"Norte",Q$3:Q$80) -> 1293 | R82: =Q82/D82 -> 0.8748308525 | S82: =SUMIF($A$3:$A$80,"Norte",S$3:S$80) -> 1248 | T82: =S82/D82 -> 0.8443843031 | U82: =SUMIF($A$3:$A$80,"Norte",U$3:U$80) -> 1277 | V82: =U82/D82 -> 0.8640054127 | W82: =SUMIF($A$3:$A$80,"Norte",W$3:W$80) -> 1340 | X82: =W82/D82 -> 0.9066305819 | Y82: =SUMIF($A$3:$A$80,"Norte",Y$3:Y$80) -> 1118 | Z82: =Y82/D82 -> 0.7564276049 | AB82: =SUMIF($A$3:$A$80,"Norte",AB$3:AB$80) -> 46 | AC82: =AB82/D82 -> 0.03112313938 | AE82: =cálculos1!O82 -> 0 | AF82: =AE82*0.1 -> 0 | AG82: =cálculos1!P82 -> 0 | AH82: 0
B83: Total Central | C83: =SUMIF($A$3:$A$80,"Central",C$3:C$80) -> 6962 | D83: =SUMIF($A$3:$A$80,"Central",D$3:D$80) -> 1820 | E83: =SUMIF($A$3:$A$80,"Central",E$3:E$80) -> 1722 | F83: =E83/D83 -> 0.9461538462 | G83: =SUMIF($A$3:$A$80,"Central",G$3:G$80) -> 1748 | H83: =G83/D83 -> 0.9604395604 | I83: =SUMIF($A$3:$A$80,"Central",I$3:I$80) -> 1622 | J83: =I83/D83 -> 0.8912087912 | K83: =SUMIF($A$3:$A$80,"Central",K$3:K$80) -> 1599 | L83: =K83/D83 -> 0.8785714286 | M83: =SUMIF($A$3:$A$80,"Central",M$3:M$80) -> 1354 | N83: =M83/D83 -> 0.743956044 | O83: =SUMIF($A$3:$A$80,"Central",O$3:O$80) -> 1509 | P83: =O83/D83 -> 0.8291208791 | Q83: =SUMIF($A$3:$A$80,"Central",Q$3:Q$80) -> 1662 | R83: =Q83/D83 -> 0.9131868132 | S83: =SUMIF($A$3:$A$80,"Central",S$3:S$80) -> 1550 | T83: =S83/D83 -> 0.8516483516 | U83: =SUMIF($A$3:$A$80,"Central",U$3:U$80) -> 1527 | V83: =U83/D83 -> 0.839010989 | W83: =SUMIF($A$3:$A$80,"Central",W$3:W$80) -> 1604 | X83: =W83/D83 -> 0.8813186813 | Y83: =SUMIF($A$3:$A$80,"Central",Y$3:Y$80) -> 1297 | Z83: =Y83/D83 -> 0.7126373626 | AB83: =SUMIF($A$3:$A$80,"Central",AB$3:AB$80) -> 17 | AC83: =AB83/D83 -> 0.009340659341 | AE83: =cálculos1!O83 -> 1 | AF83: =AE83*0.1 -> 0.1 | AG83: =cálculos1!P83 -> 0 | AH83: 0
B84: Total Metropolitana | C84: =SUMIF($A$3:$A$80,"Metropolitana",C$3:C$80) -> 28953 | D84: =SUMIF($A$3:$A$80,"Metropolitana",D$3:D$80) -> 7439 | E84: =SUMIF($A$3:$A$80,"Metropolitana",E$3:E$80) -> 6735 | F84: =E84/D84 -> 0.9053636241 | G84: =SUMIF($A$3:$A$80,"Metropolitana",G$3:G$80) -> 7025 | H84: =G84/D84 -> 0.9443473585 | I84: =SUMIF($A$3:$A$80,"Metropolitana",I$3:I$80) -> 6767 | J84: =I84/D84 -> 0.9096652776 | K84: =SUMIF($A$3:$A$80,"Metropolitana",K$3:K$80) -> 6643 | L84: =K84/D84 -> 0.8929963705 | M84: =SUMIF($A$3:$A$80,"Metropolitana",M$3:M$80) -> 5971 | N84: =M84/D84 -> 0.8026616481 | O84: =SUMIF($A$3:$A$80,"Metropolitana",O$3:O$80) -> 6670 | P84: =O84/D84 -> 0.8966258906 | Q84: =SUMIF($A$3:$A$80,"Metropolitana",Q$3:Q$80) -> 6700 | R84: =Q84/D84 -> 0.9006586907 | S84: =SUMIF($A$3:$A$80,"Metropolitana",S$3:S$80) -> 5446 | T84: =S84/D84 -> 0.7320876462 | U84: =SUMIF($A$3:$A$80,"Metropolitana",U$3:U$80) -> 6902 | V84: =U84/D84 -> 0.9278128781 | W84: =SUMIF($A$3:$A$80,"Metropolitana",W$3:W$80) -> 6879 | X84: =W84/D84 -> 0.9247210647 | Y84: =SUMIF($A$3:$A$80,"Metropolitana",Y$3:Y$80) -> 6164 | Z84: =Y84/D84 -> 0.8286059954 | AB84: =SUMIF($A$3:$A$80,"Metropolitana",AB$3:AB$80) -> 297 | AC84: 0.03992472106 | AE84: =cálculos1!O84 -> 1 | AF84: 0.1 | AG84: =cálculos1!P84 -> 0 | AH84: 0
B85: Total Sul | C85: =SUMIF($A$3:$A$80,"sul",C$3:C$80) -> 7063 | D85: =SUMIF($A$3:$A$80,"sul",D$3:D$80) -> 1656 | E85: =SUMIF($A$3:$A$80,"Sul",E$3:E$80) -> 1861 | F85: =E85/D85 -> 1.123792271 | G85: =SUMIF($A$3:$A$80,"Sul",G$3:G$80) -> 1996 | H85: =G85/D85 -> 1.20531401 | I85: =SUMIF($A$3:$A$80,"Sul",I$3:I$80) -> 1939 | J85: =I85/D85 -> 1.17089372 | K85: =SUMIF($A$3:$A$80,"Sul",K$3:K$80) -> 1853 | L85: =K85/D85 -> 1.118961353 | M85: =SUMIF($A$3:$A$80,"Sul",M$3:M$80) -> 1756 | N85: =M85/D85 -> 1.060386473 | O85: =SUMIF($A$3:$A$80,"Sul",O$3:O$80) -> 1886 | P85: =O85/D85 -> 1.138888889 | Q85: =SUMIF($A$3:$A$80,"Sul",Q$3:Q$80) -> 1906 | R85: =Q85/D85 -> 1.150966184 | S85: =SUMIF($A$3:$A$80,"Sul",S$3:S$80) -> 1786 | T85: =S85/D85 -> 1.078502415 | U85: =SUMIF($A$3:$A$80,"Sul",U$3:U$80) -> 2047 | V85: =U85/D85 -> 1.236111111 | W85: =SUMIF($A$3:$A$80,"Sul",W$3:W$80) -> 2005 | X85: =W85/D85 -> 1.210748792 | Y85: =SUMIF($A$3:$A$80,"Sul",Y$3:Y$80) -> 1805 | Z85: =Y85/D85 -> 1.089975845 | AB85: =SUMIF($A$3:$A$80,"Sul",AB$3:AB$80) -> 67 | AC85: 0.0404589372 | AE85: =cálculos1!O85 -> 10 | AF85: 1 | AG85: =cálculos1!P85 -> 4 | AH85: 1
B86: Total Espírito Santo | C86: =SUM(C3:C80) -> 48657 | D86: =SUM(D3:D80) -> 12393 | E86: =SUM(E82:E85) -> 11438 | F86: =E86/D86 -> 0.9229403696 | G86: =SUM(G82:G85) -> 11908 | H86: =G86/D86 -> 0.9608650044 | I86: =SUM(I82:I85) -> 11685 | J86: =I86/D86 -> 0.9428709756 | K86: =SUM(K82:K85) -> 11420 | L86: =K86/D86 -> 0.9214879367 | M86: =SUM(M82:M85) -> 10256 | N86: =M86/D86 -> 0.8275639474 | O86: =SUM(O82:O85) -> 11321 | P86: =O86/D86 -> 0.9134995562 | Q86: =SUM(Q82:Q85) -> 11561 | R86: =Q86/D86 -> 0.9328653272 | S86: =SUM(S82:S85) -> 10030 | T86: =S86/D86 -> 0.8093278464 | U86: =SUM(U82:U85) -> 11753 | V86: =U86/D86 -> 0.948357944 | W86: =SUM(W82:W85) -> 11828 | X86: =W86/D86 -> 0.9544097474 | Y86: =SUM(Y82:Y85) -> 10384 | Z86: =Y86/D86 -> 0.8378923586 | AB86: =SUM(AB82:AB85) -> 427 | AC86: 0.03445493424 | AE86: =cálculos1!O86 -> 3 | AF86: 0.3 | AG86: =cálculos1!P86 -> 1 | AH86: 0.25
E87: =COUNTIF(F3:F80,">=0,95") -> 9 | G87: =COUNTIF(H3:H80,">=0,9") -> 15 | I87: =COUNTIF(J3:J80,">=0,95") -> 40 | K87: =COUNTIF(L3:L80,">=0,95") -> 37 | M87: =COUNTIF(N3:N80,">=0,95") -> 32 | O87: =COUNTIF(P3:P80,">=0,9") -> 47 | Q87: =COUNTIF(R3:R80,">=0,95") -> 40 | S87: =COUNTIF(T3:T80,">=0,95") -> 40 | U87: =COUNTIF(V3:V80,">=0,95") -> 44 | W87: =COUNTIF(X3:X80,">=0,95") -> 50 | Y87: =COUNTIF(Z3:Z80,">=0,95") -> 30 | AB87: =COUNTIF(AC3:AC80,">=0,9") -> 0
B88: HOMOGENEIDADE ENTRE MUNICÍPIOS | E88: =E87/78 -> 0.1153846154 | G88: =G87/78 -> 0.1923076923 | I88: =I87/78 -> 0.5128205128 | K88: =K87/78 -> 0.4743589744 | M88: =M87/78 -> 0.4102564103 | O88: =O87/78 -> 0.6025641026 | Q88: =Q87/78 -> 0.5128205128 | S88: =S87/78 -> 0.5128205128 | U88: =U87/78 -> 0.5641025641 | W88: =W87/78 -> 0.641025641 | Y88: =Y87/78 -> 0.3846153846 | AB88: =AB87/78 -> 0
A90: Fonte: Vacina e Confia, em 22 de Abril de 2025.**
A91: **Dados referente às doses aplicadas no período de Janeiro a Março 2025
A92: Cobertura Calculada por município de procedência/ocorrência da vacinação
A93: 1 População anual extraída do MS/SVS/DASIS - SINASC/DASIS/SVS/MS 2024 (hoje preliminares) referente ao período de Fevereiro a Dezembro de 2024 e SINASC/DASIS/SVS/MS referente ao período de Janeiro de 2025.
A94: ² População proporcional extraída do MS/SVS/DASIS - SINASC/DASIS/SVS/MS 2024 (hoje preliminares) referente ao período de Fevereiro e Março/2024 e Janeiro/ 2025.
A95: Sinasc, atualizado em 09/04/25.
A96: Homogeineidade: O cálculo da Homogeineidade entre vacinas é feito de acordo com a pactuação estabelecida no Plano Plurianual (PPA) vigente no período 2024-2027.
A98: Observações:
A99: 1. Imunobiológicos que foram recebidos parcialmente pelo estado no mês de Março/2025, sendo distribuídos em quantidades reduzidas às regionais e municípios:
A100: SORO ANTIRRÁBICO HUMANO, IMUNOGLOBULINA ANTIRRÁBICA HUMANA, VACINA COVID-19 MODERNA (SPIKEVAX),VACINA CONTRA VARICELA.
A101: 2. Imunobiológicos indisponíveis no mês de Março/2025, não sendo possível a distribuição às regionais e municípios:
A102: VACINA TRÍPLICE ACELULAR (DTPa) - CRIE

Sheet CV Rotina <2A - residência
E1: AO NASCER | I1: MENOR DE 1 ANO | U1: 1 ANO | AB1: MENOR DE 1 ANO
A2: Regional | B2: Município | C2: ¹População < 1 ano e 1 ano anual | D2: ²População < 1 ano e 1 ano proporcional | E2: Doses Aplicadas HB < 30 dias | F2: Cobertura Vacinal HB até 30 dias | G2: Doses Aplicadas BCG | H2: Cobertura Vacinal BCG | I2: Doses Aplicadas Pentavalente | J2: Cobertura Vacinal Pentavalente | K2: Doses Aplicadas Poliomielite | L2: Cobertura Vacinal Poliomielite | M2: Doses Aplicadas Pneumo 10 | N2: Cobertura Vacinal Pneumo 10 | O2: Doses Aplicadas Rotavírus | P2: Cobertura Vacinal Rotavírus | Q2: Doses Aplicadas Meningo C | R2: Cobertura Vacinal Meningo C | S2: Doses Aplicadas Febre Amarela | T2: Cobertura Vacinal Febre Amarela | U2: Doses Aplicadas Hepatite A | V2: Cobertura Vacinal Hepatite A | W2: Doses Aplicadas de Tríplice Viral | X2: Cobertura Vacinal Tríplice Viral | Y2: Doses Aplicadas Varicela | Z2: Cobertura Varicela | AB2: Doses Aplicadas COVID-19 | AC2: Cobertura Vacinal COVID-19 D1 | AE2: VACINAS QUE ATINGIRAM A META DE CV | AF2: HOMOGENEIDADE ENTRE AS 10 VACINAS | AG2: VACINAS DO PQA-VS QUE ATINGIRAM A META DE CV | AH2: HOMOGENEIDADE ENTRE AS VACINAS DO PQA-VS
A3: Metropolitana | B3: Afonso Cláudio | C3: 355 | D3: 86 | E3: 83 | F3: =E3/D3 -> 0.9651162791 | G3: 86 | H3: =G3/D3 -> 1 | I3: 90 | J3: =I3/D3 -> 1.046511628 | K3: 87 | L3: =K3/D3 -> 1.011627907 | M3: 81 | N3: =M3/D3 -> 0.9418604651 | O3: 84 | P3: =O3/D3 -> 0.976744186 | Q3: 86 | R3: =Q3/D3 -> 1 | S3: 91 | T3: =S3/D3 -> 1.058139535 | U3: 103 | V3: =U3/D3 -> 1.197674419 | W3: 102 | X3: =W3/D3 -> 1.186046512 | Y3: 127 | Z3: =Y3/D3 -> 1.476744186 | AB3: 1 | AC3: =AB3/D3 -> 0.01162790698 | AE3: =cálculos2!O3 -> 9 | AF3: =AE3*0.1 -> 0.9 | AG3: =cálculos2!P3 -> 3 | AH3: =AG3*0.25 -> 0.75 | AJ3: LEGENDA / HOMOGENEIDADE PQA-VS
A4: Norte | B4: Água Doce do Norte | C4: 181 | D4: 51 | E4: 36 | F4: =E4/D4 -> 0.7058823529 | G4: 41 | H4: =G4/D4 -> 0.8039215686 | I4: 35 | J4: 0.6862745098 | K4: 35 | L4: 0.6862745098 | M4: 32 | N4: 0.6274509804 | O4: 29 | P4: 0.568627451 | Q4: 36 | R4: 0.7058823529 | S4: 43 | T4: 0.8431372549 | U4: 30 | V4: 0.5882352941 | W4: 43 | X4: 0.8431372549 | Y4: 18 | Z4: 0.3529411765 | AB4: 1 | AC4: =AB4/D4 -> 0.01960784314 | AE4: =cálculos2!O4 -> 0 | AF4: =AE4*0.1 -> 0 | AG4: =cálculos2!P4 -> 0 | AH4: =AG4*0.25 -> 0 | AJ4: PERCENTUAL | AK4: Nº DE MUNICÍPIOS
A5: Central | B5: Águia Branca | C5: 146 | D5: 43 | E5: 47 | F5: 1.093023256 | G5: 46 | H5: 1.069767442 | I5: 38 | J5: 0.8837209302 | K5: 40 | L5: 0.9302325581 | M5: 23 | N5: 0.5348837209 | O5: 21 | P5: 0.488372093 | Q5: 32 | R5: 0.7441860465 | S5: 42 | T5: 0.976744186 | U5: 34 | V5: 0.7906976744 | W5: 39 | X5: 0.9069767442 | Y5: 36 | Z5: 0.8372093023 | AB5: 0 | AC5: 0 | AE5: =cálculos2!O5 -> 2 | AF5: 0.2 | AG5: =cálculos2!P5 -> 0 | AH5: 0 | AJ5: 0 | AK5: =COUNTIF($AH$3:$AH$80,"=0") -> 22
A6: Sul | B6: Alegre | C6: 264 | D6: 59 | E6: 56 | F6: 0.9491525424 | G6: 58 | H6: 0.9830508475 | I6: 70 | J6: 1.186440678 | K6: 61 | L6: 1.033898305 | M6: 45 | N6: 0.7627118644 | O6: 54 | P6: 0.9152542373 | Q6: 71 | R6: 1.203389831 | S6: 64 | T6: 1.084745763 | U6: 80 | V6: 1.355932203 | W6: 81 | X6: 1.372881356 | Y6: 93 | Z6: 1.576271186 | AB6: 1 | AC6: 0.01694915254 | AE6: =cálculos2!O6 -> 9 | AF6: 0.9 | AG6: =cálculos2!P6 -> 3 | AH6: 0.75 | AJ6: 0.25 | AK6: =COUNTIF($AH$3:$AH$80,"=0,25") -> 11
A7: Sul | B7: Alfredo Chaves | C7: 112 | D7: 27 | E7: 23 | F7: 0.8518518519 | G7: 27 | H7: 1 | I7: 32 | J7: 1.185185185 | K7: 31 | L7: 1.148148148 | M7: 15 | N7: 0.5555555556 | O7: 19 | P7: 0.7037037037 | Q7: 28 | R7: 1.037037037 | S7: 29 | T7: 1.074074074 | U7: 40 | V7: 1.481481481 | W7: 32 | X7: 1.185185185 | Y7: 35 | Z7: 1.296296296 | AB7: 0 | AC7: 0 | AE7: =cálculos2!O7 -> 8 | AF7: 0.8 | AG7: =cálculos2!P7 -> 3 | AH7: 0.75 | AJ7: 0.5 | AK7: =COUNTIF($AH$3:$AH$80,"=0,5") -> 4
A8: Central | B8: Alto Rio Novo | C8: 89 | D8: 19 | E8: 17 | F8: 0.8947368421 | G8: 18 | H8: 0.9473684211 | I8: 24 | J8: 1.263157895 | K8: 25 | L8: 1.315789474 | M8: 23 | N8: 1.210526316 | O8: 23 | P8: 1.210526316 | Q8: 29 | R8: 1.526315789 | S8: 28 | T8: 1.473684211 | U8: 18 | V8: 0.9473684211 | W8: 20 | X8: 1.052631579 | Y8: 23 | Z8: 1.210526316 | AB8: 0 | AC8: 0 | AE8: =cálculos2!O8 -> 9 | AF8: 0.9 | AG8: =cálculos2!P8 -> 4 | AH8: 1 | AJ8: 0.75 | AK8: =COUNTIF($AH$3:$AH$80,"=0,75") -> 20
A9: Sul | B9: Anchieta | C9: 315 | D9: 73 | E9: 69 | F9: 0.9452054795 | G9: 81 | H9: 1.109589041 | I9: 95 | J9: 1.301369863 | K9: 91 | L9: 1.246575342 | M9: 100 | N9: 1.369863014 | O9: 104 | P9: 1.424657534 | Q9: 86 | R9: 1.178082192 | S9: 83 | T9: 1.136986301 | U9: 109 | V9: 1.493150685 | W9: 88 | X9: 1.205479452 | Y9: 98 | Z9: 1.342465753 | AB9: 7 | AC9: 0.09589041096 | AE9: =cálculos2!O9 -> 10 | AF9: 1 | AG9: =cálculos2!P9 -> 4 | AH9: 1 | AJ9: 1 | AK9: =COUNTIF($AH$3:$AH$80,"=1,0") -> 21
A10: Sul | B10: Apiacá | C10: 72 | D10: 19 | E10: 4 | F10: 0.2105263158 | G10: 23 | H10: 1.210526316 | I10: 16 | J10: 0.8421052632 | K10: 15 | L10: 0.7894736842 | M10: 16 | N10: 0.8421052632 | O10: 16 | P10: 0.8421052632 | Q10: 15 | R10: 0.7894736842 | S10: 21 | T10: 1.105263158 | U10: 11 | V10: 0.5789473684 | W10: 16 | X10: 0.8421052632 | Y10: 15 | Z10: 0.7894736842 | AB10: 0 | AC10: 0 | AE10: =cálculos2!O10 -> 2 | AF10: 0.2 | AG10: =cálculos2!P10 -> 0 | AH10: 0
A11: Metropolitana | B11: Aracruz | C11: 1384 | D11: 385 | E11: 369 | F11: 0.9584415584 | G11: 371 | H11: 0.9636363636 | I11: 320 | J11: 0.8311688312 | K11: 317 | L11: 0.8233766234 | M11: 281 | N11: 0.7298701299 | O11: 318 | P11: 0.825974026 | Q11: 309 | R11: 0.8025974026 | S11: 296 | T11: 0.7688311688 | U11: 362 | V11: 0.9402597403 | W11: 368 | X11: 0.9558441558 | Y11: 322 | Z11: 0.8363636364 | AB11: 27 | AC11: 0.07012987013 | AE11: =cálculos2!O11 -> 2 | AF11: 0.2 | AG11: =cálculos2!P11 -> 1 | AH11: 0.25
A12: Sul | B12: Atilio Vivacqua | C12: 125 | D12: 20 | E12: 46 | F12: 2.3 | G12: 44 | H12: 2.2 | I12: 51 | J12: 2.55 | K12: 50 | L12: 2.5 | M12: 43 | N12: 2.15 | O12: 44 | P12: 2.2 | Q12: 48 | R12: 2.4 | S12: 34 | T12: 1.7 | U12: 33 | V12: 1.65 | W12: 36 | X12: 1.8 | Y12: 23 | Z12: 1.15 | AB12: 3 | AC12: 0.15 | AE12: =cálculos2!O12 -> 10 | AF12: 1 | AG12: =cálculos2!P12 -> 4 | AH12: 1 | AJ12: LEGENDA / HOMOGENEIDADE 10 VACINAS
A13: Central | B13: Baixo Guandu | C13: 350 | D13: 105 | E13: 87 | F13: 0.8285714286 | G13: 101 | H13: 0.9619047619 | I13: 77 | J13: 0.7333333333 | K13: 77 | L13: 0.7333333333 | M13: 58 | N13: 0.5523809524 | O13: 61 | P13: 0.580952381 | Q13: 69 | R13: 0.6571428571 | S13: 90 | T13: 0.8571428571 | U13: 99 | V13: 0.9428571429 | W13: 86 | X13: 0.819047619 | Y13: 79 | Z13: 0.7523809524 | AB13: 0 | AC13: 0 | AE13: =cálculos2!O13 -> 1 | AF13: 0.1 | AG13: =cálculos2!P13 -> 0 | AH13: 0 | AJ13: PERCENTUAL | AK13: Nº DE MUNICÍPIOS
A14: Norte | B14: Barra de São Francisco | C14: 591 | D14: 149 | E14: 126 | F14: 0.8456375839 | G14: 124 | H14: 0.8322147651 | I14: 144 | J14: 0.966442953 | K14: 142 | L14: 0.9530201342 | M14: 105 | N14: 0.7046979866 | O14: 107 | P14: 0.7181208054 | Q14: 123 | R14: 0.8255033557 | S14: 127 | T14: 0.8523489933 | U14: 116 | V14: 0.7785234899 | W14: 122 | X14: 0.8187919463 | Y14: 139 | Z14: 0.932885906 | AB14: 0 | AC14: 0 | AE14: =cálculos2!O14 -> 2 | AF14: 0.2 | AG14: =cálculos2!P14 -> 2 | AH14: 0.5 | AJ14: 0 | AK14: =COUNTIF($AF$3:$AF$80,"=0") -> 5
A15: Norte | B15: Boa Esperança | C15: 205 | D15: 57 | E15: 50 | F15: 0.8771929825 | G15: 51 | H15: 0.8947368421 | I15: 49 | J15: 0.8596491228 | K15: 48 | L15: 0.8421052632 | M15: 45 | N15: 0.7894736842 | O15: 51 | P15: 0.8947368421 | Q15: 47 | R15: 0.8245614035 | S15: 48 | T15: 0.8421052632 | U15: 54 | V15: 0.9473684211 | W15: 45 | X15: 0.7894736842 | Y15: 49 | Z15: 0.8596491228 | AB15: 0 | AC15: 0 | AE15: =cálculos2!O15 -> 0 | AF15: 0 | AG15: =cálculos2!P15 -> 0 | AH15: 0 | AJ15: 0.1 | AK15: =COUNTIFS($AF$3:$AF$80,">=0,10",$AF$3:$AF$80,"<0,20") -> 9
A16: Sul | B16: Bom Jesus do Norte | C16: 73 | D16: 16 | E16: 4 | F16: 0.25 | G16: 21 | H16: 1.3125 | I16: 25 | J16: 1.5625 | K16: 25 | L16: 1.5625 | M16: 19 | N16: 1.1875 | O16: 19 | P16: 1.1875 | Q16: 17 | R16: 1.0625 | S16: 22 | T16: 1.375 | U16: 26 | V16: 1.625 | W16: 20 | X16: 1.25 | Y16: 14 | Z16: 0.875 | AB16: 0 | AC16: 0 | AE16: =cálculos2!O16 -> 9 | AF16: 0.9 | AG16: =cálculos2!P16 -> 4 | AH16: 1 | AJ16: 0.2 | AK16: =COUNTIFS($AF$3:$AF$80,">=0,20",$AF$3:$AF$80,"<0,30") -> 9
A17: Metropolitana | B17: Brejetuba | C17: 202 | D17: 50 | E17: 45 | F17: 0.9 | G17: 46 | H17: 0.92 | I17: 37 | J17: 0.74 | K17: 39 | L17: 0.78 | M17: 48 | N17: 0.96 | O17: 54 | P17: 1.08 | Q17: 45 | R17: 0.9 | S17: 33 | T17: 0.66 | U17: 43 | V17: 0.86 | W17: 53 | X17: 1.06 | Y17: 37 | Z17: 0.74 | AB17: 0 | AC17: 0 | AE17: =cálculos2!O17 -> 4 | AF17: 0.4 | AG17: =cálculos2!P17 -> 2 | AH17: 0.5 | AJ17: 0.3 | AK17: =COUNTIFS($AF$3:$AF$80,">=0,30",$AF$3:$AF$80,"<0,40") -> 6
A18: Sul | B18: Cachoeiro de Itapemirim | C18: 1946 | D18: 457 | E18: 628 | F18: 1.374179431 | G18: 640 | H18: 1.400437637 | I18: 542 | J18: 1.185995624 | K18: 535 | L18: 1.170678337 | M18: 479 | N18: 1.048140044 | O18: 530 | P18: 1.159737418 | Q18: 534 | R18: 1.168490153 | S18: 486 | T18: 1.06345733 | U18: 605 | V18: 1.323851204 | W18: 592 | X18: 1.295404814 | Y18: 545 | Z18: 1.192560175 | AB18: 14 | AC18: 0.0306345733 | AE18: =cálculos2!O18 -> 10 | AF18: 1 | AG18: =cálculos2!P18 -> 4 | AH18: 1 | AJ18: 0.4 | AK18: =COUNTIFS($AF$3:$AF$80,">=0,40",$AF$3:$AF$80,"<0,50") -> 6
A19: Metropolitana | B19: Cariacica | C19: 4767 | D19: 1221 | E19: 1115 | F19: 0.9131859132 | G19: 1202 | H19: 0.9844389844 | I19: 1140 | J19: 0.9336609337 | K19: 1103 | L19: 0.9033579034 | M19: 927 | N19: 0.7592137592 | O19: 1054 | P19: 0.8632268632 | Q19: 1110 | R19: 0.9090909091 | S19: 894 | T19: 0.7321867322 | U19: 1122 | V19: 0.9189189189 | W19: 1133 | X19: 0.9279279279 | Y19: 835 | Z19: 0.6838656839 | AB19: 70 | AC19: 0.05733005733 | AE19: =cálculos2!O19 -> 1 | AF19: 0.1 | AG19: =cálculos2!P19 -> 0 | AH19: 0 | AJ19: 0.5 | AK19: =COUNTIFS($AF$3:$AF$80,">=0,50",$AF$3:$AF$80,"<0,60") -> 5
A20: Sul | B20: Castelo | C20: 370 | D20: 96 | E20: 100 | F20: 1.041666667 | G20: 105 | H20: 1.09375 | I20: 97 | J20: 1.010416667 | K20: 92 | L20: 0.9583333333 | M20: 77 | N20: 0.8020833333 | O20: 85 | P20: 0.8854166667 | Q20: 97 | R20: 1.010416667 | S20: 99 | T20: 1.03125 | U20: 108 | V20: 1.125 | W20: 106 | X20: 1.104166667 | Y20: 58 | Z20: 0.6041666667 | AB20: 3 | AC20: 0.03125 | AE20: =cálculos2!O20 -> 7 | AF20: 0.7 | AG20: =cálculos2!P20 -> 3 | AH20: 0.75 | AJ20: 0.6 | AK20: =COUNTIFS($AF$3:$AF$80,">=0,60",$AF$3:$AF$80,"<0,70") -> 4
A21: Central | B21: Colatina | C21: 1490 | D21: 382 | E21: 359 | F21: 0.9397905759 | G21: 371 | H21: 0.9712041885 | I21: 360 | J21: 0.942408377 | K21: 360 | L21: 0.942408377 | M21: 272 | N21: 0.7120418848 | O21: 319 | P21: 0.835078534 | Q21: 366 | R21: 0.9581151832 | S21: 308 | T21: 0.8062827225 | U21: 322 | V21: 0.8429319372 | W21: 349 | X21: 0.9136125654 | Y21: 276 | Z21: 0.722513089 | AB21: 9 | AC21: 0.02356020942 | AE21: =cálculos2!O21 -> 2 | AF21: 0.2 | AG21: =cálculos2!P21 -> 0 | AH21: 0 | AJ21: 0.7 | AK21: =COUNTIFS($AF$3:$AF$80,">=0,70",$AF$3:$AF$80,"<0,80") -> 9
A22: Norte | B22: Conceição da Barra | C22: 364 | D22: 107 | E22: 77 | F22: 0.7196261682 | G22: 80 | H22: 0.7476635514 | I22: 92 | J22: 0.8598130841 | K22: 94 | L22: 0.8785046729 | M22: 81 | N22: 0.7570093458 | O22: 85 | P22: 0.7943925234 | Q22: 89 | R22: 0.8317757009 | S22: 97 | T22: 0.9065420561 | U22: 94 | V22: 0.8785046729 | W22: 106 | X22: 0.9906542056 | Y22: 74 | Z22: 0.691588785 | AB22: 2 | AC22: 0.01869158879 | AE22: =cálculos2!O22 -> 1 | AF22: 0.1 | AG22: =cálculos2!P22 -> 1 | AH22: 0.25 | AJ22: 0.8 | AK22: =COUNTIFS($AF$3:$AF$80,">=0,80",$AF$3:$AF$80,"<0,90") -> 3
A23: Metropolitana | B23: Conceição do Castelo | C23: 162 | D23: 37 | E23: 38 | F23: 1.027027027 | G23: 38 | H23: 1.027027027 | I23: 38 | J23: 1.027027027 | K23: 37 | L23: 1 | M23: 39 | N23: 1.054054054 | O23: 43 | P23: 1.162162162 | Q23: 33 | R23: 0.8918918919 | S23: 31 | T23: 0.8378378378 | U23: 23 | V23: 0.6216216216 | W23: 31 | X23: 0.8378378378 | Y23: 32 | Z23: 0.8648648649 | AB23: 0 | AC23: 0 | AE23: =cálculos2!O23 -> 5 | AF23: 0.5 | AG23: =cálculos2!P23 -> 3 | AH23: 0.75 | AJ23: 0.9 | AK23: =COUNTIFS($AF$3:$AF$80,">=0,90",$AF$3:$AF$80,"<1,0") -> 10
A24: Sul | B24: Divino de São Lourenço | C24: 51 | D24: 13 | E24: 9 | F24: 0.6923076923 | G24: 10 | H24: 0.7692307692 | I24: 9 | J24: 0.6923076923 | K24: 9 | L24: 0.6923076923 | M24: 9 | N24: 0.6923076923 | O24: 10 | P24: 0.7692307692 | Q24: 9 | R24: 0.6923076923 | S24: 27 | T24: 2.076923077 | U24: 18 | V24: 1.384615385 | W24: 24 | X24: 1.846153846 | Y24: 17 | Z24: 1.307692308 | AB24: 0 | AC24: 0 | AE24: =cálculos2!O24 -> 4 | AF24: 0.4 | AG24: =cálculos2!P24 -> 1 | AH24: 0.25 | AJ24: 1 | AK24: =COUNTIF($AF$3:$AF$80,">=1,0") -> 12
A25: Metropolitana | B25: Domingos Martins | C25: 421 | D25: 100 | E25: 86 | F25: 0.86 | G25: 95 | H25: 0.95 | I25: 111 | J25: 1.11 | K25: 108 | L25: 1.08 | M25: 99 | N25: 0.99 | O25: 107 | P25: 1.07 | Q25: 109 | R25: 1.09 | S25: 103 | T25: 1.03 | U25: 105 | V25: 1.05 | W25: 97 | X25: 0.97 | Y25: 115 | Z25: 1.15 | AB25: 10 | AC25: 0.1 | AE25: =cálculos2!O25 -> 10 | AF25: 1 | AG25: =cálculos2!P25 -> 4 | AH25: 1
A26: Sul | B26: Dores do Rio Preto | C26: 94 | D26: 22 | E26: 24 | F26: 1.090909091 | G26: 22 | H26: 1 | I26: 30 | J26: 1.363636364 | K26: 29 | L26: 1.318181818 | M26: 18 | N26: 0.8181818182 | O26: 25 | P26: 1.136363636 | Q26: 17 | R26: 0.7727272727 | S26: 22 | T26: 1 | U26: 22 | V26: 1 | W26: 22 | X26: 1 | Y26: 14 | Z26: 0.6363636364 | AB26: 0 | AC26: 0 | AE26: =cálculos2!O26 -> 7 | AF26: 0.7 | AG26: =cálculos2!P26 -> 3 | AH26: 0.75
A27: Norte | B27: Ecoporanga | C27: 256 | D27: 71 | E27: 71 | F27: 1 | G27: 61 | H27: 0.8591549296 | I27: 60 | J27: 0.8450704225 | K27: 58 | L27: 0.8169014085 | M27: 57 | N27: 0.8028169014 | O27: 62 | P27: 0.8732394366 | Q27: 53 | R27: 0.7464788732 | S27: 67 | T27: 0.9436619718 | U27: 55 | V27: 0.7746478873 | W27: 69 | X27: 0.9718309859 | Y27: 39 | Z27: 0.5492957746 | AB27: 1 | AC27: 0.01408450704 | AE27: =cálculos2!O27 -> 1 | AF27: 0.1 | AG27: =cálculos2!P27 -> 1 | AH27: 0.25
A28: Metropolitana | B28: Fundão | C28: 222 | D28: 62 | E28: 63 | F28: 1.016129032 | G28: 71 | H28: 1.14516129 | I28: 54 | J28: 0.8709677419 | K28: 54 | L28: 0.8709677419 | M28: 50 | N28: 0.8064516129 | O28: 54 | P28: 0.8709677419 | Q28: 53 | R28: 0.8548387097 | S28: 41 | T28: 0.6612903226 | U28: 49 | V28: 0.7903225806 | W28: 59 | X28: 0.9516129032 | Y28: 46 | Z28: 0.7419354839 | AB28: 1 | AC28: 0.01612903226 | AE28: =cálculos2!O28 -> 2 | AF28: 0.2 | AG28: =cálculos2!P28 -> 1 | AH28: 0.25
A29: Central | B29: Governador Lindenberg | C29: 116 | D29: 31 | E29: 27 | F29: 0.8709677419 | G29: 30 | H29: 0.9677419355 | I29: 26 | J29: 0.8387096774 | K29: 26 | L29: 0.8387096774 | M29: 21 | N29: 0.6774193548 | O29: 26 | P29: 0.8387096774 | Q29: 24 | R29: 0.7741935484 | S29: 21 | T29: 0.6774193548 | U29: 25 | V29: 0.8064516129 | W29: 29 | X29: 0.935483871 | Y29: 21 | Z29: 0.6774193548 | AB29: 0 | AC29: 0 | AE29: =cálculos2!O29 -> 1 | AF29: 0.1 | AG29: =cálculos2!P29 -> 0 | AH29: 0
A30: Sul | B30: Guaçuí | C30: 358 | D30: 86 | E30: 67 | F30: 0.7790697674 | G30: 69 | H30: 0.8023255814 | I30: 83 | J30: 0.9651162791 | K30: 80 | L30: 0.9302325581 | M30: 88 | N30: 1.023255814 | O30: 88 | P30: 1.023255814 | Q30: 83 | R30: 0.9651162791 | S30: 79 | T30: 0.9186046512 | U30: 77 | V30: 0.8953488372 | W30: 90 | X30: 1.046511628 | Y30: 79 | Z30: 0.9186046512 | AB30: 7 | AC30: 0.08139534884 | AE30: =cálculos2!O30 -> 5 | AF30: 0.5 | AG30: =cálculos2!P30 -> 3 | AH30: 0.75
A31: Metropolitana | B31: Guarapari | C31: 1706 | D31: 422 | E31: 377 | F31: 0.8933649289 | G31: 424 | H31: 1.004739336 | I31: 365 | J31: 0.86492891 | K31: 364 | L31: 0.8625592417 | M31: 379 | N31: 0.8981042654 | O31: 393 | P31: 0.9312796209 | Q31: 376 | R31: 0.8909952607 | S31: 281 | T31: 0.6658767773 | U31: 410 | V31: 0.971563981 | W31: 357 | X31: 0.845971564 | Y31: 363 | Z31: 0.8601895735 | AB31: 26 | AC31: 0.06161137441 | AE31: =cálculos2!O31 -> 3 | AF31: 0.3 | AG31: =cálculos2!P31 -> 0 | AH31: 0
A32: Metropolitana | B32: Ibatiba | C32: 379 | D32: 87 | E32: 80 | F32: 0.9195402299 | G32: 97 | H32: 1.114942529 | I32: 100 | J32: 1.149425287 | K32: 101 | L32: 1.16091954 | M32: 82 | N32: 0.9425287356 | O32: 90 | P32: 1.034482759 | Q32: 101 | R32: 1.16091954 | S32: 79 | T32: 0.908045977 | U32: 109 | V32: 1.252873563 | W32: 89 | X32: 1.022988506 | Y32: 72 | Z32: 0.8275862069 | AB32: 13 | AC32: 0.1494252874 | AE32: =cálculos2!O32 -> 7 | AF32: 0.7 | AG32: =cálculos2!P32 -> 3 | AH32: 0.75
A33: Metropolitana | B33: Ibiraçu | C33: 149 | D33: 38 | E33: 23 | F33: 0.6052631579 | G33: 22 | H33: 0.5789473684 | I33: 34 | J33: 0.8947368421 | K33: 32 | L33: 0.8421052632 | M33: 36 | N33: 0.9473684211 | O33: 38 | P33: 1 | Q33: 37 | R33: 0.9736842105 | S33: 38 | T33: 1 | U33: 33 | V33: 0.8684210526 | W33: 34 | X33: 0.8947368421 | Y33: 26 | Z33: 0.6842105263 | AB33: 0 | AC33: 0 | AE33: =cálculos2!O33 -> 3 | AF33: 0.3 | AG33: =cálculos2!P33 -> 0 | AH33: 0
A34: Sul | B34: Ibitirama | C34: 133 | D34: 30 | E34: 36 | F34: 1.2 | G34: 40 | H34: 1.333333333 | I34: 46 | J34: 1.533333333 | K34: 44 | L34: 1.466666667 | M34: 53 | N34: 1.766666667 | O34: 56 | P34: 1.866666667 | Q34: 46 | R34: 1.533333333 | S34: 36 | T34: 1.2 | U34: 39 | V34: 1.3 | W34: 41 | X34: 1.366666667 | Y34: 27 | Z34: 0.9 | AB34: 3 | AC34: 0.1 | AE34: =cálculos2!O34 -> 9 | AF34: 0.9 | AG34: =cálculos2!P34 -> 4 | AH34: 1
A35: Sul | B35: Iconha | C35: 106 | D35: 25 | E35: 25 | F35: 1 | G35: 32 | H35: 1.28 | I35: 32 | J35: =I35/D35 -> 1.28 | K35: 32 | L35: =K35/D35 -> 1.28 | M35: 28 | N35: =M35/D35 -> 1.12 | O35: 35 | P35: =O35/D35 -> 1.4 | Q35: 36 | R35: =Q35/D35 -> 1.44 | S35: 20 | T35: =S35/D35 -> 0.8 | U35: 26 | V35: =U35/D35 -> 1.04 | W35: 30 | X35: =W35/D35 -> 1.2 | Y35: 42 | Z35: =Y35/D35 -> 1.68 | AB35: 0 | AC35: 0 | AE35: =cálculos2!O35 -> 9 | AF35: 0.9 | AG35: =cálculos2!P35 -> 4 | AH35: 1
A36: Sul | B36: Irupi | C36: 170 | D36: 47 | E36: 29 | F36: 0.6170212766 | G36: 38 | H36: 0.8085106383 | I36: 47 | J36: 1 | K36: 48 | L36: 1.021276596 | M36: 27 | N36: 0.5744680851 | O36: 34 | P36: 0.7234042553 | Q36: 42 | R36: 0.8936170213 | S36: 47 | T36: 1 | U36: 48 | V36: 1.021276596 | W36: 53 | X36: 1.127659574 | Y36: 38 | Z36: 0.8085106383 | AB36: 4 | AC36: 0.08510638298 | AE36: =cálculos2!O36 -> 5 | AF36: 0.5 | AG36: =cálculos2!P36 -> 3 | AH36: 0.75
A37: Metropolitana | B37: Itaguaçu | C37: 137 | D37: 41 | E37: 37 | F37: 0.9024390244 | G37: 37 | H37: 0.9024390244 | I37: 34 | J37: 0.8292682927 | K37: 34 | L37: 0.8292682927 | M37: 28 | N37: 0.6829268293 | O37: 31 | P37: 0.756097561 | Q37: 32 | R37: 0.7804878049 | S37: 45 | T37: 1.097560976 | U37: 24 | V37: 0.5853658537 | W37: 35 | X37: 0.8536585366 | Y37: 22 | Z37: 0.5365853659 | AB37: 4 | AC37: 0.09756097561 | AE37: =cálculos2!O37 -> 2 | AF37: 0.2 | AG37: =cálculos2!P37 -> 0 | AH37: 0
A38: Sul | B38: Itapemirim | C38: 459 | D38: 97 | E38: 111 | F38: 1.144329897 | G38: 107 | H38: 1.103092784 | I38: 98 | J38: 1.010309278 | K38: 83 | L38: 0.8556701031 | M38: 112 | N38: 1.154639175 | O38: 103 | P38: 1.06185567 | Q38: 121 | R38: 1.24742268 | S38: 88 | T38: 0.9072164948 | U38: 121 | V38: 1.24742268 | W38: 108 | X38: 1.113402062 | Y38: 86 | Z38: 0.8865979381 | AB38: 2 | AC38: 0.0206185567 | AE38: =cálculos2!O38 -> 7 | AF38: 0.7 | AG38: =cálculos2!P38 -> 3 | AH38: 0.75
A39: Metropolitana | B39: Itarana | C39: 129 | D39: 34 | E39: 31 | F39: 0.9117647059 | G39: 33 | H39: 0.9705882353 | I39: 39 | J39: 1.147058824 | K39: 39 | L39: 1.147058824 | M39: 20 | N39: 0.5882352941 | O39: 26 | P39: 0.7647058824 | Q39: 33 | R39: 0.9705882353 | S39: 37 | T39: 1.088235294 | U39: 25 | V39: 0.7352941176 | W39: 35 | X39: 1.029411765 | Y39: 28 | Z39: 0.8235294118 | AB39: 1 | AC39: 0.02941176471 | AE39: =cálculos2!O39 -> 6 | AF39: 0.6 | AG39: =cálculos2!P39 -> 3 | AH39: 0.75
A40: Sul | B40: Iúna | C40: 418 | D40: 111 | E40: 76 | F40: 0.6846846847 | G40: 84 | H40: 0.7567567568 | I40: 106 | J40: 0.954954955 | K40: 99 | L40: 0.8918918919 | M40: 90 | N40: 0.8108108108 | O40: 96 | P40: 0.8648648649 | Q40: 107 | R40: 0.963963964 | S40: 110 | T40: 0.990990991 | U40: 122 | V40: 1.099099099 | W40: 104 | X40: 0.9369369369 | Y40: 110 | Z40: 0.990990991 | AB40: 2 | AC40: 0.01801801802 | AE40: =cálculos2!O40 -> 5 | AF40: 0.5 | AG40: =cálculos2!P40 -> 1 | AH40: 0.25
A41: Norte | B41: Jaguaré | C41: 474 | D41: 129 | E41: 125 | F41: 0.9689922481 | G41: 122 | H41: 0.9457364341 | I41: 124 | J41: 0.9612403101 | K41: 115 | L41: 0.8914728682 | M41: 95 | N41: 0.7364341085 | O41: 94 | P41: 0.7286821705 | Q41: 121 | R41: 0.9379844961 | S41: 92 | T41: 0.7131782946 | U41: 126 | V41: 0.976744186 | W41: 99 | X41: 0.7674418605 | Y41: 88 | Z41: 0.6821705426 | AB41: 0 | AC41: 0 | AE41: =cálculos2!O41 -> 3 | AF41: 0.3 | AG41: =cálculos2!P41 -> 1 | AH41: 0.25
A42: Sul | B42: Jerônimo Monteiro | C42: 119 | D42: 26 | E42: 28 | F42: 1.076923077 | G42: 28 | H42: 1.076923077 | I42: 31 | J42: 1.192307692 | K42: 32 | L42: 1.230769231 | M42: 28 | N42: 1.076923077 | O42: 33 | P42: 1.269230769 | Q42: 28 | R42: 1.076923077 | S42: 27 | T42: 1.038461538 | U42: 37 | V42: 1.423076923 | W42: 35 | X42: 1.346153846 | Y42: 31 | Z42: 1.192307692 | AB42: 3 | AC42: 0.1153846154 | AE42: =cálculos2!O42 -> 10 | AF42: 1 | AG42: =cálculos2!P42 -> 4 | AH42: 1
A43: Metropolitana | B43: João Neiva | C43: 153 | D43: 32 | E43: 21 | F43: 0.65625 | G43: 26 | H43: 0.8125 | I43: 39 | J43: 1.21875 | K43: 36 | L43: 1.125 | M43: 33 | N43: 1.03125 | O43: 38 | P43: 1.1875 | Q43: 37 | R43: 1.15625 | S43: 34 | T43: 1.0625 | U43: 38 | V43: 1.1875 | W43: 32 | X43: 1 | Y43: 37 | Z43: 1.15625 | AB43: 1 | AC43: 0.03125 | AE43: =cálculos2!O43 -> 9 | AF43: 0.9 | AG43: =cálculos2!P43 -> 4 | AH43: 1
A44: Metropolitana | B44: Laranja da Terra | C44: 101 | D44: 25 | E44: 26 | F44: 1.04 | G44: 29 | H44: 1.16 | I44: 26 | J44: 1.04 | K44: 27 | L44: 1.08 | M44: 38 | N44: 1.52 | O44: 40 | P44: 1.6 | Q44: 40 | R44: 1.6 | S44: 22 | T44: 0.88 | U44: 23 | V44: 0.92 | W44: 22 | X44: 0.88 | Y44: 27 | Z44: 1.08 | AB44: 2 | AC44: 0.08 | AE44: =cálculos2!O44 -> 7 | AF44: 0.7 | AG44: =cálculos2!P44 -> 3 | AH44: 0.75
A45: Central | B45: Linhares | C45: 2663 | D45: 696 | E45: 537 | F45: 0.7715517241 | G45: 539 | H45: 0.7744252874 | I45: 579 | J45: 0.8318965517 | K45: 564 | L45: 0.8103448276 | M45: 517 | N45: 0.742816092 | O45: 581 | P45: 0.8347701149 | Q45: 602 | R45: 0.8649425287 | S45: 518 | T45: 0.7442528736 | U45: 527 | V45: 0.757183908 | W45: 548 | X45: 0.7873563218 | Y45: 413 | Z45: 0.5933908046 | AB45: 1 | AC45: 0.001436781609 | AE45: =cálculos2!O45 -> 0 | AF45: 0 | AG45: =cálculos2!P45 -> 0 | AH45: 0
A46: Central | B46: Mantenópolis | C46: 138 | D46: 38 | E46: 32 | F46: 0.8421052632 | G46: 33 | H46: 0.8684210526 | I46: 37 | J46: 0.9736842105 | K46: 36 | L46: 0.9473684211 | M46: 22 | N46: 0.5789473684 | O46: 27 | P46: 0.7105263158 | Q46: 39 | R46: 1.026315789 | S46: 49 | T46: 1.289473684 | U46: 29 | V46: 0.7631578947 | W46: 34 | X46: 0.8947368421 | Y46: 43 | Z46: 1.131578947 | AB46: 0 | AC46: 0 | AE46: =cálculos2!O46 -> 4 | AF46: 0.4 | AG46: =cálculos2!P46 -> 1 | AH46: 0.25
A47: Sul | B47: Marataízes | C47: 500 | D47: 120 | E47: 122 | F47: 1.016666667 | G47: 140 | H47: 1.166666667 | I47: 117 | J47: 0.975 | K47: 107 | L47: 0.8916666667 | M47: 145 | N47: 1.208333333 | O47: 149 | P47: 1.241666667 | Q47: 140 | R47: 1.166666667 | S47: 101 | T47: 0.8416666667 | U47: 115 | V47: 0.9583333333 | W47: 138 | X47: 1.15 | Y47: 95 | Z47: 0.7916666667 | AB47: 1 | AC47: 0.008333333333 | AE47: =cálculos2!O47 -> 7 | AF47: 0.7 | AG47: =cálculos2!P47 -> 3 | AH47: 0.75
A48: Metropolitana | B48: Marechal Floriano | C48: 204 | D48: 64 | E48: 49 | F48: 0.765625 | G48: 48 | H48: 0.75 | I48: 45 | J48: 0.703125 | K48: 45 | L48: 0.703125 | M48: 40 | N48: 0.625 | O48: 41 | P48: 0.640625 | Q48: 41 | R48: 0.640625 | S48: 50 | T48: 0.78125 | U48: 62 | V48: 0.96875 | W48: 54 | X48: 0.84375 | Y48: 65 | Z48: 1.015625 | AB48: 6 | AC48: 0.09375 | AE48: =cálculos2!O48 -> 2 | AF48: 0.2 | AG48: =cálculos2!P48 -> 0 | AH48: 0
A49: Central | B49: Marilândia | C49: 146 | D49: 37 | E49: 38 | F49: 1.027027027 | G49: 38 | H49: 1.027027027 | I49: 31 | J49: 0.8378378378 | K49: 31 | L49: 0.8378378378 | M49: 33 | N49: 0.8918918919 | O49: 39 | P49: 1.054054054 | Q49: 36 | R49: 0.972972973 | S49: 40 | T49: 1.081081081 | U49: 31 | V49: 0.8378378378 | W49: 35 | X49: 0.9459459459 | Y49: 32 | Z49: 0.8648648649 | AB49: 0 | AC49: 0 | AE49: =cálculos2!O49 -> 4 | AF49: 0.4 | AG49: =cálculos2!P49 -> 0 | AH49: 0
A50: Sul | B50: Mimoso do Sul | C50: 219 | D50: 46 | E50: 77 | F50: 1.673913043 | G50: 80 | H50: 1.739130435 | I50: 64 | J50: 1.391304348 | K50: 55 | L50: 1.195652174 | M50: 49 | N50: 1.065217391 | O50: 60 | P50: 1.304347826 | Q50: 58 | R50: 1.260869565 | S50: 63 | T50: 1.369565217 | U50: 51 | V50: 1.108695652 | W50: 43 | X50: 0.9347826087 | Y50: 55 | Z50: 1.195652174 | AB50: 3 | AC50: 0.0652173913 | AE50: =cálculos2!O50 -> 9 | AF50: 0.9 | AG50: =cálculos2!P50 -> 3 | AH50: 0.75
A51: Norte | B51: Montanha | C51: 230 | D51: 63 | E51: 48 | F51: 0.7619047619 | G51: 48 | H51: 0.7619047619 | I51: 73 | J51: 1.158730159 | K51: 72 | L51: 1.142857143 | M51: 59 | N51: 0.9365079365 | O51: 69 | P51: 1.095238095 | Q51: 68 | R51: 1.079365079 | S51: 57 | T51: 0.9047619048 | U51: 54 | V51: 0.8571428571 | W51: 64 | X51: 1.015873016 | Y51: 69 | Z51: 1.095238095 | AB51: 3 | AC51: 0.04761904762 | AE51: =cálculos2!O51 -> 6 | AF51: 0.6 | AG51: =cálculos2!P51 -> 3 | AH51: 0.75
A52: Norte | B52: Mucurici | C52: 70 | D52: 16 | E52: 11 | F52: 0.6875 | G52: 10 | H52: 0.625 | I52: 13 | J52: 0.8125 | K52: 14 | L52: 0.875 | M52: 18 | N52: 1.125 | O52: 17 | P52: 1.0625 | Q52: 17 | R52: 1.0625 | S52: 21 | T52: 1.3125 | U52: 29 | V52: 1.8125 | W52: 17 | X52: 1.0625 | Y52: 27 | Z52: 1.6875 | AB52: 1 | AC52: 0.0625 | AE52: =cálculos2!O52 -> 7 | AF52: 0.7 | AG52: =cálculos2!P52 -> 2 | AH52: 0.5
A53: Sul | B53: Muniz Freire | C53: 201 | D53: 46 | E53: 50 | F53: 1.086956522 | G53: 51 | H53: 1.108695652 | I53: 54 | J53: 1.173913043 | K53: 51 | L53: 1.108695652 | M53: 54 | N53: 1.173913043 | O53: 56 | P53: 1.217391304 | Q53: 53 | R53: 1.152173913 | S53: 64 | T53: 1.391304348 | U53: 59 | V53: 1.282608696 | W53: 66 | X53: 1.434782609 | Y53: 59 | Z53: 1.282608696 | AB53: 1 | AC53: 0.02173913043 | AE53: =cálculos2!O53 -> 10 | AF53: 1 | AG53: =cálculos2!P53 -> 4 | AH53: 1
A54: Sul | B54: Muqui | C54: 119 | D54: 23 | E54: 35 | F54: 1.52173913 | G54: 34 | H54: 1.47826087 | I54: 35 | J54: 1.52173913 | K54: 35 | L54: 1.52173913 | M54: 34 | N54: 1.47826087 | O54: 36 | P54: 1.565217391 | Q54: 34 | R54: 1.47826087 | S54: 41 | T54: 1.782608696 | U54: 34 | V54: 1.47826087 | W54: 32 | X54: 1.391304348 | Y54: 33 | Z54: 1.434782609 | AB54: 5 | AC54: 0.2173913043 | AE54: =cálculos2!O54 -> 10 | AF54: 1 | AG54: =cálculos2!P54 -> 4 | AH54: 1
A55: Norte | B55: Nova Venécia | C55: 657 | D55: 163 | E55: 149 | F55: 0.9141104294 | G55: 156 | H55: 0.9570552147 | I55: 153 | J55: 0.9386503067 | K55: 146 | L55: 0.8957055215 | M55: 138 | N55: 0.8466257669 | O55: 168 | P55: 1.030674847 | Q55: 163 | R55: 1 | S55: 142 | T55: 0.8711656442 | U55: 133 | V55: 0.8159509202 | W55: 149 | X55: 0.9141104294 | Y55: 131 | Z55: 0.8036809816 | AB55: 4 | AC55: 0.0245398773 | AE55: =cálculos2!O55 -> 3 | AF55: 0.3 | AG55: =cálculos2!P55 -> 0 | AH55: 0
A56: Central | B56: Pancas | C56: 206 | D56: 58 | E56: 59 | F56: 1.017241379 | G56: 60 | H56: 1.034482759 | I56: 43 | J56: 0.7413793103 | K56: 43 | L56: 0.7413793103 | M56: 44 | N56: 0.7586206897 | O56: 44 | P56: 0.7586206897 | Q56: 47 | R56: 0.8103448276 | S56: 51 | T56: 0.8793103448 | U56: 56 | V56: 0.9655172414 | W56: 56 | X56: 0.9655172414 | Y56: 63 | Z56: 1.086206897 | AB56: 1 | AC56: 0.01724137931 | AE56: =cálculos2!O56 -> 4 | AF56: 0.4 | AG56: =cálculos2!P56 -> 1 | AH56: 0.25
A57: Norte | B57: Pedro Canário | C57: 331 | D57: 93 | E57: 81 | F57: 0.8709677419 | G57: 89 | H57: 0.9569892473 | I57: 75 | J57: 0.8064516129 | K57: 69 | L57: 0.7419354839 | M57: 62 | N57: 0.6666666667 | O57: 58 | P57: 0.623655914 | Q57: 59 | R57: 0.6344086022 | S57: 48 | T57: 0.5161290323 | U57: 79 | V57: 0.8494623656 | W57: 86 | X57: 0.9247311828 | Y57: 63 | Z57: 0.6774193548 | AB57: 1 | AC57: 0.01075268817 | AE57: =cálculos2!O57 -> 1 | AF57: 0.1 | AG57: =cálculos2!P57 -> 0 | AH57: 0
A58: Norte | B58: Pinheiros | C58: 314 | D58: 74 | E58: 83 | F58: 1.121621622 | G58: 78 | H58: 1.054054054 | I58: 79 | J58: 1.067567568 | K58: 79 | L58: 1.067567568 | M58: 83 | N58: 1.121621622 | O58: 89 | P58: 1.202702703 | Q58: 85 | R58: 1.148648649 | S58: 74 | T58: 1 | U58: 88 | V58: 1.189189189 | W58: 89 | X58: 1.202702703 | Y58: 70 | Z58: 0.9459459459 | AB58: 3 | AC58: 0.04054054054 | AE58: =cálculos2!O58 -> 9 | AF58: 0.9 | AG58: =cálculos2!P58 -> 4 | AH58: 1
A59: Sul | B59: Piúma | C59: 275 | D59: 62 | E59: 68 | F59: 1.096774194 | G59: 70 | H59: 1.129032258 | I59: 75 | J59: 1.209677419 | K59: 70 | L59: 1.129032258 | M59: 62 | N59: 1 | O59: 68 | P59: 1.096774194 | Q59: 71 | R59: 1.14516129 | S59: 56 | T59: 0.9032258065 | U59: 84 | V59: 1.35483871 | W59: 71 | X59: 1.14516129 | Y59: 52 | Z59: 0.8387096774 | AB59: 2 | AC59: 0.03225806452 | AE59: =cálculos2!O59 -> 8 | AF59: 0.8 | AG59: =cálculos2!P59 -> 4 | AH59: 1
A60: Norte | B60: Ponto Belo | C60: 82 | D60: 14 | E60: 16 | F60: 1.142857143 | G60: 16 | H60: 1.142857143 | I60: 27 | J60: 1.928571429 | K60: 26 | L60: 1.857142857 | M60: 22 | N60: 1.571428571 | O60: 24 | P60: 1.714285714 | Q60: 23 | R60: 1.642857143 | S60: 27 | T60: 1.928571429 | U60: 22 | V60: 1.571428571 | W60: 19 | X60: 1.357142857 | Y60: 17 | Z60: 1.214285714 | AB60: 0 | AC60: 0 | AE60: =cálculos2!O60 -> 10 | AF60: 1 | AG60: =cálculos2!P60 -> 4 | AH60: 1
A61: Sul | B61: Presidente Kennedy | C61: 171 | D61: 45 | E61: 55 | F61: 1.222222222 | G61: 55 | H61: 1.222222222 | I61: 59 | J61: 1.311111111 | K61: 57 | L61: 1.266666667 | M61: 49 | N61: 1.088888889 | O61: 51 | P61: 1.133333333 | Q61: 59 | R61: 1.311111111 | S61: 58 | T61: 1.288888889 | U61: 44 | V61: 0.9777777778 | W61: 60 | X61: 1.333333333 | Y61: 41 | Z61: 0.9111111111 | AB61: 3 | AC61: 0.06666666667 | AE61: =cálculos2!O61 -> 9 | AF61: 0.9 | AG61: =cálculos2!P61 -> 4 | AH61: 1
A62: Central | B62: Rio Bananal | C62: 301 | D62: 70 | E62: 54 | F62: 0.7714285714 | G62: 53 | H62: 0.7571428571 | I62: 69 | J62: 0.9857142857 | K62: 69 | L62: 0.9857142857 | M62: 58 | N62: 0.8285714286 | O62: 68 | P62: 0.9714285714 | Q62: 69 | R62: 0.9857142857 | S62: 75 | T62: 1.071428571 | U62: 64 | V62: 0.9142857143 | W62: 83 | X62: 1.185714286 | Y62: 55 | Z62: 0.7857142857 | AB62: 4 | AC62: 0.05714285714 | AE62: =cálculos2!O62 -> 6 | AF62: 0.6 | AG62: =cálculos2!P62 -> 3 | AH62: 0.75
A63: Sul | B63: Rio Novo do Sul | C63: 87 | D63: 16 | E63: 26 | F63: 1.625 | G63: 27 | H63: 1.6875 | I63: 36 | J63: 2.25 | K63: 35 | L63: 2.1875 | M63: 24 | N63: 1.5 | O63: 24 | P63: 1.5 | Q63: 30 | R63: 1.875 | S63: 18 | T63: 1.125 | U63: 25 | V63: 1.5625 | W63: 24 | X63: 1.5 | Y63: 26 | Z63: 1.625 | AB63: 0 | AC63: 0 | AE63: =cálculos2!O63 -> 10 | AF63: 1 | AG63: =cálculos2!P63 -> 4 | AH63: 1
A64: Metropolitana | B64: Santa Leopoldina | C64: 81 | D64: 17 | E64: 21 | F64: 1.235294118 | G64: 23 | H64: 1.352941176 | I64: 19 | J64: 1.117647059 | K64: 17 | L64: 1 | M64: 26 | N64: 1.529411765 | O64: 27 | P64: 1.588235294 | Q64: 22 | R64: 1.294117647 | S64: 26 | T64: 1.529411765 | U64: 27 | V64: 1.588235294 | W64: 15 | X64: 0.8823529412 | Y64: 10 | Z64: 0.5882352941 | AB64: 0 | AC64: 0 | AE64: =cálculos2!O64 -> 8 | AF64: 0.8 | AG64: =cálculos2!P64 -> 3 | AH64: 0.75
A65: Metropolitana | B65: Santa Maria de Jetibá | C65: 664 | D65: 167 | E65: 154 | F65: 0.9221556886 | G65: 164 | H65: 0.9820359281 | I65: 143 | J65: 0.8562874251 | K65: 146 | L65: 0.874251497 | M65: 147 | N65: 0.880239521 | O65: 163 | P65: 0.9760479042 | Q65: 148 | R65: 0.8862275449 | S65: 123 | T65: 0.7365269461 | U65: 151 | V65: 0.9041916168 | W65: 148 | X65: 0.8862275449 | Y65: 121 | Z65: 0.7245508982 | AB65: 0 | AC65: 0 | AE65: =cálculos2!O65 -> 2 | AF65: 0.2 | AG65: =cálculos2!P65 -> 0 | AH65: 0
A66: Metropolitana | B66: Santa Teresa | C66: 299 | D66: 80 | E66: 81 | F66: 1.0125 | G66: 84 | H66: 1.05 | I66: 64 | J66: 0.8 | K66: 62 | L66: 0.775 | M66: 57 | N66: 0.7125 | O66: 63 | P66: 0.7875 | Q66: 66 | R66: 0.825 | S66: 69 | T66: 0.8625 | U66: 68 | V66: 0.85 | W66: 60 | X66: 0.75 | Y66: 63 | Z66: 0.7875 | AB66: 1 | AC66: 0.0125 | AE66: =cálculos2!O66 -> 1 | AF66: 0.1 | AG66: =cálculos2!P66 -> 0 | AH66: 0
A67: Central | B67: São Domingos do Norte | C67: 112 | D67: 25 | E67: 21 | F67: 0.84 | G67: 23 | H67: 0.92 | I67: 28 | J67: =I67/D67 -> 1.12 | K67: 29 | L67: =K67/D67 -> 1.16 | M67: 26 | N67: =M67/D67 -> 1.04 | O67: 26 | P67: =O67/D67 -> 1.04 | Q67: 31 | R67: =Q67/D67 -> 1.24 | S67: 26 | T67: =S67/D67 -> 1.04 | U67: 39 | V67: =U67/D67 -> 1.56 | W67: 35 | X67: =W67/D67 -> 1.4 | Y67: 30 | Z67: =Y67/D67 -> 1.2 | AB67: 0 | AC67: 0 | AE67: =cálculos2!O67 -> 10 | AF67: 1 | AG67: =cálculos2!P67 -> 4 | AH67: 1
A68: Central | B68: São Gabriel da Palha | C68: 415 | D68: 110 | E68: 84 | F68: =E68/D68 -> 0.7636363636 | G68: 86 | H68: =G68/D68 -> 0.7818181818 | I68: 111 | J68: 1.009090909 | K68: 112 | L68: 1.018181818 | M68: 76 | N68: 0.6909090909 | O68: 86 | P68: 0.7818181818 | Q68: 107 | R68: 0.9727272727 | S68: 105 | T68: 0.9545454545 | U68: 101 | V68: 0.9181818182 | W68: 94 | X68: 0.8545454545 | Y68: 72 | Z68: 0.6545454545 | AB68: 0 | AC68: =AB68/D68 -> 0 | AE68: =cálculos2!O68 -> 4 | AF68: =AE68*0.1 -> 0.4 | AG68: =cálculos2!P68 -> 2 | AH68: =AG68*0.25 -> 0.5
A69: Sul | B69: São José do Calçado | C69: 94 | D69: 24 | E69: 22 | F69: 0.9166666667 | G69: 24 | H69: 1 | I69: 29 | J69: 1.208333333 | K69: 29 | L69: 1.208333333 | M69: 19 | N69: 0.7916666667 | O69: 18 | P69: 0.75 | Q69: 19 | R69: 0.7916666667 | S69: 14 | T69: 0.5833333333 | U69: 28 | V69: 1.166666667 | W69: 23 | X69: 0.9583333333 | Y69: 31 | Z69: 1.291666667 | AB69: 1 | AC69: 0.04166666667 | AE69: =cálculos2!O69 -> 6 | AF69: 0.6 | AG69: =cálculos2!P69 -> 3 | AH69: 0.75
A70: Norte | B70: São Mateus | C70: 1814 | D70: 462 | E70: 390 | F70: 0.8441558442 | G70: 403 | H70: 0.8722943723 | I70: 407 | J70: 0.880952381 | K70: 401 | L70: 0.867965368 | M70: 350 | N70: 0.7575757576 | O70: 379 | P70: 0.8203463203 | Q70: 388 | R70: 0.8398268398 | S70: 382 | T70: 0.8268398268 | U70: 402 | V70: 0.8701298701 | W70: 423 | X70: 0.9155844156 | Y70: 323 | Z70: 0.6991341991 | AB70: 31 | AC70: 0.0670995671 | AE70: =cálculos2!O70 -> 0 | AF70: 0 | AG70: =cálculos2!P70 -> 0 | AH70: 0
A71: Central | B71: São Roque do Canaã | C71: 129 | D71: 46 | E71: 34 | F71: 0.7391304348 | G71: 36 | H71: 0.7826086957 | I71: 35 | J71: 0.7608695652 | K71: 33 | L71: 0.7173913043 | M71: 24 | N71: 0.5217391304 | O71: 30 | P71: 0.652173913 | Q71: 34 | R71: 0.7391304348 | S71: 31 | T71: 0.6739130435 | U71: 17 | V71: 0.3695652174 | W71: 42 | X71: 0.9130434783 | Y71: 24 | Z71: 0.5217391304 | AB71: 1 | AC71: 0.02173913043 | AE71: =cálculos2!O71 -> 0 | AF71: 0 | AG71: =cálculos2!P71 -> 0 | AH71: 0
A72: Metropolitana | B72: Serra | C72: 7312 | D72: 1898 | E72: 1720 | F72: 0.9062170706 | G72: 1749 | H72: 0.9214963119 | I72: 1683 | J72: 0.8867228662 | K72: 1640 | L72: 0.8640674394 | M72: 1565 | N72: 0.8245521602 | O72: 1663 | P72: 0.8761854584 | Q72: 1655 | R72: 0.8719704953 | S72: 1389 | T72: 0.7318229715 | U72: 1692 | V72: 0.8914646997 | W72: 1612 | X72: 0.8493150685 | Y72: 1510 | Z72: 0.7955742887 | AB72: 42 | AC72: 0.02212855638 | AE72: =cálculos2!O72 -> 1 | AF72: 0.1 | AG72: =cálculos2!P72 -> 0 | AH72: 0
A73: Central | B73: Sooretama | C73: 429 | D73: 98 | E73: 67 | F73: 0.6836734694 | G73: 71 | H73: 0.7244897959 | I73: 104 | J73: 1.06122449 | K73: 98 | L73: 1 | M73: 95 | N73: 0.9693877551 | O73: 108 | P73: 1.102040816 | Q73: 113 | R73: 1.153061224 | S73: 93 | T73: 0.9489795918 | U73: 89 | V73: 0.9081632653 | W73: 89 | X73: 0.9081632653 | Y73: 86 | Z73: 0.8775510204 | AB73: 0 | AC73: 0 | AE73: =cálculos2!O73 -> 5 | AF73: 0.5 | AG73: =cálculos2!P73 -> 3 | AH73: 0.75
A74: Sul | B74: Vargem Alta | C74: 212 | D74: 50 | E74: 72 | F74: 1.44 | G74: 70 | H74: 1.4 | I74: 61 | J74: 1.22 | K74: 58 | L74: 1.16 | M74: 60 | N74: 1.2 | O74: 59 | P74: 1.18 | Q74: 64 | R74: 1.28 | S74: 61 | T74: 1.22 | U74: 64 | V74: 1.28 | W74: 66 | X74: 1.32 | Y74: 77 | Z74: 1.54 | AB74: 1 | AC74: 0.02 | AE74: =cálculos2!O74 -> 10 | AF74: 1 | AG74: =cálculos2!P74 -> 4 | AH74: 1
A75: Metropolitana | B75: Venda Nova do Imigrante | C75: 337 | D75: 81 | E75: 81 | F75: 1 | G75: 85 | H75: 1.049382716 | I75: 79 | J75: 0.975308642 | K75: 78 | L75: 0.962962963 | M75: 89 | N75: 1.098765432 | O75: 103 | P75: 1.271604938 | Q75: 86 | R75: 1.061728395 | S75: 91 | T75: 1.12345679 | U75: 113 | V75: 1.395061728 | W75: 94 | X75: 1.160493827 | Y75: 84 | Z75: 1.037037037 | AB75: 5 | AC75: 0.06172839506 | AE75: =cálculos2!O75 -> 10 | AF75: 1 | AG75: =cálculos2!P75 -> 4 | AH75: 1
A76: Metropolitana | B76: Viana | C76: 891 | D76: 219 | E76: 187 | F76: 0.8538812785 | G76: 210 | H76: 0.9589041096 | I76: 224 | J76: 1.02283105 | K76: 215 | L76: 0.9817351598 | M76: 237 | N76: 1.082191781 | O76: 228 | P76: 1.04109589 | Q76: 220 | R76: 1.00456621 | S76: 162 | T76: 0.7397260274 | U76: 204 | V76: 0.9315068493 | W76: 221 | X76: 1.00913242 | Y76: 130 | Z76: 0.5936073059 | AB76: 10 | AC76: 0.04566210046 | AE76: =cálculos2!O76 -> 7 | AF76: 0.7 | AG76: =cálculos2!P76 -> 4 | AH76: 1
A77: Norte | B77: Vila Pavão | C77: 110 | D77: 29 | E77: 31 | F77: 1.068965517 | G77: 34 | H77: 1.172413793 | I77: 42 | J77: 1.448275862 | K77: 39 | L77: 1.344827586 | M77: 29 | N77: 1 | O77: 29 | P77: 1 | Q77: 39 | R77: 1.344827586 | S77: 29 | T77: 1 | U77: 20 | V77: 0.6896551724 | W77: 27 | X77: 0.9310344828 | Y77: 26 | Z77: 0.8965517241 | AB77: 3 | AC77: 0.1034482759 | AE77: =cálculos2!O77 -> 7 | AF77: 0.7 | AG77: =cálculos2!P77 -> 3 | AH77: 0.75
A78: Central | B78: Vila Valério | C78: 232 | D78: 62 | E78: 51 | F78: 0.8225806452 | G78: 51 | H78: 0.8225806452 | I78: 48 | J78: 0.7741935484 | K78: 49 | L78: 0.7903225806 | M78: 54 | N78: 0.8709677419 | O78: 49 | P78: 0.7903225806 | Q78: 50 | R78: 0.8064516129 | S78: 65 | T78: 1.048387097 | U78: 66 | V78: 1.064516129 | W78: 63 | X78: 1.016129032 | Y78: 49 | Z78: 0.7903225806 | AB78: 1 | AC78: 0.01612903226 | AE78: =cálculos2!O78 -> 3 | AF78: 0.3 | AG78: =cálculos2!P78 -> 1 | AH78: 0.25
A79: Metropolitana | B79: Vila Velha | C79: 5446 | D79: 1417 | E79: 1274 | F79: 0.8990825688 | G79: 1288 | H79: 0.908962597 | I79: 1211 | J79: 0.8546224418 | K79: 1200 | L79: 0.8468595625 | M79: 987 | N79: 0.6965419901 | O79: 1190 | P79: 0.8398023994 | Q79: 1190 | R79: 0.8398023994 | S79: 911 | T79: 0.6429075512 | U79: 1199 | V79: 0.8461538462 | W79: 1186 | X79: 0.8369795342 | Y79: 1146 | Z79: 0.8087508821 | AB79: 41 | AC79: 0.02893436838 | AE79: =cálculos2!O79 -> 1 | AF79: 0.1 | AG79: =cálculos2!P79 -> 0 | AH79: 0
A80: Metropolitana | B80: Vitória | C80: 3452 | D80: 876 | E80: 760 | F80: 0.8675799087 | G80: 778 | H80: 0.8881278539 | I80: 821 | J80: 0.9372146119 | K80: 811 | L80: 0.9257990868 | M80: 649 | N80: 0.7408675799 | O80: 776 | P80: 0.8858447489 | Q80: 813 | R80: 0.9280821918 | S80: 567 | T80: 0.647260274 | U80: 878 | V80: 1.002283105 | W80: 977 | X80: 1.115296804 | Y80: 892 | Z80: 1.01826484 | AB80: 34 | AC80: 0.03881278539 | AE80: =cálculos2!O80 -> 3 | AF80: 0.3 | AG80: =cálculos2!P80 -> 1 | AH80: 0.25
B82: Total Norte | C82: =SUMIF($A$3:$A$80,"Norte",C$3:C$80) -> 5679 | D82: =SUMIF($A$3:$A$80,"Norte",D$3:D$80) -> 1478 | E82: =SUMIF($A$3:$A$80,"Norte",E$3:E$80) -> 1294 | F82: =E82/D82 -> 0.8755074425 | G82: =SUMIF($A$3:$A$80,"Norte",G$3:G$80) -> 1313 | H82: =G82/D82 -> 0.8883626522 | I82: =SUMIF($A$3:$A$80,"Norte",I$3:I$80) -> 1373 | J82: =I82/D82 -> 0.9289580514 | K82: =SUMIF($A$3:$A$80,"Norte",K$3:K$80) -> 1338 | L82: =K82/D82 -> 0.9052774019 | M82: =SUMIF($A$3:$A$80,"Norte",M$3:M$80) -> 1176 | N82: =M82/D82 -> 0.7956698241 | O82: =SUMIF($A$3:$A$80,"Norte",O$3:O$80) -> 1261 | P82: =O82/D82 -> 0.8531799729 | Q82: =SUMIF($A$3:$A$80,"Norte",Q$3:Q$80) -> 1311 | R82: =Q82/D82 -> 0.8870094723 | S82: =SUMIF($A$3:$A$80,"Norte",S$3:S$80) -> 1254 | T82: =S82/D82 -> 0.848443843 | U82: =SUMIF($A$3:$A$80,"Norte",U$3:U$80) -> 1302 | V82: =U82/D82 -> 0.8809201624 | W82: =SUMIF($A$3:$A$80,"Norte",W$3:W$80) -> 1358 | X82: =W82/D82 -> 0.9188092016 | Y82: =SUMIF($A$3:$A$80,"Norte",Y$3:Y$80) -> 1133 | Z82: =Y82/D82 -> 0.7665764547 | AB82: =SUMIF($A$3:$A$80,"Norte",AB$3:AB$80) -> 50 | AC82: =AB82/D82 -> 0.03382949932 | AE82: =cálculos2!O82 -> 0 | AF82: =AE82*0.1 -> 0 | AG82: =cálculos2!P82 -> 0 | AH82: 0
B83: Total Central | C83: =SUMIF($A$3:$A$80,"Central",C$3:C$80) -> 6962 | D83: =SUMIF($A$3:$A$80,"Central",D$3:D$80) -> 1820 | E83: =SUMIF($A$3:$A$80,"Central",E$3:E$80) -> 1514 | F83: =E83/D83 -> 0.8318681319 | G83: =SUMIF($A$3:$A$80,"Central",G$3:G$80) -> 1556 | H83: =G83/D83 -> 0.8549450549 | I83: =SUMIF($A$3:$A$80,"Central",I$3:I$80) -> 1610 | J83: =I83/D83 -> 0.8846153846 | K83: =SUMIF($A$3:$A$80,"Central",K$3:K$80) -> 1592 | L83: =K83/D83 -> 0.8747252747 | M83: =SUMIF($A$3:$A$80,"Central",M$3:M$80) -> 1346 | N83: =M83/D83 -> 0.7395604396 | O83: =SUMIF($A$3:$A$80,"Central",O$3:O$80) -> 1508 | P83: =O83/D83 -> 0.8285714286 | Q83: =SUMIF($A$3:$A$80,"Central",Q$3:Q$80) -> 1648 | R83: =Q83/D83 -> 0.9054945055 | S83: =SUMIF($A$3:$A$80,"Central",S$3:S$80) -> 1542 | T83: =S83/D83 -> 0.8472527473 | U83: =SUMIF($A$3:$A$80,"Central",U$3:U$80) -> 1517 | V83: =U83/D83 -> 0.8335164835 | W83: =SUMIF($A$3:$A$80,"Central",W$3:W$80) -> 1602 | X83: =W83/D83 -> 0.8802197802 | Y83: =SUMIF($A$3:$A$80,"Central",Y$3:Y$80) -> 1302 | Z83: =Y83/D83 -> 0.7153846154 | AB83: =SUMIF($A$3:$A$80,"Central",AB$3:AB$80) -> 17 | AC83: =AB83/D83 -> 0.009340659341 | AE83: =cálculos2!O83 -> 0 | AF83: =AE83*0.1 -> 0 | AG83: =cálculos2!P83 -> 0 | AH83: 0
B84: Total Metropolitana | C84: =SUMIF($A$3:$A$80,"Metropolitana",C$3:C$80) -> 28953 | D84: =SUMIF($A$3:$A$80,"Metropolitana",D$3:D$80) -> 7439 | E84: =SUMIF($A$3:$A$80,"Metropolitana",E$3:E$80) -> 6721 | F84: =E84/D84 -> 0.9034816508 | G84: =SUMIF($A$3:$A$80,"Metropolitana",G$3:G$80) -> 7006 | H84: =G84/D84 -> 0.9417932518 | I84: =SUMIF($A$3:$A$80,"Metropolitana",I$3:I$80) -> 6716 | J84: =I84/D84 -> 0.9028095174 | K84: =SUMIF($A$3:$A$80,"Metropolitana",K$3:K$80) -> 6592 | L84: =K84/D84 -> 0.8861406103 | M84: =SUMIF($A$3:$A$80,"Metropolitana",M$3:M$80) -> 5938 | N84: =M84/D84 -> 0.798225568 | O84: =SUMIF($A$3:$A$80,"Metropolitana",O$3:O$80) -> 6624 | P84: =O84/D84 -> 0.8904422637 | Q84: =SUMIF($A$3:$A$80,"Metropolitana",Q$3:Q$80) -> 6642 | R84: =Q84/D84 -> 0.8928619438 | S84: =SUMIF($A$3:$A$80,"Metropolitana",S$3:S$80) -> 5413 | T84: =S84/D84 -> 0.7276515661 | U84: =SUMIF($A$3:$A$80,"Metropolitana",U$3:U$80) -> 6863 | V84: =U84/D84 -> 0.9225702379 | W84: =SUMIF($A$3:$A$80,"Metropolitana",W$3:W$80) -> 6814 | X84: =W84/D84 -> 0.9159833311 | Y84: =SUMIF($A$3:$A$80,"Metropolitana",Y$3:Y$80) -> 6110 | Z84: =Y84/D84 -> 0.8213469552 | AB84: =SUMIF($A$3:$A$80,"Metropolitana",AB$3:AB$80) -> 295 | AC84: 0.03965586772 | AE84: =cálculos2!O84 -> 1 | AF84: 0.1 | AG84: =cálculos2!P84 -> 0 | AH84: 0
B85: Total Sul | C85: =SUMIF($A$3:$A$80,"sul",C$3:C$80) -> 7063 | D85: =SUMIF($A$3:$A$80,"sul",D$3:D$80) -> 1656 | E85: =SUMIF($A$3:$A$80,"Sul",E$3:E$80) -> 1862 | F85: =E85/D85 -> 1.124396135 | G85: =SUMIF($A$3:$A$80,"Sul",G$3:G$80) -> 1980 | H85: =G85/D85 -> 1.195652174 | I85: =SUMIF($A$3:$A$80,"Sul",I$3:I$80) -> 1940 | J85: =I85/D85 -> 1.171497585 | K85: =SUMIF($A$3:$A$80,"Sul",K$3:K$80) -> 1853 | L85: =K85/D85 -> 1.118961353 | M85: =SUMIF($A$3:$A$80,"Sul",M$3:M$80) -> 1743 | N85: =M85/D85 -> 1.052536232 | O85: =SUMIF($A$3:$A$80,"Sul",O$3:O$80) -> 1872 | P85: =O85/D85 -> 1.130434783 | Q85: =SUMIF($A$3:$A$80,"Sul",Q$3:Q$80) -> 1913 | R85: =Q85/D85 -> 1.155193237 | S85: =SUMIF($A$3:$A$80,"Sul",S$3:S$80) -> 1770 | T85: =S85/D85 -> 1.06884058 | U85: =SUMIF($A$3:$A$80,"Sul",U$3:U$80) -> 2026 | V85: =U85/D85 -> 1.223429952 | W85: =SUMIF($A$3:$A$80,"Sul",W$3:W$80) -> 2001 | X85: =W85/D85 -> 1.208333333 | Y85: =SUMIF($A$3:$A$80,"Sul",Y$3:Y$80) -> 1794 | Z85: =Y85/D85 -> 1.083333333 | AB85: =SUMIF($A$3:$A$80,"Sul",AB$3:AB$80) -> 66 | AC85: 0.03985507246 | AE85: =cálculos2!O85 -> 10 | AF85: 1 | AG85: =cálculos2!P85 -> 4 | AH85: 1
B86: Total Espírito Santo | C86: =SUM(C3:C80) -> 48657 | D86: =SUM(D3:D80) -> 12393 | E86: =SUM(E82:E85) -> 11391 | F86: =E86/D86 -> 0.9191479061 | G86: =SUM(G82:G85) -> 11855 | H86: =G86/D86 -> 0.9565883967 | I86: =SUM(I82:I85) -> 11639 | J86: =I86/D86 -> 0.9391592028 | K86: =SUM(K82:K85) -> 11375 | L86: =K86/D86 -> 0.9178568547 | M86: =SUM(M82:M85) -> 10203 | N86: =M86/D86 -> 0.8232873396 | O86: =SUM(O82:O85) -> 11265 | P86: =O86/D86 -> 0.9089808763 | Q86: =SUM(Q82:Q85) -> 11514 | R86: =Q86/D86 -> 0.9290728637 | S86: =SUM(S82:S85) -> 9979 | T86: =S86/D86 -> 0.80521262 | U86: =SUM(U82:U85) -> 11708 | V86: =U86/D86 -> 0.9447268619 | W86: =SUM(W82:W85) -> 11775 | X86: =W86/D86 -> 0.9501331397 | Y86: =SUM(Y82:Y85) -> 10339 | Z86: =Y86/D86 -> 0.8342612765 | AB86: =SUM(AB82:AB85) -> 428 | AC86: 0.03453562495 | AE86: =cálculos2!O86 -> 3 | AF86: 0.3 | AG86: =cálculos2!P86 -> 1 | AH86: 0.25
E87: =COUNTIF(F3:F80,">=0,95") -> 32 | G87: =COUNTIF(H3:H80,">=0,9") -> 55 | I87: =COUNTIF(J3:J80,">=0,95") -> 46 | K87: =COUNTIF(L3:L80,">=0,95") -> 40 | M87: =COUNTIF(N3:N80,">=0,95") -> 32 | O87: =COUNTIF(P3:P80,">=0,9") -> 43 | Q87: =COUNTIF(R3:R80,">=0,95") -> 45 | S87: =COUNTIF(T3:T80,">=0,95") -> 40 | U87: =COUNTIF(V3:V80,">=0,95") -> 40 | W87: =COUNTIF(X3:X80,">=0,95") -> 45 | Y87: =COUNTIF(Z3:Z80,">=0,95") -> 29 | AB87: =COUNTIF(AC3:AC80,">=0,9") -> 0
B88: HOMOGENEIDADE ENTRE MUNICÍPIOS | E88: =E87/78 -> 0.4102564103 | G88: =G87/78 -> 0.7051282051 | I88: =I87/78 -> 0.5897435897 | K88: =K87/78 -> 0.5128205128 | M88: =M87/78 -> 0.4102564103 | O88: =O87/78 -> 0.5512820513 | Q88: =Q87/78 -> 0.5769230769 | S88: =S87/78 -> 0.5128205128 | U88: =U87/78 -> 0.5128205128 | W88: =W87/78 -> 0.5769230769 | Y88: =Y87/78 -> 0.3717948718 | AB88: =AB87/78 -> 0
A90: Fonte: Vacina e Confia, em 22 de Abril de 2025.**
A91: **Dados referente às doses aplicadas no período de Janeiro a Março 2025
A92: Cobertura Calculada por município de residência da vacinação
A93: 1 População anual extraída do MS/SVS/DASIS - SINASC/DASIS/SVS/MS 2024 (hoje preliminares) referente ao período de Fevereiro a Dezembro de 2024 e SINASC/DASIS/SVS/MS referente ao período de Janeiro de 2025.
A94: ² População proporcional extraída do MS/SVS/DASIS - SINASC/DASIS/SVS/MS 2024 (hoje preliminares) referente ao período de Fevereiro e Março/2024 e Janeiro/ 2025.
A95: Sinasc, atualizado em 09/04/2025.
A96: Homogeineidade: O cálculo da Homogeineidade entre vacinas é feito de acordo com a pactuação estabelecida no Plano Plurianual (PPA) vigente no período 2024-2027.
A98: Observações:
A99: 1. Imunobiológicos que foram recebidos parcialmente pelo estado no mês de Março/2025, sendo distribuídos em quantidades reduzidas às regionais e municípios:
A100: SORO ANTIRRÁBICO HUMANO, IMUNOGLOBULINA ANTIRRÁBICA HUMANA, VACINA COVID-19 MODERNA (SPIKEVAX),VACINA CONTRA VARICELA.
A101: 2. Imunobiológicos indisponíveis no mês de Março/2025, não sendo possível a distribuição às regionais e municípios:
A102: VACINA TRÍPLICE ACELULAR (DTPa) - CRIE

Sheet CV REF 1A e 4A - procedência
G1: D2 | K1: REFORÇOS 1 ANO | S1: REFORÇOS 4 ANOS
A2: Regional | B2: Município | C2: ¹População 1 ano anual | D2: ²População 1 ano proporcional | E2: ³População 4 anos anual | F2: ³População 4 anos proporcional | G2: DOSES APLICADAS D2 TRÍPLICE VIRAL | H2: COBERTURA D2 TRÍPLICE VIRAL | I2: DOSES APLICADAS D2 VARICELA | J2: COBERTURA D2 VARICELA | K2: DOSES APLICADAS REF PNEUMO | L2: COBERTURA REF PNEUMO | M2: DOSES APLICADAS REF MENINGO | N2: COBERTURA REF MENINGO | O2: DOSES APLICADAS REF POLIO | P2: COBERTURA REF POLIO | Q2: DOSES APLICADAS R1 TRÍPLICE BACTERIANA | R2: COBERTURA R1 TRÍPLICE BACTERIANA | S2: DOSES APLICADAS REF FEBRE AMARELA | T2: COBERTURA REF FEBRE AMARELA | U2: DOSES APLICADAS R2 TRÍPLICE BACTERIANA | V2: COBERTURA R2 TRÍPLICE BACTERIANA
A3: Metropolitana | B3: Afonso Cláudio | C3: 355 | D3: 86 | E3: 416 | F3: =(E3/12)*2 -> 69.33333333 | G3: 92 | H3: =G3/D3 -> 1.069767442 | I3: 1 | J3: =I3/F3 -> 0.01442307692 | K3: 92 | L3: =K3/D3 -> 1.069767442 | M3: 87 | N3: =M3/D3 -> 1.011627907 | O3: 116 | P3: =O3/D3 -> 1.348837209 | Q3: 90 | R3: =Q3/D3 -> 1.046511628 | S3: 95 | T3: =S3/F3 -> 1.370192308 | U3: 88 | V3: =U3/F3 -> 1.269230769
A4: Norte | B4: Água Doce do Norte | C4: 181 | D4: 51 | E4: 151 | F4: =(E4/12)*2 -> 25.16666667 | G4: 34 | H4: 0.6666666667 | I4: 8 | J4: 0.3178807947 | K4: 46 | L4: 0.9019607843 | M4: 44 | N4: 0.862745098 | O4: 31 | P4: 0.6078431373 | Q4: 31 | R4: 0.6078431373 | S4: 21 | T4: 0.8344370861 | U4: 26 | V4: 1.033112583
A5: Central | B5: Águia Branca | C5: 146 | D5: 43 | E5: 129 | F5: 21.5 | G5: 35 | H5: 0.8139534884 | I5: 0 | J5: 0 | K5: 35 | L5: 0.8139534884 | M5: 36 | N5: 0.8372093023 | O5: 40 | P5: 0.9302325581 | Q5: 34 | R5: 0.7906976744 | S5: 21 | T5: 0.976744186 | U5: 21 | V5: 0.976744186
A6: Sul | B6: Alegre | C6: 264 | D6: 59 | E6: 372 | F6: 62 | G6: 86 | H6: 1.457627119 | I6: 3 | J6: 0.04838709677 | K6: 74 | L6: 1.254237288 | M6: 66 | N6: 1.118644068 | O6: 94 | P6: 1.593220339 | Q6: 83 | R6: 1.406779661 | S6: 62 | T6: 1 | U6: 68 | V6: 1.096774194
A7: Sul | B7: Alfredo Chaves | C7: 112 | D7: 27 | E7: 138 | F7: 23 | G7: 39 | H7: 1.444444444 | I7: 8 | J7: 0.347826087 | K7: 35 | L7: 1.296296296 | M7: 37 | N7: 1.37037037 | O7: 51 | P7: 1.888888889 | Q7: 46 | R7: 1.703703704 | S7: 33 | T7: 1.434782609 | U7: 31 | V7: 1.347826087
A8: Central | B8: Alto Rio Novo | C8: 89 | D8: 19 | E8: 102 | F8: 17 | G8: 25 | H8: 1.315789474 | I8: 5 | J8: 0.2941176471 | K8: 18 | L8: 0.9473684211 | M8: 20 | N8: 1.052631579 | O8: 20 | P8: 1.052631579 | Q8: 18 | R8: 0.9473684211 | S8: 21 | T8: 1.235294118 | U8: 17 | V8: 1
A9: Sul | B9: Anchieta | C9: 315 | D9: 73 | E9: 390 | F9: 65 | G9: 88 | H9: 1.205479452 | I9: 12 | J9: 0.1846153846 | K9: 84 | L9: 1.150684932 | M9: 85 | N9: 1.164383562 | O9: 119 | P9: 1.630136986 | Q9: 94 | R9: 1.287671233 | S9: 100 | T9: 1.538461538 | U9: 94 | V9: 1.446153846
A10: Sul | B10: Apiacá | C10: 72 | D10: 19 | E10: 90 | F10: 15 | G10: 16 | H10: 0.8421052632 | I10: 4 | J10: 0.2666666667 | K10: 20 | L10: 1.052631579 | M10: 20 | N10: 1.052631579 | O10: 15 | P10: 0.7894736842 | Q10: 14 | R10: 0.7368421053 | S10: 2 | T10: 0.1333333333 | U10: 14 | V10: 0.9333333333
A11: Metropolitana | B11: Aracruz | C11: 1384 | D11: 385 | E11: 1420 | F11: 236.6666667 | G11: 367 | H11: 0.9532467532 | I11: 125 | J11: 0.5281690141 | K11: 354 | L11: 0.9194805195 | M11: 359 | N11: 0.9324675325 | O11: 425 | P11: 1.103896104 | Q11: 347 | R11: 0.9012987013 | S11: 274 | T11: 1.157746479 | U11: 312 | V11: 1.318309859
A12: Sul | B12: Atilio Vivacqua | C12: 125 | D12: 20 | E12: 138 | F12: 23 | G12: 37 | H12: 1.85 | I12: 0 | J12: 0 | K12: 31 | L12: 1.55 | M12: 31 | N12: 1.55 | O12: 36 | P12: 1.8 | Q12: 29 | R12: 1.45 | S12: 24 | T12: 1.043478261 | U12: 28 | V12: 1.217391304
A13: Central | B13: Baixo Guandu | C13: 350 | D13: 105 | E13: 427 | F13: 71.16666667 | G13: 83 | H13: 0.7904761905 | I13: 30 | J13: 0.4215456674 | K13: 91 | L13: 0.8666666667 | M13: 92 | N13: 0.8761904762 | O13: 110 | P13: 1.047619048 | Q13: 103 | R13: 0.980952381 | S13: 67 | T13: 0.9414519906 | U13: 83 | V13: 1.166276347
A14: Norte | B14: Barra de São Francisco | C14: 591 | D14: 149 | E14: 589 | F14: 98.16666667 | G14: 128 | H14: 0.8590604027 | I14: 1 | J14: 0.01018675722 | K14: 119 | L14: 0.7986577181 | M14: 124 | N14: 0.8322147651 | O14: 121 | P14: 0.8120805369 | Q14: 113 | R14: 0.7583892617 | S14: 98 | T14: 0.9983022071 | U14: 96 | V14: 0.9779286927
A15: Norte | B15: Boa Esperança | C15: 205 | D15: 57 | E15: 200 | F15: 33.33333333 | G15: 49 | H15: 0.8596491228 | I15: 10 | J15: 0.3 | K15: 45 | L15: 0.7894736842 | M15: 48 | N15: 0.8421052632 | O15: 51 | P15: 0.8947368421 | Q15: 32 | R15: 0.5614035088 | S15: 15 | T15: 0.45 | U15: 33 | V15: 0.99
A16: Sul | B16: Bom Jesus do Norte | C16: 73 | D16: 16 | E16: 146 | F16: 24.33333333 | G16: 20 | H16: 1.25 | I16: 10 | J16: 0.4109589041 | K16: 22 | L16: 1.375 | M16: 21 | N16: 1.3125 | O16: 33 | P16: 2.0625 | Q16: 25 | R16: 1.5625 | S16: 14 | T16: 0.5753424658 | U16: 32 | V16: 1.315068493
A17: Metropolitana | B17: Brejetuba | C17: 202 | D17: 50 | E17: 169 | F17: 28.16666667 | G17: 53 | H17: 1.06 | I17: 14 | J17: 0.4970414201 | K17: 52 | L17: 1.04 | M17: 51 | N17: 1.02 | O17: 38 | P17: 0.76 | Q17: 36 | R17: 0.72 | S17: 39 | T17: 1.384615385 | U17: 35 | V17: 1.24260355
A18: Sul | B18: Cachoeiro de Itapemirim | C18: 1946 | D18: 457 | E18: 2417 | F18: 402.8333333 | G18: 566 | H18: 1.238512035 | I18: 34 | J18: 0.08440215143 | K18: 563 | L18: 1.231947484 | M18: 607 | N18: 1.328227571 | O18: 707 | P18: 1.547045952 | Q18: 564 | R18: 1.234135667 | S18: 553 | T18: 1.372776169 | U18: 591 | V18: 1.467107985
A19: Metropolitana | B19: Cariacica | C19: 4767 | D19: 1221 | E19: 5005 | F19: 834.1666667 | G19: 853 | H19: 0.6986076986 | I19: 50 | J19: 0.05994005994 | K19: 1152 | L19: 0.9434889435 | M19: 1164 | N19: 0.9533169533 | O19: 1288 | P19: 1.054873055 | Q19: 1019 | R19: 0.8345618346 | S19: 924 | T19: 1.107692308 | U19: 1198 | V19: 1.436163836
A20: Sul | B20: Castelo | C20: 370 | D20: 96 | E20: 399 | F20: 66.5 | G20: 85 | H20: 0.8854166667 | I20: 65 | J20: 0.977443609 | K20: 94 | L20: 0.9791666667 | M20: 104 | N20: 1.083333333 | O20: 105 | P20: 1.09375 | Q20: 106 | R20: 1.104166667 | S20: 78 | T20: 1.172932331 | U20: 82 | V20: 1.233082707
A21: Central | B21: Colatina | C21: 1490 | D21: 382 | E21: 1561 | F21: 260.1666667 | G21: 299 | H21: 0.7827225131 | I21: 82 | J21: 0.3151825753 | K21: 335 | L21: 0.8769633508 | M21: 376 | N21: 0.9842931937 | O21: 368 | P21: 0.9633507853 | Q21: 293 | R21: 0.7670157068 | S21: 213 | T21: 0.8187059577 | U21: 261 | V21: 1.003203075
A22: Norte | B22: Conceição da Barra | C22: 364 | D22: 107 | E22: 391 | F22: 65.16666667 | G22: 91 | H22: 0.8504672897 | I22: 15 | J22: 0.2301790281 | K22: 99 | L22: 0.9252336449 | M22: 103 | N22: 0.9626168224 | O22: 119 | P22: 1.112149533 | Q22: 85 | R22: 0.7943925234 | S22: 90 | T22: 1.381074169 | U22: 105 | V22: 1.611253197
A23: Metropolitana | B23: Conceição do Castelo | C23: 162 | D23: 37 | E23: 144 | F23: 24 | G23: 47 | H23: 1.27027027 | I23: 0 | J23: 0 | K23: 31 | L23: 0.8378378378 | M23: 30 | N23: 0.8108108108 | O23: 29 | P23: 0.7837837838 | Q23: 31 | R23: 0.8378378378 | S23: 34 | T23: 1.416666667 | U23: 29 | V23: 1.208333333
A24: Sul | B24: Divino de São Lourenço | C24: 51 | D24: 13 | E24: 68 | F24: 11.33333333 | G24: 17 | H24: 1.307692308 | I24: 9 | J24: 0.7941176471 | K24: 22 | L24: 1.692307692 | M24: 21 | N24: 1.615384615 | O24: 16 | P24: 1.230769231 | Q24: 16 | R24: 1.230769231 | S24: 9 | T24: 0.7941176471 | U24: 13 | V24: 1.147058824
A25: Metropolitana | B25: Domingos Martins | C25: 421 | D25: 100 | E25: 411 | F25: 68.5 | G25: 110 | H25: 1.1 | I25: 16 | J25: 0.2335766423 | K25: 86 | L25: 0.86 | M25: 88 | N25: 0.88 | O25: 118 | P25: 1.18 | Q25: 100 | R25: 1 | S25: 66 | T25: 0.9635036496 | U25: 82 | V25: 1.197080292
A26: Sul | B26: Dores do Rio Preto | C26: 94 | D26: 22 | E26: 92 | F26: 15.33333333 | G26: 17 | H26: 0.7727272727 | I26: 11 | J26: 0.7173913043 | K26: 26 | L26: 1.181818182 | M26: 24 | N26: 1.090909091 | O26: 31 | P26: 1.409090909 | Q26: 28 | R26: 1.272727273 | S26: 23 | T26: 1.5 | U26: 23 | V26: 1.5
A27: Norte | B27: Ecoporanga | C27: 256 | D27: 71 | E27: 283 | F27: 47.16666667 | G27: 48 | H27: 0.676056338 | I27: 25 | J27: 0.5300353357 | K27: 60 | L27: 0.8450704225 | M27: 61 | N27: 0.8591549296 | O27: 54 | P27: 0.7605633803 | Q27: 44 | R27: 0.6197183099 | S27: 47 | T27: 0.9964664311 | U27: 62 | V27: 1.314487633
A28: Metropolitana | B28: Fundão | C28: 222 | D28: 62 | E28: 218 | F28: 36.33333333 | G28: 45 | H28: 0.7258064516 | I28: 29 | J28: 0.7981651376 | K28: 58 | L28: 0.935483871 | M28: 57 | N28: 0.9193548387 | O28: 54 | P28: 0.8709677419 | Q28: 48 | R28: 0.7741935484 | S28: 39 | T28: 1.073394495 | U28: 45 | V28: 1.23853211
A29: Central | B29: Governador Lindenberg | C29: 116 | D29: 31 | E29: 142 | F29: 23.66666667 | G29: 26 | H29: 0.8387096774 | I29: 12 | J29: 0.5070422535 | K29: 23 | L29: 0.7419354839 | M29: 24 | N29: 0.7741935484 | O29: 24 | P29: 0.7741935484 | Q29: 21 | R29: 0.6774193548 | S29: 32 | T29: 1.352112676 | U29: 32 | V29: 1.352112676
A30: Sul | B30: Guaçuí | C30: 358 | D30: 86 | E30: 407 | F30: 67.83333333 | G30: 74 | H30: 0.8604651163 | I30: 1 | J30: 0.01474201474 | K30: 89 | L30: 1.034883721 | M30: 91 | N30: 1.058139535 | O30: 86 | P30: 1 | Q30: 77 | R30: 0.8953488372 | S30: 76 | T30: 1.12039312 | U30: 65 | V30: 0.9582309582
A31: Metropolitana | B31: Guarapari | C31: 1706 | D31: 422 | E31: 1557 | F31: 259.5 | G31: 334 | H31: 0.7914691943 | I31: 180 | J31: 0.6936416185 | K31: 387 | L31: 0.9170616114 | M31: 379 | N31: 0.8981042654 | O31: 470 | P31: 1.113744076 | Q31: 366 | R31: 0.8672985782 | S31: 233 | T31: 0.8978805395 | U31: 313 | V31: 1.206165703
A32: Metropolitana | B32: Ibatiba | C32: 379 | D32: 87 | E32: 354 | F32: 59 | G32: 129 | H32: 1.482758621 | I32: 3 | J32: 0.05084745763 | K32: 89 | L32: 1.022988506 | M32: 92 | N32: 1.057471264 | O32: 135 | P32: 1.551724138 | Q32: 95 | R32: 1.091954023 | S32: 66 | T32: 1.118644068 | U32: 73 | V32: 1.237288136
A33: Metropolitana | B33: Ibiraçu | C33: 149 | D33: 38 | E33: 160 | F33: 26.66666667 | G33: 24 | H33: 0.6315789474 | I33: 25 | J33: 0.9375 | K33: 39 | L33: 1.026315789 | M33: 38 | N33: 1 | O33: 30 | P33: 0.7894736842 | Q33: 30 | R33: 0.7894736842 | S33: 23 | T33: 0.8625 | U33: 20 | V33: 0.75
A34: Sul | B34: Ibitirama | C34: 133 | D34: 30 | E34: 148 | F34: 24.66666667 | G34: 41 | H34: 1.366666667 | I34: 11 | J34: 0.4459459459 | K34: 40 | L34: 1.333333333 | M34: 38 | N34: 1.266666667 | O34: 42 | P34: 1.4 | Q34: 30 | R34: 1 | S34: 38 | T34: 1.540540541 | U34: 31 | V34: 1.256756757
A35: Sul | B35: Iconha | C35: 106 | D35: 25 | E35: 156 | F35: 26 | G35: 50 | H35: =G35/D35 -> 2 | I35: 0 | J35: =I35/F35 -> 0 | K35: 26 | L35: =K35/D35 -> 1.04 | M35: 26 | N35: =M35/D35 -> 1.04 | O35: 32 | P35: =O35/D35 -> 1.28 | Q35: 26 | R35: =Q35/D35 -> 1.04 | S35: 21 | T35: =S35/F35 -> 0.8076923077 | U35: 24 | V35: =U35/F35 -> 0.9230769231
A36: Sul | B36: Irupi | C36: 170 | D36: 47 | E36: 200 | F36: 33.33333333 | G36: 36 | H36: 0.7659574468 | I36: 15 | J36: 0.45 | K36: 54 | L36: 1.14893617 | M36: 55 | N36: 1.170212766 | O36: 55 | P36: 1.170212766 | Q36: 50 | R36: 1.063829787 | S36: 28 | T36: 0.84 | U36: 32 | V36: 0.96
A37: Metropolitana | B37: Itaguaçu | C37: 137 | D37: 41 | E37: 154 | F37: 25.66666667 | G37: 24 | H37: 0.5853658537 | I37: 3 | J37: 0.1168831169 | K37: 30 | L37: 0.7317073171 | M37: 32 | N37: 0.7804878049 | O37: 35 | P37: 0.8536585366 | Q37: 23 | R37: 0.5609756098 | S37: 27 | T37: 1.051948052 | U37: 18 | V37: 0.7012987013
A38: Sul | B38: Itapemirim | C38: 459 | D38: 97 | E38: 556 | F38: 92.66666667 | G38: 86 | H38: 0.8865979381 | I38: 82 | J38: 0.8848920863 | K38: 125 | L38: 1.288659794 | M38: 117 | N38: 1.206185567 | O38: 113 | P38: 1.164948454 | Q38: 112 | R38: 1.154639175 | S38: 88 | T38: 0.9496402878 | U38: 114 | V38: 1.230215827
A39: Metropolitana | B39: Itarana | C39: 129 | D39: 34 | E39: 128 | F39: 21.33333333 | G39: 30 | H39: 0.8823529412 | I39: 1 | J39: 0.046875 | K39: 34 | L39: 1 | M39: 32 | N39: 0.9411764706 | O39: 32 | P39: 0.9411764706 | Q39: 26 | R39: 0.7647058824 | S39: 23 | T39: 1.078125 | U39: 22 | V39: 1.03125
A40: Sul | B40: Iúna | C40: 418 | D40: 111 | E40: 410 | F40: 68.33333333 | G40: 122 | H40: 1.099099099 | I40: 3 | J40: 0.04390243902 | K40: 105 | L40: 0.9459459459 | M40: 111 | N40: 1 | O40: 151 | P40: 1.36036036 | Q40: 127 | R40: 1.144144144 | S40: 92 | T40: 1.346341463 | U40: 115 | V40: 1.682926829
A41: Norte | B41: Jaguaré | C41: 474 | D41: 129 | E41: 445 | F41: 74.16666667 | G41: 87 | H41: 0.6744186047 | I41: 23 | J41: 0.3101123596 | K41: 97 | L41: 0.7519379845 | M41: 103 | N41: 0.7984496124 | O41: 117 | P41: 0.9069767442 | Q41: 106 | R41: 0.8217054264 | S41: 73 | T41: 0.9842696629 | U41: 87 | V41: 1.173033708
A42: Sul | B42: Jerônimo Monteiro | C42: 119 | D42: 26 | E42: 157 | F42: 26.16666667 | G42: 30 | H42: 1.153846154 | I42: 6 | J42: 0.2292993631 | K42: 34 | L42: 1.307692308 | M42: 33 | N42: 1.269230769 | O42: 47 | P42: 1.807692308 | Q42: 36 | R42: 1.384615385 | S42: 23 | T42: 0.8789808917 | U42: 29 | V42: 1.108280255
A43: Metropolitana | B43: João Neiva | C43: 153 | D43: 32 | E43: 142 | F43: 23.66666667 | G43: 32 | H43: 1 | I43: 29 | J43: 1.225352113 | K43: 35 | L43: 1.09375 | M43: 36 | N43: 1.125 | O43: 34 | P43: 1.0625 | Q43: 34 | R43: 1.0625 | S43: 25 | T43: 1.056338028 | U43: 34 | V43: 1.436619718
A44: Metropolitana | B44: Laranja da Terra | C44: 101 | D44: 25 | E44: 133 | F44: 22.16666667 | G44: 33 | H44: 1.32 | I44: 21 | J44: 0.9473684211 | K44: 26 | L44: 1.04 | M44: 27 | N44: 1.08 | O44: 26 | P44: 1.04 | Q44: 21 | R44: 0.84 | S44: 26 | T44: 1.172932331 | U44: 28 | V44: 1.263157895
A45: Central | B45: Linhares | C45: 2663 | D45: 696 | E45: 2452 | F45: 408.6666667 | G45: 451 | H45: 0.6479885057 | I45: 215 | J45: 0.5261011419 | K45: 504 | L45: 0.724137931 | M45: 564 | N45: 0.8103448276 | O45: 552 | P45: 0.7931034483 | Q45: 537 | R45: 0.7715517241 | S45: 371 | T45: 0.9078303426 | U45: 429 | V45: 1.049755302
A46: Central | B46: Mantenópolis | C46: 138 | D46: 38 | E46: 166 | F46: 27.66666667 | G46: 40 | H46: 1.052631579 | I46: 12 | J46: 0.4337349398 | K46: 30 | L46: 0.7894736842 | M46: 32 | N46: 0.8421052632 | O46: 38 | P46: 1 | Q46: 31 | R46: 0.8157894737 | S46: 35 | T46: 1.265060241 | U46: 40 | V46: 1.445783133
A47: Sul | B47: Marataízes | C47: 500 | D47: 120 | E47: 579 | F47: 96.5 | G47: 97 | H47: 0.8083333333 | I47: 88 | J47: 0.9119170984 | K47: 148 | L47: 1.233333333 | M47: 148 | N47: 1.233333333 | O47: 127 | P47: 1.058333333 | Q47: 122 | R47: 1.016666667 | S47: 102 | T47: 1.056994819 | U47: 135 | V47: 1.398963731
A48: Metropolitana | B48: Marechal Floriano | C48: 204 | D48: 64 | E48: 236 | F48: 39.33333333 | G48: 65 | H48: 1.015625 | I48: 22 | J48: 0.5593220339 | K48: 51 | L48: 0.796875 | M48: 46 | N48: 0.71875 | O48: 67 | P48: 1.046875 | Q48: 57 | R48: 0.890625 | S48: 30 | T48: 0.7627118644 | U48: 34 | V48: 0.8644067797
A49: Central | B49: Marilândia | C49: 146 | D49: 37 | E49: 164 | F49: 27.33333333 | G49: 34 | H49: 0.9189189189 | I49: 8 | J49: 0.2926829268 | K49: 27 | L49: 0.7297297297 | M49: 26 | N49: 0.7027027027 | O49: 33 | P49: 0.8918918919 | Q49: 28 | R49: 0.7567567568 | S49: 33 | T49: 1.207317073 | U49: 26 | V49: 0.9512195122
A50: Sul | B50: Mimoso do Sul | C50: 219 | D50: 46 | E50: 276 | F50: 46 | G50: 57 | H50: 1.239130435 | I50: 1 | J50: 0.02173913043 | K50: 48 | L50: 1.043478261 | M50: 44 | N50: 0.9565217391 | O50: 69 | P50: 1.5 | Q50: 59 | R50: 1.282608696 | S50: 41 | T50: 0.8913043478 | U50: 49 | V50: 1.065217391
A51: Norte | B51: Montanha | C51: 230 | D51: 63 | E51: 278 | F51: 46.33333333 | G51: 71 | H51: 1.126984127 | I51: 8 | J51: 0.1726618705 | K51: 58 | L51: 0.9206349206 | M51: 66 | N51: 1.047619048 | O51: 59 | P51: 0.9365079365 | Q51: 56 | R51: 0.8888888889 | S51: 46 | T51: 0.9928057554 | U51: 50 | V51: 1.079136691
A52: Norte | B52: Mucurici | C52: 70 | D52: 16 | E52: 97 | F52: 16.16666667 | G52: 24 | H52: 1.5 | I52: 5 | J52: 0.3092783505 | K52: 15 | L52: 0.9375 | M52: 15 | N52: 0.9375 | O52: 29 | P52: 1.8125 | Q52: 24 | R52: 1.5 | S52: 15 | T52: 0.9278350515 | U52: 13 | V52: 0.8041237113
A53: Sul | B53: Muniz Freire | C53: 201 | D53: 46 | E53: 275 | F53: 45.83333333 | G53: 94 | H53: 2.043478261 | I53: 1 | J53: 0.02181818182 | K53: 61 | L53: 1.326086957 | M53: 62 | N53: 1.347826087 | O53: 63 | P53: 1.369565217 | Q53: 57 | R53: 1.239130435 | S53: 48 | T53: 1.047272727 | U53: 48 | V53: 1.047272727
A54: Sul | B54: Muqui | C54: 119 | D54: 23 | E54: 152 | F54: 25.33333333 | G54: 39 | H54: 1.695652174 | I54: 6 | J54: 0.2368421053 | K54: 33 | L54: 1.434782609 | M54: 33 | N54: 1.434782609 | O54: 45 | P54: 1.956521739 | Q54: 39 | R54: 1.695652174 | S54: 33 | T54: 1.302631579 | U54: 35 | V54: 1.381578947
A55: Norte | B55: Nova Venécia | C55: 657 | D55: 163 | E55: 656 | F55: 109.3333333 | G55: 137 | H55: 0.8404907975 | I55: 61 | J55: 0.5579268293 | K55: 165 | L55: 1.012269939 | M55: 174 | N55: 1.067484663 | O55: 180 | P55: 1.104294479 | Q55: 146 | R55: 0.8957055215 | S55: 67 | T55: 0.612804878 | U55: 121 | V55: 1.106707317
A56: Central | B56: Pancas | C56: 206 | D56: 58 | E56: 244 | F56: 40.66666667 | G56: 53 | H56: 0.9137931034 | I56: 6 | J56: 0.1475409836 | K56: 52 | L56: 0.8965517241 | M56: 56 | N56: 0.9655172414 | O56: 60 | P56: 1.034482759 | Q56: 53 | R56: 0.9137931034 | S56: 28 | T56: 0.6885245902 | U56: 39 | V56: 0.9590163934
A57: Norte | B57: Pedro Canário | C57: 331 | D57: 93 | E57: 338 | F57: 56.33333333 | G57: 61 | H57: 0.6559139785 | I57: 38 | J57: 0.674556213 | K57: 99 | L57: 1.064516129 | M57: 96 | N57: 1.032258065 | O57: 95 | P57: 1.021505376 | Q57: 73 | R57: 0.7849462366 | S57: 60 | T57: 1.065088757 | U57: 68 | V57: 1.207100592
A58: Norte | B58: Pinheiros | C58: 314 | D58: 74 | E58: 383 | F58: 63.83333333 | G58: 84 | H58: 1.135135135 | I58: 32 | J58: 0.501305483 | K58: 76 | L58: 1.027027027 | M58: 75 | N58: 1.013513514 | O58: 77 | P58: 1.040540541 | Q58: 75 | R58: 1.013513514 | S58: 37 | T58: 0.5796344648 | U58: 68 | V58: 1.065274151
A59: Sul | B59: Piúma | C59: 275 | D59: 62 | E59: 311 | F59: 51.83333333 | G59: 62 | H59: 1 | I59: 34 | J59: 0.6559485531 | K59: 82 | L59: 1.322580645 | M59: 86 | N59: 1.387096774 | O59: 73 | P59: 1.177419355 | Q59: 62 | R59: 1 | S59: 62 | T59: 1.196141479 | U59: 70 | V59: 1.350482315
A60: Norte | B60: Ponto Belo | C60: 82 | D60: 14 | E60: 85 | F60: 14.16666667 | G60: 20 | H60: 1.428571429 | I60: 8 | J60: 0.5647058824 | K60: 19 | L60: 1.357142857 | M60: 19 | N60: 1.357142857 | O60: 20 | P60: 1.428571429 | Q60: 18 | R60: 1.285714286 | S60: 17 | T60: 1.2 | U60: 13 | V60: 0.9176470588
A61: Sul | B61: Presidente Kennedy | C61: 171 | D61: 45 | E61: 239 | F61: 39.83333333 | G61: 39 | H61: 0.8666666667 | I61: 0 | J61: 0 | K61: 57 | L61: 1.266666667 | M61: 55 | N61: 1.222222222 | O61: 57 | P61: 1.266666667 | Q61: 45 | R61: 1 | S61: 57 | T61: 1.430962343 | U61: 55 | V61: 1.380753138
A62: Central | B62: Rio Bananal | C62: 301 | D62: 70 | E62: 229 | F62: 38.16666667 | G62: 91 | H62: 1.3 | I62: 22 | J62: 0.576419214 | K62: 68 | L62: 0.9714285714 | M62: 71 | N62: 1.014285714 | O62: 67 | P62: 0.9571428571 | Q62: 62 | R62: 0.8857142857 | S62: 66 | T62: 1.729257642 | U62: 65 | V62: 1.703056769
A63: Sul | B63: Rio Novo do Sul | C63: 87 | D63: 16 | E63: 144 | F63: 24 | G63: 27 | H63: 1.6875 | I63: 31 | J63: 1.291666667 | K63: 31 | L63: 1.9375 | M63: 31 | N63: 1.9375 | O63: 38 | P63: 2.375 | Q63: 31 | R63: 1.9375 | S63: 18 | T63: 0.75 | U63: 25 | V63: 1.041666667
A64: Metropolitana | B64: Santa Leopoldina | C64: 81 | D64: 17 | E64: 155 | F64: 25.83333333 | G64: 11 | H64: 0.6470588235 | I64: 12 | J64: 0.464516129 | K64: 19 | L64: 1.117647059 | M64: 19 | N64: 1.117647059 | O64: 23 | P64: 1.352941176 | Q64: 20 | R64: 1.176470588 | S64: 24 | T64: 0.9290322581 | U64: 29 | V64: 1.122580645
A65: Metropolitana | B65: Santa Maria de Jetibá | C65: 664 | D65: 167 | E65: 685 | F65: 114.1666667 | G65: 145 | H65: 0.8682634731 | I65: 58 | J65: 0.5080291971 | K65: 153 | L65: 0.9161676647 | M65: 153 | N65: 0.9161676647 | O65: 173 | P65: 1.035928144 | Q65: 153 | R65: 0.9161676647 | S65: 78 | T65: 0.6832116788 | U65: 114 | V65: 0.998540146
A66: Metropolitana | B66: Santa Teresa | C66: 299 | D66: 80 | E66: 260 | F66: 43.33333333 | G66: 58 | H66: 0.725 | I66: 41 | J66: 0.9461538462 | K66: 61 | L66: 0.7625 | M66: 67 | N66: 0.8375 | O66: 69 | P66: 0.8625 | Q66: 60 | R66: 0.75 | S66: 38 | T66: 0.8769230769 | U66: 44 | V66: 1.015384615
A67: Central | B67: São Domingos do Norte | C67: 112 | D67: 25 | E67: 117 | F67: 19.5 | G67: 24 | H67: =G67/D67 -> 0.96 | I67: 0 | J67: =I67/F67 -> 0 | K67: 28 | L67: =K67/D67 -> 1.12 | M67: 27 | N67: =M67/D67 -> 1.08 | O67: 39 | P67: =O67/D67 -> 1.56 | Q67: 29 | R67: =Q67/D67 -> 1.16 | S67: 20 | T67: =S67/F67 -> 1.025641026 | U67: 24 | V67: =U67/F67 -> 1.230769231
A68: Central | B68: São Gabriel da Palha | C68: 415 | D68: 110 | E68: 426 | F68: =(E68/12)*2 -> 71 | G68: 116 | H68: 1.054545455 | I68: 33 | J68: 0.4647887324 | K68: 85 | L68: 0.7727272727 | M68: 94 | N68: 0.8545454545 | O68: 96 | P68: 0.8727272727 | Q68: 98 | R68: 0.8909090909 | S68: 61 | T68: 0.8591549296 | U68: 62 | V68: 0.8732394366
A69: Sul | B69: São José do Calçado | C69: 94 | D69: 24 | E69: 150 | F69: 25 | G69: 29 | H69: 1.208333333 | I69: 12 | J69: 0.48 | K69: 23 | L69: 0.9583333333 | M69: 24 | N69: 1 | O69: 34 | P69: 1.416666667 | Q69: 29 | R69: 1.208333333 | S69: 22 | T69: 0.88 | U69: 39 | V69: 1.56
A70: Norte | B70: São Mateus | C70: 1814 | D70: 462 | E70: 1766 | F70: 294.3333333 | G70: 328 | H70: 0.70995671 | I70: 46 | J70: 0.1562853907 | K70: 423 | L70: 0.9155844156 | M70: 441 | N70: 0.9545454545 | O70: 464 | P70: 1.004329004 | Q70: 381 | R70: 0.8246753247 | S70: 286 | T70: 0.9716874292 | U70: 356 | V70: 1.209513024
A71: Central | B71: São Roque do Canaã | C71: 129 | D71: 46 | E71: 100 | F71: 16.66666667 | G71: 21 | H71: 0.4565217391 | I71: 8 | J71: 0.48 | K71: 36 | L71: 0.7826086957 | M71: 36 | N71: 0.7826086957 | O71: 13 | P71: 0.2826086957 | Q71: 13 | R71: 0.2826086957 | S71: 6 | T71: 0.36 | U71: 16 | V71: 0.96
A72: Metropolitana | B72: Serra | C72: 7312 | D72: 1898 | E72: 7550 | F72: 1258.333333 | G72: 1428 | H72: 0.7523709168 | I72: 203 | J72: 0.1613245033 | K72: 1650 | L72: 0.8693361433 | M72: 1694 | N72: 0.8925184405 | O72: 1724 | P72: 0.9083245522 | Q72: 1479 | R72: 0.7792413066 | S72: 1311 | T72: 1.041854305 | U72: 1579 | V72: 1.254834437
A73: Central | B73: Sooretama | C73: 429 | D73: 98 | E73: 415 | F73: 69.16666667 | G73: 86 | H73: 0.8775510204 | I73: 26 | J73: 0.3759036145 | K73: 94 | L73: 0.9591836735 | M73: 92 | N73: 0.9387755102 | O73: 106 | P73: 1.081632653 | Q73: 85 | R73: 0.8673469388 | S73: 69 | T73: 0.9975903614 | U73: 78 | V73: 1.127710843
A74: Sul | B74: Vargem Alta | C74: 212 | D74: 50 | E74: 278 | F74: 46.33333333 | G74: 65 | H74: 1.3 | I74: 4 | J74: 0.08633093525 | K74: 56 | L74: 1.12 | M74: 54 | N74: 1.08 | O74: 69 | P74: 1.38 | Q74: 60 | R74: 1.2 | S74: 42 | T74: 0.9064748201 | U74: 50 | V74: 1.079136691
A75: Metropolitana | B75: Venda Nova do Imigrante | C75: 337 | D75: 81 | E75: 328 | F75: 54.66666667 | G75: 103 | H75: 1.271604938 | I75: 0 | J75: 0 | K75: 86 | L75: 1.061728395 | M75: 82 | N75: 1.012345679 | O75: 111 | P75: 1.37037037 | Q75: 99 | R75: 1.222222222 | S75: 68 | T75: 1.243902439 | U75: 73 | V75: 1.335365854
A76: Metropolitana | B76: Viana | C76: 891 | D76: 219 | E76: 1064 | F76: 177.3333333 | G76: 126 | H76: 0.5753424658 | I76: 66 | J76: 0.3721804511 | K76: 230 | L76: 1.050228311 | M76: 228 | N76: 1.04109589 | O76: 201 | P76: 0.9178082192 | Q76: 182 | R76: 0.8310502283 | S76: 142 | T76: 0.8007518797 | U76: 218 | V76: 1.229323308
A77: Norte | B77: Vila Pavão | C77: 110 | D77: 29 | E77: 127 | F77: 21.16666667 | G77: 28 | H77: 0.9655172414 | I77: 0 | J77: 0 | K77: 26 | L77: 0.8965517241 | M77: 26 | N77: 0.8965517241 | O77: 26 | P77: 0.8965517241 | Q77: 21 | R77: 0.724137931 | S77: 12 | T77: 0.5669291339 | U77: 17 | V77: 0.8031496063
A78: Central | B78: Vila Valério | C78: 232 | D78: 62 | E78: 169 | F78: 28.16666667 | G78: 59 | H78: 0.9516129032 | I78: 26 | J78: 0.9230769231 | K78: 67 | L78: 1.080645161 | M78: 64 | N78: 1.032258065 | O78: 61 | P78: 0.9838709677 | Q78: 53 | R78: 0.8548387097 | S78: 29 | T78: 1.029585799 | U78: 34 | V78: 1.207100592
A79: Metropolitana | B79: Vila Velha | C79: 5446 | D79: 1417 | E79: 5675 | F79: 945.8333333 | G79: 1112 | H79: 0.7847565279 | I79: 778 | J79: 0.8225550661 | K79: 1104 | L79: 0.7791107975 | M79: 1082 | N79: 0.7635850388 | O79: 1292 | P79: 0.9117854622 | Q79: 1070 | R79: 0.7551164432 | S79: 853 | T79: 0.9018502203 | U79: 1007 | V79: 1.064669604
A80: Metropolitana | B80: Vitória | C80: 3452 | D80: 876 | E80: 3833 | F80: 638.8333333 | G80: 927 | H80: 1.058219178 | I80: 332 | J80: 0.519697365 | K80: 775 | L80: 0.8847031963 | M80: 787 | N80: 0.8984018265 | O80: 1165 | P80: 1.329908676 | Q80: 973 | R80: 1.110730594 | S80: 457 | T80: 0.7153665536 | U80: 796 | V80: 1.246021393
B82: Total Norte | C82: =SUMIF($A$3:$A$80,"Norte",C$3:C$80) -> 5679 | D82: =SUMIF($A$3:$A$80,"Norte",D$3:D$80) -> 1478 | E82: =SUMIF($A$3:$A$80,"Norte",E$3:E$80) -> 5789 | F82: =SUMIF($A$3:$A$80,"Norte",F$3:F$80) -> 964.8333333 | G82: =SUMIF($A$3:$A$80,"Norte",G$3:G$80) -> 1190 | H82: =G82/D82 -> 0.8051420839 | I82: =SUMIF($A$3:$A$80,"Norte",I$3:I$80) -> 280 | J82: =I82/F82 -> 0.2902055623 | K82: =SUMIF($A$3:$A$80,"Norte",K$3:K$80) -> 1347 | L82: =K82/D82 -> 0.9113667118 | M82: =SUMIF($A$3:$A$80,"Norte",M$3:M$80) -> 1395 | N82: =M82/D82 -> 0.9438430311 | O82: =SUMIF($A$3:$A$80,"Norte",O$3:O$80) -> 1443 | P82: =O82/D82 -> 0.9763193505 | Q82: =SUMIF($A$3:$A$80,"Norte",Q$3:Q$80) -> 1205 | R82: =Q82/D82 -> 0.8152909337 | S82: =SUMIF($A$3:$A$80,"Norte",S$3:S$80) -> 884 | T82: =S82/F82 -> 0.916220418 | U82: =SUMIF($A$3:$A$80,"Norte",U$3:U$80) -> 1115 | V82: =U82/F82 -> 1.155640007
B83: Total Central | C83: =SUMIF($A$3:$A$80,"Central",C$3:C$80) -> 6962 | D83: =SUMIF($A$3:$A$80,"Central",D$3:D$80) -> 1820 | E83: =SUMIF($A$3:$A$80,"Central",E$3:E$80) -> 6843 | F83: =SUMIF($A$3:$A$80,"Central",F$3:F$80) -> 1140.5 | G83: =SUMIF($A$3:$A$80,"Central",G$3:G$80) -> 1443 | H83: =G83/D83 -> 0.7928571429 | I83: =SUMIF($A$3:$A$80,"Central",I$3:I$80) -> 485 | J83: =I83/F83 -> 0.4252520824 | K83: =SUMIF($A$3:$A$80,"Central",K$3:K$80) -> 1493 | L83: =K83/D83 -> 0.8203296703 | M83: =SUMIF($A$3:$A$80,"Central",M$3:M$80) -> 1610 | N83: =M83/D83 -> 0.8846153846 | O83: =SUMIF($A$3:$A$80,"Central",O$3:O$80) -> 1627 | P83: =O83/D83 -> 0.893956044 | Q83: =SUMIF($A$3:$A$80,"Central",Q$3:Q$80) -> 1458 | R83: =Q83/D83 -> 0.8010989011 | S83: =SUMIF($A$3:$A$80,"Central",S$3:S$80) -> 1072 | T83: =S83/F83 -> 0.9399386234 | U83: =SUMIF($A$3:$A$80,"Central",U$3:U$80) -> 1227 | V83: =U83/F83 -> 1.075843928
B84: Total Metropolitana | C84: =SUMIF($A$3:$A$80,"Metropolitana",C$3:C$80) -> 28953 | D84: =SUMIF($A$3:$A$80,"Metropolitana",D$3:D$80) -> 7439 | E84: =SUMIF($A$3:$A$80,"Metropolitana",E$3:E$80) -> 30197 | F84: =SUMIF($A$3:$A$80,"Metropolitana",F$3:F$80) -> 5032.833333 | G84: =SUMIF($A$3:$A$80,"Metropolitana",G$3:G$80) -> 6148 | H84: =G84/D84 -> 0.8264551687 | I84: =SUMIF($A$3:$A$80,"Metropolitana",I$3:I$80) -> 2009 | J84: =I84/F84 -> 0.3991787264 | K84: =SUMIF($A$3:$A$80,"Metropolitana",K$3:K$80) -> 6594 | L84: =K84/D84 -> 0.8864094636 | M84: =SUMIF($A$3:$A$80,"Metropolitana",M$3:M$80) -> 6630 | N84: =M84/D84 -> 0.8912488238 | O84: =SUMIF($A$3:$A$80,"Metropolitana",O$3:O$80) -> 7655 | P84: =O84/D84 -> 1.029036161 | Q84: =SUMIF($A$3:$A$80,"Metropolitana",Q$3:Q$80) -> 6359 | R84: =Q84/D84 -> 0.8548191961 | S84: =SUMIF($A$3:$A$80,"Metropolitana",S$3:S$80) -> 4895 | T84: =S84/F84 -> 0.9726131735 | U84: =SUMIF($A$3:$A$80,"Metropolitana",U$3:U$80) -> 6191 | V84: =U84/F84 -> 1.230122198
B85: Total Sul | C85: =SUMIF($A$3:$A$80,"sul",C$3:C$80) -> 7063 | D85: =SUMIF($A$3:$A$80,"sul",D$3:D$80) -> 1656 | E85: =SUMIF($A$3:$A$80,"sul",E$3:E$80) -> 8688 | F85: =SUMIF($A$3:$A$80,"sul",F$3:F$80) -> 1448 | G85: =SUMIF($A$3:$A$80,"sul",G$3:G$80) -> 1919 | H85: =G85/D85 -> 1.158816425 | I85: =SUMIF($A$3:$A$80,"sul",I$3:I$80) -> 451 | J85: =I85/F85 -> 0.3114640884 | K85: =SUMIF($A$3:$A$80,"Sul",K$3:K$80) -> 1983 | L85: =K85/D85 -> 1.197463768 | M85: =SUMIF($A$3:$A$80,"Sul",M$3:M$80) -> 2024 | N85: =M85/D85 -> 1.222222222 | O85: =SUMIF($A$3:$A$80,"Sul",O$3:O$80) -> 2308 | P85: =O85/D85 -> 1.393719807 | Q85: =SUMIF($A$3:$A$80,"Sul",Q$3:Q$80) -> 1967 | R85: =Q85/D85 -> 1.187801932 | S85: =SUMIF($A$3:$A$80,"Sul",S$3:S$80) -> 1689 | T85: =S85/F85 -> 1.166436464 | U85: =SUMIF($A$3:$A$80,"Sul",U$3:U$80) -> 1892 | V85: =U85/F85 -> 1.306629834
B86: Total Espírito Santo | C86: =SUM(C3:C80) -> 48657 | D86: =SUM(D3:D80) -> 12393 | E86: =SUM(E3:E80) -> 51517 | F86: =SUM(F3:F80) -> 8586.166667 | G86: =SUM(G3:G80) -> 10700 | H86: =G86/D86 -> 0.8633906237 | I86: =SUM(I3:I80) -> 3225 | J86: =I86/F86 -> 0.3756041695 | K86: =SUM(K3:K80) -> 11417 | L86: =K86/D86 -> 0.9212458646 | M86: =SUM(M3:M80) -> 11659 | N86: =M86/D86 -> 0.940773017 | O86: =SUM(O3:O80) -> 13033 | P86: =O86/D86 -> 1.051642056 | Q86: =SUM(Q3:Q80) -> 10989 | R86: =Q86/D86 -> 0.8867102397 | S86: =SUM(S3:S80) -> 8540 | T86: =S86/F86 -> 0.9946231341 | U86: =SUM(U3:U80) -> 10425 | V86: =U86/F86 -> 1.214162315
A90: Fonte: Vacina e Confia, em 22 de Abril de 2025.**
A91: **Dados referente às doses aplicadas no período de Janeiro a Março 2025
A92: Cobertura Calculada por município de procedência/ocorrência da vacinação
A93: 1 População anual extraída do MS/SVS/DASIS - SINASC/DASIS/SVS/MS 2024 (hoje preliminares) referente ao período de Fevereiro a Dezembro de 2024 e SINASC/DASIS/SVS/MS referente ao período de Janeiro de 2025.
A94: ² População proporcional extraída do MS/SVS/DASIS - SINASC/DASIS/SVS/MS 2024 (hoje preliminares) referente ao período de Fevereiro e Março/2024 e Janeiro/ 2025.
A95: Sinasc, atualizado em 09/04/25.
A96: Homogeineidade: O cálculo da Homogeineidade entre vacinas é feito de acordo com a pactuação estabelecida no Plano Plurianual (PPA) vigente no período 2024-2027.
A98: Observações:
A99: 1. Imunobiológicos que foram recebidos parcialmente pelo estado no mês de Março/2025, sendo distribuídos em quantidades reduzidas às regionais e municípios:
A100: SORO ANTIRRÁBICO HUMANO, IMUNOGLOBULINA ANTIRRÁBICA HUMANA, VACINA COVID-19 MODERNA (SPIKEVAX),VACINA CONTRA VARICELA.
A101: 2. Imunobiológicos indisponíveis no mês de Março/2025, não sendo possível a distribuição às regionais e municípios:
A102: VACINA TRÍPLICE ACELULAR (DTPa) - CRIE

Sheet CV REF 1A e 4A - residência
G1: D2 | K1: REFORÇOS 1 ANO | S1: REFORÇOS 4 ANOS
A2: Regional | B2: Município | C2: ¹População 1 ano anual | D2: ²População 1 ano proporcional | E2: ³População 4 anos anual | F2: ³População 4 anos proporcional | G2: DOSES APLICADAS D2 TRÍPLICE VIRAL | H2: COBERTURA D2 TRÍPLICE VIRAL | I2: DOSES APLICADAS D2 VARICELA | J2: COBERTURA D2 VARICELA | K2: DOSES APLICADAS REF PNEUMO | L2: COBERTURA REF PNEUMO | M2: DOSES APLICADAS REF MENINGO | N2: COBERTURA REF MENINGO | O2: DOSES APLICADAS REF POLIO | P2: COBERTURA REF POLIO | Q2: DOSES APLICADAS R1 TRÍPLICE BACTERIANA | R2: COBERTURA R1 TRÍPLICE BACTERIANA | S2: DOSES APLICADAS REF FEBRE AMARELA | T2: COBERTURA REF FEBRE AMARELA | U2: DOSES APLICADAS R2 TRÍPLICE BACTERIANA | V2: COBERTURA R2 TRÍPLICE BACTERIANA
A3: Metropolitana | B3: Afonso Cláudio | C3: 355 | D3: 86 | E3: 416 | F3: =(E3/12)*2 -> 69.33333333 | G3: 103 | H3: =G3/D3 -> 1.197674419 | I3: 3 | J3: =I3/F3 -> 0.04326923077 | K3: 98 | L3: =K3/D3 -> 1.139534884 | M3: 93 | N3: =M3/D3 -> 1.081395349 | O3: 123 | P3: =O3/D3 -> 1.430232558 | Q3: 99 | R3: =Q3/D3 -> 1.151162791 | S3: 101 | T3: =S3/F3 -> 1.456730769 | U3: 94 | V3: =U3/F3 -> 1.355769231
A4: Norte | B4: Água Doce do Norte | C4: 181 | D4: 51 | E4: 151 | F4: =(E4/12)*2 -> 25.16666667 | G4: 34 | H4: 0.6666666667 | I4: 9 | J4: 0.357615894 | K4: 45 | L4: 0.8823529412 | M4: 43 | N4: 0.8431372549 | O4: 29 | P4: 0.568627451 | Q4: 29 | R4: 0.568627451 | S4: 24 | T4: 0.9536423841 | U4: 26 | V4: 1.033112583
A5: Central | B5: Águia Branca | C5: 146 | D5: 43 | E5: 129 | F5: 21.5 | G5: 34 | H5: 0.7906976744 | I5: 0 | J5: 0 | K5: 34 | L5: 0.7906976744 | M5: 37 | N5: 0.8604651163 | O5: 40 | P5: 0.9302325581 | Q5: 36 | R5: 0.8372093023 | S5: 19 | T5: 0.8837209302 | U5: 22 | V5: 1.023255814
A6: Sul | B6: Alegre | C6: 264 | D6: 59 | E6: 372 | F6: 62 | G6: 86 | H6: 1.457627119 | I6: 7 | J6: 0.1129032258 | K6: 71 | L6: 1.203389831 | M6: 62 | N6: 1.050847458 | O6: 89 | P6: 1.508474576 | Q6: 80 | R6: 1.355932203 | S6: 68 | T6: 1.096774194 | U6: 75 | V6: 1.209677419
A7: Sul | B7: Alfredo Chaves | C7: 112 | D7: 27 | E7: 138 | F7: 23 | G7: 40 | H7: 1.481481481 | I7: 8 | J7: 0.347826087 | K7: 32 | L7: 1.185185185 | M7: 31 | N7: 1.148148148 | O7: 51 | P7: 1.888888889 | Q7: 42 | R7: 1.555555556 | S7: 29 | T7: 1.260869565 | U7: 28 | V7: 1.217391304
A8: Central | B8: Alto Rio Novo | C8: 89 | D8: 19 | E8: 102 | F8: 17 | G8: 22 | H8: 1.157894737 | I8: 4 | J8: 0.2352941176 | K8: 18 | L8: 0.9473684211 | M8: 21 | N8: 1.105263158 | O8: 17 | P8: 0.8947368421 | Q8: 15 | R8: 0.7894736842 | S8: 20 | T8: 1.176470588 | U8: 17 | V8: 1
A9: Sul | B9: Anchieta | C9: 315 | D9: 73 | E9: 390 | F9: 65 | G9: 93 | H9: 1.273972603 | I9: 11 | J9: 0.1692307692 | K9: 84 | L9: 1.150684932 | M9: 86 | N9: 1.178082192 | O9: 119 | P9: 1.630136986 | Q9: 95 | R9: 1.301369863 | S9: 92 | T9: 1.415384615 | U9: 92 | V9: 1.415384615
A10: Sul | B10: Apiacá | C10: 72 | D10: 19 | E10: 90 | F10: 15 | G10: 14 | H10: 0.7368421053 | I10: 7 | J10: 0.4666666667 | K10: 20 | L10: 1.052631579 | M10: 20 | N10: 1.052631579 | O10: 14 | P10: 0.7368421053 | Q10: 12 | R10: 0.6315789474 | S10: 8 | T10: 0.5333333333 | U10: 18 | V10: 1.2
A11: Metropolitana | B11: Aracruz | C11: 1384 | D11: 385 | E11: 1420 | F11: 236.6666667 | G11: 354 | H11: 0.9194805195 | I11: 129 | J11: 0.5450704225 | K11: 351 | L11: 0.9116883117 | M11: 360 | N11: 0.9350649351 | O11: 409 | P11: 1.062337662 | Q11: 335 | R11: 0.8701298701 | S11: 263 | T11: 1.111267606 | U11: 304 | V11: 1.284507042
A12: Sul | B12: Atilio Vivacqua | C12: 125 | D12: 20 | E12: 138 | F12: 23 | G12: 37 | H12: 1.85 | I12: 0 | J12: 0 | K12: 34 | L12: 1.7 | M12: 36 | N12: 1.8 | O12: 35 | P12: 1.75 | Q12: 29 | R12: 1.45 | S12: 22 | T12: 0.9565217391 | U12: 35 | V12: 1.52173913
A13: Central | B13: Baixo Guandu | C13: 350 | D13: 105 | E13: 427 | F13: 71.16666667 | G13: 84 | H13: 0.8 | I13: 27 | J13: 0.3793911007 | K13: 89 | L13: 0.8476190476 | M13: 91 | N13: 0.8666666667 | O13: 107 | P13: 1.019047619 | Q13: 101 | R13: 0.9619047619 | S13: 54 | T13: 0.7587822014 | U13: 71 | V13: 0.9976580796
A14: Norte | B14: Barra de São Francisco | C14: 591 | D14: 149 | E14: 589 | F14: 98.16666667 | G14: 125 | H14: 0.8389261745 | I14: 5 | J14: 0.05093378608 | K14: 115 | L14: 0.7718120805 | M14: 120 | N14: 0.8053691275 | O14: 120 | P14: 0.8053691275 | Q14: 110 | R14: 0.7382550336 | S14: 90 | T14: 0.9168081494 | U14: 92 | V14: 0.9371816638
A15: Norte | B15: Boa Esperança | C15: 205 | D15: 57 | E15: 200 | F15: 33.33333333 | G15: 47 | H15: 0.8245614035 | I15: 12 | J15: 0.36 | K15: 44 | L15: 0.7719298246 | M15: 52 | N15: 0.9122807018 | O15: 52 | P15: 0.9122807018 | Q15: 34 | R15: 0.5964912281 | S15: 20 | T15: 0.6 | U15: 37 | V15: 1.11
A16: Sul | B16: Bom Jesus do Norte | C16: 73 | D16: 16 | E16: 146 | F16: 24.33333333 | G16: 18 | H16: 1.125 | I16: 8 | J16: 0.3287671233 | K16: 19 | L16: 1.1875 | M16: 19 | N16: 1.1875 | O16: 31 | P16: 1.9375 | Q16: 25 | R16: 1.5625 | S16: 3 | T16: 0.1232876712 | U16: 17 | V16: 0.698630137
A17: Metropolitana | B17: Brejetuba | C17: 202 | D17: 50 | E17: 169 | F17: 28.16666667 | G17: 47 | H17: 0.94 | I17: 15 | J17: 0.5325443787 | K17: 52 | L17: 1.04 | M17: 51 | N17: 1.02 | O17: 37 | P17: 0.74 | Q17: 32 | R17: 0.64 | S17: 38 | T17: 1.349112426 | U17: 37 | V17: 1.313609467
A18: Sul | B18: Cachoeiro de Itapemirim | C18: 1946 | D18: 457 | E18: 2417 | F18: 402.8333333 | G18: 565 | H18: 1.236323851 | I18: 35 | J18: 0.08688456765 | K18: 563 | L18: 1.231947484 | M18: 589 | N18: 1.288840263 | O18: 707 | P18: 1.547045952 | Q18: 567 | R18: 1.240700219 | S18: 552 | T18: 1.370293753 | U18: 590 | V18: 1.464625569
A19: Metropolitana | B19: Cariacica | C19: 4767 | D19: 1221 | E19: 5005 | F19: 834.1666667 | G19: 863 | H19: 0.7067977068 | I19: 93 | J19: 0.1114885115 | K19: 1138 | L19: 0.932022932 | M19: 1139 | N19: 0.9328419328 | O19: 1288 | P19: 1.054873055 | Q19: 1023 | R19: 0.8378378378 | S19: 898 | T19: 1.076523477 | U19: 1184 | V19: 1.419380619
A20: Sul | B20: Castelo | C20: 370 | D20: 96 | E20: 399 | F20: 66.5 | G20: 85 | H20: 0.8854166667 | I20: 61 | J20: 0.9172932331 | K20: 91 | L20: 0.9479166667 | M20: 101 | N20: 1.052083333 | O20: 103 | P20: 1.072916667 | Q20: 102 | R20: 1.0625 | S20: 76 | T20: 1.142857143 | U20: 79 | V20: 1.187969925
A21: Central | B21: Colatina | C21: 1490 | D21: 382 | E21: 1561 | F21: 260.1666667 | G21: 295 | H21: 0.7722513089 | I21: 74 | J21: 0.2844330557 | K21: 332 | L21: 0.8691099476 | M21: 352 | N21: 0.9214659686 | O21: 361 | P21: 0.945026178 | Q21: 282 | R21: 0.7382198953 | S21: 218 | T21: 0.8379244074 | U21: 256 | V21: 0.9839846252
A22: Norte | B22: Conceição da Barra | C22: 364 | D22: 107 | E22: 391 | F22: 65.16666667 | G22: 89 | H22: 0.8317757009 | I22: 14 | J22: 0.2148337596 | K22: 101 | L22: 0.9439252336 | M22: 104 | N22: 0.9719626168 | O22: 119 | P22: 1.112149533 | Q22: 84 | R22: 0.785046729 | S22: 95 | T22: 1.457800512 | U22: 109 | V22: 1.672634271
A23: Metropolitana | B23: Conceição do Castelo | C23: 162 | D23: 37 | E23: 144 | F23: 24 | G23: 33 | H23: 0.8918918919 | I23: 0 | J23: 0 | K23: 27 | L23: 0.7297297297 | M23: 26 | N23: 0.7027027027 | O23: 23 | P23: 0.6216216216 | Q23: 24 | R23: 0.6486486486 | S23: 33 | T23: 1.375 | U23: 28 | V23: 1.166666667
A24: Sul | B24: Divino de São Lourenço | C24: 51 | D24: 13 | E24: 68 | F24: 11.33333333 | G24: 17 | H24: 1.307692308 | I24: 10 | J24: 0.8823529412 | K24: 23 | L24: 1.769230769 | M24: 22 | N24: 1.692307692 | O24: 17 | P24: 1.307692308 | Q24: 17 | R24: 1.307692308 | S24: 9 | T24: 0.7941176471 | U24: 14 | V24: 1.235294118
A25: Metropolitana | B25: Domingos Martins | C25: 421 | D25: 100 | E25: 411 | F25: 68.5 | G25: 103 | H25: 1.03 | I25: 21 | J25: 0.3065693431 | K25: 89 | L25: 0.89 | M25: 96 | N25: 0.96 | O25: 113 | P25: 1.13 | Q25: 97 | R25: 0.97 | S25: 75 | T25: 1.094890511 | U25: 82 | V25: 1.197080292
A26: Sul | B26: Dores do Rio Preto | C26: 94 | D26: 22 | E26: 92 | F26: 15.33333333 | G26: 14 | H26: 0.6363636364 | I26: 9 | J26: 0.5869565217 | K26: 22 | L26: 1 | M26: 20 | N26: 0.9090909091 | O26: 23 | P26: 1.045454545 | Q26: 23 | R26: 1.045454545 | S26: 22 | T26: 1.434782609 | U26: 20 | V26: 1.304347826
A27: Norte | B27: Ecoporanga | C27: 256 | D27: 71 | E27: 283 | F27: 47.16666667 | G27: 48 | H27: 0.676056338 | I27: 23 | J27: 0.4876325088 | K27: 68 | L27: 0.9577464789 | M27: 70 | N27: 0.985915493 | O27: 53 | P27: 0.7464788732 | Q27: 44 | R27: 0.6197183099 | S27: 48 | T27: 1.017667845 | U27: 63 | V27: 1.335689046
A28: Metropolitana | B28: Fundão | C28: 222 | D28: 62 | E28: 218 | F28: 36.33333333 | G28: 43 | H28: 0.6935483871 | I28: 25 | J28: 0.6880733945 | K28: 57 | L28: 0.9193548387 | M28: 56 | N28: 0.9032258065 | O28: 51 | P28: 0.8225806452 | Q28: 45 | R28: 0.7258064516 | S28: 34 | T28: 0.9357798165 | U28: 44 | V28: 1.211009174
A29: Central | B29: Governador Lindenberg | C29: 116 | D29: 31 | E29: 142 | F29: 23.66666667 | G29: 26 | H29: 0.8387096774 | I29: 15 | J29: 0.6338028169 | K29: 24 | L29: 0.7741935484 | M29: 26 | N29: 0.8387096774 | O29: 24 | P29: 0.7741935484 | Q29: 23 | R29: 0.7419354839 | S29: 32 | T29: 1.352112676 | U29: 35 | V29: 1.478873239
A30: Sul | B30: Guaçuí | C30: 358 | D30: 86 | E30: 407 | F30: 67.83333333 | G30: 73 | H30: 0.8488372093 | I30: 4 | J30: 0.05896805897 | K30: 89 | L30: 1.034883721 | M30: 92 | N30: 1.069767442 | O30: 87 | P30: 1.011627907 | Q30: 77 | R30: 0.8953488372 | S30: 68 | T30: 1.002457002 | U30: 59 | V30: 0.8697788698
A31: Metropolitana | B31: Guarapari | C31: 1706 | D31: 422 | E31: 1557 | F31: 259.5 | G31: 359 | H31: 0.8507109005 | I31: 162 | J31: 0.6242774566 | K31: 397 | L31: 0.9407582938 | M31: 387 | N31: 0.9170616114 | O31: 491 | P31: 1.163507109 | Q31: 393 | R31: 0.9312796209 | S31: 234 | T31: 0.901734104 | U31: 305 | V31: 1.175337187
A32: Metropolitana | B32: Ibatiba | C32: 379 | D32: 87 | E32: 354 | F32: 59 | G32: 128 | H32: 1.471264368 | I32: 3 | J32: 0.05084745763 | K32: 86 | L32: 0.9885057471 | M32: 88 | N32: 1.011494253 | O32: 134 | P32: 1.540229885 | Q32: 97 | R32: 1.114942529 | S32: 62 | T32: 1.050847458 | U32: 66 | V32: 1.118644068
A33: Metropolitana | B33: Ibiraçu | C33: 149 | D33: 38 | E33: 160 | F33: 26.66666667 | G33: 31 | H33: 0.8157894737 | I33: 23 | J33: 0.8625 | K33: 34 | L33: 0.8947368421 | M33: 34 | N33: 0.8947368421 | O33: 33 | P33: 0.8684210526 | Q33: 33 | R33: 0.8684210526 | S33: 20 | T33: 0.75 | U33: 17 | V33: 0.6375
A34: Sul | B34: Ibitirama | C34: 133 | D34: 30 | E34: 148 | F34: 24.66666667 | G34: 42 | H34: 1.4 | I34: 11 | J34: 0.4459459459 | K34: 40 | L34: 1.333333333 | M34: 38 | N34: 1.266666667 | O34: 45 | P34: 1.5 | Q34: 34 | R34: 1.133333333 | S34: 39 | T34: 1.581081081 | U34: 35 | V34: 1.418918919
A35: Sul | B35: Iconha | C35: 106 | D35: 25 | E35: 156 | F35: 26 | G35: 50 | H35: =G35/D35 -> 2 | I35: 3 | J35: =I35/F35 -> 0.1153846154 | K35: 29 | L35: =K35/D35 -> 1.16 | M35: 27 | N35: =M35/D35 -> 1.08 | O35: 31 | P35: =O35/D35 -> 1.24 | Q35: 27 | R35: =Q35/D35 -> 1.08 | S35: 18 | T35: =S35/F35 -> 0.6923076923 | U35: 21 | V35: =U35/F35 -> 0.8076923077
A36: Sul | B36: Irupi | C36: 170 | D36: 47 | E36: 200 | F36: 33.33333333 | G36: 38 | H36: 0.8085106383 | I36: 12 | J36: 0.36 | K36: 57 | L36: 1.212765957 | M36: 58 | N36: 1.234042553 | O36: 51 | P36: 1.085106383 | Q36: 47 | R36: 1 | S36: 33 | T36: 0.99 | U36: 34 | V36: 1.02
A37: Metropolitana | B37: Itaguaçu | C37: 137 | D37: 41 | E37: 154 | F37: 25.66666667 | G37: 27 | H37: 0.6585365854 | I37: 5 | J37: 0.1948051948 | K37: 30 | L37: 0.7317073171 | M37: 34 | N37: 0.8292682927 | O37: 34 | P37: 0.8292682927 | Q37: 22 | R37: 0.5365853659 | S37: 29 | T37: 1.12987013 | U37: 20 | V37: 0.7792207792
A38: Sul | B38: Itapemirim | C38: 459 | D38: 97 | E38: 556 | F38: 92.66666667 | G38: 82 | H38: 0.8453608247 | I38: 85 | J38: 0.9172661871 | K38: 126 | L38: 1.298969072 | M38: 124 | N38: 1.278350515 | O38: 116 | P38: 1.195876289 | Q38: 111 | R38: 1.144329897 | S38: 100 | T38: 1.079136691 | U38: 127 | V38: 1.370503597
A39: Metropolitana | B39: Itarana | C39: 129 | D39: 34 | E39: 128 | F39: 21.33333333 | G39: 28 | H39: 0.8235294118 | I39: 2 | J39: 0.09375 | K39: 38 | L39: 1.117647059 | M39: 36 | N39: 1.058823529 | O39: 29 | P39: 0.8529411765 | Q39: 25 | R39: 0.7352941176 | S39: 26 | T39: 1.21875 | U39: 24 | V39: 1.125
A40: Sul | B40: Iúna | C40: 418 | D40: 111 | E40: 410 | F40: 68.33333333 | G40: 122 | H40: 1.099099099 | I40: 5 | J40: 0.07317073171 | K40: 105 | L40: 0.9459459459 | M40: 111 | N40: 1 | O40: 151 | P40: 1.36036036 | Q40: 122 | R40: 1.099099099 | S40: 84 | T40: 1.229268293 | U40: 105 | V40: 1.536585366
A41: Norte | B41: Jaguaré | C41: 474 | D41: 129 | E41: 445 | F41: 74.16666667 | G41: 98 | H41: 0.7596899225 | I41: 28 | J41: 0.3775280899 | K41: 95 | L41: 0.7364341085 | M41: 104 | N41: 0.8062015504 | O41: 124 | P41: 0.9612403101 | Q41: 112 | R41: 0.8682170543 | S41: 70 | T41: 0.9438202247 | U41: 78 | V41: 1.051685393
A42: Sul | B42: Jerônimo Monteiro | C42: 119 | D42: 26 | E42: 157 | F42: 26.16666667 | G42: 30 | H42: 1.153846154 | I42: 5 | J42: 0.1910828025 | K42: 30 | L42: 1.153846154 | M42: 31 | N42: 1.192307692 | O42: 48 | P42: 1.846153846 | Q42: 38 | R42: 1.461538462 | S42: 24 | T42: 0.9171974522 | U42: 30 | V42: 1.146496815
A43: Metropolitana | B43: João Neiva | C43: 153 | D43: 32 | E43: 142 | F43: 23.66666667 | G43: 31 | H43: 0.96875 | I43: 27 | J43: 1.14084507 | K43: 34 | L43: 1.0625 | M43: 35 | N43: 1.09375 | O43: 34 | P43: 1.0625 | Q43: 35 | R43: 1.09375 | S43: 23 | T43: 0.9718309859 | U43: 35 | V43: 1.478873239
A44: Metropolitana | B44: Laranja da Terra | C44: 101 | D44: 25 | E44: 133 | F44: 22.16666667 | G44: 28 | H44: 1.12 | I44: 21 | J44: 0.9473684211 | K44: 23 | L44: 0.92 | M44: 23 | N44: 0.92 | O44: 25 | P44: 1 | Q44: 22 | R44: 0.88 | S44: 23 | T44: 1.037593985 | U44: 28 | V44: 1.263157895
A45: Central | B45: Linhares | C45: 2663 | D45: 696 | E45: 2452 | F45: 408.6666667 | G45: 459 | H45: 0.6594827586 | I45: 209 | J45: 0.5114192496 | K45: 509 | L45: 0.7313218391 | M45: 555 | N45: 0.7974137931 | O45: 549 | P45: 0.7887931034 | Q45: 532 | R45: 0.7643678161 | S45: 388 | T45: 0.9494290375 | U45: 431 | V45: 1.054649266
A46: Central | B46: Mantenópolis | C46: 138 | D46: 38 | E46: 166 | F46: 27.66666667 | G46: 41 | H46: 1.078947368 | I46: 9 | J46: 0.3253012048 | K46: 29 | L46: 0.7631578947 | M46: 31 | N46: 0.8157894737 | O46: 38 | P46: 1 | Q46: 32 | R46: 0.8421052632 | S46: 31 | T46: 1.120481928 | U46: 37 | V46: 1.337349398
A47: Sul | B47: Marataízes | C47: 500 | D47: 120 | E47: 579 | F47: 96.5 | G47: 100 | H47: 0.8333333333 | I47: 83 | J47: 0.8601036269 | K47: 143 | L47: 1.191666667 | M47: 146 | N47: 1.216666667 | O47: 125 | P47: 1.041666667 | Q47: 116 | R47: 0.9666666667 | S47: 98 | T47: 1.015544041 | U47: 126 | V47: 1.305699482
A48: Metropolitana | B48: Marechal Floriano | C48: 204 | D48: 64 | E48: 236 | F48: 39.33333333 | G48: 64 | H48: 1 | I48: 22 | J48: 0.5593220339 | K48: 51 | L48: 0.796875 | M48: 49 | N48: 0.765625 | O48: 64 | P48: 1 | Q48: 59 | R48: 0.921875 | S48: 33 | T48: 0.8389830508 | U48: 38 | V48: 0.9661016949
A49: Central | B49: Marilândia | C49: 146 | D49: 37 | E49: 164 | F49: 27.33333333 | G49: 32 | H49: 0.8648648649 | I49: 10 | J49: 0.3658536585 | K49: 29 | L49: 0.7837837838 | M49: 35 | N49: 0.9459459459 | O49: 33 | P49: 0.8918918919 | Q49: 28 | R49: 0.7567567568 | S49: 31 | T49: 1.134146341 | U49: 28 | V49: 1.024390244
A50: Sul | B50: Mimoso do Sul | C50: 219 | D50: 46 | E50: 276 | F50: 46 | G50: 57 | H50: 1.239130435 | I50: 0 | J50: 0 | K50: 49 | L50: 1.065217391 | M50: 46 | N50: 1 | O50: 72 | P50: 1.565217391 | Q50: 63 | R50: 1.369565217 | S50: 41 | T50: 0.8913043478 | U50: 51 | V50: 1.108695652
A51: Norte | B51: Montanha | C51: 230 | D51: 63 | E51: 278 | F51: 46.33333333 | G51: 69 | H51: 1.095238095 | I51: 9 | J51: 0.1942446043 | K51: 62 | L51: 0.9841269841 | M51: 64 | N51: 1.015873016 | O51: 58 | P51: 0.9206349206 | Q51: 54 | R51: 0.8571428571 | S51: 48 | T51: 1.035971223 | U51: 53 | V51: 1.143884892
A52: Norte | B52: Mucurici | C52: 70 | D52: 16 | E52: 97 | F52: 16.16666667 | G52: 28 | H52: 1.75 | I52: 5 | J52: 0.3092783505 | K52: 15 | L52: 0.9375 | M52: 15 | N52: 0.9375 | O52: 34 | P52: 2.125 | Q52: 29 | R52: 1.8125 | S52: 15 | T52: 0.9278350515 | U52: 13 | V52: 0.8041237113
A53: Sul | B53: Muniz Freire | C53: 201 | D53: 46 | E53: 275 | F53: 45.83333333 | G53: 85 | H53: 1.847826087 | I53: 1 | J53: 0.02181818182 | K53: 59 | L53: 1.282608696 | M53: 58 | N53: 1.260869565 | O53: 59 | P53: 1.282608696 | Q53: 55 | R53: 1.195652174 | S53: 36 | T53: 0.7854545455 | U53: 44 | V53: 0.96
A54: Sul | B54: Muqui | C54: 119 | D54: 23 | E54: 152 | F54: 25.33333333 | G54: 35 | H54: 1.52173913 | I54: 8 | J54: 0.3157894737 | K54: 33 | L54: 1.434782609 | M54: 33 | N54: 1.434782609 | O54: 41 | P54: 1.782608696 | Q54: 35 | R54: 1.52173913 | S54: 29 | T54: 1.144736842 | U54: 31 | V54: 1.223684211
A55: Norte | B55: Nova Venécia | C55: 657 | D55: 163 | E55: 656 | F55: 109.3333333 | G55: 142 | H55: 0.8711656442 | I55: 60 | J55: 0.5487804878 | K55: 161 | L55: 0.9877300613 | M55: 171 | N55: 1.049079755 | O55: 182 | P55: 1.116564417 | Q55: 153 | R55: 0.9386503067 | S55: 72 | T55: 0.6585365854 | U55: 122 | V55: 1.115853659
A56: Central | B56: Pancas | C56: 206 | D56: 58 | E56: 244 | F56: 40.66666667 | G56: 56 | H56: 0.9655172414 | I56: 6 | J56: 0.1475409836 | K56: 49 | L56: 0.8448275862 | M56: 52 | N56: 0.8965517241 | O56: 66 | P56: 1.137931034 | Q56: 57 | R56: 0.9827586207 | S56: 31 | T56: 0.762295082 | U56: 42 | V56: 1.032786885
A57: Norte | B57: Pedro Canário | C57: 331 | D57: 93 | E57: 338 | F57: 56.33333333 | G57: 64 | H57: 0.688172043 | I57: 36 | J57: 0.6390532544 | K57: 88 | L57: 0.9462365591 | M57: 84 | N57: 0.9032258065 | O57: 91 | P57: 0.9784946237 | Q57: 71 | R57: 0.7634408602 | S57: 54 | T57: 0.9585798817 | U57: 60 | V57: 1.065088757
A58: Norte | B58: Pinheiros | C58: 314 | D58: 74 | E58: 383 | F58: 63.83333333 | G58: 95 | H58: 1.283783784 | I58: 35 | J58: 0.5483028721 | K58: 92 | L58: 1.243243243 | M58: 93 | N58: 1.256756757 | O58: 97 | P58: 1.310810811 | Q58: 88 | R58: 1.189189189 | S58: 42 | T58: 0.6579634465 | U58: 75 | V58: 1.174934726
A59: Sul | B59: Piúma | C59: 275 | D59: 62 | E59: 311 | F59: 51.83333333 | G59: 64 | H59: 1.032258065 | I59: 34 | J59: 0.6559485531 | K59: 81 | L59: 1.306451613 | M59: 82 | N59: 1.322580645 | O59: 74 | P59: 1.193548387 | Q59: 66 | R59: 1.064516129 | S59: 63 | T59: 1.215434084 | U59: 67 | V59: 1.292604502
A60: Norte | B60: Ponto Belo | C60: 82 | D60: 14 | E60: 85 | F60: 14.16666667 | G60: 17 | H60: 1.214285714 | I60: 8 | J60: 0.5647058824 | K60: 16 | L60: 1.142857143 | M60: 17 | N60: 1.214285714 | O60: 19 | P60: 1.357142857 | Q60: 17 | R60: 1.214285714 | S60: 19 | T60: 1.341176471 | U60: 15 | V60: 1.058823529
A61: Sul | B61: Presidente Kennedy | C61: 171 | D61: 45 | E61: 239 | F61: 39.83333333 | G61: 39 | H61: 0.8666666667 | I61: 1 | J61: 0.02510460251 | K61: 54 | L61: 1.2 | M61: 52 | N61: 1.155555556 | O61: 55 | P61: 1.222222222 | Q61: 44 | R61: 0.9777777778 | S61: 65 | T61: 1.631799163 | U61: 61 | V61: 1.531380753
A62: Central | B62: Rio Bananal | C62: 301 | D62: 70 | E62: 229 | F62: 38.16666667 | G62: 91 | H62: 1.3 | I62: 23 | J62: 0.6026200873 | K62: 70 | L62: 1 | M62: 76 | N62: 1.085714286 | O62: 63 | P62: 0.9 | Q62: 59 | R62: 0.8428571429 | S62: 62 | T62: 1.624454148 | U62: 66 | V62: 1.729257642
A63: Sul | B63: Rio Novo do Sul | C63: 87 | D63: 16 | E63: 144 | F63: 24 | G63: 24 | H63: 1.5 | I63: 24 | J63: 1 | K63: 29 | L63: 1.8125 | M63: 30 | N63: 1.875 | O63: 34 | P63: 2.125 | Q63: 28 | R63: 1.75 | S63: 18 | T63: 0.75 | U63: 26 | V63: 1.083333333
A64: Metropolitana | B64: Santa Leopoldina | C64: 81 | D64: 17 | E64: 155 | F64: 25.83333333 | G64: 15 | H64: 0.8823529412 | I64: 14 | J64: 0.5419354839 | K64: 20 | L64: 1.176470588 | M64: 20 | N64: 1.176470588 | O64: 26 | P64: 1.529411765 | Q64: 26 | R64: 1.529411765 | S64: 27 | T64: 1.04516129 | U64: 34 | V64: 1.316129032
A65: Metropolitana | B65: Santa Maria de Jetibá | C65: 664 | D65: 167 | E65: 685 | F65: 114.1666667 | G65: 140 | H65: 0.8383233533 | I65: 53 | J65: 0.4642335766 | K65: 143 | L65: 0.8562874251 | M65: 143 | N65: 0.8562874251 | O65: 170 | P65: 1.017964072 | Q65: 147 | R65: 0.880239521 | S65: 67 | T65: 0.5868613139 | U65: 102 | V65: 0.8934306569
A66: Metropolitana | B66: Santa Teresa | C66: 299 | D66: 80 | E66: 260 | F66: 43.33333333 | G66: 68 | H66: 0.85 | I66: 40 | J66: 0.9230769231 | K66: 68 | L66: 0.85 | M66: 72 | N66: 0.9 | O66: 77 | P66: 0.9625 | Q66: 68 | R66: 0.85 | S66: 37 | T66: 0.8538461538 | U66: 44 | V66: 1.015384615
A67: Central | B67: São Domingos do Norte | C67: 112 | D67: 25 | E67: 117 | F67: 19.5 | G67: 27 | H67: =G67/D67 -> 1.08 | I67: 2 | J67: =I67/F67 -> 0.1025641026 | K67: 34 | L67: =K67/D67 -> 1.36 | M67: 34 | N67: =M67/D67 -> 1.36 | O67: 41 | P67: =O67/D67 -> 1.64 | Q67: 31 | R67: =Q67/D67 -> 1.24 | S67: 22 | T67: =S67/F67 -> 1.128205128 | U67: 27 | V67: =U67/F67 -> 1.384615385
A68: Central | B68: São Gabriel da Palha | C68: 415 | D68: 110 | E68: 426 | F68: =(E68/12)*2 -> 71 | G68: 111 | H68: 1.009090909 | I68: 31 | J68: 0.4366197183 | K68: 85 | L68: 0.7727272727 | M68: 94 | N68: 0.8545454545 | O68: 97 | P68: 0.8818181818 | Q68: 96 | R68: 0.8727272727 | S68: 51 | T68: 0.7183098592 | U68: 55 | V68: 0.7746478873
A69: Sul | B69: São José do Calçado | C69: 94 | D69: 24 | E69: 150 | F69: 25 | G69: 30 | H69: 1.25 | I69: 11 | J69: 0.44 | K69: 23 | L69: 0.9583333333 | M69: 23 | N69: 0.9583333333 | O69: 34 | P69: 1.416666667 | Q69: 28 | R69: 1.166666667 | S69: 17 | T69: 0.68 | U69: 36 | V69: 1.44
A70: Norte | B70: São Mateus | C70: 1814 | D70: 462 | E70: 1766 | F70: 294.3333333 | G70: 324 | H70: 0.7012987013 | I70: 54 | J70: 0.1834654587 | K70: 434 | L70: 0.9393939394 | M70: 450 | N70: 0.974025974 | O70: 469 | P70: 1.015151515 | Q70: 388 | R70: 0.8398268398 | S70: 283 | T70: 0.9614949037 | U70: 356 | V70: 1.209513024
A71: Central | B71: São Roque do Canaã | C71: 129 | D71: 46 | E71: 100 | F71: 16.66666667 | G71: 21 | H71: 0.4565217391 | I71: 10 | J71: 0.6 | K71: 37 | L71: 0.8043478261 | M71: 42 | N71: 0.9130434783 | O71: 18 | P71: 0.3913043478 | Q71: 15 | R71: 0.3260869565 | S71: 5 | T71: 0.3 | U71: 16 | V71: 0.96
A72: Metropolitana | B72: Serra | C72: 7312 | D72: 1898 | E72: 7550 | F72: 1258.333333 | G72: 1450 | H72: 0.7639620653 | I72: 248 | J72: 0.1970860927 | K72: 1655 | L72: 0.8719704953 | M72: 1694 | N72: 0.8925184405 | O72: 1765 | P72: 0.9299262381 | Q72: 1510 | R72: 0.7955742887 | S72: 1294 | T72: 1.028344371 | U72: 1601 | V72: 1.272317881
A73: Central | B73: Sooretama | C73: 429 | D73: 98 | E73: 415 | F73: 69.16666667 | G73: 81 | H73: 0.8265306122 | I73: 24 | J73: 0.3469879518 | K73: 87 | L73: 0.887755102 | M73: 84 | N73: 0.8571428571 | O73: 103 | P73: 1.051020408 | Q73: 83 | R73: 0.8469387755 | S73: 67 | T73: 0.9686746988 | U73: 74 | V73: 1.069879518
A74: Sul | B74: Vargem Alta | C74: 212 | D74: 50 | E74: 278 | F74: 46.33333333 | G74: 70 | H74: 1.4 | I74: 6 | J74: 0.1294964029 | K74: 65 | L74: 1.3 | M74: 65 | N74: 1.3 | O74: 77 | P74: 1.54 | Q74: 66 | R74: 1.32 | S74: 41 | T74: 0.8848920863 | U74: 44 | V74: 0.9496402878
A75: Metropolitana | B75: Venda Nova do Imigrante | C75: 337 | D75: 81 | E75: 328 | F75: 54.66666667 | G75: 110 | H75: 1.358024691 | I75: 2 | J75: 0.03658536585 | K75: 82 | L75: 1.012345679 | M75: 84 | N75: 1.037037037 | O75: 112 | P75: 1.382716049 | Q75: 98 | R75: 1.209876543 | S75: 69 | T75: 1.262195122 | U75: 71 | V75: 1.298780488
A76: Metropolitana | B76: Viana | C76: 891 | D76: 219 | E76: 1064 | F76: 177.3333333 | G76: 145 | H76: 0.6621004566 | I76: 73 | J76: 0.4116541353 | K76: 228 | L76: 1.04109589 | M76: 225 | N76: 1.02739726 | O76: 221 | P76: 1.00913242 | Q76: 195 | R76: 0.8904109589 | S76: 147 | T76: 0.8289473684 | U76: 213 | V76: 1.20112782
A77: Norte | B77: Vila Pavão | C77: 110 | D77: 29 | E77: 127 | F77: 21.16666667 | G77: 30 | H77: 1.034482759 | I77: 0 | J77: 0 | K77: 26 | L77: 0.8965517241 | M77: 27 | N77: 0.9310344828 | O77: 27 | P77: 0.9310344828 | Q77: 23 | R77: 0.7931034483 | S77: 13 | T77: 0.6141732283 | U77: 17 | V77: 0.8031496063
A78: Central | B78: Vila Valério | C78: 232 | D78: 62 | E78: 169 | F78: 28.16666667 | G78: 65 | H78: 1.048387097 | I78: 30 | J78: 1.065088757 | K78: 65 | L78: 1.048387097 | M78: 64 | N78: 1.032258065 | O78: 63 | P78: 1.016129032 | Q78: 55 | R78: 0.8870967742 | S78: 33 | T78: 1.171597633 | U78: 37 | V78: 1.313609467
A79: Metropolitana | B79: Vila Velha | C79: 5446 | D79: 1417 | E79: 5675 | F79: 945.8333333 | G79: 1102 | H79: 0.7776993649 | I79: 710 | J79: 0.750660793 | K79: 1105 | L79: 0.7798165138 | M79: 1081 | N79: 0.7628793225 | O79: 1323 | P79: 0.9336626676 | Q79: 1096 | R79: 0.773465067 | S79: 845 | T79: 0.8933920705 | U79: 1011 | V79: 1.068898678
A80: Metropolitana | B80: Vitória | C80: 3452 | D80: 876 | E80: 3833 | F80: 638.8333333 | G80: 828 | H80: 0.9452054795 | I80: 259 | J80: 0.4054265588 | K80: 740 | L80: 0.8447488584 | M80: 774 | N80: 0.8835616438 | O80: 1022 | P80: 1.166666667 | Q80: 837 | R80: 0.9554794521 | S80: 439 | T80: 0.6871901905 | U80: 692 | V80: 1.083224628
B82: Total Norte | C82: =SUMIF($A$3:$A$80,"Norte",C$3:C$80) -> 5679 | D82: =SUMIF($A$3:$A$80,"Norte",D$3:D$80) -> 1478 | E82: =SUMIF($A$3:$A$80,"Norte",E$3:E$80) -> 5789 | F82: =SUMIF($A$3:$A$80,"Norte",F$3:F$80) -> 964.8333333 | H82: =G82/D82 -> 0 | I82: =SUMIF($A$3:$A$80,"Norte",I$3:I$80) -> 298 | J82: =I82/F82 -> 0.3088616341 | K82: =SUMIF($A$3:$A$80,"Norte",K$3:K$80) -> 1362 | L82: =K82/D82 -> 0.9215155616 | M82: =SUMIF($A$3:$A$80,"Norte",M$3:M$80) -> 1414 | N82: =M82/D82 -> 0.9566982409 | O82: =SUMIF($A$3:$A$80,"Norte",O$3:O$80) -> 1474 | P82: =O82/D82 -> 0.9972936401 | Q82: =SUMIF($A$3:$A$80,"Norte",Q$3:Q$80) -> 1236 | R82: =Q82/D82 -> 0.8362652233 | S82: =SUMIF($A$3:$A$80,"Norte",S$3:S$80) -> 893 | T82: =S82/F82 -> 0.925548454 | U82: =SUMIF($A$3:$A$80,"Norte",U$3:U$80) -> 1116 | V82: =U82/F82 -> 1.156676455
B83: Total Central | C83: =SUMIF($A$3:$A$80,"Central",C$3:C$80) -> 6962 | D83: =SUMIF($A$3:$A$80,"Central",D$3:D$80) -> 1820 | E83: =SUMIF($A$3:$A$80,"Central",E$3:E$80) -> 6843 | F83: =SUMIF($A$3:$A$80,"Central",F$3:F$80) -> 1140.5 | G83: =SUMIF($A$3:$A$80,"Central",G$3:G$80) -> 1445 | H83: =G83/D83 -> 0.793956044 | I83: =SUMIF($A$3:$A$80,"Central",I$3:I$80) -> 474 | J83: =I83/F83 -> 0.4156071898 | K83: =SUMIF($A$3:$A$80,"Central",K$3:K$80) -> 1491 | L83: =K83/D83 -> 0.8192307692 | M83: =SUMIF($A$3:$A$80,"Central",M$3:M$80) -> 1594 | N83: =M83/D83 -> 0.8758241758 | O83: =SUMIF($A$3:$A$80,"Central",O$3:O$80) -> 1620 | P83: =O83/D83 -> 0.8901098901 | Q83: =SUMIF($A$3:$A$80,"Central",Q$3:Q$80) -> 1445 | R83: =Q83/D83 -> 0.793956044 | S83: =SUMIF($A$3:$A$80,"Central",S$3:S$80) -> 1064 | T83: =S83/F83 -> 0.9329241561 | U83: =SUMIF($A$3:$A$80,"Central",U$3:U$80) -> 1214 | V83: =U83/F83 -> 1.064445419
B84: Total Metropolitana | C84: =SUMIF($A$3:$A$80,"Metropolitana",C$3:C$80) -> 28953 | D84: =SUMIF($A$3:$A$80,"Metropolitana",D$3:D$80) -> 7439 | E84: =SUMIF($A$3:$A$80,"Metropolitana",E$3:E$80) -> 30197 | F84: =SUMIF($A$3:$A$80,"Metropolitana",F$3:F$80) -> 5032.833333 | G84: =SUMIF($A$3:$A$80,"Metropolitana",G$3:G$80) -> 6100 | H84: =G84/D84 -> 0.8200026885 | I84: =SUMIF($A$3:$A$80,"Metropolitana",I$3:I$80) -> 1950 | J84: =I84/F84 -> 0.3874557075 | K84: =SUMIF($A$3:$A$80,"Metropolitana",K$3:K$80) -> 6546 | L84: =K84/D84 -> 0.8799569835 | M84: =SUMIF($A$3:$A$80,"Metropolitana",M$3:M$80) -> 6600 | N84: =M84/D84 -> 0.8872160237 | O84: =SUMIF($A$3:$A$80,"Metropolitana",O$3:O$80) -> 7604 | P84: =O84/D84 -> 1.022180401 | Q84: =SUMIF($A$3:$A$80,"Metropolitana",Q$3:Q$80) -> 6318 | R84: =Q84/D84 -> 0.8493077026 | S84: =SUMIF($A$3:$A$80,"Metropolitana",S$3:S$80) -> 4817 | T84: =S84/F84 -> 0.9571149452 | U84: =SUMIF($A$3:$A$80,"Metropolitana",U$3:U$80) -> 6074 | V84: =U84/F84 -> 1.206874855
B85: Total Sul | C85: =SUMIF($A$3:$A$80,"sul",C$3:C$80) -> 7063 | D85: =SUMIF($A$3:$A$80,"sul",D$3:D$80) -> 1656 | E85: =SUMIF($A$3:$A$80,"sul",E$3:E$80) -> 8688 | F85: =SUMIF($A$3:$A$80,"sul",F$3:F$80) -> 1448 | G85: =SUMIF($A$3:$A$80,"sul",G$3:G$80) -> 1910 | H85: =G85/D85 -> 1.153381643 | I85: =SUMIF($A$3:$A$80,"sul",I$3:I$80) -> 449 | J85: =I85/F85 -> 0.3100828729 | K85: =SUMIF($A$3:$A$80,"sul",K$3:K$80) -> 1971 | L85: =K85/D85 -> 1.190217391 | M85: =SUMIF($A$3:$A$80,"sul",M$3:M$80) -> 2002 | N85: =M85/D85 -> 1.208937198 | O85: =SUMIF($A$3:$A$80,"sul",O$3:O$80) -> 2289 | P85: =O85/D85 -> 1.382246377 | Q85: =SUMIF($A$3:$A$80,"sul",Q$3:Q$80) -> 1949 | R85: =Q85/D85 -> 1.176932367 | S85: =SUMIF($A$3:$A$80,"sul",S$3:S$80) -> 1655 | T85: =S85/F85 -> 1.142955801 | U85: =SUMIF($A$3:$A$80,"sul",U$3:U$80) -> 1865 | V85: =U85/F85 -> 1.287983425
B86: Total Espírito Santo | C86: =SUM(C3:C80) -> 48657 | D86: =SUM(D3:D80) -> 12393 | E86: =SUM(E3:E80) -> 51517 | F86: =SUM(F3:F80) -> 8586.166667 | G86: =SUM(G3:G80) -> 10665 | H86: =G86/D86 -> 0.8605664488 | I86: =SUM(I3:I80) -> 3171 | J86: =I86/F86 -> 0.3693149834 | K86: =SUM(K3:K80) -> 11370 | L86: =K86/D86 -> 0.9174534011 | M86: =SUM(M3:M80) -> 11610 | N86: =M86/D86 -> 0.9368191721 | O86: =SUM(O3:O80) -> 12987 | P86: =O86/D86 -> 1.047930283 | Q86: =SUM(Q3:Q80) -> 10948 | R86: =Q86/D86 -> 0.8834019204 | S86: =SUM(S3:S80) -> 8429 | T86: =S86/F86 -> 0.9816953627 | U86: =SUM(U3:U80) -> 10269 | V86: =U86/F86 -> 1.195993556
A90: Fonte: Vacina e Confia, em 22 de Abril de 2025.**
A91: **Dados referente às doses aplicadas no período de Janeiro a Março 2025
A92: Cobertura Calculada por município de residência
A93: 1 População anual extraída do MS/SVS/DASIS - SINASC/DASIS/SVS/MS 2024 (hoje preliminares) referente ao período de Fevereiro a Dezembro de 2024 e SINASC/DASIS/SVS/MS referente ao período de Janeiro de 2025.
A94: ² População proporcional extraída do MS/SVS/DASIS - SINASC/DASIS/SVS/MS 2024 (hoje preliminares) referente ao período de Fevereiro e Março/2024 e Janeiro/ 2025.
A95: Sinasc, atualizado em 09/04/2025.
A96: Homogeineidade: O cálculo da Homogeineidade entre vacinas é feito de acordo com a pactuação estabelecida no Plano Plurianual (PPA) vigente no período 2024-2027.
A98: Observações:
A99: 1. Imunobiológicos que foram recebidos parcialmente pelo estado no mês de Março/2025, sendo distribuídos em quantidades reduzidas às regionais e municípios:
A100: SORO ANTIRRÁBICO HUMANO, IMUNOGLOBULINA ANTIRRÁBICA HUMANA, VACINA COVID-19 MODERNA (SPIKEVAX),VACINA CONTRA VARICELA.
A101: 2. Imunobiológicos indisponíveis no mês de Março/2025, não sendo possível a distribuição às regionais e municípios:
A102: VACINA TRÍPLICE ACELULAR (DTPa) - CRIE

Sheet Cobert. COVID-19 Menores 4 anos (hidden)
A1: Regional | B1: Município | C1: Série Histórica
A2: Região Metropolitana | B2: Afonso Cláudio
A3: Região Norte | B3: Água Doce do Norte
A4: Região Central | B4: Águia Branca
A5: Região Sul | B5: Alegre
A6: Região Sul | B6: Alfredo Chaves
A7: Região Central | B7: Alto Rio Novo
A8: Região Sul | B8: Anchieta
A9: Região Sul | B9: Apiacá
A10: Região Metropolitana | B10: Aracruz
A11: Região Sul | B11: Atilio Vivacqua
A12: Região Central | B12: Baixo Guandu
A13: Região Norte | B13: Barra de São Francisco
A14: Região Norte | B14: Boa Esperança
A15: Região Sul | B15: Bom Jesus do Norte
A16: Região Metropolitana | B16: Brejetuba
A17: Região Sul | B17: Cachoeiro de Itapemirim
A18: Região Metropolitana | B18: Cariacica
A19: Região Sul | B19: Castelo
A20: Região Central | B20: Colatina
A21: Região Norte | B21: Conceição da Barra
A22: Região Metropolitana | B22: Conceição do Castelo
A23: Região Sul | B23: Divino de São Lourenço
A24: Região Metropolitana | B24: Domingos Martins
A25: Região Sul | B25: Dores do Rio Preto
A26: Região Norte | B26: Ecoporanga
A27: Região Metropolitana | B27: Fundão
A28: Região Central | B28: Governador Lindenberg
A29: Região Sul | B29: Guaçuí
A30: Região Metropolitana | B30: Guarapari
A31: Região Metropolitana | B31: Ibatiba
A32: Região Metropolitana | B32: Ibiraçu
A33: Região Sul | B33: Ibitirama
A34: Região Sul | B34: Iconha
A35: Região Sul | B35: Irupi
A36: Região Metropolitana | B36: Itaguaçu
A37: Região Sul | B37: Itapemirim
A38: Região Metropolitana | B38: Itarana
A39: Região Sul | B39: Iúna
A40: Região Norte | B40: Jaguaré
A41: Região Sul | B41: Jerônimo Monteiro
A42: Região Metropolitana | B42: João Neiva
A43: Região Metropolitana | B43: Laranja da Terra
A44: Região Central | B44: Linhares
A45: Região Central | B45: Mantenópolis
A46: Região Sul | B46: Marataízes
A47: Região Metropolitana | B47: Marechal Floriano
A48: Região Central | B48: Marilândia
A49: Região Sul | B49: Mimoso do Sul
A50: Região Norte | B50: Montanha
A51: Região Norte | B51: Mucurici
A52: Região Sul | B52: Muniz Freire
A53: Região Sul | B53: Muqui
A54: Região Norte | B54: Nova Venécia
A55: Região Central | B55: Pancas
A56: Região Norte | B56: Pedro Canário
A57: Região Norte | B57: Pinheiros
A58: Região Sul | B58: Piúma
A59: Região Norte | B59: Ponto Belo
A60: Região Sul | B60: Presidente Kennedy
A61: Região Central | B61: Rio Bananal
A62: Região Sul | B62: Rio Novo do Sul
A63: Região Metropolitana | B63: Santa Leopoldina
A64: Região Metropolitana | B64: Santa Maria de Jetibá
A65: Região Metropolitana | B65: Santa Teresa
A66: Região Central | B66: São Domingos do Norte
A67: Região Central | B67: São Gabriel da Palha
A68: Região Sul | B68: São José do Calçado
A69: Região Norte | B69: São Mateus
A70: Região Central | B70: São Roque do Canaã
A71: Região Metropolitana | B71: Serra
A72: Região Central | B72: Sooretama
A73: Região Sul | B73: Vargem Alta
A74: Região Metropolitana | B74: Venda Nova do Imigrante
A75: Região Metropolitana | B75: Viana
A76: Região Norte | B76: Vila Pavão
A77: Região Central | B77: Vila Valério
A78: Região Metropolitana | B78: Vila Velha
A79: Região Metropolitana | B79: Vitória
B81: Espírito Santo
B82: Região Norte
B83: Região Central
B84: Região Metropolitana
B85: Região Sul
A87: Pfizer Pediátrica Menor de 5 anos e Coronavac
A88: Período avaliado: 2021-2024
A89: Fonte: https://www.vacinaeconfia.es.gov.br
A90: *Dados de janeiro/2024 extraídos do Vacina e Confia em 04/01/2024
A91: População proporcional extraída do SINASC 2022 (menores de 1 ano) e Censo IBGE 2022 (demais idades)
A92: Cobertura Calculada por município de procedência da vacinação

Sheet Cobert. Meningo C Adolescentes
A1: Regional | B1: Município | C1: Série Histórica %
A2: Metropolitana | B2: Afonso Cláudio | C2: 52.55639098
A3: Central Norte | B3: Água Doce do Norte | C3: 77.11941659
A4: Central Norte | B4: Águia Branca | C4: 72.83304247
A5: Sul | B5: Alegre | C5: 82.16016617
A6: Sul | B6: Alfredo Chaves | C6: 38.41376015
A7: Central Norte | B7: Alto Rio Novo | C7: 89.21282799
A8: Sul | B8: Anchieta | C8: 89.24400738
A9: Sul | B9: Apiacá | C9: 32.89473684
A10: Metropolitana | B10: Aracruz | C10: 89.2558219
A11: Sul | B11: Atilio Vivacqua | C11: 94.98806683
A12: Central Norte | B12: Baixo Guandu | C12: 71.33346782
A13: Central Norte | B13: Barra de São Francisco | C13: 70.36643654
A14: Central Norte | B14: Boa Esperança | C14: 65.82498912
A15: Sul | B15: Bom Jesus do Norte | C15: 76.6590389
A16: Metropolitana | B16: Brejetuba | C16: 96.6255144
A17: Sul | B17: Cachoeiro de Itapemirim | C17: 104.2972492
A18: Metropolitana | B18: Cariacica | C18: 84.72263239
A19: Sul | B19: Castelo | C19: 82.65682657
A20: Central Norte | B20: Colatina | C20: 76.77577377
A21: Central Norte | B21: Conceição da Barra | C21: 63.38875133
A22: Metropolitana | B22: Conceição do Castelo | C22: 84.97409326
A23: Sul | B23: Divino de São Lourenço | C23: 68.77828054
A24: Metropolitana | B24: Domingos Martins | C24: 84.5475805
A25: Sul | B25: Dores do Rio Preto | C25: 73.38247338
A26: Central Norte | B26: Ecoporanga | C26: 61.31850675
A27: Metropolitana | B27: Fundão | C27: 97.35654417
A28: Central Norte | B28: Governador Lindenberg | C28: 82.90269379
A29: Sul | B29: Guaçuí | C29: 69.78864484
A30: Metropolitana | B30: Guarapari | C30: 83.21181529
A31: Metropolitana | B31: Ibatiba | C31: 70.40070843
A32: Metropolitana | B32: Ibiraçu | C32: 91.18942731
A33: Sul | B33: Ibitirama | C33: 104.2622951
A34: Sul | B34: Iconha | C34: 79.80997625
A35: Sul | B35: Irupi | C35: 85.27508091
A36: Metropolitana | B36: Itaguaçu | C36: 67.14285714
A37: Sul | B37: Itapemirim | C37: 77.24358974
A38: Metropolitana | B38: Itarana | C38: 72.46585191
A39: Sul | B39: Iúna | C39: 70.19455253
A40: Central Norte | B40: Jaguaré | C40: 69.88645992
A41: Sul | B41: Jerônimo Monteiro | C41: 95.25885559
A42: Metropolitana | B42: João Neiva | C42: 98.39167455
A43: Metropolitana | B43: Laranja da Terra | C43: 107.9448457
A44: Central Norte | B44: Linhares | C44: 85.44009498
A45: Central Norte | B45: Mantenópolis | C45: 95.8041958
A46: Sul | B46: Marataízes | C46: 94.72680202
A47: Metropolitana | B47: Marechal Floriano | C47: 94.17188014
A48: Central Norte | B48: Marilândia | C48: 74.27635172
A49: Sul | B49: Mimoso do Sul | C49: 92.11992571
A50: Central Norte | B50: Montanha | C50: 82.11527035
A51: Central Norte | B51: Mucurici | C51: 67.31234867
A52: Sul | B52: Muniz Freire | C52: 75.91145833
A53: Sul | B53: Muqui | C53: 76.14636406
A54: Central Norte | B54: Nova Venécia | C54: 85.30072373
A55: Central Norte | B55: Pancas | C55: 69.29032258
A56: Central Norte | B56: Pedro Canário | C56: 79.34943322
A57: Central Norte | B57: Pinheiros | C57: 68.45107503
A58: Sul | B58: Piúma | C58: 94.34173669
A59: Central Norte | B59: Ponto Belo | C59: 64.63700234
A60: Sul | B60: Presidente Kennedy | C60: 98.64864865
A61: Central Norte | B61: Rio Bananal | C61: 87.41721854
A62: Sul | B62: Rio Novo do Sul | C62: 71.2847839
A63: Metropolitana | B63: Santa Leopoldina | C63: 64.99289436
A64: Metropolitana | B64: Santa Maria de Jetibá | C64: 89.01458767
A65: Metropolitana | B65: Santa Teresa | C65: 109.9236641
A66: Central Norte | B66: São Domingos do Norte | C66: 77.10843373
A67: Central Norte | B67: São Gabriel da Palha | C67: 64.01500938
A68: Sul | B68: São José do Calçado | C68: 68.51549755
A69: Central Norte | B69: São Mateus | C69: 76.69627494
A70: Central Norte | B70: São Roque do Canaã | C70: 78.81136951
A71: Metropolitana | B71: Serra | C71: 84.37669766
A72: Central Norte | B72: Sooretama | C72: 86.65363426
A73: Sul | B73: Vargem Alta | C73: 73.77959661
A74: Metropolitana | B74: Venda Nova do Imigrante | C74: 103.200883
A75: Metropolitana | B75: Viana | C75: 98.1472832
A76: Central Norte | B76: Vila Pavão | C76: 97.3342447
A77: Central Norte | B77: Vila Valério | C77: 98.04964539
A78: Metropolitana | B78: Vila Velha | C78: 90.94853528
A79: Metropolitana | B79: Vitória | C79: 93.36416085
A80: Total | C80: 81.27518325
A83: Meningocócica Conjudada C e Meningocócica ACWY
A84: Período avaliado: 2016-2025
A85: Faixa Etária: 11 a 14 anos.
A86: Fonte: http://tabnet.datasus.gov.br/ e https://www.vacinaeconfia.es.gov.br
A87: *Dados parciais:
A88: Dados de janeiro/2022 a abril/2022 extraídos do TABNET em 10/05/2024
A89: Dados de Janeiro a Março/2025 extraídos do Vacina e Confia em Abril/2025
A90: População proporcional extraída do Censo IBGE 2022
A91: Cobertura Calculada por município de procedência da vacinação
A93: Observações:
A94: 1. Imunobiológicos que foram recebidos parcialmente pelo estado no mês de Março/2025, sendo distribuídos em quantidades reduzidas às regionais e municípios:
A95: SORO ANTIRRÁBICO HUMANO, IMUNOGLOBULINA ANTIRRÁBICA HUMANA, VACINA COVID-19 MODERNA (SPIKEVAX),VACINA CONTRA VARICELA.
A96: 2. Imunobiológicos indisponíveis no mês de Março/2025, não sendo possível a distribuição às regionais e municípios:
A97: VACINA TRÍPLICE ACELULAR (DTPa) - CRIE

Sheet Cobert. HPV
A1: REGIONAL | B1: MUNICÍPIO | C1: HPV Feminino % | D1: HPV Masculino %
A2: METROPOLITANA | B2: Afonso Cláudio | C2: ='[2]Afonso Cláudio'!$H$24 -> 94.28571429 | D2: ='[2]Afonso Cláudio'!$H$49 -> 96.73507463
A3: CENTRAL-NORTE | B3: Água Doce do Norte | C3: ='[3]Água Doce do Norte'!$H$24 -> 104.0729483 | D3: ='[3]Água Doce do Norte'!$H$49 -> 89.92601024
A4: CENTRAL-NORTE | B4: Águia Branca | C4: ='[3]Águia Branca'!$H$24 -> 110.4883907 | D4: ='[3]Águia Branca'!$H$49 -> 93.80134429
A5: SUL | B5: Alegre | C5: =[4]Alegre!$H$24 -> 93.70277078 | D5: =[4]Alegre!$H$49 -> 81.78694158
A6: SUL | B6: Alfredo Chaves | C6: ='[4]Alfredo Chaves'!$H$24 -> 91.78683386 | D6: ='[4]Alfredo Chaves'!$H$49 -> 69.74483597
A7: CENTRAL-NORTE | B7: Alto Rio Novo | C7: ='[3]Alto Rio Novo'!$H$24 -> 138.5948027 | D7: ='[3]Alto Rio Novo'!$H$49 -> 101.3979497
A8: SUL | B8: Anchieta | C8: ='[4]Alto Rio Novo'!$H$24 -> 103.248552 | D8: ='[4]Alto Rio Novo'!$H$49 -> 110.3592971
A9: SUL | B9: Apiacá | C9: =[4]Apiacá!$H$24 -> 79.40865892 | D9: =[4]Apiacá!$H$49 -> 72.6613488
A10: METROPOLITANA | B10: Aracruz | C10: =[2]Aracruz!$H$24 -> 106.9764065 | D10: =[2]Aracruz!$H$49 -> 102.955665
A11: SUL | B11: Atílio Vivácqua | C11: ='[4]Atílio Vivácqua'!$H$24 -> 116.1098738 | D11: ='[4]Atílio Vivácqua'!$H$49 -> 117.8758414
A12: CENTRAL-NORTE | B12: Baixo Guandu | C12: ='[3]Baixo Guandu'!$H$24 -> 108.6710882 | D12: ='[3]Baixo Guandu'!$H$49 -> 91.18387909
A13: CENTRAL-NORTE | B13: Barra de São Francisco | C13: ='[3]Barra de São Francisco'!$H$24 -> 102.2162525 | D13: ='[3]Barra de São Francisco'!$H$49 -> 81.78749397
A14: CENTRAL-NORTE | B14: Boa Esperança | C14: ='[3]Boa Esperança'!$H$24 -> 94.20520999 | D14: ='[3]Boa Esperança'!$H$49 -> 84.01323043
A15: SUL | B15: Bom Jesus do Norte | C15: ='[4]Bom Jesus do Norte'!$H$24 -> 90.49897471 | D15: ='[4]Bom Jesus do Norte'!$H$49 -> 98.01980198
A16: METROPOLITANA | B16: Brejetuba | C16: =[2]Brejetuba!$H$24 -> 98.54198089 | D16: =[2]Brejetuba!$H$49 -> 115.5324675
A17: SUL | B17: Cachoeiro de Itapemirim | C17: ='[4]Cachoeiro de Itapemirim'!$H$24 -> 96.98419479 | D17: ='[4]Cachoeiro de Itapemirim'!$H$49 -> 102.876078
A18: METROPOLITANA | B18: Cariacica | C18: =[2]Cariacica!$H$24 -> 99.79587388 | D18: =[2]Cariacica!$H$49 -> 91.58314756
A19: SUL | B19: Castelo | C19: =[4]Castelo!$H$24 -> 97.76297001 | D19: =[4]Castelo!$H$49 -> 106.7733067
A20: CENTRAL-NORTE | B20: Colatina | C20: =[3]Colatina!$H$24 -> 76.16492516 | D20: =[3]Colatina!$H$49 -> 86.26560726
A21: CENTRAL-NORTE | B21: Conceição da Barra | C21: ='[3]Conceição da Barra'!$H$24 -> 106.5416388 | D21: ='[3]Conceição da Barra'!$H$49 -> 87.01067616
A22: METROPOLITANA | B22: Conceição do Castelo | C22: ='[2]Conceição do Castelo'!$H$24 -> 113.2766514 | D22: ='[2]Conceição do Castelo'!$H$49 -> 120.8070618
A23: SUL | B23: Divino de São Lourenço | C23: ='[4]Divino São Lourenço'!$H$24 -> 96.09984399 | D23: ='[4]Divino São Lourenço'!$H$49 -> 91.71270718
A24: METROPOLITANA | B24: Domingos Martins | C24: ='[2]Domingos Martins'!$H$24 -> 113.0214335 | D24: ='[2]Domingos Martins'!$H$49 -> 103.9451115
A25: SUL | B25: Dores do Rio Preto | C25: ='[4]Dores do Rio Preto'!$H$24 -> 110.2040816 | D25: ='[4]Dores do Rio Preto'!$H$49 -> 86.52159792
A26: CENTRAL-NORTE | B26: Ecoporanga | C26: =[3]Ecoporanga!$H$24 -> 112.3060267 | D26: =[3]Ecoporanga!$H$49 -> 82.7768595
A27: METROPOLITANA | B27: Fundão | C27: =[2]Fundão!$H$24 -> 87.01046917 | D27: =[2]Fundão!$H$49 -> 113.1011609
A28: CENTRAL-NORTE | B28: Governador Lindenberg | C28: ='[3]Governador Lindenberg'!$H$24 -> 144.4274809 | D28: ='[3]Governador Lindenberg'!$H$49 -> 104.8748353
A29: SUL | B29: Guaçuí | C29: =[4]Guaçuí!$H$24 -> 95.78783151 | D29: =[4]Guaçuí!$H$49 -> 84.20875704
A30: METROPOLITANA | B30: Guarapari | C30: =[2]Guarapari!$H$24 -> 88.85990395 | D30: =[2]Guarapari!$H$49 -> 89.40260929
A31: METROPOLITANA | B31: Ibatiba | C31: =[2]Ibatiba!$H$24 -> 101.7899761 | D31: =[2]Ibatiba!$H$49 -> 95.18935517
A32: METROPOLITANA | B32: Ibiraçu | C32: =[2]Ibiraçu!$H$24 -> 110.5405405 | D32: =[2]Ibiraçu!$H$49 -> 111.0285006
A33: SUL | B33: Ibitirama | C33: =[4]Ibitirama!$H$24 -> 64.54293629 | D33: =[4]Ibitirama!$H$49 -> 101.4472777
A34: SUL | B34: Iconha | C34: =[4]Iconha!$H$24 -> 108.1492765 | D34: =[4]Iconha!$H$49 -> 103.6055923
A35: SUL | B35: Irupi | C35: =[4]Irupi!$H$24 -> 74.85861183 | D35: =[4]Irupi!$H$49 -> 102.5052192
A36: METROPOLITANA | B36: Itaguaçu | C36: =[2]Itaguaçu!$H$24 -> 97.20101781 | D36: =[2]Itaguaçu!$H$49 -> 74.70331043
A37: SUL | B37: Itapemirim | C37: =[4]Itapemirim!$H$24 -> 83.28525369 | D37: =[4]Itapemirim!$H$49 -> 90.64819396
A38: METROPOLITANA | B38: Itarana | C38: =[2]Itarana!$H$24 -> 110.0297915 | D38: =[2]Itarana!$H$49 -> 95.00805153
A39: SUL | B39: Iúna | C39: =[4]Iúna!$H$24 -> 90.08386778 | D39: =[4]Iúna!$H$49 -> 105.9520742
A40: CENTRAL-NORTE | B40: Jaguaré | C40: =[3]Jaguaré!$H$24 -> 129.2549705 | D40: =[3]Jaguaré!$H$49 -> 98.66999169
A41: SUL | B41: Jerônimo Monteiro | C41: ='[4]Jerônimo Monteiro'!$H$24 -> 98.93617021 | D41: ='[4]Jerônimo Monteiro'!$H$49 -> 105.3446191
A42: METROPOLITANA | B42: João Neiva | C42: ='[2]João Neiva'!$H$24 -> 101.1337868 | D42: ='[2]João Neiva'!$H$49 -> 116.0098522
A43: METROPOLITANA | B43: Laranja da Terra | C43: ='[2]Laranja da Terra'!$H$24 -> 102.0979021 | D43: ='[2]Laranja da Terra'!$H$49 -> 91.92546584
A44: CENTRAL-NORTE | B44: Linhares | C44: =[3]Linhares!$H$24 -> 106.379822 | D44: =[3]Linhares!$H$49 -> 97.44194559
A45: CENTRAL-NORTE | B45: Mantenópolis | C45: =[3]Mantenópolis!$H$24 -> 103.626943 | D45: =[3]Mantenópolis!$H$49 -> 96.85893775
A46: SUL | B46: Marataízes | C46: =[4]Marataízes!$H$24 -> 110.8459484 | D46: =[4]Marataízes!$H$49 -> 106.4253394
A47: METROPOLITANA | B47: Marechal Floriano | C47: ='[2]Marechal Floriano'!$H$24 -> 105.3649956 | D47: ='[2]Marechal Floriano'!$H$49 -> 107.7237434
A48: CENTRAL-NORTE | B48: Marilândia | C48: =[3]Marilândia!$H$24 -> 136.7429341 | D48: =[3]Marilândia!$H$49 -> 121.3483146
A49: SUL | B49: Mimoso do Sul | C49: ='[4]Mimoso do Sul'!$H$24 -> 86.70481319 | D49: ='[4]Mimoso do Sul'!$H$49 -> 83.64153627
A50: CENTRAL-NORTE | B50: Montanha | C50: =[3]Montanha!$H$24 -> 138.9880952 | D50: =[3]Montanha!$H$49 -> 105.1736357
A51: CENTRAL-NORTE | B51: Mucurici | C51: =[3]Mucurici!$H$24 -> 124.278438 | D51: =[3]Mucurici!$H$49 -> 90.21276596
A52: SUL | B52: Muniz Freire | C52: ='[4]Muniz Freire'!$H$24 -> 104.4982699 | D52: ='[4]Muniz Freire'!$H$49 -> 103.4311013
A53: SUL | B53: Muqui | C53: =[4]Muqui!$H$24 -> 92.30769231 | D53: =[4]Muqui!$H$49 -> 101.0850266
A54: CENTRAL-NORTE | B54: Nova Venécia | C54: ='[3]Nova Venécia'!$H$24 -> 132.6224592 | D54: ='[3]Nova Venécia'!$H$49 -> 102.698717
A55: CENTRAL-NORTE | B55: Pancas | C55: =[3]Pancas!$H$24 -> 130.529857 | D55: =[3]Pancas!$H$49 -> 99.76905312
A56: CENTRAL-NORTE | B56: Pedro Canário | C56: ='[3]Pedro Canário'!$H$24 -> 119.4312796 | D56: ='[3]Pedro Canário'!$H$49 -> 84.82303539
A57: CENTRAL-NORTE | B57: Pinheiros | C57: =[3]Pinheiros!$H$24 -> 102.7267668 | D57: =[3]Pinheiros!$H$49 -> 82.60524226
A58: SUL | B58: Piúma | C58: =[4]Piúma!$H$24 -> 84.51704545 | D58: =[4]Piúma!$H$49 -> 83.91323995
A59: CENTRAL-NORTE | B59: Ponto Belo | C59: ='[3]Ponto Belo'!$H$24 -> 128.1368821 | D59: ='[3]Ponto Belo'!$H$49 -> 104.0169133
A60: SUL | B60: Presidente Kennedy | C60: ='[4]Presidente Kennedy'!$H$24 -> 98.99736148 | D60: ='[4]Presidente Kennedy'!$H$49 -> 105.1196809
A61: CENTRAL-NORTE | B61: Rio Bananal | C61: ='[3]Rio Bananal'!$H$24 -> 152.9731831 | D61: ='[3]Rio Bananal'!$H$49 -> 128.9021658
A62: SUL | B62: Rio Novo do Sul | C62: ='[4]Rio Novo do Sul'!$H$24 -> 86.41975309 | D62: ='[4]Rio Novo do Sul'!$H$49 -> 104.4234953
A63: METROPOLITANA | B63: Santa Leopoldina | C63: ='[2]Santa Leopoldina'!$H$24 -> 65.18706405 | D63: ='[2]Santa Leopoldina'!$H$49 -> 64.77732794
A64: METROPOLITANA | B64: Santa Maria de Jetibá | C64: ='[2]Santa Maria de Jetibá'!$H$24 -> 108.3018868 | D64: ='[2]Santa Maria de Jetibá'!$H$49 -> 104.2005186
A65: METROPOLITANA | B65: Santa Teresa | C65: ='[2]Santa Teresa'!$H$24 -> 111.4351497 | D65: ='[2]Santa Teresa'!$H$49 -> 89.28699391
A66: CENTRAL-NORTE | B66: São Domingos do Norte | C66: ='[3]São Domingos do Norte'!$H$24 -> 136.8322399 | D66: ='[3]São Domingos do Norte'!$H$49 -> 109.3922652
A67: CENTRAL-NORTE | B67: São Gabriel da Palha | C67: ='[3]São Gabriel da Palha'!$H$24 -> 107.4074074 | D67: ='[3]São Gabriel da Palha'!$H$49 -> 94.88372093
A68: SUL | B68: São José do Calçado | C68: ='[4]São José do Calçado'!$H$24 -> 94.068388 | D68: ='[4]São José do Calçado'!$H$49 -> 96.77874442
A69: CENTRAL-NORTE | B69: São Mateus | C69: ='[3]São Mateus'!$H$24 -> 109.3073976 | D69: ='[3]São Mateus'!$H$49 -> 83.8575834
A70: CENTRAL-NORTE | B70: São Roque do Canaã | C70: ='[3]São Roque do Canaã'!$H$24 -> 129.4208494 | D70: ='[3]São Roque do Canaã'!$H$49 -> 116.6248956
A71: METROPOLITANA | B71: Serra | C71: =[2]Serra!$H$24 -> 92.73178303 | D71: =[2]Serra!$H$49 -> 79.96521472
A72: CENTRAL-NORTE | B72: Sooretama | C72: =[3]Sooretama!$H$24 -> 108.6628165 | D72: =[3]Sooretama!$H$49 -> 99.35282303
A73: SUL | B73: Vargem Alta | C73: ='[4]Vargem Alta'!$H$24 -> 102.1523179 | D73: ='[4]Vargem Alta'!$H$49 -> 97.08785183
A74: METROPOLITANA | B74: Venda Nova do Imigrante | C74: =[2]Vitória!$H$24 -> 105.1955537 | D74: =[2]Vitória!$H$49 -> 97.88889465
A75: METROPOLITANA | B75: Viana | C75: ='[2]Venda Nova do Imigrante'!$H$24 -> 111.4872164 | D75: ='[2]Venda Nova do Imigrante'!$H$49 -> 102.7917928
A76: CENTRAL-NORTE | B76: Vila Pavão | C76: ='[3]Vila Pavão'!I26 -> 0 | D76: ='[3]Vila Pavão'!$H$49 -> 104
A77: CENTRAL-NORTE | B77: Vila Valério | C77: ='[3]Vila Valério'!$H$24 -> 151.2476008 | D77: ='[3]Vila Valério'!$H$49 -> 104.0169133
A78: METROPOLITANA | B78: Vila Velha | C78: =[2]Viana!$H$24 -> 110.9812613 | D78: =[2]Viana!$H$49 -> 94.02183972
A79: METROPOLITANA | B79: Vitória | C79: ='[2]Vila Velha'!$H$24 -> 99.72040347 | D79: ='[2]Vila Velha'!$H$49 -> 94.19716787
A80: TOTAL | C80: 97.36057192 | D80: 91.25697903
A83: Vacina HPV Quadrivalente, Bivalente e Nonavalente
A84: Período avaliado: 2013-2025
A85: Faixa Etária: 9 a 14 anos.
A86: Fonte: http://tabnet.datasus.gov.br/ e https://www.vacinaeconfia.es.gov.br
A87: *Dados parciais:
A88: Dados de janeiro/2013 a dezembro/2022 extraídos do TABNET em 26/02/2025
A89: Dados de Janeiro/2023 a Março/2025 extraídos do Vacina e Confia em em 14/04/2025
A90: População proporcional extraída do Censo IBGE 2022
A91: Cobertura Calculada por município de procedência da vacinação
A93: Observações:
A94: 1. Imunobiológicos que foram recebidos parcialmente pelo estado no mês de Março/2025, sendo distribuídos em quantidades reduzidas às regionais e municípios:
A95: SORO ANTIRRÁBICO HUMANO, IMUNOGLOBULINA ANTIRRÁBICA HUMANA, VACINA COVID-19 MODERNA (SPIKEVAX),VACINA CONTRA VARICELA.
A96: 2. Imunobiológicos indisponíveis no mês de Março/2025, não sendo possível a distribuição às regionais e municípios:
A97: VACINA TRÍPLICE ACELULAR (DTPa) - CRIE

Sheet Cobert. Dengue
A1: REGIONAL | B1: MUNICÍPIO | C1: DENGUE -D1 % | D1: DENGUE - D2 %
A2: METROPOLITANA | B2: Afonso Cláudio | C2: 65.08595139 | D2: 35.21043272
A3: CENTRAL-NORTE | B3: Água Doce do Norte | C3: 41.45928968 | D3: 9.567528388
A4: CENTRAL-NORTE | B4: Águia Branca | C4: 43.008 | D4: 19.392
A5: SUL | B5: Alegre | C5: 73.46649332 | D5: 18.93393216
A6: SUL | B6: Alfredo Chaves | C6: 22.68459782 | D6: 5.937579295
A7: CENTRAL-NORTE | B7: Alto Rio Novo | C7: 85.4467421 | D7: 44.47912602
A8: SUL | B8: Anchieta | C8: 77.3290938 | D8: 29.57074722
A9: SUL | B9: Apiacá | C9: 23.23943662 | D9: 5.809859155
A10: METROPOLITANA | B10: Aracruz | C10: 82.18934385 | D10: 42.48228422
A11: SUL | B11: Atílio Vivácqua | C11: 57.4547723 | D11: 15.90767311
A12: CENTRAL-NORTE | B12: Baixo Guandu | C12: 45.22359857 | D12: 19.8404367
A13: CENTRAL-NORTE | B13: Barra de São Francisco | C13: 12.80665281 | D13: 3.451143451
A14: CENTRAL-NORTE | B14: Boa Esperança | C14: 25.23049247 | D14: 7.420733078
A15: SUL | B15: Bom Jesus do Norte | C15: 38.90596189 | D15: 7.559926245
A16: METROPOLITANA | B16: Brejetuba | C16: 93.79398592 | D16: 58.47728727
A17: SUL | B17: Cachoeiro de Itapemirim | C17: 51.40796521 | D17: 11.57129978
A18: METROPOLITANA | B18: Cariacica | C18: 57.75388079 | D18: 25.71643737
A19: SUL | B19: Castelo | C19: 51.41647343 | D19: 12.09799375
A20: CENTRAL-NORTE | B20: Colatina | C20: 33.11262091 | D20: 12.7994012
A21: CENTRAL-NORTE | B21: Conceição da Barra | C21: 32.96764082 | D21: 8.961003042
A22: METROPOLITANA | B22: Conceição do Castelo | C22: 121.3318896 | D22: 67.56903086
A23: SUL | B23: Divino de São Lourenço | C23: 30.8693081 | D23: 14.9024246
A24: METROPOLITANA | B24: Domingos Martins | C24: 72.09605361 | D24: 42.94489948
A25: SUL | B25: Dores do Rio Preto | C25: 24.82059941 | D25: 7.598142676
A26: CENTRAL-NORTE | B26: Ecoporanga | C26: 28.93508697 | D26: 10.52184981
A27: METROPOLITANA | B27: Fundão | C27: 91.5407855 | D27: 51.76233635
A28: CENTRAL-NORTE | B28: Governador Lindenberg | C28: 84.86265342 | D28: 48.91876096
A29: SUL | B29: Guaçuí | C29: 29.65634281 | D29: 8.273228681
A30: METROPOLITANA | B30: Guarapari | C30: 20.12753793 | D30: 7.534999634
A31: METROPOLITANA | B31: Ibatiba | C31: 84.42037336 | D31: 39.47914266
A32: METROPOLITANA | B32: Ibiraçu | C32: 87.8779473 | D32: 51.26213592
A33: SUL | B33: Ibitirama | C33: 57.89621318 | D33: 17.33520337
A34: SUL | B34: Iconha | C34: 49.3718593 | D34: 18.09045226
A35: SUL | B35: Irupi | C35: 52.61813538 | D35: 12.13282248
A36: METROPOLITANA | B36: Itaguaçu | C36: 105.2302888 | D36: 82.43559719
A37: SUL | B37: Itapemirim | C37: 20.89818306 | D37: 6.499828591
A38: METROPOLITANA | B38: Itarana | C38: 105.8691589 | D38: 71.10280374
A39: SUL | B39: Iúna | C39: 42.64585045 | D39: 9.73705834
A40: CENTRAL-NORTE | B40: Jaguaré | C40: 22.70009815 | D40: 8.780226644
A41: SUL | B41: Jerônimo Monteiro | C41: 51.17998294 | D41: 14.67159511
A42: METROPOLITANA | B42: João Neiva | C42: 84.08481599 | D42: 48.98854497
A43: METROPOLITANA | B43: Laranja da Terra | C43: 99.31305201 | D43: 69.47988224
A44: CENTRAL-NORTE | B44: Linhares | C44: 59.75689318 | D44: 24.95965388
A45: CENTRAL-NORTE | B45: Mantenópolis | C45: 85.86907449 | D45: 33.58916479
A46: SUL | B46: Marataízes | C46: 35.15775918 | D46: 8.456750376
A47: METROPOLITANA | B47: Marechal Floriano | C47: 88.16454593 | D47: 52.18755447
A48: CENTRAL-NORTE | B48: Marilândia | C48: 68.18580193 | D48: 27.51971954
A49: SUL | B49: Mimoso do Sul | C49: 25.68807339 | D49: 8.090075063
A50: CENTRAL-NORTE | B50: Montanha | C50: 57.02101736 | D50: 20.01218398
A51: CENTRAL-NORTE | B51: Mucurici | C51: 68.48446417 | D51: 36.9055168
A52: SUL | B52: Muniz Freire | C52: 58.64583333 | D52: 20
A53: SUL | B53: Muqui | C53: 23.83245065 | D53: 9.24410207
A54: CENTRAL-NORTE | B54: Nova Venécia | C54: 26.54097172 | D54: 8.504186169
A55: CENTRAL-NORTE | B55: Pancas | C55: 76.14058804 | D55: 38.22237242
A56: CENTRAL-NORTE | B56: Pedro Canário | C56: 50.32010243 | D56: 21.04993598
A57: CENTRAL-NORTE | B57: Pinheiros | C57: 26.26102692 | D57: 7.192942773
A58: SUL | B58: Piúma | C58: 42.43580337 | D58: 9.420396185
A59: CENTRAL-NORTE | B59: Ponto Belo | C59: 82.81758958 | D59: 32.98045603
A60: SUL | B60: Presidente Kennedy | C60: 79.10220092 | D60: 16.99716714
A61: CENTRAL-NORTE | B61: Rio Bananal | C61: 69.91607489 | D61: 36.89477082
A62: SUL | B62: Rio Novo do Sul | C62: 58.02886091 | D62: 18.42186061
A63: METROPOLITANA | B63: Santa Leopoldina | C63: 73.90206966 | D63: 43.76577486
A64: METROPOLITANA | B64: Santa Maria de Jetibá | C64: 78.25694288 | D64: 42.492662
A65: METROPOLITANA | B65: Santa Teresa | C65: 80.37183785 | D65: 42.60896068
A66: CENTRAL-NORTE | B66: São Domingos do Norte | C66: 57.28760717 | D66: 25.48713952
A67: CENTRAL-NORTE | B67: São Gabriel da Palha | C67: 74.33628319 | D67: 23.92363528
A68: SUL | B68: São José do Calçado | C68: 45.72587656 | D68: 8.693132425
A69: CENTRAL-NORTE | B69: São Mateus | C69: 32.96463925 | D69: 9.700607498
A70: CENTRAL-NORTE | B70: São Roque do Canaã | C70: 90.05128205 | D70: 47.17948718
A71: METROPOLITANA | B71: Serra | C71: 48.79926532 | D71: 19.07097725
A72: CENTRAL-NORTE | B72: Sooretama | C72: 52.87034444 | D72: 22.29067488
A73: SUL | B73: Vargem Alta | C73: 67.12307453 | D73: 23.52575074
A74: METROPOLITANA | B74: Venda Nova do Imigrante | C74: 68.63278454 | D74: 38.99785254
A75: METROPOLITANA | B75: Viana | C75: 74.84889999 | D75: 31.9606737
A76: CENTRAL-NORTE | B76: Vila Pavão | C76: 58.40336134 | D76: 26.05042017
A77: CENTRAL-NORTE | B77: Vila Valério | C77: 62.75255527 | D77: 26.95507488
A78: METROPOLITANA | B78: Vila Velha | C78: 49.36855192 | D78: 19.91842432
A79: METROPOLITANA | B79: Vitória | C79: 69.90323881 | D79: 33.40948797
A80: TOTAL | C80: 53.39242516 | D80: 22.89592592
A83: Vacina Dengue (Atenuada)
A84: Período avaliado: 2024-2025
A85: Faixa Etária: 10 a 14 anos.
A86: Fonte: https://www.vacinaeconfia.es.gov.br
A87: *Dados parciais:
A88: Dados de Janeiro/2024 a Março/2025 extraídos do Vacina e Confia em em 01/04/2025
A90: População proporcional extraída do Censo IBGE 2022
A91: Cobertura Calculada por município de procedência da vacinação
A93: Observações:
A94: 1. Imunobiológicos que foram recebidos parcialmente pelo estado no mês de Março/2025, sendo distribuídos em quantidades reduzidas às regionais e municípios:
A95: SORO ANTIRRÁBICO HUMANO, IMUNOGLOBULINA ANTIRRÁBICA HUMANA, VACINA COVID-19 MODERNA (SPIKEVAX),VACINA CONTRA VARICELA.
A96: 2. Imunobiológicos indisponíveis no mês de Março/2025, não sendo possível a distribuição às regionais e municípios:
A97: VACINA TRÍPLICE ACELULAR (DTPa) - CRIE

Sheet dTpa gestantes - procedência
A1: REGIONAL | B1: MUNICÍPIO | C1: ¹POPULAÇÃO GESTANTE ANUAL | D1: ²POPULAÇÃO PROPORCIONAL | E1: DOSES APLICADAS dTpa GESTANTES | F1: COBERTURA VACINAL dTpa GESTANTES
A2: Metropolitana | B2: Afonso Cláudio | C2: 355 | D2: 86 | E2: 89 | F2: =E2/D2 -> 1.034883721
A3: Norte | B3: Água Doce do Norte | C3: 181 | D3: 51 | E3: 25 | F3: =E3/D3 -> 0.4901960784
A4: Central | B4: Águia Branca | C4: 146 | D4: 43 | E4: 37 | F4: 0.8604651163
A5: Sul | B5: Alegre | C5: 264 | D5: 59 | E5: 80 | F5: 1.355932203
A6: Sul | B6: Alfredo Chaves | C6: 112 | D6: 27 | E6: 36 | F6: 1.333333333
A7: Central | B7: Alto Rio Novo | C7: 89 | D7: 19 | E7: 30 | F7: 1.578947368
A8: Sul | B8: Anchieta | C8: 315 | D8: 73 | E8: 86 | F8: 1.178082192
A9: Sul | B9: Apiacá | C9: 72 | D9: 19 | E9: 13 | F9: 0.6842105263
A10: Metropolitana | B10: Aracruz | C10: 1384 | D10: 385 | E10: 375 | F10: 0.974025974
A11: Sul | B11: Atilio Vivacqua | C11: 125 | D11: 20 | E11: 32 | F11: 1.6
A12: Central | B12: Baixo Guandu | C12: 350 | D12: 105 | E12: 101 | F12: 0.9619047619
A13: Norte | B13: Barra de São Francisco | C13: 591 | D13: 149 | E13: 140 | F13: 0.9395973154
A14: Norte | B14: Boa Esperança | C14: 205 | D14: 57 | E14: 63 | F14: 1.105263158
A15: Sul | B15: Bom Jesus do Norte | C15: 73 | D15: 16 | E15: 27 | F15: 1.6875
A16: Metropolitana | B16: Brejetuba | C16: 202 | D16: 50 | E16: 42 | F16: 0.84
A17: Sul | B17: Cachoeiro de Itapemirim | C17: 1946 | D17: 457 | E17: 530 | F17: 1.159737418
A18: Metropolitana | B18: Cariacica | C18: 4767 | D18: 1221 | E18: 1034 | F18: 0.8468468468
A19: Sul | B19: Castelo | C19: 370 | D19: 96 | E19: 105 | F19: 1.09375
A20: Central | B20: Colatina | C20: 1490 | D20: 382 | E20: 371 | F20: 0.9712041885
A21: Norte | B21: Conceição da Barra | C21: 364 | D21: 107 | E21: 114 | F21: 1.065420561
A22: Metropolitana | B22: Conceição do Castelo | C22: 162 | D22: 37 | E22: 40 | F22: 1.081081081
A23: Sul | B23: Divino de São Lourenço | C23: 51 | D23: 13 | E23: 7 | F23: 0.5384615385
A24: Metropolitana | B24: Domingos Martins | C24: 421 | D24: 100 | E24: 104 | F24: 1.04
A25: Sul | B25: Dores do Rio Preto | C25: 94 | D25: 22 | E25: 26 | F25: 1.181818182
A26: Norte | B26: Ecoporanga | C26: 256 | D26: 71 | E26: 47 | F26: 0.661971831
A27: Metropolitana | B27: Fundão | C27: 222 | D27: 62 | E27: 59 | F27: 0.9516129032
A28: Central | B28: Governador Lindenberg | C28: 116 | D28: 31 | E28: 40 | F28: 1.290322581
A29: Sul | B29: Guaçuí | C29: 358 | D29: 86 | E29: 77 | F29: 0.8953488372
A30: Metropolitana | B30: Guarapari | C30: 1706 | D30: 422 | E30: 366 | F30: 0.8672985782
A31: Metropolitana | B31: Ibatiba | C31: 379 | D31: 87 | E31: 106 | F31: 1.218390805
A32: Metropolitana | B32: Ibiraçu | C32: 149 | D32: 38 | E32: 32 | F32: 0.8421052632
A33: Sul | B33: Ibitirama | C33: 133 | D33: 30 | E33: 32 | F33: 1.066666667
A34: Sul | B34: Iconha | C34: 106 | D34: 25 | E34: 30 | F34: 1.2
A35: Sul | B35: Irupi | C35: 170 | D35: 47 | E35: 51 | F35: 1.085106383
A36: Metropolitana | B36: Itaguaçu | C36: 137 | D36: 41 | E36: 29 | F36: 0.7073170732
A37: Sul | B37: Itapemirim | C37: 459 | D37: 97 | E37: 112 | F37: 1.154639175
A38: Metropolitana | B38: Itarana | C38: 129 | D38: 34 | E38: 34 | F38: 1
A39: Sul | B39: Iúna | C39: 418 | D39: 111 | E39: 92 | F39: 0.8288288288
A40: Norte | B40: Jaguaré | C40: 474 | D40: 129 | E40: 105 | F40: 0.8139534884
A41: Sul | B41: Jerônimo Monteiro | C41: 119 | D41: 26 | E41: 32 | F41: 1.230769231
A42: Metropolitana | B42: João Neiva | C42: 153 | D42: 32 | E42: 36 | F42: 1.125
A43: Metropolitana | B43: Laranja da Terra | C43: 101 | D43: 25 | E43: 33 | F43: 1.32
A44: Central | B44: Linhares | C44: 2663 | D44: 696 | E44: 581 | F44: 0.8347701149
A45: Central | B45: Mantenópolis | C45: 138 | D45: 38 | E45: 29 | F45: 0.7631578947
A46: Sul | B46: Marataízes | C46: 500 | D46: 120 | E46: 129 | F46: 1.075
A47: Metropolitana | B47: Marechal Floriano | C47: 204 | D47: 64 | E47: 43 | F47: 0.671875
A48: Central | B48: Marilândia | C48: 146 | D48: 37 | E48: 40 | F48: 1.081081081
A49: Sul | B49: Mimoso do Sul | C49: 219 | D49: 46 | E49: 55 | F49: 1.195652174
A50: Norte | B50: Montanha | C50: 230 | D50: 63 | E50: 67 | F50: 1.063492063
A51: Norte | B51: Mucurici | C51: 70 | D51: 16 | E51: 14 | F51: 0.875
A52: Sul | B52: Muniz Freire | C52: 201 | D52: 46 | E52: 69 | F52: 1.5
A53: Sul | B53: Muqui | C53: 119 | D53: 23 | E53: 48 | F53: 2.086956522
A54: Norte | B54: Nova Venécia | C54: 657 | D54: 163 | E54: 181 | F54: 1.110429448
A55: Central | B55: Pancas | C55: 206 | D55: 58 | E55: 50 | F55: 0.8620689655
A56: Norte | B56: Pedro Canário | C56: 331 | D56: 93 | E56: 85 | F56: 0.9139784946
A57: Norte | B57: Pinheiros | C57: 314 | D57: 74 | E57: 70 | F57: 0.9459459459
A58: Sul | B58: Piúma | C58: 275 | D58: 62 | E58: 62 | F58: 1
A59: Norte | B59: Ponto Belo | C59: 82 | D59: 14 | E59: 23 | F59: 1.642857143
A60: Sul | B60: Presidente Kennedy | C60: 171 | D60: 45 | E60: 49 | F60: 1.088888889
A61: Central | B61: Rio Bananal | C61: 301 | D61: 70 | E61: 82 | F61: 1.171428571
A62: Sul | B62: Rio Novo do Sul | C62: 87 | D62: 16 | E62: 25 | F62: 1.5625
A63: Metropolitana | B63: Santa Leopoldina | C63: 81 | D63: 17 | E63: 26 | F63: 1.529411765
A64: Metropolitana | B64: Santa Maria de Jetibá | C64: 664 | D64: 167 | E64: 138 | F64: 0.8263473054
A65: Metropolitana | B65: Santa Teresa | C65: 299 | D65: 80 | E65: 65 | F65: 0.8125
A66: Central | B66: São Domingos do Norte | C66: 112 | D66: 25 | E66: 27 | F66: 1.08
A67: Central | B67: São Gabriel da Palha | C67: 415 | D67: 110 | E67: 100 | F67: =E67/D67 -> 0.9090909091
A68: Sul | B68: São José do Calçado | C68: 94 | D68: 24 | E68: 14 | F68: 0.5833333333
A69: Norte | B69: São Mateus | C69: 1814 | D69: 462 | E69: 376 | F69: 0.8138528139
A70: Central | B70: São Roque do Canaã | C70: 129 | D70: 46 | E70: 34 | F70: 0.7391304348
A71: Metropolitana | B71: Serra | C71: 7312 | D71: 1898 | E71: 1632 | F71: 0.8598524763
A72: Central | B72: Sooretama | C72: 429 | D72: 98 | E72: 113 | F72: 1.153061224
A73: Sul | B73: Vargem Alta | C73: 212 | D73: 50 | E73: 59 | F73: 1.18
A74: Metropolitana | B74: Venda Nova do Imigrante | C74: 337 | D74: 81 | E74: 86 | F74: 1.061728395
A75: Metropolitana | B75: Viana | C75: 891 | D75: 219 | E75: 229 | F75: 1.0456621
A76: Norte | B76: Vila Pavão | C76: 110 | D76: 29 | E76: 30 | F76: 1.034482759
A77: Central | B77: Vila Valério | C77: 232 | D77: 62 | E77: 63 | F77: 1.016129032
A78: Metropolitana | B78: Vila Velha | C78: 5446 | D78: 1417 | E78: 1167 | F78: 0.8235709245
A79: Metropolitana | B79: Vitória | C79: 3452 | D79: 876 | E79: 969 | F79: 1.106164384
B81: Total Norte | C81: =SUMIF($A$2:$A$79,"Norte",C$2:C$79) -> 5679 | D81: =SUMIF($A$2:$A$79,"Norte",D$2:D$79) -> 1478 | E81: =SUMIF($A$2:$A$79,"Norte",E$2:E$79) -> 1340 | F81: 0.9066305819
B82: Total Central | C82: =SUMIF($A$2:$A$79,"CENTRAL",C$2:C$79) -> 6962 | D82: =SUMIF($A$2:$A$79,"CENTRAL",D$2:D$79) -> 1820 | E82: =SUMIF($A$2:$A$79,"Central",E$2:E$79) -> 1698 | F82: 0.932967033
B83: Total Metropolitana | C83: =SUMIF($A$2:$A$79,"METROPOLITANA",C$2:C$79) -> 28953 | D83: =SUMIF($A$2:$A$79,"METROPOLITANA",D$2:D$79) -> 7439 | E83: =SUMIF($A$2:$A$79,"Metropolitana",E$2:E$79) -> 6734 | F83: 0.9052291975
B84: Total Sul | C84: =SUMIF($A$2:$A$79,"SUL",C$2:C$79) -> 7063 | D84: =SUMIF($A$2:$A$79,"SUL",D$2:D$79) -> 1656 | E84: =SUMIF($A$2:$A$79,"Sul",E$2:E$79) -> 1878 | F84: 1.134057971
B85: TOTAL ES | C85: =SUM(C2:C79) -> 48657 | D85: =SUM(D2:D79) -> 12393 | E85: =SUM(E2:E79) -> 11650 | F85: =E85/D85 -> 0.9400468006
B86: HOMOGENEIDADE ENTRE MUNICÍPIOS | F86: =COUNTIF(F2:F79,">=0,95")/78 -> 0.6282051282
A89: Cobertura Vacinal dTpa das Gestantes de Março de 2025
A90: Fonte: Vacina e Confia, em 22 de abril de 2025.**
A91: **Dados referente às doses aplicadas no período de Janeiro a Março de 2025
A92: Cobertura Calculada por município de procedência/ocorrência da vacinação
A93: 1 População anual extraída do MS/SVS/DASIS - SINASC/DASIS/SVS/MS 2024 (hoje preliminares) referente ao período de fevereiro a dezembro de 2024 e SINASC/DASIS/SVS/MS referente ao período de janeiro de 2025.
A94: ² População proporcional extraída do MS/SVS/DASIS - SINASC/DASIS/SVS/MS 2024 (hoje preliminares) referente ao período de Fevereiro e Março/2024 e Janeiro/2025.
A95: Sinasc, atualizado em 09/04/2025.
A96: Homogeineidade: O cálculo da Homogeineidade entre vacinas é feito de acordo com a pactuação estabelecida no Plano Plurianual (PPA) vigente no período 2024-2027.
A98: Observações:
A99: 1. Imunobiológicos que foram recebidos parcialmente pelo estado no mês de Março/2025, sendo distribuídos em quantidades reduzidas às regionais e municípios:
A100: SORO ANTIRRÁBICO HUMANO, IMUNOGLOBULINA ANTIRRÁBICA HUMANA, VACINA COVID-19 MODERNA (SPIKEVAX),VACINA CONTRA VARICELA.
A101: 2. Imunobiológicos indisponíveis no mês de Março/2025, não sendo possível a distribuição às regionais e municípios:
A102: VACINA TRÍPLICE ACELULAR (DTPa) - CRIE

Sheet dTpa gestantes - residência
A1: REGIONAL | B1: MUNICÍPIO | C1: ¹POPULAÇÃO GESTANTE ANUAL | D1: ¹POPULAÇÃO PROPORCIONAL | E1: DOSES APLICADAS dTpa GESTANTES | F1: COBERTURA VACINAL dTpa GESTANTES
A2: Metropolitana | B2: Afonso Cláudio | C2: 355 | D2: 86 | E2: 83 | F2: =E2/D2 -> 0.9651162791
A3: Norte | B3: Água Doce do Norte | C3: 181 | D3: 51 | E3: 20 | F3: =E3/D3 -> 0.3921568627
A4: Central | B4: Águia Branca | C4: 146 | D4: 43 | E4: 28 | F4: 0.6511627907
A5: Sul | B5: Alegre | C5: 264 | D5: 59 | E5: 80 | F5: 1.355932203
A6: Sul | B6: Alfredo Chaves | C6: 112 | D6: 27 | E6: 38 | F6: 1.407407407
A7: Central | B7: Alto Rio Novo | C7: 89 | D7: 19 | E7: 28 | F7: 1.473684211
A8: Sul | B8: Anchieta | C8: 315 | D8: 73 | E8: 79 | F8: 1.082191781
A9: Sul | B9: Apiacá | C9: 72 | D9: 19 | E9: 16 | F9: 0.8421052632
A10: Metropolitana | B10: Aracruz | C10: 1384 | D10: 385 | E10: 342 | F10: 0.8883116883
A11: Sul | B11: Atilio Vivacqua | C11: 125 | D11: 20 | E11: 34 | F11: 1.7
A12: Central | B12: Baixo Guandu | C12: 350 | D12: 105 | E12: 93 | F12: 0.8857142857
A13: Norte | B13: Barra de São Francisco | C13: 591 | D13: 149 | E13: 134 | F13: 0.8993288591
A14: Norte | B14: Boa Esperança | C14: 205 | D14: 57 | E14: 64 | F14: 1.122807018
A15: Sul | B15: Bom Jesus do Norte | C15: 73 | D15: 16 | E15: 21 | F15: 1.3125
A16: Metropolitana | B16: Brejetuba | C16: 202 | D16: 50 | E16: 47 | F16: 0.94
A17: Sul | B17: Cachoeiro de Itapemirim | C17: 1946 | D17: 457 | E17: 500 | F17: 1.094091904
A18: Metropolitana | B18: Cariacica | C18: 4767 | D18: 1221 | E18: 1128 | F18: 0.9238329238
A19: Sul | B19: Castelo | C19: 370 | D19: 96 | E19: 111 | F19: 1.15625
A20: Central | B20: Colatina | C20: 1490 | D20: 382 | E20: 372 | F20: 0.9738219895
A21: Norte | B21: Conceição da Barra | C21: 364 | D21: 107 | E21: 113 | F21: 1.056074766
A22: Metropolitana | B22: Conceição do Castelo | C22: 162 | D22: 37 | E22: 40 | F22: 1.081081081
A23: Sul | B23: Divino de São Lourenço | C23: 51 | D23: 13 | E23: 10 | F23: 0.7692307692
A24: Metropolitana | B24: Domingos Martins | C24: 421 | D24: 100 | E24: 105 | F24: 1.05
A25: Sul | B25: Dores do Rio Preto | C25: 94 | D25: 22 | E25: 20 | F25: 0.9090909091
A26: Norte | B26: Ecoporanga | C26: 256 | D26: 71 | E26: 48 | F26: 0.676056338
A27: Metropolitana | B27: Fundão | C27: 222 | D27: 62 | E27: 62 | F27: 1
A28: Central | B28: Governador Lindenberg | C28: 116 | D28: 31 | E28: 42 | F28: 1.35483871
A29: Sul | B29: Guaçuí | C29: 358 | D29: 86 | E29: 77 | F29: 0.8953488372
A30: Metropolitana | B30: Guarapari | C30: 1706 | D30: 422 | E30: 342 | F30: 0.8104265403
A31: Metropolitana | B31: Ibatiba | C31: 379 | D31: 87 | E31: 95 | F31: 1.091954023
A32: Metropolitana | B32: Ibiraçu | C32: 149 | D32: 38 | E32: 43 | F32: 1.131578947
A33: Sul | B33: Ibitirama | C33: 133 | D33: 30 | E33: 43 | F33: 1.433333333
A34: Sul | B34: Iconha | C34: 106 | D34: 25 | E34: 25 | F34: 1
A35: Sul | B35: Irupi | C35: 170 | D35: 47 | E35: 46 | F35: 0.9787234043
A36: Metropolitana | B36: Itaguaçu | C36: 137 | D36: 41 | E36: 28 | F36: 0.6829268293
A37: Sul | B37: Itapemirim | C37: 459 | D37: 97 | E37: 121 | F37: 1.24742268
A38: Metropolitana | B38: Itarana | C38: 129 | D38: 34 | E38: 37 | F38: 1.088235294
A39: Sul | B39: Iúna | C39: 418 | D39: 111 | E39: 91 | F39: 0.8198198198
A40: Norte | B40: Jaguaré | C40: 474 | D40: 129 | E40: 105 | F40: 0.8139534884
A41: Sul | B41: Jerônimo Monteiro | C41: 119 | D41: 26 | E41: 32 | F41: 1.230769231
A42: Metropolitana | B42: João Neiva | C42: 153 | D42: 32 | E42: 31 | F42: 0.96875
A43: Metropolitana | B43: Laranja da Terra | C43: 101 | D43: 25 | E43: 38 | F43: 1.52
A44: Central | B44: Linhares | C44: 2663 | D44: 696 | E44: 538 | F44: 0.7729885057
A45: Central | B45: Mantenópolis | C45: 138 | D45: 38 | E45: 28 | F45: 0.7368421053
A46: Sul | B46: Marataízes | C46: 500 | D46: 120 | E46: 122 | F46: 1.016666667
A47: Metropolitana | B47: Marechal Floriano | C47: 204 | D47: 64 | E47: 47 | F47: 0.734375
A48: Central | B48: Marilândia | C48: 146 | D48: 37 | E48: 32 | F48: 0.8648648649
A49: Sul | B49: Mimoso do Sul | C49: 219 | D49: 46 | E49: 61 | F49: 1.326086957
A50: Norte | B50: Montanha | C50: 230 | D50: 63 | E50: 75 | F50: 1.19047619
A51: Norte | B51: Mucurici | C51: 70 | D51: 16 | E51: 14 | F51: 0.875
A52: Sul | B52: Muniz Freire | C52: 201 | D52: 46 | E52: 58 | F52: 1.260869565
A53: Sul | B53: Muqui | C53: 119 | D53: 23 | E53: 45 | F53: 1.956521739
A54: Norte | B54: Nova Venécia | C54: 657 | D54: 163 | E54: 189 | F54: 1.159509202
A55: Central | B55: Pancas | C55: 206 | D55: 58 | E55: 54 | F55: 0.9310344828
A56: Norte | B56: Pedro Canário | C56: 331 | D56: 93 | E56: 95 | F56: 1.021505376
A57: Norte | B57: Pinheiros | C57: 314 | D57: 74 | E57: 79 | F57: 1.067567568
A58: Sul | B58: Piúma | C58: 275 | D58: 62 | E58: 57 | F58: 0.9193548387
A59: Norte | B59: Ponto Belo | C59: 82 | D59: 14 | E59: 21 | F59: 1.5
A60: Sul | B60: Presidente Kennedy | C60: 171 | D60: 45 | E60: 56 | F60: 1.244444444
A61: Central | B61: Rio Bananal | C61: 301 | D61: 70 | E61: 94 | F61: 1.342857143
A62: Sul | B62: Rio Novo do Sul | C62: 87 | D62: 16 | E62: 26 | F62: 1.625
A63: Metropolitana | B63: Santa Leopoldina | C63: 81 | D63: 17 | E63: 36 | F63: 2.117647059
A64: Metropolitana | B64: Santa Maria de Jetibá | C64: 664 | D64: 167 | E64: 115 | F64: 0.6886227545
A65: Metropolitana | B65: Santa Teresa | C65: 299 | D65: 80 | E65: 65 | F65: 0.8125
A66: Central | B66: São Domingos do Norte | C66: 112 | D66: 25 | E66: 36 | F66: 1.44
A67: Central | B67: São Gabriel da Palha | C67: 415 | D67: 110 | E67: 90 | F67: =E67/D67 -> 0.8181818182
A68: Sul | B68: São José do Calçado | C68: 94 | D68: 24 | E68: 11 | F68: 0.4583333333
A69: Norte | B69: São Mateus | C69: 1814 | D69: 462 | E69: 348 | F69: 0.7532467532
A70: Central | B70: São Roque do Canaã | C70: 129 | D70: 46 | E70: 38 | F70: 0.8260869565
A71: Metropolitana | B71: Serra | C71: 7312 | D71: 1898 | E71: 1573 | F71: 0.8287671233
A72: Central | B72: Sooretama | C72: 429 | D72: 98 | E72: 124 | F72: 1.265306122
A73: Sul | B73: Vargem Alta | C73: 212 | D73: 50 | E73: 63 | F73: 1.26
A74: Metropolitana | B74: Venda Nova do Imigrante | C74: 337 | D74: 81 | E74: 97 | F74: 1.197530864
A75: Metropolitana | B75: Viana | C75: 891 | D75: 219 | E75: 251 | F75: 1.146118721
A76: Norte | B76: Vila Pavão | C76: 110 | D76: 29 | E76: 28 | F76: 0.9655172414
A77: Central | B77: Vila Valério | C77: 232 | D77: 62 | E77: 55 | F77: 0.8870967742
A78: Metropolitana | B78: Vila Velha | C78: 5446 | D78: 1417 | E78: 1024 | F78: 0.7226534933
A79: Metropolitana | B79: Vitória | C79: 3452 | D79: 876 | E79: 870 | F79: 0.9931506849
B81: Total Norte | C81: =SUMIF($A$2:$A$79,"Norte",C$2:C$79) -> 5679 | D81: =SUMIF($A$2:$A$79,"Norte",D$2:D$79) -> 1478 | E81: =SUMIF($A$2:$A$79,"Norte",E$2:E$79) -> 1333 | F81: 0.901894452
B82: Total Central | C82: =SUMIF($A$2:$A$79,"CENTRAL",C$2:C$79) -> 6962 | D82: =SUMIF($A$2:$A$79,"CENTRAL",D$2:D$79) -> 1820 | E82: =SUMIF($A$2:$A$79,"CENTRAL",E$2:E$79) -> 1652 | F82: 0.9076923077
B83: Total Metropolitana | C83: =SUMIF($A$2:$A$79,"METROPOLITANA",C$2:C$79) -> 28953 | D83: =SUMIF($A$2:$A$79,"METROPOLITANA",D$2:D$79) -> 7439 | E83: =SUMIF($A$2:$A$79,"METROPOLITANA",E$2:E$79) -> 6499 | F83: 0.87363893
B84: Total Sul | C84: =SUMIF($A$2:$A$79,"SUL",C$2:C$79) -> 7063 | D84: =SUMIF($A$2:$A$79,"SUL",D$2:D$79) -> 1656 | E84: =SUMIF($A$2:$A$79,"SUL",E$2:E$79) -> 1843 | F84: 1.112922705
B85: TOTAL ES | C85: =SUM(C2:C79) -> 48657 | D85: =SUM(D2:D79) -> 12393 | E85: =SUM(E2:E79) -> 11327 | F85: =E85/D85 -> 0.9139837005
B86: HOMOGENEIDADE ENTRE MUNICÍPIOS | E86: =COUNTIF(F2:F79,">=0,95") -> 46 | F86: =COUNTIF(F2:F79,">=0,95")/78 -> 0.5897435897
A89: Cobertura Vacinal dTpa das Gestantes de Março de 2025
A90: Fonte: Vacina e Confia, em 22 de Abril de 2025.**
A91: **Dados referente às doses aplicadas no período de Janeiro a Março de 2025
A92: Cobertura Calculada por município de residência do cidadão (no Vacina e Confia, a origem da informação é o endereço que consta no cadastro do cidadão preenchido manualmente por meio do autocadastro ou pelo cadastro realizado por um profissional de saúde no momento do atendimento).
A93: 1 População anual extraída do MS/SVS/DASIS - SINASC/DASIS/SVS/MS 2024 (hoje preliminares) referente ao período de Fevereiro a Dezembro/ 2024 e SINASC/DASIS/SVS/MS 2023 referente ao período de Janeiro/2025.
A94: ² População proporcional extraída do MS/SVS/DASIS - SINASC/DASIS/SVS/MS 2024 (hoje preliminares) referente ao período de Fevereiro e Março/ 2024 e Janeiro/2025.
A95: Sinasc, atualizado em 09/04/2025.
A96: Homogeineidade: O cálculo da Homogeineidade entre vacinas é feito de acordo com a pactuação estabelecida no Plano Plurianual (PPA) vigente no período 2024-2027.
A98: Observações:
A99: 1. Imunobiológicos que foram recebidos parcialmente pelo estado no mês de Março/2025, sendo distribuídos em quantidades reduzidas às regionais e municípios:
A100: SORO ANTIRRÁBICO HUMANO, IMUNOGLOBULINA ANTIRRÁBICA HUMANA, VACINA COVID-19 MODERNA (SPIKEVAX),VACINA CONTRA VARICELA.
A101: 2. Imunobiológicos indisponíveis no mês de Março/2025, não sendo possível a distribuição às regionais e municípios:
A102: VACINA TRÍPLICE ACELULAR (DTPa) - CRIE

Sheet COVID-19 gestantes -Procedência
A1: REGIONAL | B1: MUNICÍPIO | C1: ¹POPULAÇÃO GESTANTE ANUAL | D1: ²POPULAÇÃO PROPORCIONAL | E1: DOSES APLICADAS dTpa GESTANTES | F1: COBERTURA VACINAL dTpa GESTANTES
A2: Metropolitana | B2: Afonso Cláudio | C2: 355 | D2: 86 | E2: 0 | F2: =E2/D2 -> 0
A3: Norte | B3: Água Doce do Norte | C3: 181 | D3: 51 | E3: 1 | F3: =E3/D3 -> 0.01960784314
A4: Central | B4: Águia Branca | C4: 146 | D4: 43 | E4: 0 | F4: 0
A5: Sul | B5: Alegre | C5: 264 | D5: 59 | E5: 7 | F5: 0.1186440678
A6: Sul | B6: Alfredo Chaves | C6: 112 | D6: 27 | E6: 0 | F6: 0
A7: Central | B7: Alto Rio Novo | C7: 89 | D7: 19 | E7: 0 | F7: 0
A8: Sul | B8: Anchieta | C8: 315 | D8: 73 | E8: 10 | F8: 0.1369863014
A9: Sul | B9: Apiacá | C9: 72 | D9: 19 | E9: 0 | F9: 0
A10: Metropolitana | B10: Aracruz | C10: 1384 | D10: 385 | E10: 72 | F10: 0.187012987
A11: Sul | B11: Atilio Vivacqua | C11: 125 | D11: 20 | E11: 0 | F11: 0
A12: Central | B12: Baixo Guandu | C12: 350 | D12: 105 | E12: 0 | F12: 0
A13: Norte | B13: Barra de São Francisco | C13: 591 | D13: 149 | E13: 0 | F13: 0
A14: Norte | B14: Boa Esperança | C14: 205 | D14: 57 | E14: 2 | F14: 0.0350877193
A15: Sul | B15: Bom Jesus do Norte | C15: 73 | D15: 16 | E15: 3 | F15: 0.1875
A16: Metropolitana | B16: Brejetuba | C16: 202 | D16: 50 | E16: 0 | F16: 0
A17: Sul | B17: Cachoeiro de Itapemirim | C17: 1946 | D17: 457 | E17: 28 | F17: 0.06126914661
A18: Metropolitana | B18: Cariacica | C18: 4767 | D18: 1221 | E18: 348 | F18: 0.285012285
A19: Sul | B19: Castelo | C19: 370 | D19: 96 | E19: 0 | F19: 0
A20: Central | B20: Colatina | C20: 1490 | D20: 382 | E20: 63 | F20: 0.164921466
A21: Norte | B21: Conceição da Barra | C21: 364 | D21: 107 | E21: 22 | F21: 0.2056074766
A22: Metropolitana | B22: Conceição do Castelo | C22: 162 | D22: 37 | E22: 2 | F22: 0.05405405405
A23: Sul | B23: Divino de São Lourenço | C23: 51 | D23: 13 | E23: 0 | F23: 0
A24: Metropolitana | B24: Domingos Martins | C24: 421 | D24: 100 | E24: 12 | F24: 0.12
A25: Sul | B25: Dores do Rio Preto | C25: 94 | D25: 22 | E25: 5 | F25: 0.2272727273
A26: Norte | B26: Ecoporanga | C26: 256 | D26: 71 | E26: 6 | F26: 0.08450704225
A27: Metropolitana | B27: Fundão | C27: 222 | D27: 62 | E27: 4 | F27: 0.06451612903
A28: Central | B28: Governador Lindenberg | C28: 116 | D28: 31 | E28: 4 | F28: 0.1290322581
A29: Sul | B29: Guaçuí | C29: 358 | D29: 86 | E29: 1 | F29: 0.01162790698
A30: Metropolitana | B30: Guarapari | C30: 1706 | D30: 422 | E30: 47 | F30: 0.1113744076
A31: Metropolitana | B31: Ibatiba | C31: 379 | D31: 87 | E31: 5 | F31: 0.05747126437
A32: Metropolitana | B32: Ibiraçu | C32: 149 | D32: 38 | E32: 0 | F32: 0
A33: Sul | B33: Ibitirama | C33: 133 | D33: 30 | E33: 10 | F33: 0.3333333333
A34: Sul | B34: Iconha | C34: 106 | D34: 25 | E34: 3 | F34: 0.12
A35: Sul | B35: Irupi | C35: 170 | D35: 47 | E35: 0 | F35: 0
A36: Metropolitana | B36: Itaguaçu | C36: 137 | D36: 41 | E36: 1 | F36: 0.0243902439
A37: Sul | B37: Itapemirim | C37: 459 | D37: 97 | E37: 12 | F37: 0.1237113402
A38: Metropolitana | B38: Itarana | C38: 129 | D38: 34 | E38: 0 | F38: 0
A39: Sul | B39: Iúna | C39: 418 | D39: 111 | E39: 2 | F39: 0.01801801802
A40: Norte | B40: Jaguaré | C40: 474 | D40: 129 | E40: 13 | F40: 0.1007751938
A41: Sul | B41: Jerônimo Monteiro | C41: 119 | D41: 26 | E41: 10 | F41: 0.3846153846
A42: Metropolitana | B42: João Neiva | C42: 153 | D42: 32 | E42: 0 | F42: 0
A43: Metropolitana | B43: Laranja da Terra | C43: 101 | D43: 25 | E43: 0 | F43: 0
A44: Central | B44: Linhares | C44: 2663 | D44: 696 | E44: 5 | F44: 0.007183908046
A45: Central | B45: Mantenópolis | C45: 138 | D45: 38 | E45: 0 | F45: 0
A46: Sul | B46: Marataízes | C46: 500 | D46: 120 | E46: 4 | F46: 0.03333333333
A47: Metropolitana | B47: Marechal Floriano | C47: 204 | D47: 64 | E47: 10 | F47: 0.15625
A48: Central | B48: Marilândia | C48: 146 | D48: 37 | E48: 2 | F48: 0.05405405405
A49: Sul | B49: Mimoso do Sul | C49: 219 | D49: 46 | E49: 5 | F49: 0.1086956522
A50: Norte | B50: Montanha | C50: 230 | D50: 63 | E50: 4 | F50: 0.06349206349
A51: Norte | B51: Mucurici | C51: 70 | D51: 16 | E51: 7 | F51: 0.4375
A52: Sul | B52: Muniz Freire | C52: 201 | D52: 46 | E52: 1 | F52: 0.02173913043
A53: Sul | B53: Muqui | C53: 119 | D53: 23 | E53: 2 | F53: 0.08695652174
A54: Norte | B54: Nova Venécia | C54: 657 | D54: 163 | E54: 10 | F54: 0.06134969325
A55: Central | B55: Pancas | C55: 206 | D55: 58 | E55: 2 | F55: 0.03448275862
A56: Norte | B56: Pedro Canário | C56: 331 | D56: 93 | E56: 18 | F56: 0.1935483871
A57: Norte | B57: Pinheiros | C57: 314 | D57: 74 | E57: 3 | F57: 0.04054054054
A58: Sul | B58: Piúma | C58: 275 | D58: 62 | E58: 6 | F58: 0.09677419355
A59: Norte | B59: Ponto Belo | C59: 82 | D59: 14 | E59: 0 | F59: 0
A60: Sul | B60: Presidente Kennedy | C60: 171 | D60: 45 | E60: 0 | F60: 0
A61: Central | B61: Rio Bananal | C61: 301 | D61: 70 | E61: 3 | F61: 0.04285714286
A62: Sul | B62: Rio Novo do Sul | C62: 87 | D62: 16 | E62: 1 | F62: 0.0625
A63: Metropolitana | B63: Santa Leopoldina | C63: 81 | D63: 17 | E63: 0 | F63: 0
A64: Metropolitana | B64: Santa Maria de Jetibá | C64: 664 | D64: 167 | E64: 5 | F64: 0.02994011976
A65: Metropolitana | B65: Santa Teresa | C65: 299 | D65: 80 | E65: 6 | F65: 0.075
A66: Central | B66: São Domingos do Norte | C66: 112 | D66: 25 | E66: 1 | F66: 0.04
A67: Central | B67: São Gabriel da Palha | C67: 415 | D67: 110 | E67: 1 | F67: =E67/D67 -> 0.009090909091
A68: Sul | B68: São José do Calçado | C68: 94 | D68: 24 | E68: 1 | F68: 0.04166666667
A69: Norte | B69: São Mateus | C69: 1814 | D69: 462 | E69: 66 | F69: 0.1428571429
A70: Central | B70: São Roque do Canaã | C70: 129 | D70: 46 | E70: 7 | F70: 0.152173913
A71: Metropolitana | B71: Serra | C71: 7312 | D71: 1898 | E71: 403 | F71: 0.2123287671
A72: Central | B72: Sooretama | C72: 429 | D72: 98 | E72: 11 | F72: 0.112244898
A73: Sul | B73: Vargem Alta | C73: 212 | D73: 50 | E73: 3 | F73: 0.06
A74: Metropolitana | B74: Venda Nova do Imigrante | C74: 337 | D74: 81 | E74: 3 | F74: 0.03703703704
A75: Metropolitana | B75: Viana | C75: 891 | D75: 219 | E75: 47 | F75: 0.2146118721
A76: Norte | B76: Vila Pavão | C76: 110 | D76: 29 | E76: 1 | F76: 0.03448275862
A77: Central | B77: Vila Valério | C77: 232 | D77: 62 | E77: 0 | F77: 0
A78: Metropolitana | B78: Vila Velha | C78: 5446 | D78: 1417 | E78: 261 | F78: 0.1841919548
A79: Metropolitana | B79: Vitória | C79: 3452 | D79: 876 | E79: 230 | F79: 0.2625570776
B81: Total Norte | C81: =SUMIF($A$2:$A$79,"Norte",C$2:C$79) -> 5679 | D81: =SUMIF($A$2:$A$79,"Norte",D$2:D$79) -> 1478 | E81: =SUMIF($A$2:$A$79,"Norte",E$2:E$79) -> 153 | F81: =E81/D81 -> 0.1035182679
B82: Total Central | C82: =SUMIF($A$2:$A$79,"CENTRAL",C$2:C$79) -> 6962 | D82: =SUMIF($A$2:$A$79,"CENTRAL",D$2:D$79) -> 1820 | E82: =SUMIF($A$2:$A$79,"cENTRAL",E$2:E$79) -> 99 | F82: 0.0543956044
B83: Total Metropolitana | C83: =SUMIF($A$2:$A$79,"METROPOLITANA",C$2:C$79) -> 28953 | D83: =SUMIF($A$2:$A$79,"METROPOLITANA",D$2:D$79) -> 7439 | E83: =SUMIF($A$2:$A$79,"Metropolitana",E$2:E$79) -> 1456 | F83: 0.1957252319
B84: Total Sul | C84: =SUMIF($A$2:$A$79,"SUL",C$2:C$79) -> 7063 | D84: =SUMIF($A$2:$A$79,"SUL",D$2:D$79) -> 1656 | E84: =SUMIF($A$2:$A$79,"sul",E$2:E$79) -> 114 | F84: 0.06884057971
B85: TOTAL ES | C85: =SUM(C2:C79) -> 48657 | D85: =SUM(D2:D79) -> 12393 | E85: =SUM(E2:E79) -> 1822 | F85: =E85/D85 -> 0.1470184782
B86: HOMOGENEIDADE ENTRE MUNICÍPIOS | F86: =COUNTIF(F2:F79,">=0,90")/78 -> 0
A89: Cobertura Vacinal Covid 19 das Gestantes de Março de 2025
A90: Fonte: Vacina e Confia, em 22 de Abril de 2025.**
A91: **Dados referente às doses aplicadas no período de Janeiro a Março de 2025
A92: Cobertura Calculada por município de procedência/ocorrência da vacinação
A93: 1 População anual extraída do MS/SVS/DASIS - SINASC/DASIS/SVS/MS 2024 (hoje preliminares) referente ao período de Fevereiro a Dezembro/ 2024 e SINASC/DASIS/SVS/MS 2025 referente ao período de Janeiro/2025.
A94: ² População proporcional extraída do MS/SVS/DASIS - SINASC/DASIS/SVS/MS 2024 (hoje preliminares) referente ao período de Fevereiro e Março/ 2024 e Janeiro/2025.
A95: Sinasc, atualizado em 09/04/2025.
A96: Homogeineidade: O cálculo da Homogeineidade entre vacinas é feito de acordo com a pactuação estabelecida no Plano Plurianual (PPA) vigente no período 2024-2027.
A98: Observações:
A99: 1. Imunobiológicos que foram recebidos parcialmente pelo estado no mês de Março/2025, sendo distribuídos em quantidades reduzidas às regionais e municípios:
A100: SORO ANTIRRÁBICO HUMANO, IMUNOGLOBULINA ANTIRRÁBICA HUMANA, VACINA COVID-19 MODERNA (SPIKEVAX),VACINA CONTRA VARICELA.
A101: 2. Imunobiológicos indisponíveis no mês de Março/2025, não sendo possível a distribuição às regionais e municípios:
A102: VACINA TRÍPLICE ACELULAR (DTPa) - CRIE

Sheet COVID-19 gestantes -Residência
A1: REGIONAL | B1: MUNICÍPIO | C1: ¹POPULAÇÃO GESTANTE ANUAL | D1: ²POPULAÇÃO PROPORCIONAL | E1: DOSES APLICADAS dTpa GESTANTES | F1: COBERTURA VACINAL dTpa GESTANTES
A2: Metropolitana | B2: Afonso Cláudio | C2: 355 | D2: 86 | E2: 3 | F2: =E2/D2 -> 0.03488372093
A3: Norte | B3: Água Doce do Norte | C3: 181 | D3: 51 | E3: 0 | F3: =E3/D3 -> 0
A4: Central | B4: Águia Branca | C4: 146 | D4: 43 | E4: 1 | F4: 0.02325581395
A5: Sul | B5: Alegre | C5: 264 | D5: 59 | E5: 7 | F5: 0.1186440678
A6: Sul | B6: Alfredo Chaves | C6: 112 | D6: 27 | E6: 1 | F6: 0.03703703704
A7: Central | B7: Alto Rio Novo | C7: 89 | D7: 19 | E7: 0 | F7: 0
A8: Sul | B8: Anchieta | C8: 315 | D8: 73 | E8: 10 | F8: 0.1369863014
A9: Sul | B9: Apiacá | C9: 72 | D9: 19 | E9: 2 | F9: 0.1052631579
A10: Metropolitana | B10: Aracruz | C10: 1384 | D10: 385 | E10: 62 | F10: 0.161038961
A11: Sul | B11: Atilio Vivacqua | C11: 125 | D11: 20 | E11: 0 | F11: 0
A12: Central | B12: Baixo Guandu | C12: 350 | D12: 105 | E12: 2 | F12: 0.01904761905
A13: Norte | B13: Barra de São Francisco | C13: 591 | D13: 149 | E13: 2 | F13: 0.01342281879
A14: Norte | B14: Boa Esperança | C14: 205 | D14: 57 | E14: 3 | F14: 0.05263157895
A15: Sul | B15: Bom Jesus do Norte | C15: 73 | D15: 16 | E15: 2 | F15: 0.125
A16: Metropolitana | B16: Brejetuba | C16: 202 | D16: 50 | E16: 2 | F16: 0.04
A17: Sul | B17: Cachoeiro de Itapemirim | C17: 1946 | D17: 457 | E17: 32 | F17: 0.07002188184
A18: Metropolitana | B18: Cariacica | C18: 4767 | D18: 1221 | E18: 362 | F18: 0.2964782965
A19: Sul | B19: Castelo | C19: 370 | D19: 96 | E19: 1 | F19: 0.01041666667
A20: Central | B20: Colatina | C20: 1490 | D20: 382 | E20: 58 | F20: 0.1518324607
A21: Norte | B21: Conceição da Barra | C21: 364 | D21: 107 | E21: 22 | F21: 0.2056074766
A22: Metropolitana | B22: Conceição do Castelo | C22: 162 | D22: 37 | E22: 5 | F22: 0.1351351351
A23: Sul | B23: Divino de São Lourenço | C23: 51 | D23: 13 | E23: 0 | F23: 0
A24: Metropolitana | B24: Domingos Martins | C24: 421 | D24: 100 | E24: 11 | F24: 0.11
A25: Sul | B25: Dores do Rio Preto | C25: 94 | D25: 22 | E25: 4 | F25: 0.1818181818
A26: Norte | B26: Ecoporanga | C26: 256 | D26: 71 | E26: 8 | F26: 0.1126760563
A27: Metropolitana | B27: Fundão | C27: 222 | D27: 62 | E27: 4 | F27: 0.06451612903
A28: Central | B28: Governador Lindenberg | C28: 116 | D28: 31 | E28: 4 | F28: 0.1290322581
A29: Sul | B29: Guaçuí | C29: 358 | D29: 86 | E29: 3 | F29: 0.03488372093
A30: Metropolitana | B30: Guarapari | C30: 1706 | D30: 422 | E30: 50 | F30: 0.1184834123
A31: Metropolitana | B31: Ibatiba | C31: 379 | D31: 87 | E31: 3 | F31: 0.03448275862
A32: Metropolitana | B32: Ibiraçu | C32: 149 | D32: 38 | E32: 2 | F32: 0.05263157895
A33: Sul | B33: Ibitirama | C33: 133 | D33: 30 | E33: 9 | F33: 0.3
A34: Sul | B34: Iconha | C34: 106 | D34: 25 | E34: 1 | F34: 0.04
A35: Sul | B35: Irupi | C35: 170 | D35: 47 | E35: 0 | F35: 0
A36: Metropolitana | B36: Itaguaçu | C36: 137 | D36: 41 | E36: 3 | F36: 0.07317073171
A37: Sul | B37: Itapemirim | C37: 459 | D37: 97 | E37: 12 | F37: 0.1237113402
A38: Metropolitana | B38: Itarana | C38: 129 | D38: 34 | E38: 2 | F38: 0.05882352941
A39: Sul | B39: Iúna | C39: 418 | D39: 111 | E39: 3 | F39: 0.02702702703
A40: Norte | B40: Jaguaré | C40: 474 | D40: 129 | E40: 11 | F40: 0.08527131783
A41: Sul | B41: Jerônimo Monteiro | C41: 119 | D41: 26 | E41: 6 | F41: 0.2307692308
A42: Metropolitana | B42: João Neiva | C42: 153 | D42: 32 | E42: 0 | F42: 0
A43: Metropolitana | B43: Laranja da Terra | C43: 101 | D43: 25 | E43: 0 | F43: 0
A44: Central | B44: Linhares | C44: 2663 | D44: 696 | E44: 17 | F44: 0.02442528736
A45: Central | B45: Mantenópolis | C45: 138 | D45: 38 | E45: 0 | F45: 0
A46: Sul | B46: Marataízes | C46: 500 | D46: 120 | E46: 5 | F46: 0.04166666667
A47: Metropolitana | B47: Marechal Floriano | C47: 204 | D47: 64 | E47: 12 | F47: 0.1875
A48: Central | B48: Marilândia | C48: 146 | D48: 37 | E48: 1 | F48: 0.02702702703
A49: Sul | B49: Mimoso do Sul | C49: 219 | D49: 46 | E49: 5 | F49: 0.1086956522
A50: Norte | B50: Montanha | C50: 230 | D50: 63 | E50: 5 | F50: 0.07936507937
A51: Norte | B51: Mucurici | C51: 70 | D51: 16 | E51: 5 | F51: 0.3125
A52: Sul | B52: Muniz Freire | C52: 201 | D52: 46 | E52: 1 | F52: 0.02173913043
A53: Sul | B53: Muqui | C53: 119 | D53: 23 | E53: 1 | F53: 0.04347826087
A54: Norte | B54: Nova Venécia | C54: 657 | D54: 163 | E54: 14 | F54: 0.08588957055
A55: Central | B55: Pancas | C55: 206 | D55: 58 | E55: 2 | F55: 0.03448275862
A56: Norte | B56: Pedro Canário | C56: 331 | D56: 93 | E56: 21 | F56: 0.2258064516
A57: Norte | B57: Pinheiros | C57: 314 | D57: 74 | E57: 4 | F57: 0.05405405405
A58: Sul | B58: Piúma | C58: 275 | D58: 62 | E58: 8 | F58: 0.1290322581
A59: Norte | B59: Ponto Belo | C59: 82 | D59: 14 | E59: 2 | F59: 0.1428571429
A60: Sul | B60: Presidente Kennedy | C60: 171 | D60: 45 | E60: 1 | F60: 0.02222222222
A61: Central | B61: Rio Bananal | C61: 301 | D61: 70 | E61: 4 | F61: 0.05714285714
A62: Sul | B62: Rio Novo do Sul | C62: 87 | D62: 16 | E62: 0 | F62: 0
A63: Metropolitana | B63: Santa Leopoldina | C63: 81 | D63: 17 | E63: 1 | F63: 0.05882352941
A64: Metropolitana | B64: Santa Maria de Jetibá | C64: 664 | D64: 167 | E64: 5 | F64: 0.02994011976
A65: Metropolitana | B65: Santa Teresa | C65: 299 | D65: 80 | E65: 6 | F65: 0.075
A66: Central | B66: São Domingos do Norte | C66: 112 | D66: 25 | E66: 3 | F66: 0.12
A67: Central | B67: São Gabriel da Palha | C67: 415 | D67: 110 | E67: 2 | F67: =E67/D67 -> 0.01818181818
A68: Sul | B68: São José do Calçado | C68: 94 | D68: 24 | E68: 0 | F68: 0
A69: Norte | B69: São Mateus | C69: 1814 | D69: 462 | E69: 57 | F69: 0.1233766234
A70: Central | B70: São Roque do Canaã | C70: 129 | D70: 46 | E70: 8 | F70: 0.1739130435
A71: Metropolitana | B71: Serra | C71: 7312 | D71: 1898 | E71: 386 | F71: 0.2033719705
A72: Central | B72: Sooretama | C72: 429 | D72: 98 | E72: 10 | F72: 0.1020408163
A73: Sul | B73: Vargem Alta | C73: 212 | D73: 50 | E73: 1 | F73: 0.02
A74: Metropolitana | B74: Venda Nova do Imigrante | C74: 337 | D74: 81 | E74: 4 | F74: 0.04938271605
A75: Metropolitana | B75: Viana | C75: 891 | D75: 219 | E75: 45 | F75: 0.2054794521
A76: Norte | B76: Vila Pavão | C76: 110 | D76: 29 | E76: 1 | F76: 0.03448275862
A77: Central | B77: Vila Valério | C77: 232 | D77: 62 | E77: 4 | F77: 0.06451612903
A78: Metropolitana | B78: Vila Velha | C78: 5446 | D78: 1417 | E78: 225 | F78: 0.158786168
A79: Metropolitana | B79: Vitória | C79: 3452 | D79: 876 | E79: 202 | F79: 0.2305936073
B81: Total Norte | C81: =SUMIF($A$2:$A$79,"Norte",C$2:C$79) -> 5679 | D81: =SUMIF($A$2:$A$79,"Norte",D$2:D$79) -> 1478 | E81: =SUMIF($A$2:$A$79,"Norte",E$2:E$79) -> 155 | F81: =E81/D81 -> 0.1048714479
B82: Total Central | C82: =SUMIF($A$2:$A$79,"CENTRAL",C$2:C$79) -> 6962 | D82: =SUMIF($A$2:$A$79,"CENTRAL",D$2:D$79) -> 1820 | E82: =SUMIF($A$2:$A$79,"CENTRAL",E$2:E$79) -> 116 | F82: 0.06373626374
B83: Total Metropolitana | C83: =SUMIF($A$2:$A$79,"METROPOLITANA",C$2:C$79) -> 28953 | D83: =SUMIF($A$2:$A$79,"METROPOLITANA",D$2:D$79) -> 7439 | E83: =SUMIF($A$2:$A$79,"METROPOLITANA",E$2:E$79) -> 1395 | F83: 0.187525205
B84: Total Sul | C84: =SUMIF($A$2:$A$79,"SUL",C$2:C$79) -> 7063 | D84: =SUMIF($A$2:$A$79,"SUL",D$2:D$79) -> 1656 | E84: =SUMIF($A$2:$A$79,"SUL",E$2:E$79) -> 115 | F84: 0.06944444444
B85: TOTAL ES | C85: =SUM(C2:C79) -> 48657 | D85: =SUM(D2:D79) -> 12393 | E85: =SUM(E2:E79) -> 1781 | F85: =E85/D85 -> 0.143710159
B86: HOMOGENEIDADE ENTRE MUNICÍPIOS | E86: =COUNTIF(F2:F79,">=0,95") -> 0 | F86: =COUNTIF(F2:F79,">=0,90")/78 -> 0
A89: Cobertura Vacinal Covid 19 das Gestantes de Março de 2025
A90: Fonte: Vacina e Confia, em 22 de Abril de 2025.**
A91: **Dados referente às doses aplicadas no período de Janeiro a Março de 2025
A92: Cobertura Calculada por município de residência do cidadão (no Vacina e Confia, a origem da informação é o endereço que consta no cadastro do cidadão preenchido manualmente por meio do autocadastro ou pelo cadastro realizado por um profissional de saúde no momento do atendimento).
A93: 1 População anual extraída do MS/SVS/DASIS - SINASC/DASIS/SVS/MS 2024 (hoje preliminares) referente ao período de Fevereiro a Dezembro/ 2024 e SINASC/DASIS/SVS/MS 2025 referente ao período de Janeiro/2025.
A94: ² População proporcional extraída do MS/SVS/DASIS - SINASC/DASIS/SVS/MS 2024 (hoje preliminares) referente ao período de Fevereiro e Março/2024 e Janeiro/2025.
A95: Sinasc, atualizado em 09/04/2025.
A96: Homogeineidade: O cálculo da Homogeineidade entre vacinas é feito de acordo com a pactuação estabelecida no Plano Plurianual (PPA) vigente no período 2024-2027.
A98: Observações:
A99: 1. Imunobiológicos que foram recebidos parcialmente pelo estado no mês de Março/2025, sendo distribuídos em quantidades reduzidas às regionais e municípios:
A100: SORO ANTIRRÁBICO HUMANO, IMUNOGLOBULINA ANTIRRÁBICA HUMANA, VACINA COVID-19 MODERNA (SPIKEVAX),VACINA CONTRA VARICELA.
A101: 2. Imunobiológicos indisponíveis no mês de Março/2025, não sendo possível a distribuição às regionais e municípios:
A102: VACINA TRÍPLICE ACELULAR (DTPa) - CRIE

Sheet COVID-19 idoso -Procêdencia
A1: Regional | B1: Município | C1: População 60 anos + | D1: TOTAL DE DOSES APLICADAS COVID-19 | E1: COBERTURA COVID-19
A2: Metropolitana | B2: Afonso Cláudio | C2: 5905 | D2: 3 | E2: =(D2/C2) -> 0.0005080440305
A3: Norte | B3: Água Doce do Norte | C3: 2357 | D3: 27 | E3: =(D3/C3) -> 0.01145523971
A4: Central | B4: Águia Branca | C4: 1775 | D4: 8 | E4: 0.004507042254
A5: Sul | B5: Alegre | C5: 5949 | D5: 53 | E5: 0.008909060346
A6: Sul | B6: Alfredo Chaves | C6: 3040 | D6: 55 | E6: 0.01809210526
A7: Central | B7: Alto Rio Novo | C7: 1417 | D7: 1 | E7: 0.000705716302
A8: Sul | B8: Anchieta | C8: 5080 | D8: 135 | E8: 0.02657480315
A9: Sul | B9: Apiacá | C9: 1536 | D9: 12 | E9: 0.0078125
A10: Metropolitana | B10: Aracruz | C10: 13047 | D10: 405 | E10: 0.03104161876
A11: Sul | B11: Atilio Vivacqua | C11: 1843 | D11: 8 | E11: 0.004340748779
A12: Central | B12: Baixo Guandu | C12: 5706 | D12: 80 | E12: 0.01402032948
A13: Norte | B13: Barra de São Francisco | C13: 7226 | D13: 95 | E13: 0.01314696928
A14: Norte | B14: Boa Esperança | C14: 2317 | D14: 6 | E14: 0.00258955546
A15: Sul | B15: Bom Jesus do Norte | C15: 1991 | D15: 66 | E15: 0.03314917127
A16: Metropolitana | B16: Brejetuba | C16: 1637 | D16: 1 | E16: 0.0006108735492
A17: Sul | B17: Cachoeiro de Itapemirim | C17: 32906 | D17: 397 | E17: 0.01206466906
A18: Metropolitana | B18: Cariacica | C18: 54005 | D18: 1980 | E18: 0.03666327192
A19: Sul | B19: Castelo | C19: 7171 | D19: 62 | E19: 0.008645935016
A20: Central | B20: Colatina | C20: 21491 | D20: 550 | E20: 0.02559210832
A21: Norte | B21: Conceição da Barra | C21: 4468 | D21: 98 | E21: 0.02193375112
A22: Metropolitana | B22: Conceição do Castelo | C22: 2176 | D22: 3 | E22: 0.001378676471
A23: Sul | B23: Divino de São Lourenço | C23: 847 | D23: 6 | E23: 0.007083825266
A24: Metropolitana | B24: Domingos Martins | C24: 6358 | D24: 224 | E24: 0.03523120478
A25: Sul | B25: Dores do Rio Preto | C25: 1145 | D25: 29 | E25: 0.02532751092
A26: Norte | B26: Ecoporanga | C26: 4274 | D26: 28 | E26: 0.006551240056
A27: Metropolitana | B27: Fundão | C27: 3432 | D27: 63 | E27: 0.01835664336
A28: Central | B28: Governador Lindenberg | C28: 1987 | D28: 20 | E28: 0.01006542526
A29: Sul | B29: Guaçuí | C29: 5504 | D29: 65 | E29: 0.01180959302
A30: Metropolitana | B30: Guarapari | C30: 21755 | D30: 251 | E30: 0.01153757757
A31: Metropolitana | B31: Ibatiba | C31: 3852 | D31: 31 | E31: 0.008047767394
A32: Metropolitana | B32: Ibiraçu | C32: 2121 | D32: 54 | E32: 0.02545968883
A33: Sul | B33: Ibitirama | C33: 1400 | D33: 20 | E33: 0.01428571429
A34: Sul | B34: Iconha | C34: 2560 | D34: 66 | E34: 0.02578125
A35: Sul | B35: Irupi | C35: 2006 | D35: 35 | E35: 0.01744765703
A36: Metropolitana | B36: Itaguaçu | C36: 3214 | D36: 30 | E36: 0.009334163037
A37: Sul | B37: Itapemirim | C37: 6549 | D37: 25 | E37: 0.003817376699
A38: Metropolitana | B38: Itarana | C38: 2389 | D38: 3 | E38: 0.001255755546
A39: Sul | B39: Iúna | C39: 4417 | D39: 53 | E39: 0.01199909441
A40: Norte | B40: Jaguaré | C40: 3734 | D40: 313 | E40: 0.08382431709
A41: Sul | B41: Jerônimo Monteiro | C41: 2356 | D41: 90 | E41: 0.03820033956
A42: Metropolitana | B42: João Neiva | C42: 3012 | D42: 23 | E42: 0.007636122178
A43: Metropolitana | B43: Laranja da Terra | C43: 2471 | D43: 11 | E43: 0.004451639013
A44: Central | B44: Linhares | C44: 21740 | D44: 116 | E44: 0.005335786569
A45: Central | B45: Mantenópolis | C45: 2524 | D45: 0 | E45: 0
A46: Sul | B46: Marataízes | C46: 7611 | D46: 86 | E46: 0.01129943503
A47: Metropolitana | B47: Marechal Floriano | C47: 2879 | D47: 67 | E47: 0.02327196943
A48: Central | B48: Marilândia | C48: 2476 | D48: 10 | E48: 0.004038772213
A49: Sul | B49: Mimoso do Sul | C49: 5077 | D49: 28 | E49: 0.005515067954
A50: Norte | B50: Montanha | C50: 3304 | D50: 164 | E50: 0.04963680387
A51: Norte | B51: Mucurici | C51: 1090 | D51: 11 | E51: 0.01009174312
A52: Sul | B52: Muniz Freire | C52: 3309 | D52: 58 | E52: 0.01752795406
A53: Sul | B53: Muqui | C53: 2780 | D53: 34 | E53: 0.01223021583
A54: Norte | B54: Nova Venécia | C54: 8352 | D54: 32 | E54: 0.003831417625
A55: Central | B55: Pancas | C55: 3687 | D55: 6 | E55: 0.0016273393
A56: Norte | B56: Pedro Canário | C56: 3253 | D56: 33 | E56: 0.01014448202
A57: Norte | B57: Pinheiros | C57: 3762 | D57: 34 | E57: 0.00903774588
A58: Sul | B58: Piúma | C58: 3886 | D58: 64 | E58: 0.01646937725
A59: Norte | B59: Ponto Belo | C59: 1330 | D59: 2 | E59: 0.001503759398
A60: Sul | B60: Presidente Kennedy | C60: 2214 | D60: 7 | E60: 0.003161698284
A61: Central | B61: Rio Bananal | C61: 3071 | D61: 46 | E61: 0.01497883426
A62: Sul | B62: Rio Novo do Sul | C62: 2232 | D62: 11 | E62: 0.004928315412
A63: Metropolitana | B63: Santa Leopoldina | C63: 2634 | D63: 31 | E63: 0.01176917236
A64: Metropolitana | B64: Santa Maria de Jetibá | C64: 5552 | D64: 55 | E64: 0.009906340058
A65: Metropolitana | B65: Santa Teresa | C65: 4767 | D65: 41 | E65: 0.008600797147
A66: Central | B66: São Domingos do Norte | C66: 1520 | D66: 10 | E66: 0.006578947368
A67: Central | B67: São Gabriel da Palha | C67: 5456 | D67: 22 | E67: =(D67/C67) -> 0.004032258065
A68: Sul | B68: São José do Calçado | C68: 2456 | D68: 12 | E68: 0.004885993485
A69: Norte | B69: São Mateus | C69: 17649 | D69: 562 | E69: 0.03184316392
A70: Central | B70: São Roque do Canaã | C70: 2370 | D70: 23 | E70: 0.00970464135
A71: Metropolitana | B71: Serra | C71: 66481 | D71: 2350 | E71: 0.03534844542
A72: Central | B72: Sooretama | C72: 3097 | D72: 16 | E72: 0.005166289958
A73: Sul | B73: Vargem Alta | C73: 3365 | D73: 22 | E73: 0.006537890045
A74: Metropolitana | B74: Venda Nova do Imigrante | C74: 3766 | D74: 88 | E74: 0.0233669676
A75: Metropolitana | B75: Viana | C75: 9758 | D75: 278 | E75: 0.02848944456
A76: Norte | B76: Vila Pavão | C76: 1510 | D76: 18 | E76: 0.0119205298
A77: Central | B77: Vila Valério | C77: 2160 | D77: 15 | E77: 0.006944444444
A78: Metropolitana | B78: Vila Velha | C78: 81049 | D78: 2602 | E78: 0.03210403583
A79: Metropolitana | B79: Vitória | C79: 64805 | D79: 3555 | E79: 0.05485687833
B81: Total Norte | C81: =SUMIF($A$2:$A$79,"Norte",C$2:C$79) -> 64626 | D81: =SUMIF($A$2:$A$79,"Norte",D$2:D$79) -> 1423 | E81: =D81/C81 -> 0.02201900164
B82: Total Central | C82: =SUMIF($A$2:$A$79,"Central",C$2:C$79) -> 80477 | D82: =SUMIF($A$2:$A$79,"Central",D$2:D$79) -> 923 | E82: =D82/C82 -> 0.0114691154
B83: Total Metropolitana | C83: =SUMIF($A$2:$A$79,"Metropolitana",C$2:C$79) -> 367065 | D83: =SUMIF($A$2:$A$79,"Metropolitana",D$2:D$79) -> 12149 | E83: 0.03309768025
B84: Total Sul | C84: =SUMIF($A$2:$A$79,"sul",C$2:C$79) -> 119230 | D84: =SUMIF($A$2:$A$79,"sul",D$2:D$79) -> 1499 | E84: 0.01257233918
B85: Total Espírito Santo | C85: =SUM(C2:C79) -> 631398 | D85: =SUM(D2:D79) -> 15994 | E85: 0.02533109069
B86: HOMOGENEIDADE ENTRE MUNICÍPIOS | E86: =COUNTIF(E2:E79,">=0,90")/78 -> 0
A88: Cobertura Vacinal Covid19 dos Idosos de Março de 2025
A89: Vacina COVID-19 RECOMBINANTE SERUM/ZALIKA e COVID-19 Moderna (Spikevax)
A90: Período avaliado: Últimos 6meses - Out/2024 a Mar/2025
A91: Faixa Etária: 60+
A92: Fonte: https://www.vacinaeconfia.es.gov.br
A93: *Dados parciais:
A94: **Dados referente às doses aplicadas no período de Outubro/2024 a Março/ 2025
A95: População proporcional extraída do Censo IBGE 2022
A96: Cobertura Calculada por município de procedência da vacinação
A97: Homogeineidade: O cálculo da Homogeineidade entre vacinas é feito de acordo com a pactuação estabelecida no Plano Plurianual (PPA) vigente no período 2024-2027.
A99: Observações:
A100: 1. Imunobiológicos que foram recebidos parcialmente pelo estado no mês de Março/2025, sendo distribuídos em quantidades reduzidas às regionais e municípios:
A101: SORO ANTIRRÁBICO HUMANO, IMUNOGLOBULINA ANTIRRÁBICA HUMANA, VACINA COVID-19 MODERNA (SPIKEVAX), VACINA CONTRA VARICELA.
A102: 2. Imunobiológicos indisponíveis no mês de Março/2025, não sendo possível a distribuição às regionais e municípios:
A103: VACINA TRÍPLICE ACELULAR (DTPa) - CRIE

Sheet COVID-19 idoso -Residência
A1: Regional | B1: Município | C1: População 60 anos + | D1: TOTAL DE DOSES APLICADAS COVID-19 | E1: COBERTURA COVID-19
A2: Metropolitana | B2: Afonso Cláudio | C2: 5905 | D2: 16 | E2: =(D2/C2) -> 0.002709568163
A3: Norte | B3: Água Doce do Norte | C3: 2357 | D3: 27 | E3: =(D3/C3) -> 0.01145523971
A4: Central | B4: Águia Branca | C4: 1775 | D4: 9 | E4: 0.005070422535
A5: Sul | B5: Alegre | C5: 5949 | D5: 64 | E5: 0.01075811061
A6: Sul | B6: Alfredo Chaves | C6: 3040 | D6: 51 | E6: 0.01677631579
A7: Central | B7: Alto Rio Novo | C7: 1417 | D7: 5 | E7: 0.00352858151
A8: Sul | B8: Anchieta | C8: 5080 | D8: 122 | E8: 0.02401574803
A9: Sul | B9: Apiacá | C9: 1536 | D9: 17 | E9: 0.01106770833
A10: Metropolitana | B10: Aracruz | C10: 13047 | D10: 404 | E10: 0.03096497279
A11: Sul | B11: Atilio Vivacqua | C11: 1843 | D11: 9 | E11: 0.004883342377
A12: Central | B12: Baixo Guandu | C12: 5706 | D12: 75 | E12: 0.01314405889
A13: Norte | B13: Barra de São Francisco | C13: 7226 | D13: 105 | E13: 0.01453086078
A14: Norte | B14: Boa Esperança | C14: 2317 | D14: 15 | E14: 0.006473888649
A15: Sul | B15: Bom Jesus do Norte | C15: 1991 | D15: 59 | E15: 0.02963335008
A16: Metropolitana | B16: Brejetuba | C16: 1637 | D16: 8 | E16: 0.004886988393
A17: Sul | B17: Cachoeiro de Itapemirim | C17: 32906 | D17: 420 | E17: 0.01276362973
A18: Metropolitana | B18: Cariacica | C18: 54005 | D18: 1980 | E18: 0.03666327192
A19: Sul | B19: Castelo | C19: 7171 | D19: 61 | E19: 0.008506484451
A20: Central | B20: Colatina | C20: 21491 | D20: 548 | E20: 0.02549904611
A21: Norte | B21: Conceição da Barra | C21: 4468 | D21: 98 | E21: 0.02193375112
A22: Metropolitana | B22: Conceição do Castelo | C22: 2176 | D22: 4 | E22: 0.001838235294
A23: Sul | B23: Divino de São Lourenço | C23: 847 | D23: 7 | E23: 0.00826446281
A24: Metropolitana | B24: Domingos Martins | C24: 6358 | D24: 214 | E24: 0.03365838314
A25: Sul | B25: Dores do Rio Preto | C25: 1145 | D25: 27 | E25: 0.02358078603
A26: Norte | B26: Ecoporanga | C26: 4274 | D26: 33 | E26: 0.007721104352
A27: Metropolitana | B27: Fundão | C27: 3432 | D27: 52 | E27: 0.01515151515
A28: Central | B28: Governador Lindenberg | C28: 1987 | D28: 24 | E28: 0.01207851032
A29: Sul | B29: Guaçuí | C29: 5504 | D29: 65 | E29: 0.01180959302
A30: Metropolitana | B30: Guarapari | C30: 21755 | D30: 255 | E30: 0.01172144335
A31: Metropolitana | B31: Ibatiba | C31: 3852 | D31: 33 | E31: 0.008566978193
A32: Metropolitana | B32: Ibiraçu | C32: 2121 | D32: 48 | E32: 0.02263083451
A33: Sul | B33: Ibitirama | C33: 1400 | D33: 21 | E33: 0.015
A34: Sul | B34: Iconha | C34: 2560 | D34: 64 | E34: 0.025
A35: Sul | B35: Irupi | C35: 2006 | D35: 36 | E35: 0.01794616152
A36: Metropolitana | B36: Itaguaçu | C36: 3214 | D36: 38 | E36: 0.01182327318
A37: Sul | B37: Itapemirim | C37: 6549 | D37: 30 | E37: 0.004580852038
A38: Metropolitana | B38: Itarana | C38: 2389 | D38: 13 | E38: 0.005441607367
A39: Sul | B39: Iúna | C39: 4417 | D39: 36 | E39: 0.008150328277
A40: Norte | B40: Jaguaré | C40: 3734 | D40: 298 | E40: 0.07980717729
A41: Sul | B41: Jerônimo Monteiro | C41: 2356 | D41: 83 | E41: 0.03522920204
A42: Metropolitana | B42: João Neiva | C42: 3012 | D42: 27 | E42: 0.008964143426
A43: Metropolitana | B43: Laranja da Terra | C43: 2471 | D43: 11 | E43: 0.004451639013
A44: Central | B44: Linhares | C44: 21740 | D44: 135 | E44: 0.00620975161
A45: Central | B45: Mantenópolis | C45: 2524 | D45: 1 | E45: 0.0003961965135
A46: Sul | B46: Marataízes | C46: 7611 | D46: 78 | E46: 0.01024832479
A47: Metropolitana | B47: Marechal Floriano | C47: 2879 | D47: 74 | E47: 0.02570336923
A48: Central | B48: Marilândia | C48: 2476 | D48: 9 | E48: 0.003634894992
A49: Sul | B49: Mimoso do Sul | C49: 5077 | D49: 29 | E49: 0.005712034666
A50: Norte | B50: Montanha | C50: 3304 | D50: 164 | E50: 0.04963680387
A51: Norte | B51: Mucurici | C51: 1090 | D51: 12 | E51: 0.01100917431
A52: Sul | B52: Muniz Freire | C52: 3309 | D52: 60 | E52: 0.01813236627
A53: Sul | B53: Muqui | C53: 2780 | D53: 31 | E53: 0.01115107914
A54: Norte | B54: Nova Venécia | C54: 8352 | D54: 51 | E54: 0.006106321839
A55: Central | B55: Pancas | C55: 3687 | D55: 9 | E55: 0.00244100895
A56: Norte | B56: Pedro Canário | C56: 3253 | D56: 35 | E56: 0.01075929911
A57: Norte | B57: Pinheiros | C57: 3762 | D57: 38 | E57: 0.0101010101
A58: Sul | B58: Piúma | C58: 3886 | D58: 71 | E58: 0.01827071539
A59: Norte | B59: Ponto Belo | C59: 1330 | D59: 3 | E59: 0.002255639098
A60: Sul | B60: Presidente Kennedy | C60: 2214 | D60: 5 | E60: 0.002258355917
A61: Central | B61: Rio Bananal | C61: 3071 | D61: 50 | E61: 0.01628134158
A62: Sul | B62: Rio Novo do Sul | C62: 2232 | D62: 14 | E62: 0.006272401434
A63: Metropolitana | B63: Santa Leopoldina | C63: 2634 | D63: 38 | E63: 0.01442672741
A64: Metropolitana | B64: Santa Maria de Jetibá | C64: 5552 | D64: 58 | E64: 0.01044668588
A65: Metropolitana | B65: Santa Teresa | C65: 4767 | D65: 51 | E65: 0.01069855255
A66: Central | B66: São Domingos do Norte | C66: 1520 | D66: 11 | E66: 0.007236842105
A67: Central | B67: São Gabriel da Palha | C67: 5456 | D67: 27 | E67: =(D67/C67) -> 0.004948680352
A68: Sul | B68: São José do Calçado | C68: 2456 | D68: 11 | E68: 0.004478827362
A69: Norte | B69: São Mateus | C69: 17649 | D69: 531 | E69: 0.03008669046
A70: Central | B70: São Roque do Canaã | C70: 2370 | D70: 21 | E70: 0.008860759494
A71: Metropolitana | B71: Serra | C71: 66481 | D71: 2378 | E71: 0.03576961839
A72: Central | B72: Sooretama | C72: 3097 | D72: 22 | E72: 0.007103648692
A73: Sul | B73: Vargem Alta | C73: 3365 | D73: 26 | E73: 0.007726597325
A74: Metropolitana | B74: Venda Nova do Imigrante | C74: 3766 | D74: 91 | E74: 0.02416356877
A75: Metropolitana | B75: Viana | C75: 9758 | D75: 266 | E75: 0.02725968436
A76: Norte | B76: Vila Pavão | C76: 1510 | D76: 16 | E76: 0.01059602649
A77: Central | B77: Vila Valério | C77: 2160 | D77: 18 | E77: 0.008333333333
A78: Metropolitana | B78: Vila Velha | C78: 81049 | D78: 2562 | E78: 0.03161050722
A79: Metropolitana | B79: Vitória | C79: 64805 | D79: 3486 | E79: 0.05379214567
B81: Total Norte | C81: =SUMIF($A$2:$A$79,"Norte",C$2:C$79) -> 64626 | D81: =SUMIF($A$2:$A$79,"Norte",D$2:D$79) -> 1426 | E81: =D81/C81 -> 0.02206542259
B82: Total Central | C82: =SUMIF($A$2:$A$79,"Central",C$2:C$79) -> 80477 | D82: =SUMIF($A$2:$A$79,"Central",D$2:D$79) -> 964 | E82: =D82/C82 -> 0.01197857773
B83: Total Metropolitana | C83: =SUMIF($A$2:$A$79,"Metropolitana",C$2:C$79) -> 367065 | D83: =SUMIF($A$2:$A$79,"Metropolitana",D$2:D$79) -> 12107 | E83: 0.0329832591
B84: Total Sul | C84: =SUMIF($A$2:$A$79,"sul",C$2:C$79) -> 119230 | D84: =SUMIF($A$2:$A$79,"Sul",D$2:D$79) -> 1497 | E84: 0.01255556487
B85: Total Espírito Santo | C85: =SUM(C2:C79) -> 631398 | D85: =SUM(D81:D84) -> 15994 | E85: 0.02533109069
B86: HOMOGENEIDADE ENTRE MUNICÍPIOS | E86: =COUNTIF(E2:E79,">=0,90")/78 -> 0
A88: Cobertura Vacinal Covid19 dos Idosos de Março de 2025
A89: Vacina COVID-19 RECOMBINANTE SERUM/ZALIKA e COVID-19 Moderna (Spikevax)
A90: Período avaliado: Últimos 6meses - Out/2024 a Mar/2025
A91: Faixa Etária: 60+
A92: Fonte: https://www.vacinaeconfia.es.gov.br
A93: *Dados parciais:
A94: **Dados referente às doses aplicadas no período de Outubro/2024 a Março/ 2025
A95: População proporcional extraída do Censo IBGE 2022
A96: Cobertura Calculada por município de residência do cidadão (no Vacina e Confia, a origem da informação é o endereço que consta no cadastro do cidadão preenchido manualmente por meio do autocadastro ou pelo cadastro realizado por um profissional de saúde no momento do atendimento).
A97: Homogeineidade: O cálculo da Homogeineidade entre vacinas é feito de acordo com a pactuação estabelecida no Plano Plurianual (PPA) vigente no período 2024-2027.
A99: Observações:
A100: 1. Imunobiológicos que foram recebidos parcialmente pelo estado no mês de Março/2025, sendo distribuídos em quantidades reduzidas às regionais e municípios:
A101: SORO ANTIRRÁBICO HUMANO, IMUNOGLOBULINA ANTIRRÁBICA HUMANA, VACINA COVID-19 MODERNA (SPIKEVAX), VACINA CONTRA VARICELA.
A102: 2. Imunobiológicos indisponíveis no mês de Março/2025, não sendo possível a distribuição às regionais e municípios:
A103: VACINA TRÍPLICE ACELULAR (DTPa) - CRIE

Sheet PROTEÇÃO

Sheet cálculos1 (hidden)
C1: 0.9 | E1: 0.95
A2: Regional | B2: Município | C2: Cobertura Vacinal BCG | D2: Cobertura Vacinal Rotavírus | E2: Cobertura Vacinal Pentavalente | F2: Cobertura Vacinal Poliomielite | G2: Cobertura Vacinal Pneumo 10 | H2: Cobertura Vacinal Tríplice Viral | I2: Cobertura Vacinal Meningo C | J2: Cobertura Vacinal Febre Amarela | K2: Cobertura Vacinal Hepatite A | L2: Cobertura Varicela | M2: META 90% | N2: META 95% | O2: ATINGIRAM META | P2: PQA-VS
A3: Metropolitana | B3: Afonso Cláudio | C3: ='CV Rotina <2A - procedência'!H3 -> 0.976744186 | D3: ='CV Rotina <2A - procedência'!P3 -> 0.9186046512 | E3: ='CV Rotina <2A - procedência'!J3 -> 0.988372093 | F3: ='CV Rotina <2A - procedência'!L3 -> 0.9534883721 | G3: ='CV Rotina <2A - procedência'!N3 -> 0.8720930233 | H3: ='CV Rotina <2A - procedência'!X3 -> 1.069767442 | I3: ='CV Rotina <2A - procedência'!R3 -> 0.9534883721 | J3: ='CV Rotina <2A - procedência'!T3 -> 1 | K3: ='CV Rotina <2A - procedência'!V3 -> 1.093023256 | L3: ='CV Rotina <2A - procedência'!Z3 -> 1.406976744 | M3: =COUNTIF(C3:D3,">=0,9") -> 2 | N3: =COUNTIFS(E3:L3,">=0,95") -> 7 | O3: =SUM(M3:N3) -> 9 | P3: =COUNTIF(E3:H3,">=0,95") -> 3
A4: Norte | B4: Água Doce do Norte | C4: ='CV Rotina <2A - procedência'!H4 -> 0.2549019608 | D4: ='CV Rotina <2A - procedência'!P4 -> 0.5882352941 | E4: ='CV Rotina <2A - procedência'!J4 -> 0.7058823529 | F4: ='CV Rotina <2A - procedência'!L4 -> 0.6862745098 | G4: ='CV Rotina <2A - procedência'!N4 -> 0.6470588235 | H4: ='CV Rotina <2A - procedência'!X4 -> 0.862745098 | I4: ='CV Rotina <2A - procedência'!R4 -> 0.7450980392 | J4: ='CV Rotina <2A - procedência'!T4 -> 0.8431372549 | K4: ='CV Rotina <2A - procedência'!V4 -> 0.6470588235 | L4: ='CV Rotina <2A - procedência'!Z4 -> 0.3333333333 | M4: 0 | N4: 0 | O4: =SUM(M4:N4) -> 0 | P4: =COUNTIF(E4:H4,">=0,95") -> 0
A5: Central | B5: Águia Branca | C5: ='CV Rotina <2A - procedência'!H5 -> 0.4186046512 | D5: ='CV Rotina <2A - procedência'!P5 -> 0.511627907 | E5: ='CV Rotina <2A - procedência'!J5 -> 0.8604651163 | F5: ='CV Rotina <2A - procedência'!L5 -> 0.8837209302 | G5: ='CV Rotina <2A - procedência'!N5 -> 0.5348837209 | H5: ='CV Rotina <2A - procedência'!X5 -> 0.9302325581 | I5: ='CV Rotina <2A - procedência'!R5 -> 0.8139534884 | J5: ='CV Rotina <2A - procedência'!T5 -> 1.023255814 | K5: ='CV Rotina <2A - procedência'!V5 -> 0.8139534884 | L5: ='CV Rotina <2A - procedência'!Z5 -> 0.8837209302 | M5: 0 | N5: 1 | O5: 1 | P5: 0
A6: Sul | B6: Alegre | C6: ='CV Rotina <2A - procedência'!H6 -> 0.406779661 | D6: ='CV Rotina <2A - procedência'!P6 -> 0.9661016949 | E6: ='CV Rotina <2A - procedência'!J6 -> 1.220338983 | F6: ='CV Rotina <2A - procedência'!L6 -> 1.050847458 | G6: ='CV Rotina <2A - procedência'!N6 -> 0.7627118644 | H6: ='CV Rotina <2A - procedência'!X6 -> 1.423728814 | I6: ='CV Rotina <2A - procedência'!R6 -> 1.237288136 | J6: ='CV Rotina <2A - procedência'!T6 -> 1.169491525 | K6: ='CV Rotina <2A - procedência'!V6 -> 1.372881356 | L6: ='CV Rotina <2A - procedência'!Z6 -> 1.593220339 | M6: 1 | N6: 7 | O6: 8 | P6: 3
A7: Sul | B7: Alfredo Chaves | C7: ='CV Rotina <2A - procedência'!H7 -> 0.4444444444 | D7: ='CV Rotina <2A - procedência'!P7 -> 0.6296296296 | E7: ='CV Rotina <2A - procedência'!J7 -> 0.962962963 | F7: ='CV Rotina <2A - procedência'!L7 -> 0.8888888889 | G7: ='CV Rotina <2A - procedência'!N7 -> 0.4814814815 | H7: ='CV Rotina <2A - procedência'!X7 -> 1.259259259 | I7: ='CV Rotina <2A - procedência'!R7 -> 0.8888888889 | J7: ='CV Rotina <2A - procedência'!T7 -> 1.111111111 | K7: ='CV Rotina <2A - procedência'!V7 -> 1.62962963 | L7: ='CV Rotina <2A - procedência'!Z7 -> 1.185185185 | M7: 0 | N7: 5 | O7: 5 | P7: 2
A8: Central | B8: Alto Rio Novo | C8: ='CV Rotina <2A - procedência'!H8 -> 0.4210526316 | D8: ='CV Rotina <2A - procedência'!P8 -> 1.263157895 | E8: ='CV Rotina <2A - procedência'!J8 -> 1.315789474 | F8: ='CV Rotina <2A - procedência'!L8 -> 1.315789474 | G8: ='CV Rotina <2A - procedência'!N8 -> 1.263157895 | H8: ='CV Rotina <2A - procedência'!X8 -> 1.105263158 | I8: ='CV Rotina <2A - procedência'!R8 -> 1.421052632 | J8: ='CV Rotina <2A - procedência'!T8 -> 1.473684211 | K8: ='CV Rotina <2A - procedência'!V8 -> 1.157894737 | L8: ='CV Rotina <2A - procedência'!Z8 -> 1.368421053 | M8: 1 | N8: 8 | O8: 9 | P8: 4
A9: Sul | B9: Anchieta | C9: ='CV Rotina <2A - procedência'!H9 -> 0.5205479452 | D9: ='CV Rotina <2A - procedência'!P9 -> 1.424657534 | E9: ='CV Rotina <2A - procedência'!J9 -> 1.287671233 | F9: ='CV Rotina <2A - procedência'!L9 -> 1.246575342 | G9: ='CV Rotina <2A - procedência'!N9 -> 1.383561644 | H9: ='CV Rotina <2A - procedência'!X9 -> 1.136986301 | I9: ='CV Rotina <2A - procedência'!R9 -> 1.123287671 | J9: ='CV Rotina <2A - procedência'!T9 -> 1.191780822 | K9: ='CV Rotina <2A - procedência'!V9 -> 1.397260274 | L9: ='CV Rotina <2A - procedência'!Z9 -> 1.232876712 | M9: 1 | N9: 8 | O9: 9 | P9: 4
A10: Sul | B10: Apiacá | C10: ='CV Rotina <2A - procedência'!H10 -> 1 | D10: ='CV Rotina <2A - procedência'!P10 -> 1.052631579 | E10: ='CV Rotina <2A - procedência'!J10 -> 0.6842105263 | F10: ='CV Rotina <2A - procedência'!L10 -> 0.6315789474 | G10: ='CV Rotina <2A - procedência'!N10 -> 1.052631579 | H10: ='CV Rotina <2A - procedência'!X10 -> 0.7894736842 | I10: ='CV Rotina <2A - procedência'!R10 -> 0.8421052632 | J10: ='CV Rotina <2A - procedência'!T10 -> 1.105263158 | K10: ='CV Rotina <2A - procedência'!V10 -> 0.7368421053 | L10: ='CV Rotina <2A - procedência'!Z10 -> 0.8421052632 | M10: 2 | N10: 2 | O10: 4 | P10: 1
A11: Metropolitana | B11: Aracruz | C11: ='CV Rotina <2A - procedência'!H11 -> 0.8155844156 | D11: ='CV Rotina <2A - procedência'!P11 -> 0.8311688312 | E11: ='CV Rotina <2A - procedência'!J11 -> 0.8441558442 | F11: ='CV Rotina <2A - procedência'!L11 -> 0.825974026 | G11: ='CV Rotina <2A - procedência'!N11 -> 0.7298701299 | H11: ='CV Rotina <2A - procedência'!X11 -> 0.9532467532 | I11: ='CV Rotina <2A - procedência'!R11 -> 0.7948051948 | J11: ='CV Rotina <2A - procedência'!T11 -> 0.761038961 | K11: ='CV Rotina <2A - procedência'!V11 -> 0.9714285714 | L11: ='CV Rotina <2A - procedência'!Z11 -> 0.8727272727 | M11: 0 | N11: 2 | O11: 2 | P11: 1
A12: Sul | B12: Atilio Vivacqua | C12: ='CV Rotina <2A - procedência'!H12 -> 0.15 | D12: ='CV Rotina <2A - procedência'!P12 -> 1.95 | E12: ='CV Rotina <2A - procedência'!J12 -> 2.25 | F12: ='CV Rotina <2A - procedência'!L12 -> 2.2 | G12: ='CV Rotina <2A - procedência'!N12 -> 2 | H12: ='CV Rotina <2A - procedência'!X12 -> 1.65 | I12: ='CV Rotina <2A - procedência'!R12 -> 2.25 | J12: ='CV Rotina <2A - procedência'!T12 -> 1.65 | K12: ='CV Rotina <2A - procedência'!V12 -> 1.75 | L12: ='CV Rotina <2A - procedência'!Z12 -> 1.15 | M12: 1 | N12: 8 | O12: 9 | P12: 4
A13: Central | B13: Baixo Guandu | C13: ='CV Rotina <2A - procedência'!H13 -> 0.3904761905 | D13: ='CV Rotina <2A - procedência'!P13 -> 0.619047619 | E13: ='CV Rotina <2A - procedência'!J13 -> 0.7142857143 | F13: ='CV Rotina <2A - procedência'!L13 -> 0.7142857143 | G13: ='CV Rotina <2A - procedência'!N13 -> 0.6095238095 | H13: ='CV Rotina <2A - procedência'!X13 -> 0.8095238095 | I13: ='CV Rotina <2A - procedência'!R13 -> 0.6857142857 | J13: ='CV Rotina <2A - procedência'!T13 -> 0.8857142857 | K13: ='CV Rotina <2A - procedência'!V13 -> 0.9333333333 | L13: ='CV Rotina <2A - procedência'!Z13 -> 0.780952381 | M13: 0 | N13: 0 | O13: 0 | P13: 0
A14: Norte | B14: Barra de São Francisco | C14: ='CV Rotina <2A - procedência'!H14 -> 0.6711409396 | D14: ='CV Rotina <2A - procedência'!P14 -> 0.7181208054 | E14: ='CV Rotina <2A - procedência'!J14 -> 0.9798657718 | F14: ='CV Rotina <2A - procedência'!L14 -> 0.9798657718 | G14: ='CV Rotina <2A - procedência'!N14 -> 0.711409396 | H14: ='CV Rotina <2A - procedência'!X14 -> 0.8389261745 | I14: ='CV Rotina <2A - procedência'!R14 -> 0.8053691275 | J14: ='CV Rotina <2A - procedência'!T14 -> 0.8322147651 | K14: ='CV Rotina <2A - procedência'!V14 -> 0.7785234899 | L14: ='CV Rotina <2A - procedência'!Z14 -> 0.9597315436 | M14: 0 | N14: 3 | O14: 3 | P14: 2
A15: Norte | B15: Boa Esperança | C15: ='CV Rotina <2A - procedência'!H15 -> 0.4035087719 | D15: ='CV Rotina <2A - procedência'!P15 -> 0.9122807018 | E15: ='CV Rotina <2A - procedência'!J15 -> 0.8421052632 | F15: ='CV Rotina <2A - procedência'!L15 -> 0.8245614035 | G15: ='CV Rotina <2A - procedência'!N15 -> 0.8245614035 | H15: ='CV Rotina <2A - procedência'!X15 -> 0.7368421053 | I15: ='CV Rotina <2A - procedência'!R15 -> 0.8421052632 | J15: ='CV Rotina <2A - procedência'!T15 -> 0.8771929825 | K15: ='CV Rotina <2A - procedência'!V15 -> 0.9649122807 | L15: ='CV Rotina <2A - procedência'!Z15 -> 0.9122807018 | M15: 1 | N15: 1 | O15: 2 | P15: 0
A16: Sul | B16: Bom Jesus do Norte | C16: ='CV Rotina <2A - procedência'!H16 -> 1.375 | D16: ='CV Rotina <2A - procedência'!P16 -> 1.1875 | E16: ='CV Rotina <2A - procedência'!J16 -> 1.8125 | F16: ='CV Rotina <2A - procedência'!L16 -> 1.8125 | G16: ='CV Rotina <2A - procedência'!N16 -> 1.1875 | H16: ='CV Rotina <2A - procedência'!X16 -> 1.4375 | I16: ='CV Rotina <2A - procedência'!R16 -> 1.125 | J16: ='CV Rotina <2A - procedência'!T16 -> 2 | K16: ='CV Rotina <2A - procedência'!V16 -> 1.8125 | L16: ='CV Rotina <2A - procedência'!Z16 -> 0.9375 | M16: 2 | N16: 7 | O16: 9 | P16: 4
A17: Metropolitana | B17: Brejetuba | C17: ='CV Rotina <2A - procedência'!H17 -> 0.68 | D17: ='CV Rotina <2A - procedência'!P17 -> 1.08 | E17: ='CV Rotina <2A - procedência'!J17 -> 0.72 | F17: ='CV Rotina <2A - procedência'!L17 -> 0.76 | G17: ='CV Rotina <2A - procedência'!N17 -> 0.98 | H17: ='CV Rotina <2A - procedência'!X17 -> 1.08 | I17: ='CV Rotina <2A - procedência'!R17 -> 0.9 | J17: ='CV Rotina <2A - procedência'!T17 -> 0.62 | K17: ='CV Rotina <2A - procedência'!V17 -> 0.9 | L17: ='CV Rotina <2A - procedência'!Z17 -> 0.84 | M17: 1 | N17: 2 | O17: 3 | P17: 2
A18: Sul | B18: Cachoeiro de Itapemirim | C18: ='CV Rotina <2A - procedência'!H18 -> 2.884026258 | D18: ='CV Rotina <2A - procedência'!P18 -> 1.214442013 | E18: ='CV Rotina <2A - procedência'!J18 -> 1.245076586 | F18: ='CV Rotina <2A - procedência'!L18 -> 1.223194748 | G18: ='CV Rotina <2A - procedência'!N18 -> 1.076586433 | H18: ='CV Rotina <2A - procedência'!X18 -> 1.288840263 | I18: ='CV Rotina <2A - procedência'!R18 -> 1.236323851 | J18: ='CV Rotina <2A - procedência'!T18 -> 1.041575492 | K18: ='CV Rotina <2A - procedência'!V18 -> 1.310722101 | L18: ='CV Rotina <2A - procedência'!Z18 -> 1.221006565 | M18: 2 | N18: 8 | O18: 10 | P18: 4
A19: Metropolitana | B19: Cariacica | C19: ='CV Rotina <2A - procedência'!H19 -> 0.5864045864 | D19: ='CV Rotina <2A - procedência'!P19 -> 0.8533988534 | E19: ='CV Rotina <2A - procedência'!J19 -> 0.9033579034 | F19: ='CV Rotina <2A - procedência'!L19 -> 0.8746928747 | G19: ='CV Rotina <2A - procedência'!N19 -> 0.7575757576 | H19: ='CV Rotina <2A - procedência'!X19 -> 0.932022932 | I19: ='CV Rotina <2A - procedência'!R19 -> 0.8673218673 | J19: ='CV Rotina <2A - procedência'!T19 -> 0.7526617527 | K19: ='CV Rotina <2A - procedência'!V19 -> 0.9197379197 | L19: ='CV Rotina <2A - procedência'!Z19 -> 0.6764946765 | M19: 0 | N19: 0 | O19: 0 | P19: 0
A20: Sul | B20: Castelo | C20: ='CV Rotina <2A - procedência'!H20 -> 0.6770833333 | D20: ='CV Rotina <2A - procedência'!P20 -> 0.9270833333 | E20: ='CV Rotina <2A - procedência'!J20 -> 1.020833333 | F20: ='CV Rotina <2A - procedência'!L20 -> 0.9895833333 | G20: ='CV Rotina <2A - procedência'!N20 -> 0.8125 | H20: ='CV Rotina <2A - procedência'!X20 -> 1.125 | I20: ='CV Rotina <2A - procedência'!R20 -> 1.03125 | J20: ='CV Rotina <2A - procedência'!T20 -> 1.03125 | K20: ='CV Rotina <2A - procedência'!V20 -> 1.145833333 | L20: ='CV Rotina <2A - procedência'!Z20 -> 0.6041666667 | M20: 1 | N20: 6 | O20: 7 | P20: 3
A21: Central | B21: Colatina | C21: ='CV Rotina <2A - procedência'!H21 -> 2.248691099 | D21: ='CV Rotina <2A - procedência'!P21 -> 0.8586387435 | E21: ='CV Rotina <2A - procedência'!J21 -> 1.005235602 | F21: ='CV Rotina <2A - procedência'!L21 -> 1.005235602 | G21: ='CV Rotina <2A - procedência'!N21 -> 0.722513089 | H21: ='CV Rotina <2A - procedência'!X21 -> 0.942408377 | I21: ='CV Rotina <2A - procedência'!R21 -> 1.023560209 | J21: ='CV Rotina <2A - procedência'!T21 -> 0.8010471204 | K21: ='CV Rotina <2A - procedência'!V21 -> 0.8691099476 | L21: ='CV Rotina <2A - procedência'!Z21 -> 0.7460732984 | M21: 1 | N21: 3 | O21: 4 | P21: 2
A22: Norte | B22: Conceição da Barra | C22: ='CV Rotina <2A - procedência'!H22 -> 0.04672897196 | D22: ='CV Rotina <2A - procedência'!P22 -> 0.7476635514 | E22: ='CV Rotina <2A - procedência'!J22 -> 0.8037383178 | F22: ='CV Rotina <2A - procedência'!L22 -> 0.8224299065 | G22: ='CV Rotina <2A - procedência'!N22 -> 0.7009345794 | H22: ='CV Rotina <2A - procedência'!X22 -> 0.9906542056 | I22: ='CV Rotina <2A - procedência'!R22 -> 0.7663551402 | J22: ='CV Rotina <2A - procedência'!T22 -> 0.9158878505 | K22: ='CV Rotina <2A - procedência'!V22 -> 0.8878504673 | L22: ='CV Rotina <2A - procedência'!Z22 -> 0.7196261682 | M22: 0 | N22: 1 | O22: 1 | P22: 1
A23: Metropolitana | B23: Conceição do Castelo | C23: ='CV Rotina <2A - procedência'!H23 -> 0 | D23: ='CV Rotina <2A - procedência'!P23 -> 1.135135135 | E23: ='CV Rotina <2A - procedência'!J23 -> 1.054054054 | F23: ='CV Rotina <2A - procedência'!L23 -> 1.027027027 | G23: ='CV Rotina <2A - procedência'!N23 -> 1.027027027 | H23: ='CV Rotina <2A - procedência'!X23 -> 0.9459459459 | I23: ='CV Rotina <2A - procedência'!R23 -> 0.7837837838 | J23: ='CV Rotina <2A - procedência'!T23 -> 0.972972973 | K23: ='CV Rotina <2A - procedência'!V23 -> 0.8378378378 | L23: ='CV Rotina <2A - procedência'!Z23 -> 1.027027027 | M23: 1 | N23: 5 | O23: 6 | P23: 3
A24: Sul | B24: Divino de São Lourenço | C24: ='CV Rotina <2A - procedência'!H24 -> 0.5384615385 | D24: ='CV Rotina <2A - procedência'!P24 -> 0.6923076923 | E24: ='CV Rotina <2A - procedência'!J24 -> 0.6153846154 | F24: ='CV Rotina <2A - procedência'!L24 -> 0.6153846154 | G24: ='CV Rotina <2A - procedência'!N24 -> 0.6153846154 | H24: ='CV Rotina <2A - procedência'!X24 -> 1.769230769 | I24: ='CV Rotina <2A - procedência'!R24 -> 0.7692307692 | J24: ='CV Rotina <2A - procedência'!T24 -> 2.153846154 | K24: ='CV Rotina <2A - procedência'!V24 -> 1.230769231 | L24: ='CV Rotina <2A - procedência'!Z24 -> 1.307692308 | M24: 0 | N24: 4 | O24: 4 | P24: 1
A25: Metropolitana | B25: Domingos Martins | C25: ='CV Rotina <2A - procedência'!H25 -> 0.2 | D25: ='CV Rotina <2A - procedência'!P25 -> 1.04 | E25: ='CV Rotina <2A - procedência'!J25 -> 1.08 | F25: ='CV Rotina <2A - procedência'!L25 -> 1.05 | G25: ='CV Rotina <2A - procedência'!N25 -> 0.94 | H25: ='CV Rotina <2A - procedência'!X25 -> 0.91 | I25: ='CV Rotina <2A - procedência'!R25 -> 0.96 | J25: ='CV Rotina <2A - procedência'!T25 -> 1.03 | K25: ='CV Rotina <2A - procedência'!V25 -> 1.02 | L25: ='CV Rotina <2A - procedência'!Z25 -> 1.23 | M25: 1 | N25: 6 | O25: 7 | P25: 2
A26: Sul | B26: Dores do Rio Preto | C26: ='CV Rotina <2A - procedência'!H26 -> 0.9545454545 | D26: ='CV Rotina <2A - procedência'!P26 -> 1.318181818 | E26: ='CV Rotina <2A - procedência'!J26 -> 1.409090909 | F26: ='CV Rotina <2A - procedência'!L26 -> 1.409090909 | G26: ='CV Rotina <2A - procedência'!N26 -> 0.9090909091 | H26: ='CV Rotina <2A - procedência'!X26 -> 1.136363636 | I26: ='CV Rotina <2A - procedência'!R26 -> 0.8636363636 | J26: ='CV Rotina <2A - procedência'!T26 -> 1 | K26: ='CV Rotina <2A - procedência'!V26 -> 1.227272727 | L26: ='CV Rotina <2A - procedência'!Z26 -> 0.7727272727 | M26: 2 | N26: 5 | O26: 7 | P26: 3
A27: Norte | B27: Ecoporanga | C27: ='CV Rotina <2A - procedência'!H27 -> 0.2394366197 | D27: ='CV Rotina <2A - procedência'!P27 -> 0.8450704225 | E27: ='CV Rotina <2A - procedência'!J27 -> 0.8028169014 | F27: ='CV Rotina <2A - procedência'!L27 -> 0.7746478873 | G27: ='CV Rotina <2A - procedência'!N27 -> 0.7887323944 | H27: ='CV Rotina <2A - procedência'!X27 -> 0.8873239437 | I27: ='CV Rotina <2A - procedência'!R27 -> 0.7183098592 | J27: ='CV Rotina <2A - procedência'!T27 -> 0.9436619718 | K27: ='CV Rotina <2A - procedência'!V27 -> 0.7605633803 | L27: ='CV Rotina <2A - procedência'!Z27 -> 0.5352112676 | M27: 0 | N27: 0 | O27: 0 | P27: 0
A28: Metropolitana | B28: Fundão | C28: ='CV Rotina <2A - procedência'!H28 -> 0.2580645161 | D28: ='CV Rotina <2A - procedência'!P28 -> 0.9032258065 | E28: ='CV Rotina <2A - procedência'!J28 -> 0.8387096774 | F28: ='CV Rotina <2A - procedência'!L28 -> 0.8387096774 | G28: ='CV Rotina <2A - procedência'!N28 -> 0.8225806452 | H28: ='CV Rotina <2A - procedência'!X28 -> 0.9838709677 | I28: ='CV Rotina <2A - procedência'!R28 -> 0.9193548387 | J28: ='CV Rotina <2A - procedência'!T28 -> 0.6129032258 | K28: ='CV Rotina <2A - procedência'!V28 -> 0.8870967742 | L28: ='CV Rotina <2A - procedência'!Z28 -> 0.7903225806 | M28: 1 | N28: 1 | O28: 2 | P28: 1
A29: Central | B29: Governador Lindenberg | C29: ='CV Rotina <2A - procedência'!H29 -> 0.2580645161 | D29: ='CV Rotina <2A - procedência'!P29 -> 0.7741935484 | E29: ='CV Rotina <2A - procedência'!J29 -> 0.7096774194 | F29: ='CV Rotina <2A - procedência'!L29 -> 0.7419354839 | G29: ='CV Rotina <2A - procedência'!N29 -> 0.6129032258 | H29: ='CV Rotina <2A - procedência'!X29 -> 0.8709677419 | I29: ='CV Rotina <2A - procedência'!R29 -> 0.6451612903 | J29: ='CV Rotina <2A - procedência'!T29 -> 0.7096774194 | K29: ='CV Rotina <2A - procedência'!V29 -> 0.7419354839 | L29: ='CV Rotina <2A - procedência'!Z29 -> 0.5161290323 | M29: 0 | N29: 0 | O29: 0 | P29: 0
A30: Sul | B30: Guaçuí | C30: ='CV Rotina <2A - procedência'!H30 -> 0.9651162791 | D30: ='CV Rotina <2A - procedência'!P30 -> 1 | E30: ='CV Rotina <2A - procedência'!J30 -> 0.8953488372 | F30: ='CV Rotina <2A - procedência'!L30 -> 0.8720930233 | G30: ='CV Rotina <2A - procedência'!N30 -> 1.034883721 | H30: ='CV Rotina <2A - procedência'!X30 -> 1.058139535 | I30: ='CV Rotina <2A - procedência'!R30 -> 0.8953488372 | J30: ='CV Rotina <2A - procedência'!T30 -> 0.8837209302 | K30: ='CV Rotina <2A - procedência'!V30 -> 0.8837209302 | L30: ='CV Rotina <2A - procedência'!Z30 -> 0.9418604651 | M30: 2 | N30: 2 | O30: 4 | P30: 2
A31: Metropolitana | B31: Guarapari | C31: ='CV Rotina <2A - procedência'!H31 -> 0.9123222749 | D31: ='CV Rotina <2A - procedência'!P31 -> 0.9360189573 | E31: ='CV Rotina <2A - procedência'!J31 -> 0.8578199052 | F31: ='CV Rotina <2A - procedência'!L31 -> 0.8507109005 | G31: ='CV Rotina <2A - procedência'!N31 -> 0.9052132701 | H31: ='CV Rotina <2A - procedência'!X31 -> 0.8009478673 | I31: ='CV Rotina <2A - procedência'!R31 -> 0.8838862559 | J31: ='CV Rotina <2A - procedência'!T31 -> 0.663507109 | K31: ='CV Rotina <2A - procedência'!V31 -> 0.9265402844 | L31: ='CV Rotina <2A - procedência'!Z31 -> 0.8056872038 | M31: 2 | N31: 0 | O31: 2 | P31: 0
A32: Metropolitana | B32: Ibatiba | C32: ='CV Rotina <2A - procedência'!H32 -> 0.9195402299 | D32: ='CV Rotina <2A - procedência'!P32 -> 1.103448276 | E32: ='CV Rotina <2A - procedência'!J32 -> 1.172413793 | F32: ='CV Rotina <2A - procedência'!L32 -> 1.183908046 | G32: ='CV Rotina <2A - procedência'!N32 -> 0.9770114943 | H32: ='CV Rotina <2A - procedência'!X32 -> 1.08045977 | I32: ='CV Rotina <2A - procedência'!R32 -> 1.206896552 | J32: ='CV Rotina <2A - procedência'!T32 -> 0.9425287356 | K32: ='CV Rotina <2A - procedência'!V32 -> 1.252873563 | L32: ='CV Rotina <2A - procedência'!Z32 -> 0.8275862069 | M32: 2 | N32: 6 | O32: 8 | P32: 4
A33: Metropolitana | B33: Ibiraçu | C33: ='CV Rotina <2A - procedência'!H33 -> 0.2368421053 | D33: ='CV Rotina <2A - procedência'!P33 -> 0.9473684211 | E33: ='CV Rotina <2A - procedência'!J33 -> 0.8421052632 | F33: ='CV Rotina <2A - procedência'!L33 -> 0.8157894737 | G33: ='CV Rotina <2A - procedência'!N33 -> 0.9210526316 | H33: ='CV Rotina <2A - procedência'!X33 -> 1.052631579 | I33: ='CV Rotina <2A - procedência'!R33 -> 1 | J33: ='CV Rotina <2A - procedência'!T33 -> 0.9473684211 | K33: ='CV Rotina <2A - procedência'!V33 -> 0.7631578947 | L33: ='CV Rotina <2A - procedência'!Z33 -> 0.5263157895 | M33: 1 | N33: 2 | O33: 3 | P33: 1
A34: Sul | B34: Ibitirama | C34: ='CV Rotina <2A - procedência'!H34 -> 0.8333333333 | D34: ='CV Rotina <2A - procedência'!P34 -> 1.7 | E34: ='CV Rotina <2A - procedência'!J34 -> 1.4 | F34: ='CV Rotina <2A - procedência'!L34 -> 1.333333333 | G34: ='CV Rotina <2A - procedência'!N34 -> 1.633333333 | H34: ='CV Rotina <2A - procedência'!X34 -> 1.333333333 | I34: ='CV Rotina <2A - procedência'!R34 -> 1.433333333 | J34: ='CV Rotina <2A - procedência'!T34 -> 1.066666667 | K34: ='CV Rotina <2A - procedência'!V34 -> 1.233333333 | L34: ='CV Rotina <2A - procedência'!Z34 -> 0.8666666667 | M34: 1 | N34: 7 | O34: 8 | P34: 4
A35: Sul | B35: Iconha | C35: ='CV Rotina <2A - procedência'!H35 -> 0.6 | D35: ='CV Rotina <2A - procedência'!P35 -> 1.16 | E35: ='CV Rotina <2A - procedência'!J35 -> 1.04 | F35: ='CV Rotina <2A - procedência'!L35 -> 1.04 | G35: ='CV Rotina <2A - procedência'!N35 -> 1.04 | H35: ='CV Rotina <2A - procedência'!X35 -> 1.08 | I35: ='CV Rotina <2A - procedência'!R35 -> 1.24 | J35: ='CV Rotina <2A - procedência'!T35 -> 0.88 | K35: ='CV Rotina <2A - procedência'!V35 -> 1.08 | L35: ='CV Rotina <2A - procedência'!Z35 -> 1.72 | M35: =COUNTIF(C35:D35,">=0,9") -> 1 | N35: =COUNTIFS(E35:L35,">=0,95") -> 7 | O35: 8 | P35: 4
A36: Sul | B36: Irupi | C36: ='CV Rotina <2A - procedência'!H36 -> 0.5744680851 | D36: ='CV Rotina <2A - procedência'!P36 -> 0.829787234 | E36: ='CV Rotina <2A - procedência'!J36 -> 1.106382979 | F36: ='CV Rotina <2A - procedência'!L36 -> 1.127659574 | G36: ='CV Rotina <2A - procedência'!N36 -> 0.7021276596 | H36: ='CV Rotina <2A - procedência'!X36 -> 1.063829787 | I36: ='CV Rotina <2A - procedência'!R36 -> 1.021276596 | J36: ='CV Rotina <2A - procedência'!T36 -> 1.085106383 | K36: ='CV Rotina <2A - procedência'!V36 -> 1.063829787 | L36: ='CV Rotina <2A - procedência'!Z36 -> 0.8085106383 | M36: 0 | N36: 6 | O36: 6 | P36: 3
A37: Metropolitana | B37: Itaguaçu | C37: ='CV Rotina <2A - procedência'!H37 -> 0.2195121951 | D37: ='CV Rotina <2A - procedência'!P37 -> 0.8292682927 | E37: ='CV Rotina <2A - procedência'!J37 -> 0.8536585366 | F37: ='CV Rotina <2A - procedência'!L37 -> 0.8536585366 | G37: ='CV Rotina <2A - procedência'!N37 -> 0.6829268293 | H37: ='CV Rotina <2A - procedência'!X37 -> 0.8292682927 | I37: ='CV Rotina <2A - procedência'!R37 -> 0.7804878049 | J37: ='CV Rotina <2A - procedência'!T37 -> 1.12195122 | K37: ='CV Rotina <2A - procedência'!V37 -> 0.6097560976 | L37: ='CV Rotina <2A - procedência'!Z37 -> 0.5365853659 | M37: 0 | N37: 1 | O37: 1 | P37: 0
A38: Sul | B38: Itapemirim | C38: ='CV Rotina <2A - procedência'!H38 -> 0.4948453608 | D38: ='CV Rotina <2A - procedência'!P38 -> 0.9793814433 | E38: ='CV Rotina <2A - procedência'!J38 -> 0.9278350515 | F38: ='CV Rotina <2A - procedência'!L38 -> 0.8041237113 | G38: ='CV Rotina <2A - procedência'!N38 -> 1.113402062 | H38: ='CV Rotina <2A - procedência'!X38 -> 1.041237113 | I38: ='CV Rotina <2A - procedência'!R38 -> 1.12371134 | J38: ='CV Rotina <2A - procedência'!T38 -> 0.8556701031 | K38: ='CV Rotina <2A - procedência'!V38 -> 1.268041237 | L38: ='CV Rotina <2A - procedência'!Z38 -> 0.8969072165 | M38: 1 | N38: 4 | O38: 5 | P38: 2
A39: Metropolitana | B39: Itarana | C39: ='CV Rotina <2A - procedência'!H39 -> 0.05882352941 | D39: ='CV Rotina <2A - procedência'!P39 -> 0.5882352941 | E39: ='CV Rotina <2A - procedência'!J39 -> 0.8823529412 | F39: ='CV Rotina <2A - procedência'!L39 -> 0.8529411765 | G39: ='CV Rotina <2A - procedência'!N39 -> 0.4705882353 | H39: ='CV Rotina <2A - procedência'!X39 -> 0.9705882353 | I39: ='CV Rotina <2A - procedência'!R39 -> 0.7647058824 | J39: ='CV Rotina <2A - procedência'!T39 -> 0.9705882353 | K39: ='CV Rotina <2A - procedência'!V39 -> 0.8235294118 | L39: ='CV Rotina <2A - procedência'!Z39 -> 0.8823529412 | M39: 0 | N39: 2 | O39: 2 | P39: 1
A40: Sul | B40: Iúna | C40: ='CV Rotina <2A - procedência'!H40 -> 0.6486486486 | D40: ='CV Rotina <2A - procedência'!P40 -> 0.8108108108 | E40: ='CV Rotina <2A - procedência'!J40 -> 0.9369369369 | F40: ='CV Rotina <2A - procedência'!L40 -> 0.8738738739 | G40: ='CV Rotina <2A - procedência'!N40 -> 0.7387387387 | H40: ='CV Rotina <2A - procedência'!X40 -> 0.954954955 | I40: ='CV Rotina <2A - procedência'!R40 -> 0.9099099099 | J40: ='CV Rotina <2A - procedência'!T40 -> 0.981981982 | K40: ='CV Rotina <2A - procedência'!V40 -> 1.153153153 | L40: ='CV Rotina <2A - procedência'!Z40 -> 0.963963964 | M40: 0 | N40: 4 | O40: 4 | P40: 1
A41: Norte | B41: Jaguaré | C41: ='CV Rotina <2A - procedência'!H41 -> 0.7054263566 | D41: ='CV Rotina <2A - procedência'!P41 -> 0.7441860465 | E41: ='CV Rotina <2A - procedência'!J41 -> 0.8837209302 | F41: ='CV Rotina <2A - procedência'!L41 -> 0.8372093023 | G41: ='CV Rotina <2A - procedência'!N41 -> 0.7364341085 | H41: ='CV Rotina <2A - procedência'!X41 -> 0.7364341085 | I41: ='CV Rotina <2A - procedência'!R41 -> 0.8837209302 | J41: ='CV Rotina <2A - procedência'!T41 -> 0.7596899225 | K41: ='CV Rotina <2A - procedência'!V41 -> 0.9612403101 | L41: ='CV Rotina <2A - procedência'!Z41 -> 0.6046511628 | M41: 0 | N41: 1 | O41: 1 | P41: 0
A42: Sul | B42: Jerônimo Monteiro | C42: ='CV Rotina <2A - procedência'!H42 -> 0.1153846154 | D42: ='CV Rotina <2A - procedência'!P42 -> 1.230769231 | E42: ='CV Rotina <2A - procedência'!J42 -> 1.153846154 | F42: ='CV Rotina <2A - procedência'!L42 -> 1.192307692 | G42: ='CV Rotina <2A - procedência'!N42 -> 1.076923077 | H42: ='CV Rotina <2A - procedência'!X42 -> 1.423076923 | I42: ='CV Rotina <2A - procedência'!R42 -> 1.076923077 | J42: ='CV Rotina <2A - procedência'!T42 -> 1 | K42: ='CV Rotina <2A - procedência'!V42 -> 1.384615385 | L42: ='CV Rotina <2A - procedência'!Z42 -> 1.153846154 | M42: 1 | N42: 8 | O42: 9 | P42: 4
A43: Metropolitana | B43: João Neiva | C43: ='CV Rotina <2A - procedência'!H43 -> 0.15625 | D43: ='CV Rotina <2A - procedência'!P43 -> 1.25 | E43: ='CV Rotina <2A - procedência'!J43 -> 1.21875 | F43: ='CV Rotina <2A - procedência'!L43 -> 1.09375 | G43: ='CV Rotina <2A - procedência'!N43 -> 1.0625 | H43: ='CV Rotina <2A - procedência'!X43 -> 0.96875 | I43: ='CV Rotina <2A - procedência'!R43 -> 1.1875 | J43: ='CV Rotina <2A - procedência'!T43 -> 1.3125 | K43: ='CV Rotina <2A - procedência'!V43 -> 1.0625 | L43: ='CV Rotina <2A - procedência'!Z43 -> 1.15625 | M43: 1 | N43: 8 | O43: 9 | P43: 4
A44: Metropolitana | B44: Laranja da Terra | C44: ='CV Rotina <2A - procedência'!H44 -> 0.24 | D44: ='CV Rotina <2A - procedência'!P44 -> 1.44 | E44: ='CV Rotina <2A - procedência'!J44 -> 0.92 | F44: ='CV Rotina <2A - procedência'!L44 -> 0.96 | G44: ='CV Rotina <2A - procedência'!N44 -> 1.44 | H44: ='CV Rotina <2A - procedência'!X44 -> 1.08 | I44: ='CV Rotina <2A - procedência'!R44 -> 1.36 | J44: ='CV Rotina <2A - procedência'!T44 -> 1 | K44: ='CV Rotina <2A - procedência'!V44 -> 1.04 | L44: ='CV Rotina <2A - procedência'!Z44 -> 1.32 | M44: 1 | N44: 7 | O44: 8 | P44: 3
A45: Central | B45: Linhares | C45: ='CV Rotina <2A - procedência'!H45 -> 0.9568965517 | D45: ='CV Rotina <2A - procedência'!P45 -> 0.8318965517 | E45: ='CV Rotina <2A - procedência'!J45 -> 0.8261494253 | F45: ='CV Rotina <2A - procedência'!L45 -> 0.8031609195 | G45: ='CV Rotina <2A - procedência'!N45 -> 0.7399425287 | H45: ='CV Rotina <2A - procedência'!X45 -> 0.7772988506 | I45: ='CV Rotina <2A - procedência'!R45 -> 0.8764367816 | J45: ='CV Rotina <2A - procedência'!T45 -> 0.7456896552 | K45: ='CV Rotina <2A - procedência'!V45 -> 0.7586206897 | L45: ='CV Rotina <2A - procedência'!Z45 -> 0.5790229885 | M45: 1 | N45: 0 | O45: 1 | P45: 0
A46: Central | B46: Mantenópolis | C46: ='CV Rotina <2A - procedência'!H46 -> 0.2368421053 | D46: ='CV Rotina <2A - procedência'!P46 -> 0.7105263158 | E46: ='CV Rotina <2A - procedência'!J46 -> 1.026315789 | F46: ='CV Rotina <2A - procedência'!L46 -> 0.9736842105 | G46: ='CV Rotina <2A - procedência'!N46 -> 0.5789473684 | H46: ='CV Rotina <2A - procedência'!X46 -> 0.9210526316 | I46: ='CV Rotina <2A - procedência'!R46 -> 1.052631579 | J46: ='CV Rotina <2A - procedência'!T46 -> 1.315789474 | K46: ='CV Rotina <2A - procedência'!V46 -> 0.7105263158 | L46: ='CV Rotina <2A - procedência'!Z46 -> 1.157894737 | M46: 0 | N46: 5 | O46: 5 | P46: 2
A47: Sul | B47: Marataízes | C47: ='CV Rotina <2A - procedência'!H47 -> 0.5333333333 | D47: ='CV Rotina <2A - procedência'!P47 -> 1.308333333 | E47: ='CV Rotina <2A - procedência'!J47 -> 1.041666667 | F47: ='CV Rotina <2A - procedência'!L47 -> 0.9416666667 | G47: ='CV Rotina <2A - procedência'!N47 -> 1.275 | H47: ='CV Rotina <2A - procedência'!X47 -> 1.241666667 | I47: ='CV Rotina <2A - procedência'!R47 -> 1.208333333 | J47: ='CV Rotina <2A - procedência'!T47 -> 0.8583333333 | K47: ='CV Rotina <2A - procedência'!V47 -> 1.058333333 | L47: ='CV Rotina <2A - procedência'!Z47 -> 0.7833333333 | M47: 1 | N47: 5 | O47: 6 | P47: 3
A48: Metropolitana | B48: Marechal Floriano | C48: ='CV Rotina <2A - procedência'!H48 -> 0.09375 | D48: ='CV Rotina <2A - procedência'!P48 -> 0.625 | E48: ='CV Rotina <2A - procedência'!J48 -> 0.703125 | F48: ='CV Rotina <2A - procedência'!L48 -> 0.6875 | G48: ='CV Rotina <2A - procedência'!N48 -> 0.640625 | H48: ='CV Rotina <2A - procedência'!X48 -> 0.78125 | I48: ='CV Rotina <2A - procedência'!R48 -> 0.625 | J48: ='CV Rotina <2A - procedência'!T48 -> 0.84375 | K48: ='CV Rotina <2A - procedência'!V48 -> 0.96875 | L48: ='CV Rotina <2A - procedência'!Z48 -> 1.015625 | M48: 0 | N48: 2 | O48: 2 | P48: 0
A49: Central | B49: Marilândia | C49: ='CV Rotina <2A - procedência'!H49 -> 0.4324324324 | D49: ='CV Rotina <2A - procedência'!P49 -> 1 | E49: ='CV Rotina <2A - procedência'!J49 -> 0.8648648649 | F49: ='CV Rotina <2A - procedência'!L49 -> 0.8648648649 | G49: ='CV Rotina <2A - procedência'!N49 -> 0.8648648649 | H49: ='CV Rotina <2A - procedência'!X49 -> 0.972972973 | I49: ='CV Rotina <2A - procedência'!R49 -> 0.8918918919 | J49: ='CV Rotina <2A - procedência'!T49 -> 1.135135135 | K49: ='CV Rotina <2A - procedência'!V49 -> 0.8918918919 | L49: ='CV Rotina <2A - procedência'!Z49 -> 0.9189189189 | M49: 1 | N49: 2 | O49: 3 | P49: 1
A50: Sul | B50: Mimoso do Sul | C50: ='CV Rotina <2A - procedência'!H50 -> 0.3043478261 | D50: ='CV Rotina <2A - procedência'!P50 -> 1.304347826 | E50: ='CV Rotina <2A - procedência'!J50 -> 1.260869565 | F50: ='CV Rotina <2A - procedência'!L50 -> 1.065217391 | G50: ='CV Rotina <2A - procedência'!N50 -> 1.086956522 | H50: ='CV Rotina <2A - procedência'!X50 -> 0.8913043478 | I50: ='CV Rotina <2A - procedência'!R50 -> 1.173913043 | J50: ='CV Rotina <2A - procedência'!T50 -> 1.239130435 | K50: ='CV Rotina <2A - procedência'!V50 -> 0.9565217391 | L50: ='CV Rotina <2A - procedência'!Z50 -> 1.152173913 | M50: 1 | N50: 7 | O50: 8 | P50: 3
A51: Norte | B51: Montanha | C51: ='CV Rotina <2A - procedência'!H51 -> 0.3015873016 | D51: ='CV Rotina <2A - procedência'!P51 -> 1.142857143 | E51: ='CV Rotina <2A - procedência'!J51 -> 1.095238095 | F51: ='CV Rotina <2A - procedência'!L51 -> 1.079365079 | G51: ='CV Rotina <2A - procedência'!N51 -> 0.9206349206 | H51: ='CV Rotina <2A - procedência'!X51 -> 0.9682539683 | I51: ='CV Rotina <2A - procedência'!R51 -> 1.063492063 | J51: ='CV Rotina <2A - procedência'!T51 -> 0.8888888889 | K51: ='CV Rotina <2A - procedência'!V51 -> 0.8888888889 | L51: ='CV Rotina <2A - procedência'!Z51 -> 1.079365079 | M51: 1 | N51: 5 | O51: 6 | P51: 3
A52: Norte | B52: Mucurici | C52: ='CV Rotina <2A - procedência'!H52 -> 0.125 | D52: ='CV Rotina <2A - procedência'!P52 -> 1.0625 | E52: ='CV Rotina <2A - procedência'!J52 -> 0.8125 | F52: ='CV Rotina <2A - procedência'!L52 -> 0.875 | G52: ='CV Rotina <2A - procedência'!N52 -> 1.125 | H52: ='CV Rotina <2A - procedência'!X52 -> 1 | I52: ='CV Rotina <2A - procedência'!R52 -> 1.0625 | J52: ='CV Rotina <2A - procedência'!T52 -> 1.375 | K52: ='CV Rotina <2A - procedência'!V52 -> 1.5625 | L52: ='CV Rotina <2A - procedência'!Z52 -> 1.5625 | M52: 1 | N52: 6 | O52: 7 | P52: 2
A53: Sul | B53: Muniz Freire | C53: ='CV Rotina <2A - procedência'!H53 -> 0.6956521739 | D53: ='CV Rotina <2A - procedência'!P53 -> 1.217391304 | E53: ='CV Rotina <2A - procedência'!J53 -> 1.239130435 | F53: ='CV Rotina <2A - procedência'!L53 -> 1.173913043 | G53: ='CV Rotina <2A - procedência'!N53 -> 1.195652174 | H53: ='CV Rotina <2A - procedência'!X53 -> 1.5 | I53: ='CV Rotina <2A - procedência'!R53 -> 1.152173913 | J53: ='CV Rotina <2A - procedência'!T53 -> 1.47826087 | K53: ='CV Rotina <2A - procedência'!V53 -> 1.326086957 | L53: ='CV Rotina <2A - procedência'!Z53 -> 1.413043478 | M53: 1 | N53: 8 | O53: 9 | P53: 4
A54: Sul | B54: Muqui | C54: ='CV Rotina <2A - procedência'!H54 -> 0.2608695652 | D54: ='CV Rotina <2A - procedência'!P54 -> 1.47826087 | E54: ='CV Rotina <2A - procedência'!J54 -> 1.608695652 | F54: ='CV Rotina <2A - procedência'!L54 -> 1.608695652 | G54: ='CV Rotina <2A - procedência'!N54 -> 1.434782609 | H54: ='CV Rotina <2A - procedência'!X54 -> 1.434782609 | I54: ='CV Rotina <2A - procedência'!R54 -> 1.347826087 | J54: ='CV Rotina <2A - procedência'!T54 -> 2.173913043 | K54: ='CV Rotina <2A - procedência'!V54 -> 1.652173913 | L54: ='CV Rotina <2A - procedência'!Z54 -> 1.565217391 | M54: 1 | N54: 8 | O54: 9 | P54: 4
A55: Norte | B55: Nova Venécia | C55: ='CV Rotina <2A - procedência'!H55 -> 0.7055214724 | D55: ='CV Rotina <2A - procedência'!P55 -> 1.024539877 | E55: ='CV Rotina <2A - procedência'!J55 -> 0.9509202454 | F55: ='CV Rotina <2A - procedência'!L55 -> 0.8711656442 | G55: ='CV Rotina <2A - procedência'!N55 -> 0.8650306748 | H55: ='CV Rotina <2A - procedência'!X55 -> 0.9386503067 | I55: ='CV Rotina <2A - procedência'!R55 -> 0.9570552147 | J55: ='CV Rotina <2A - procedência'!T55 -> 0.9018404908 | K55: ='CV Rotina <2A - procedência'!V55 -> 0.7300613497 | L55: ='CV Rotina <2A - procedência'!Z55 -> 0.773006135 | M55: 1 | N55: 2 | O55: 3 | P55: 1
A56: Central | B56: Pancas | C56: ='CV Rotina <2A - procedência'!H56 -> 0.5 | D56: ='CV Rotina <2A - procedência'!P56 -> 0.7413793103 | E56: ='CV Rotina <2A - procedência'!J56 -> 0.8448275862 | F56: ='CV Rotina <2A - procedência'!L56 -> 0.8275862069 | G56: ='CV Rotina <2A - procedência'!N56 -> 0.775862069 | H56: ='CV Rotina <2A - procedência'!X56 -> 0.9827586207 | I56: ='CV Rotina <2A - procedência'!R56 -> 0.8793103448 | J56: ='CV Rotina <2A - procedência'!T56 -> 0.8965517241 | K56: ='CV Rotina <2A - procedência'!V56 -> 0.8965517241 | L56: ='CV Rotina <2A - procedência'!Z56 -> 0.9827586207 | M56: 0 | N56: 2 | O56: 2 | P56: 1
A57: Norte | B57: Pedro Canário | C57: ='CV Rotina <2A - procedência'!H57 -> 0.09677419355 | D57: ='CV Rotina <2A - procedência'!P57 -> 0.6344086022 | E57: ='CV Rotina <2A - procedência'!J57 -> 0.8817204301 | F57: ='CV Rotina <2A - procedência'!L57 -> 0.8172043011 | G57: ='CV Rotina <2A - procedência'!N57 -> 0.7096774194 | H57: ='CV Rotina <2A - procedência'!X57 -> 1.010752688 | I57: ='CV Rotina <2A - procedência'!R57 -> 0.6559139785 | J57: ='CV Rotina <2A - procedência'!T57 -> 0.688172043 | K57: ='CV Rotina <2A - procedência'!V57 -> 0.8494623656 | L57: ='CV Rotina <2A - procedência'!Z57 -> 0.6559139785 | M57: 0 | N57: 1 | O57: 1 | P57: 1
A58: Norte | B58: Pinheiros | C58: ='CV Rotina <2A - procedência'!H58 -> 0.04054054054 | D58: ='CV Rotina <2A - procedência'!P58 -> 1.027027027 | E58: ='CV Rotina <2A - procedência'!J58 -> 0.9324324324 | F58: ='CV Rotina <2A - procedência'!L58 -> 0.9324324324 | G58: ='CV Rotina <2A - procedência'!N58 -> 0.9864864865 | H58: ='CV Rotina <2A - procedência'!X58 -> 1.040540541 | I58: ='CV Rotina <2A - procedência'!R58 -> 0.972972973 | J58: ='CV Rotina <2A - procedência'!T58 -> 0.8648648649 | K58: ='CV Rotina <2A - procedência'!V58 -> 1.013513514 | L58: ='CV Rotina <2A - procedência'!Z58 -> 0.7837837838 | M58: 1 | N58: 4 | O58: 5 | P58: 2
A59: Sul | B59: Piúma | C59: ='CV Rotina <2A - procedência'!H59 -> 0.5806451613 | D59: ='CV Rotina <2A - procedência'!P59 -> 1.129032258 | E59: ='CV Rotina <2A - procedência'!J59 -> 1.241935484 | F59: ='CV Rotina <2A - procedência'!L59 -> 1.161290323 | G59: ='CV Rotina <2A - procedência'!N59 -> 1.048387097 | H59: ='CV Rotina <2A - procedência'!X59 -> 1.225806452 | I59: ='CV Rotina <2A - procedência'!R59 -> 1.193548387 | J59: ='CV Rotina <2A - procedência'!T59 -> 0.9032258065 | K59: ='CV Rotina <2A - procedência'!V59 -> 1.338709677 | L59: ='CV Rotina <2A - procedência'!Z59 -> 0.8225806452 | M59: 1 | N59: 6 | O59: 7 | P59: 4
A60: Norte | B60: Ponto Belo | C60: ='CV Rotina <2A - procedência'!H60 -> 0.07142857143 | D60: ='CV Rotina <2A - procedência'!P60 -> 1.857142857 | E60: ='CV Rotina <2A - procedência'!J60 -> 1.928571429 | F60: ='CV Rotina <2A - procedência'!L60 -> 1.857142857 | G60: ='CV Rotina <2A - procedência'!N60 -> 1.714285714 | H60: ='CV Rotina <2A - procedência'!X60 -> 1.428571429 | I60: ='CV Rotina <2A - procedência'!R60 -> 1.785714286 | J60: ='CV Rotina <2A - procedência'!T60 -> 1.857142857 | K60: ='CV Rotina <2A - procedência'!V60 -> 1.571428571 | L60: ='CV Rotina <2A - procedência'!Z60 -> 1.428571429 | M60: 1 | N60: 8 | O60: 9 | P60: 4
A61: Sul | B61: Presidente Kennedy | C61: ='CV Rotina <2A - procedência'!H61 -> 0.1333333333 | D61: ='CV Rotina <2A - procedência'!P61 -> 1.044444444 | E61: ='CV Rotina <2A - procedência'!J61 -> 1.155555556 | F61: ='CV Rotina <2A - procedência'!L61 -> 1.111111111 | G61: ='CV Rotina <2A - procedência'!N61 -> 1 | H61: ='CV Rotina <2A - procedência'!X61 -> 1.355555556 | I61: ='CV Rotina <2A - procedência'!R61 -> 1.133333333 | J61: ='CV Rotina <2A - procedência'!T61 -> 1.311111111 | K61: ='CV Rotina <2A - procedência'!V61 -> 0.9555555556 | L61: ='CV Rotina <2A - procedência'!Z61 -> 0.9333333333 | M61: 1 | N61: 7 | O61: 8 | P61: 4
A62: Central | B62: Rio Bananal | C62: ='CV Rotina <2A - procedência'!H62 -> 0.1714285714 | D62: ='CV Rotina <2A - procedência'!P62 -> 0.9285714286 | E62: ='CV Rotina <2A - procedência'!J62 -> 0.9285714286 | F62: ='CV Rotina <2A - procedência'!L62 -> 0.9285714286 | G62: ='CV Rotina <2A - procedência'!N62 -> 0.8714285714 | H62: ='CV Rotina <2A - procedência'!X62 -> 1.142857143 | I62: ='CV Rotina <2A - procedência'!R62 -> 0.9 | J62: ='CV Rotina <2A - procedência'!T62 -> 1.114285714 | K62: ='CV Rotina <2A - procedência'!V62 -> 0.9714285714 | L62: ='CV Rotina <2A - procedência'!Z62 -> 0.7714285714 | M62: 1 | N62: 3 | O62: 4 | P62: 1
A63: Sul | B63: Rio Novo do Sul | C63: ='CV Rotina <2A - procedência'!H63 -> 0.625 | D63: ='CV Rotina <2A - procedência'!P63 -> 1.375 | E63: ='CV Rotina <2A - procedência'!J63 -> 2 | F63: ='CV Rotina <2A - procedência'!L63 -> 2 | G63: ='CV Rotina <2A - procedência'!N63 -> 1.3125 | H63: ='CV Rotina <2A - procedência'!X63 -> 1.6875 | I63: ='CV Rotina <2A - procedência'!R63 -> 1.4375 | J63: ='CV Rotina <2A - procedência'!T63 -> 1.4375 | K63: ='CV Rotina <2A - procedência'!V63 -> 1.75 | L63: ='CV Rotina <2A - procedência'!Z63 -> 1.6875 | M63: 1 | N63: 8 | O63: 9 | P63: 4
A64: Metropolitana | B64: Santa Leopoldina | C64: ='CV Rotina <2A - procedência'!H64 -> 0.2352941176 | D64: ='CV Rotina <2A - procedência'!P64 -> 1.176470588 | E64: ='CV Rotina <2A - procedência'!J64 -> 0.8823529412 | F64: ='CV Rotina <2A - procedência'!L64 -> 0.7647058824 | G64: ='CV Rotina <2A - procedência'!N64 -> 1.117647059 | H64: ='CV Rotina <2A - procedência'!X64 -> 0.7058823529 | I64: ='CV Rotina <2A - procedência'!R64 -> 1 | J64: ='CV Rotina <2A - procedência'!T64 -> 1.411764706 | K64: ='CV Rotina <2A - procedência'!V64 -> 1.411764706 | L64: ='CV Rotina <2A - procedência'!Z64 -> 0.2352941176 | M64: 1 | N64: 4 | O64: 5 | P64: 1
A65: Metropolitana | B65: Santa Maria de Jetibá | C65: ='CV Rotina <2A - procedência'!H65 -> 0.7245508982 | D65: ='CV Rotina <2A - procedência'!P65 -> 1 | E65: ='CV Rotina <2A - procedência'!J65 -> 0.8443113772 | F65: ='CV Rotina <2A - procedência'!L65 -> 0.8622754491 | G65: ='CV Rotina <2A - procedência'!N65 -> 0.9401197605 | H65: ='CV Rotina <2A - procedência'!X65 -> 0.9580838323 | I65: ='CV Rotina <2A - procedência'!R65 -> 0.8862275449 | J65: ='CV Rotina <2A - procedência'!T65 -> 0.7784431138 | K65: ='CV Rotina <2A - procedência'!V65 -> 0.9580838323 | L65: ='CV Rotina <2A - procedência'!Z65 -> 0.7365269461 | M65: 1 | N65: 2 | O65: 3 | P65: 1
A66: Metropolitana | B66: Santa Teresa | C66: ='CV Rotina <2A - procedência'!H66 -> 2.325 | D66: ='CV Rotina <2A - procedência'!P66 -> 0.8125 | E66: ='CV Rotina <2A - procedência'!J66 -> 0.7875 | F66: ='CV Rotina <2A - procedência'!L66 -> 0.7875 | G66: ='CV Rotina <2A - procedência'!N66 -> 0.7125 | H66: ='CV Rotina <2A - procedência'!X66 -> 0.7125 | I66: ='CV Rotina <2A - procedência'!R66 -> 0.925 | J66: ='CV Rotina <2A - procedência'!T66 -> 0.8 | K66: ='CV Rotina <2A - procedência'!V66 -> 0.7625 | L66: ='CV Rotina <2A - procedência'!Z66 -> 0.7 | M66: 1 | N66: 0 | O66: 1 | P66: 0
A67: Central | B67: São Domingos do Norte | C67: ='CV Rotina <2A - procedência'!H67 -> 0.44 | D67: ='CV Rotina <2A - procedência'!P67 -> 0.84 | E67: ='CV Rotina <2A - procedência'!J67 -> 1.04 | F67: ='CV Rotina <2A - procedência'!L67 -> 1.08 | G67: ='CV Rotina <2A - procedência'!N67 -> 0.8 | H67: ='CV Rotina <2A - procedência'!X67 -> 1.12 | I67: ='CV Rotina <2A - procedência'!R67 -> 0.8 | J67: ='CV Rotina <2A - procedência'!T67 -> 1.04 | K67: ='CV Rotina <2A - procedência'!V67 -> 1.48 | L67: ='CV Rotina <2A - procedência'!Z67 -> 1.2 | M67: =COUNTIF(C67:D67,">=0,9") -> 0 | N67: =COUNTIFS(E67:L67,">=0,95") -> 6 | O67: 6 | P67: 3
A68: Central | B68: São Gabriel da Palha | C68: ='CV Rotina <2A - procedência'!H68 -> 0.3363636364 | D68: ='CV Rotina <2A - procedência'!P68 -> 0.8545454545 | E68: ='CV Rotina <2A - procedência'!J68 -> 1.036363636 | F68: ='CV Rotina <2A - procedência'!L68 -> 1.036363636 | G68: ='CV Rotina <2A - procedência'!N68 -> 0.7545454545 | H68: ='CV Rotina <2A - procedência'!X68 -> 0.8727272727 | I68: ='CV Rotina <2A - procedência'!R68 -> 1.009090909 | J68: ='CV Rotina <2A - procedência'!T68 -> 0.9454545455 | K68: ='CV Rotina <2A - procedência'!V68 -> 0.9363636364 | L68: ='CV Rotina <2A - procedência'!Z68 -> 0.7 | M68: 0 | N68: 3 | O68: =SUM(M68:N68) -> 3 | P68: =COUNTIF(E68:H68,">=0,95") -> 2
A69: Sul | B69: São José do Calçado | C69: ='CV Rotina <2A - procedência'!H69 -> 0.625 | D69: ='CV Rotina <2A - procedência'!P69 -> 0.7083333333 | E69: ='CV Rotina <2A - procedência'!J69 -> 1.25 | F69: ='CV Rotina <2A - procedência'!L69 -> 1.25 | G69: ='CV Rotina <2A - procedência'!N69 -> 0.75 | H69: ='CV Rotina <2A - procedência'!X69 -> 0.9583333333 | I69: ='CV Rotina <2A - procedência'!R69 -> 0.875 | J69: ='CV Rotina <2A - procedência'!T69 -> 0.6666666667 | K69: ='CV Rotina <2A - procedência'!V69 -> 1.291666667 | L69: ='CV Rotina <2A - procedência'!Z69 -> 1.333333333 | M69: 0 | N69: 5 | O69: 5 | P69: 3
A70: Norte | B70: São Mateus | C70: ='CV Rotina <2A - procedência'!H70 -> 1.569264069 | D70: ='CV Rotina <2A - procedência'!P70 -> 0.829004329 | E70: ='CV Rotina <2A - procedência'!J70 -> 0.9004329004 | F70: ='CV Rotina <2A - procedência'!L70 -> 0.8939393939 | G70: ='CV Rotina <2A - procedência'!N70 -> 0.7662337662 | H70: ='CV Rotina <2A - procedência'!X70 -> 0.9047619048 | I70: ='CV Rotina <2A - procedência'!R70 -> 0.8701298701 | J70: ='CV Rotina <2A - procedência'!T70 -> 0.7727272727 | K70: ='CV Rotina <2A - procedência'!V70 -> 0.8766233766 | L70: ='CV Rotina <2A - procedência'!Z70 -> 0.7164502165 | M70: 1 | N70: 0 | O70: 1 | P70: 0
A71: Central | B71: São Roque do Canaã | C71: ='CV Rotina <2A - procedência'!H71 -> 0.2173913043 | D71: ='CV Rotina <2A - procedência'!P71 -> 0.6739130435 | E71: ='CV Rotina <2A - procedência'!J71 -> 0.6956521739 | F71: ='CV Rotina <2A - procedência'!L71 -> 0.6304347826 | G71: ='CV Rotina <2A - procedência'!N71 -> 0.5434782609 | H71: ='CV Rotina <2A - procedência'!X71 -> 0.8695652174 | I71: ='CV Rotina <2A - procedência'!R71 -> 0.6086956522 | J71: ='CV Rotina <2A - procedência'!T71 -> 0.5652173913 | K71: ='CV Rotina <2A - procedência'!V71 -> 0.3043478261 | L71: ='CV Rotina <2A - procedência'!Z71 -> 0.5 | M71: 0 | N71: 0 | O71: 0 | P71: 0
A72: Metropolitana | B72: Serra | C72: ='CV Rotina <2A - procedência'!H72 -> 1.111696523 | D72: ='CV Rotina <2A - procedência'!P72 -> 0.8498419389 | E72: ='CV Rotina <2A - procedência'!J72 -> 0.856691254 | F72: ='CV Rotina <2A - procedência'!L72 -> 0.8335089568 | G72: ='CV Rotina <2A - procedência'!N72 -> 0.8003161222 | H72: ='CV Rotina <2A - procedência'!X72 -> 0.8387776607 | I72: ='CV Rotina <2A - procedência'!R72 -> 0.8403582719 | J72: ='CV Rotina <2A - procedência'!T72 -> 0.7260273973 | K72: ='CV Rotina <2A - procedência'!V72 -> 0.8672286617 | L72: ='CV Rotina <2A - procedência'!Z72 -> 0.779768177 | M72: 1 | N72: 0 | O72: 1 | P72: 0
A73: Central | B73: Sooretama | C73: ='CV Rotina <2A - procedência'!H73 -> 0.08163265306 | D73: ='CV Rotina <2A - procedência'!P73 -> 1.071428571 | E73: ='CV Rotina <2A - procedência'!J73 -> 1 | F73: ='CV Rotina <2A - procedência'!L73 -> 0.9489795918 | G73: ='CV Rotina <2A - procedência'!N73 -> 0.9693877551 | H73: ='CV Rotina <2A - procedência'!X73 -> 0.9591836735 | I73: ='CV Rotina <2A - procedência'!R73 -> 1.132653061 | J73: ='CV Rotina <2A - procedência'!T73 -> 1.010204082 | K73: ='CV Rotina <2A - procedência'!V73 -> 0.9387755102 | L73: ='CV Rotina <2A - procedência'!Z73 -> 0.9183673469 | M73: 1 | N73: 5 | O73: 6 | P73: 3
A74: Sul | B74: Vargem Alta | C74: ='CV Rotina <2A - procedência'!H74 -> 0.22 | D74: ='CV Rotina <2A - procedência'!P74 -> 1.26 | E74: ='CV Rotina <2A - procedência'!J74 -> 1.3 | F74: ='CV Rotina <2A - procedência'!L74 -> 1.22 | G74: ='CV Rotina <2A - procedência'!N74 -> 1.3 | H74: ='CV Rotina <2A - procedência'!X74 -> 1.14 | I74: ='CV Rotina <2A - procedência'!R74 -> 1.32 | J74: ='CV Rotina <2A - procedência'!T74 -> 1.16 | K74: ='CV Rotina <2A - procedência'!V74 -> 1.16 | L74: ='CV Rotina <2A - procedência'!Z74 -> 1.46 | M74: 1 | N74: 8 | O74: 9 | P74: 4
A75: Metropolitana | B75: Venda Nova do Imigrante | C75: ='CV Rotina <2A - procedência'!H75 -> 1.469135802 | D75: ='CV Rotina <2A - procedência'!P75 -> 1.271604938 | E75: ='CV Rotina <2A - procedência'!J75 -> 1 | F75: ='CV Rotina <2A - procedência'!L75 -> 1 | G75: ='CV Rotina <2A - procedência'!N75 -> 1.111111111 | H75: ='CV Rotina <2A - procedência'!X75 -> 1.283950617 | I75: ='CV Rotina <2A - procedência'!R75 -> 1.12345679 | J75: ='CV Rotina <2A - procedência'!T75 -> 1.061728395 | K75: ='CV Rotina <2A - procedência'!V75 -> 1.419753086 | L75: ='CV Rotina <2A - procedência'!Z75 -> 0.9259259259 | M75: 2 | N75: 7 | O75: 9 | P75: 4
A76: Metropolitana | B76: Viana | C76: ='CV Rotina <2A - procedência'!H76 -> 0.2191780822 | D76: ='CV Rotina <2A - procedência'!P76 -> 0.9863013699 | E76: ='CV Rotina <2A - procedência'!J76 -> 1.00456621 | F76: ='CV Rotina <2A - procedência'!L76 -> 0.9543378995 | G76: ='CV Rotina <2A - procedência'!N76 -> 1.02283105 | H76: ='CV Rotina <2A - procedência'!X76 -> 1.02283105 | I76: ='CV Rotina <2A - procedência'!R76 -> 1.00913242 | J76: ='CV Rotina <2A - procedência'!T76 -> 0.6894977169 | K76: ='CV Rotina <2A - procedência'!V76 -> 0.8812785388 | L76: ='CV Rotina <2A - procedência'!Z76 -> 0.4931506849 | M76: 1 | N76: 5 | O76: 6 | P76: 4
A77: Norte | B77: Vila Pavão | C77: ='CV Rotina <2A - procedência'!H77 -> 0.5517241379 | D77: ='CV Rotina <2A - procedência'!P77 -> 1.068965517 | E77: ='CV Rotina <2A - procedência'!J77 -> 1.344827586 | F77: ='CV Rotina <2A - procedência'!L77 -> 1.310344828 | G77: ='CV Rotina <2A - procedência'!N77 -> 1 | H77: ='CV Rotina <2A - procedência'!X77 -> 0.8965517241 | I77: ='CV Rotina <2A - procedência'!R77 -> 1.379310345 | J77: ='CV Rotina <2A - procedência'!T77 -> 1.103448276 | K77: ='CV Rotina <2A - procedência'!V77 -> 0.6551724138 | L77: ='CV Rotina <2A - procedência'!Z77 -> 0.8275862069 | M77: 1 | N77: 5 | O77: 6 | P77: 3
A78: Central | B78: Vila Valério | C78: ='CV Rotina <2A - procedência'!H78 -> 0.2580645161 | D78: ='CV Rotina <2A - procedência'!P78 -> 0.7096774194 | E78: ='CV Rotina <2A - procedência'!J78 -> 0.7903225806 | F78: ='CV Rotina <2A - procedência'!L78 -> 0.8064516129 | G78: ='CV Rotina <2A - procedência'!N78 -> 0.8064516129 | H78: ='CV Rotina <2A - procedência'!X78 -> 1.032258065 | I78: ='CV Rotina <2A - procedência'!R78 -> 0.8064516129 | J78: ='CV Rotina <2A - procedência'!T78 -> 0.9838709677 | K78: ='CV Rotina <2A - procedência'!V78 -> 1.016129032 | L78: ='CV Rotina <2A - procedência'!Z78 -> 0.6129032258 | M78: 0 | N78: 3 | O78: 3 | P78: 1
A79: Metropolitana | B79: Vila Velha | C79: ='CV Rotina <2A - procedência'!H79 -> 0.759350741 | D79: ='CV Rotina <2A - procedência'!P79 -> 0.827099506 | E79: ='CV Rotina <2A - procedência'!J79 -> 0.8235709245 | F79: ='CV Rotina <2A - procedência'!L79 -> 0.8193366267 | G79: ='CV Rotina <2A - procedência'!N79 -> 0.7050105857 | H79: ='CV Rotina <2A - procedência'!X79 -> 0.8242766408 | I79: ='CV Rotina <2A - procedência'!R79 -> 0.8334509527 | J79: ='CV Rotina <2A - procedência'!T79 -> 0.6563161609 | K79: ='CV Rotina <2A - procedência'!V79 -> 0.850388144 | L79: ='CV Rotina <2A - procedência'!Z79 -> 0.8186309104 | M79: 0 | N79: 0 | O79: 0 | P79: 0
A80: Metropolitana | B80: Vitória | C80: ='CV Rotina <2A - procedência'!H80 -> 1.912100457 | D80: ='CV Rotina <2A - procedência'!P80 -> 1.050228311 | E80: ='CV Rotina <2A - procedência'!J80 -> 1.184931507 | F80: ='CV Rotina <2A - procedência'!L80 -> 1.174657534 | G80: ='CV Rotina <2A - procedência'!N80 -> 0.8401826484 | H80: ='CV Rotina <2A - procedência'!X80 -> 1.229452055 | I80: ='CV Rotina <2A - procedência'!R80 -> 1.156392694 | J80: ='CV Rotina <2A - procedência'!T80 -> 0.6609589041 | K80: ='CV Rotina <2A - procedência'!V80 -> 1.107305936 | L80: ='CV Rotina <2A - procedência'!Z80 -> 1.146118721 | M80: 2 | N80: 6 | O80: 8 | P80: 3
B82: Total Norte | C82: ='CV Rotina <2A - procedência'!H82 -> 0.7706359946 | D82: ='CV Rotina <2A - procedência'!P82 -> 0.849797023 | E82: ='CV Rotina <2A - procedência'!J82 -> 0.9181326116 | F82: ='CV Rotina <2A - procedência'!L82 -> 0.8964817321 | G82: ='CV Rotina <2A - procedência'!N82 -> 0.7949932341 | H82: ='CV Rotina <2A - procedência'!X82 -> 0.9066305819 | I82: ='CV Rotina <2A - procedência'!R82 -> 0.8748308525 | J82: ='CV Rotina <2A - procedência'!T82 -> 0.8443843031 | K82: ='CV Rotina <2A - procedência'!V82 -> 0.8640054127 | L82: ='CV Rotina <2A - procedência'!Z82 -> 0.7564276049 | M82: =COUNTIF(C82:D82,">=0,9") -> 0 | N82: =COUNTIFS(E82:L82,">=0,95") -> 0 | O82: =SUM(M82:N82) -> 0 | P82: =COUNTIF(E82:H82,">=0,95") -> 0
B83: Total Central | C83: ='CV Rotina <2A - procedência'!H83 -> 0.9604395604 | D83: ='CV Rotina <2A - procedência'!P83 -> 0.8291208791 | E83: ='CV Rotina <2A - procedência'!J83 -> 0.8912087912 | F83: ='CV Rotina <2A - procedência'!L83 -> 0.8785714286 | G83: ='CV Rotina <2A - procedência'!N83 -> 0.743956044 | H83: ='CV Rotina <2A - procedência'!X83 -> 0.8813186813 | I83: ='CV Rotina <2A - procedência'!R83 -> 0.9131868132 | J83: ='CV Rotina <2A - procedência'!T83 -> 0.8516483516 | K83: ='CV Rotina <2A - procedência'!V83 -> 0.839010989 | L83: ='CV Rotina <2A - procedência'!Z83 -> 0.7126373626 | M83: =COUNTIF(C83:D83,">=0,9") -> 1 | N83: =COUNTIFS(E83:L83,">=0,95") -> 0 | O83: =SUM(M83:N83) -> 1 | P83: =COUNTIF(E83:H83,">=0,95") -> 0
B84: Total Metropolitana | C84: ='CV Rotina <2A - procedência'!H84 -> 0.9443473585 | D84: ='CV Rotina <2A - procedência'!P84 -> 0.8966258906 | E84: ='CV Rotina <2A - procedência'!J84 -> 0.9096652776 | F84: ='CV Rotina <2A - procedência'!L84 -> 0.8929963705 | G84: ='CV Rotina <2A - procedência'!N84 -> 0.8026616481 | H84: ='CV Rotina <2A - procedência'!X84 -> 0.9247210647 | I84: ='CV Rotina <2A - procedência'!R84 -> 0.9006586907 | J84: ='CV Rotina <2A - procedência'!T84 -> 0.7320876462 | K84: ='CV Rotina <2A - procedência'!V84 -> 0.9278128781 | L84: ='CV Rotina <2A - procedência'!Z84 -> 0.8286059954 | M84: =COUNTIF(C84:D84,">=0,9") -> 1 | N84: =COUNTIFS(E84:L84,">=0,95") -> 0 | O84: =SUM(M84:N84) -> 1 | P84: =COUNTIF(E84:H84,">=0,95") -> 0
B85: Total Sul | C85: ='CV Rotina <2A - procedência'!H85 -> 1.20531401 | D85: ='CV Rotina <2A - procedência'!P85 -> 1.138888889 | E85: ='CV Rotina <2A - procedência'!J85 -> 1.17089372 | F85: ='CV Rotina <2A - procedência'!L85 -> 1.118961353 | G85: ='CV Rotina <2A - procedência'!N85 -> 1.060386473 | H85: ='CV Rotina <2A - procedência'!X85 -> 1.210748792 | I85: ='CV Rotina <2A - procedência'!R85 -> 1.150966184 | J85: ='CV Rotina <2A - procedência'!T85 -> 1.078502415 | K85: ='CV Rotina <2A - procedência'!V85 -> 1.236111111 | L85: ='CV Rotina <2A - procedência'!Z85 -> 1.089975845 | M85: =COUNTIF(C85:D85,">=0,9") -> 2 | N85: =COUNTIFS(E85:L85,">=0,95") -> 8 | O85: =SUM(M85:N85) -> 10 | P85: =COUNTIF(E85:H85,">=0,95") -> 4
B86: Total Espírito Santo | C86: ='CV Rotina <2A - procedência'!H86 -> 0.9608650044 | D86: ='CV Rotina <2A - procedência'!P86 -> 0.9134995562 | E86: ='CV Rotina <2A - procedência'!J86 -> 0.9428709756 | F86: ='CV Rotina <2A - procedência'!L86 -> 0.9214879367 | G86: ='CV Rotina <2A - procedência'!N86 -> 0.8275639474 | H86: ='CV Rotina <2A - procedência'!X86 -> 0.9544097474 | I86: ='CV Rotina <2A - procedência'!R86 -> 0.9328653272 | J86: ='CV Rotina <2A - procedência'!T86 -> 0.8093278464 | K86: ='CV Rotina <2A - procedência'!V86 -> 0.948357944 | L86: ='CV Rotina <2A - procedência'!Z86 -> 0.8378923586 | M86: =COUNTIF(C86:D86,">=0,9") -> 2 | N86: =COUNTIFS(E86:L86,">=0,95") -> 1 | O86: =SUM(M86:N86) -> 3 | P86: =COUNTIF(E86:H86,">=0,95") -> 1
A89: Fonte: SIPNI/DATASUS, em 09 de junho de 2023.*
A90: Vacina e Confia, em 12 de junho de 2023.**
A91: *Dados referentes às doses aplicadas pelas clínicas particulares de janeiro a maio de 2023
A92: **Dados referente às doses aplicadas no período de janeiro a maio de 2023
A93: Cobertura Calculada por município de vacinação
A94: 1 População proporcional extraída do MS/SVS/DASIS - Sistema de Informações sobre Nascidos Vivos - SINASC
A95: 2000 a 2021 – Estimativas preliminares elaboradas pelo Ministério da Saúde/SVS/DASNT/CGIAE
A96: Nota: Dados preliminares 2021

Sheet cálculos2 (hidden)
C1: 0.9 | E1: 0.95
A2: Regional | B2: Município | C2: Cobertura Vacinal BCG | D2: Cobertura Vacinal Rotavírus | E2: Cobertura Vacinal Pentavalente | F2: Cobertura Vacinal Poliomielite | G2: Cobertura Vacinal Pneumo 10 | H2: Cobertura Vacinal Tríplice Viral | I2: Cobertura Vacinal Meningo C | J2: Cobertura Vacinal Febre Amarela | K2: Cobertura Vacinal Hepatite A | L2: Cobertura Varicela | M2: META 90% | N2: META 95% | O2: ATINGIRAM META | P2: PQA-VS
A3: Metropolitana | B3: Afonso Cláudio | C3: ='CV Rotina <2A - residência'!H3 -> 1 | D3: ='CV Rotina <2A - residência'!P3 -> 0.976744186 | E3: ='CV Rotina <2A - residência'!J3 -> 1.046511628 | F3: ='CV Rotina <2A - residência'!L3 -> 1.011627907 | G3: ='CV Rotina <2A - residência'!N3 -> 0.9418604651 | H3: ='CV Rotina <2A - residência'!X3 -> 1.186046512 | I3: ='CV Rotina <2A - residência'!R3 -> 1 | J3: ='CV Rotina <2A - residência'!T3 -> 1.058139535 | K3: ='CV Rotina <2A - residência'!V3 -> 1.197674419 | L3: ='CV Rotina <2A - residência'!Z3 -> 1.476744186 | M3: =COUNTIF(C3:D3,">=0,9") -> 2 | N3: =COUNTIFS(E3:L3,">=0,95") -> 7 | O3: =SUM(M3:N3) -> 9 | P3: =COUNTIF(E3:H3,">=0,95") -> 3
A4: Norte | B4: Água Doce do Norte | C4: ='CV Rotina <2A - residência'!H4 -> 0.8039215686 | D4: ='CV Rotina <2A - residência'!P4 -> 0.568627451 | E4: ='CV Rotina <2A - residência'!J4 -> 0.6862745098 | F4: ='CV Rotina <2A - residência'!L4 -> 0.6862745098 | G4: ='CV Rotina <2A - residência'!N4 -> 0.6274509804 | H4: ='CV Rotina <2A - residência'!X4 -> 0.8431372549 | I4: ='CV Rotina <2A - residência'!R4 -> 0.7058823529 | J4: ='CV Rotina <2A - residência'!T4 -> 0.8431372549 | K4: ='CV Rotina <2A - residência'!V4 -> 0.5882352941 | L4: ='CV Rotina <2A - residência'!Z4 -> 0.3529411765 | M4: 0 | N4: 0 | O4: =SUM(M4:N4) -> 0 | P4: =COUNTIF(E4:H4,">=0,95") -> 0
A5: Central | B5: Águia Branca | C5: ='CV Rotina <2A - residência'!H5 -> 1.069767442 | D5: ='CV Rotina <2A - residência'!P5 -> 0.488372093 | E5: ='CV Rotina <2A - residência'!J5 -> 0.8837209302 | F5: ='CV Rotina <2A - residência'!L5 -> 0.9302325581 | G5: ='CV Rotina <2A - residência'!N5 -> 0.5348837209 | H5: ='CV Rotina <2A - residência'!X5 -> 0.9069767442 | I5: ='CV Rotina <2A - residência'!R5 -> 0.7441860465 | J5: ='CV Rotina <2A - residência'!T5 -> 0.976744186 | K5: ='CV Rotina <2A - residência'!V5 -> 0.7906976744 | L5: ='CV Rotina <2A - residência'!Z5 -> 0.8372093023 | M5: 1 | N5: 1 | O5: 2 | P5: 0
A6: Sul | B6: Alegre | C6: ='CV Rotina <2A - residência'!H6 -> 0.9830508475 | D6: ='CV Rotina <2A - residência'!P6 -> 0.9152542373 | E6: ='CV Rotina <2A - residência'!J6 -> 1.186440678 | F6: ='CV Rotina <2A - residência'!L6 -> 1.033898305 | G6: ='CV Rotina <2A - residência'!N6 -> 0.7627118644 | H6: ='CV Rotina <2A - residência'!X6 -> 1.372881356 | I6: ='CV Rotina <2A - residência'!R6 -> 1.203389831 | J6: ='CV Rotina <2A - residência'!T6 -> 1.084745763 | K6: ='CV Rotina <2A - residência'!V6 -> 1.355932203 | L6: ='CV Rotina <2A - residência'!Z6 -> 1.576271186 | M6: 2 | N6: 7 | O6: 9 | P6: 3
A7: Sul | B7: Alfredo Chaves | C7: ='CV Rotina <2A - residência'!H7 -> 1 | D7: ='CV Rotina <2A - residência'!P7 -> 0.7037037037 | E7: ='CV Rotina <2A - residência'!J7 -> 1.185185185 | F7: ='CV Rotina <2A - residência'!L7 -> 1.148148148 | G7: ='CV Rotina <2A - residência'!N7 -> 0.5555555556 | H7: ='CV Rotina <2A - residência'!X7 -> 1.185185185 | I7: ='CV Rotina <2A - residência'!R7 -> 1.037037037 | J7: ='CV Rotina <2A - residência'!T7 -> 1.074074074 | K7: ='CV Rotina <2A - residência'!V7 -> 1.481481481 | L7: ='CV Rotina <2A - residência'!Z7 -> 1.296296296 | M7: 1 | N7: 7 | O7: 8 | P7: 3
A8: Central | B8: Alto Rio Novo | C8: ='CV Rotina <2A - residência'!H8 -> 0.9473684211 | D8: ='CV Rotina <2A - residência'!P8 -> 1.210526316 | E8: ='CV Rotina <2A - residência'!J8 -> 1.263157895 | F8: ='CV Rotina <2A - residência'!L8 -> 1.315789474 | G8: ='CV Rotina <2A - residência'!N8 -> 1.210526316 | H8: ='CV Rotina <2A - residência'!X8 -> 1.052631579 | I8: ='CV Rotina <2A - residência'!R8 -> 1.526315789 | J8: ='CV Rotina <2A - residência'!T8 -> 1.473684211 | K8: ='CV Rotina <2A - residência'!V8 -> 0.9473684211 | L8: ='CV Rotina <2A - residência'!Z8 -> 1.210526316 | M8: 2 | N8: 7 | O8: 9 | P8: 4
A9: Sul | B9: Anchieta | C9: ='CV Rotina <2A - residência'!H9 -> 1.109589041 | D9: ='CV Rotina <2A - residência'!P9 -> 1.424657534 | E9: ='CV Rotina <2A - residência'!J9 -> 1.301369863 | F9: ='CV Rotina <2A - residência'!L9 -> 1.246575342 | G9: ='CV Rotina <2A - residência'!N9 -> 1.369863014 | H9: ='CV Rotina <2A - residência'!X9 -> 1.205479452 | I9: ='CV Rotina <2A - residência'!R9 -> 1.178082192 | J9: ='CV Rotina <2A - residência'!T9 -> 1.136986301 | K9: ='CV Rotina <2A - residência'!V9 -> 1.493150685 | L9: ='CV Rotina <2A - residência'!Z9 -> 1.342465753 | M9: 2 | N9: 8 | O9: 10 | P9: 4
A10: Sul | B10: Apiacá | C10: ='CV Rotina <2A - residência'!H10 -> 1.210526316 | D10: ='CV Rotina <2A - residência'!P10 -> 0.8421052632 | E10: ='CV Rotina <2A - residência'!J10 -> 0.8421052632 | F10: ='CV Rotina <2A - residência'!L10 -> 0.7894736842 | G10: ='CV Rotina <2A - residência'!N10 -> 0.8421052632 | H10: ='CV Rotina <2A - residência'!X10 -> 0.8421052632 | I10: ='CV Rotina <2A - residência'!R10 -> 0.7894736842 | J10: ='CV Rotina <2A - residência'!T10 -> 1.105263158 | K10: ='CV Rotina <2A - residência'!V10 -> 0.5789473684 | L10: ='CV Rotina <2A - residência'!Z10 -> 0.7894736842 | M10: 1 | N10: 1 | O10: 2 | P10: 0
A11: Metropolitana | B11: Aracruz | C11: ='CV Rotina <2A - residência'!H11 -> 0.9636363636 | D11: ='CV Rotina <2A - residência'!P11 -> 0.825974026 | E11: ='CV Rotina <2A - residência'!J11 -> 0.8311688312 | F11: ='CV Rotina <2A - residência'!L11 -> 0.8233766234 | G11: ='CV Rotina <2A - residência'!N11 -> 0.7298701299 | H11: ='CV Rotina <2A - residência'!X11 -> 0.9558441558 | I11: ='CV Rotina <2A - residência'!R11 -> 0.8025974026 | J11: ='CV Rotina <2A - residência'!T11 -> 0.7688311688 | K11: ='CV Rotina <2A - residência'!V11 -> 0.9402597403 | L11: ='CV Rotina <2A - residência'!Z11 -> 0.8363636364 | M11: 1 | N11: 1 | O11: 2 | P11: 1
A12: Sul | B12: Atilio Vivacqua | C12: ='CV Rotina <2A - residência'!H12 -> 2.2 | D12: ='CV Rotina <2A - residência'!P12 -> 2.2 | E12: ='CV Rotina <2A - residência'!J12 -> 2.55 | F12: ='CV Rotina <2A - residência'!L12 -> 2.5 | G12: ='CV Rotina <2A - residência'!N12 -> 2.15 | H12: ='CV Rotina <2A - residência'!X12 -> 1.8 | I12: ='CV Rotina <2A - residência'!R12 -> 2.4 | J12: ='CV Rotina <2A - residência'!T12 -> 1.7 | K12: ='CV Rotina <2A - residência'!V12 -> 1.65 | L12: ='CV Rotina <2A - residência'!Z12 -> 1.15 | M12: 2 | N12: 8 | O12: 10 | P12: 4
A13: Central | B13: Baixo Guandu | C13: ='CV Rotina <2A - residência'!H13 -> 0.9619047619 | D13: ='CV Rotina <2A - residência'!P13 -> 0.580952381 | E13: ='CV Rotina <2A - residência'!J13 -> 0.7333333333 | F13: ='CV Rotina <2A - residência'!L13 -> 0.7333333333 | G13: ='CV Rotina <2A - residência'!N13 -> 0.5523809524 | H13: ='CV Rotina <2A - residência'!X13 -> 0.819047619 | I13: ='CV Rotina <2A - residência'!R13 -> 0.6571428571 | J13: ='CV Rotina <2A - residência'!T13 -> 0.8571428571 | K13: ='CV Rotina <2A - residência'!V13 -> 0.9428571429 | L13: ='CV Rotina <2A - residência'!Z13 -> 0.7523809524 | M13: 1 | N13: 0 | O13: 1 | P13: 0
A14: Norte | B14: Barra de São Francisco | C14: ='CV Rotina <2A - residência'!H14 -> 0.8322147651 | D14: ='CV Rotina <2A - residência'!P14 -> 0.7181208054 | E14: ='CV Rotina <2A - residência'!J14 -> 0.966442953 | F14: ='CV Rotina <2A - residência'!L14 -> 0.9530201342 | G14: ='CV Rotina <2A - residência'!N14 -> 0.7046979866 | H14: ='CV Rotina <2A - residência'!X14 -> 0.8187919463 | I14: ='CV Rotina <2A - residência'!R14 -> 0.8255033557 | J14: ='CV Rotina <2A - residência'!T14 -> 0.8523489933 | K14: ='CV Rotina <2A - residência'!V14 -> 0.7785234899 | L14: ='CV Rotina <2A - residência'!Z14 -> 0.932885906 | M14: 0 | N14: 2 | O14: 2 | P14: 2
A15: Norte | B15: Boa Esperança | C15: ='CV Rotina <2A - residência'!H15 -> 0.8947368421 | D15: ='CV Rotina <2A - residência'!P15 -> 0.8947368421 | E15: ='CV Rotina <2A - residência'!J15 -> 0.8596491228 | F15: ='CV Rotina <2A - residência'!L15 -> 0.8421052632 | G15: ='CV Rotina <2A - residência'!N15 -> 0.7894736842 | H15: ='CV Rotina <2A - residência'!X15 -> 0.7894736842 | I15: ='CV Rotina <2A - residência'!R15 -> 0.8245614035 | J15: ='CV Rotina <2A - residência'!T15 -> 0.8421052632 | K15: ='CV Rotina <2A - residência'!V15 -> 0.9473684211 | L15: ='CV Rotina <2A - residência'!Z15 -> 0.8596491228 | M15: 0 | N15: 0 | O15: 0 | P15: 0
A16: Sul | B16: Bom Jesus do Norte | C16: ='CV Rotina <2A - residência'!H16 -> 1.3125 | D16: ='CV Rotina <2A - residência'!P16 -> 1.1875 | E16: ='CV Rotina <2A - residência'!J16 -> 1.5625 | F16: ='CV Rotina <2A - residência'!L16 -> 1.5625 | G16: ='CV Rotina <2A - residência'!N16 -> 1.1875 | H16: ='CV Rotina <2A - residência'!X16 -> 1.25 | I16: ='CV Rotina <2A - residência'!R16 -> 1.0625 | J16: ='CV Rotina <2A - residência'!T16 -> 1.375 | K16: ='CV Rotina <2A - residência'!V16 -> 1.625 | L16: ='CV Rotina <2A - residência'!Z16 -> 0.875 | M16: 2 | N16: 7 | O16: 9 | P16: 4
A17: Metropolitana | B17: Brejetuba | C17: ='CV Rotina <2A - residência'!H17 -> 0.92 | D17: ='CV Rotina <2A - residência'!P17 -> 1.08 | E17: ='CV Rotina <2A - residência'!J17 -> 0.74 | F17: ='CV Rotina <2A - residência'!L17 -> 0.78 | G17: ='CV Rotina <2A - residência'!N17 -> 0.96 | H17: ='CV Rotina <2A - residência'!X17 -> 1.06 | I17: ='CV Rotina <2A - residência'!R17 -> 0.9 | J17: ='CV Rotina <2A - residência'!T17 -> 0.66 | K17: ='CV Rotina <2A - residência'!V17 -> 0.86 | L17: ='CV Rotina <2A - residência'!Z17 -> 0.74 | M17: 2 | N17: 2 | O17: 4 | P17: 2
A18: Sul | B18: Cachoeiro de Itapemirim | C18: ='CV Rotina <2A - residência'!H18 -> 1.400437637 | D18: ='CV Rotina <2A - residência'!P18 -> 1.159737418 | E18: ='CV Rotina <2A - residência'!J18 -> 1.185995624 | F18: ='CV Rotina <2A - residência'!L18 -> 1.170678337 | G18: ='CV Rotina <2A - residência'!N18 -> 1.048140044 | H18: ='CV Rotina <2A - residência'!X18 -> 1.295404814 | I18: ='CV Rotina <2A - residência'!R18 -> 1.168490153 | J18: ='CV Rotina <2A - residência'!T18 -> 1.06345733 | K18: ='CV Rotina <2A - residência'!V18 -> 1.323851204 | L18: ='CV Rotina <2A - residência'!Z18 -> 1.192560175 | M18: 2 | N18: 8 | O18: 10 | P18: 4
A19: Metropolitana | B19: Cariacica | C19: ='CV Rotina <2A - residência'!H19 -> 0.9844389844 | D19: ='CV Rotina <2A - residência'!P19 -> 0.8632268632 | E19: ='CV Rotina <2A - residência'!J19 -> 0.9336609337 | F19: ='CV Rotina <2A - residência'!L19 -> 0.9033579034 | G19: ='CV Rotina <2A - residência'!N19 -> 0.7592137592 | H19: ='CV Rotina <2A - residência'!X19 -> 0.9279279279 | I19: ='CV Rotina <2A - residência'!R19 -> 0.9090909091 | J19: ='CV Rotina <2A - residência'!T19 -> 0.7321867322 | K19: ='CV Rotina <2A - residência'!V19 -> 0.9189189189 | L19: ='CV Rotina <2A - residência'!Z19 -> 0.6838656839 | M19: 1 | N19: 0 | O19: 1 | P19: 0
